Workbook

Sheet TIEOSAT
D1: Kaakkois-Suomen ELY-keskuksen tieverkon merkittävyysluokitus, joulukuu 2021
D2: PISTEYTYSTEKIJÄT JA PAINOARVOT | R2: PALAUTUS- JA LAJITTELUTYÖKALUT | Y2: SUODATUS- JA HAKUTYÖKALUT
D3: OSA-ALUEET | K3: Taajama | U3: Tietokannan palauttaminen oletusarvoihin | Z3: KVL tekijät poistetaan käytöstä
D4: Säännöllinen henkilöliikenne | G4: Yht. | H4: painotus | K4: Tieosasta | L4: 0.5
D5: KVL | F5: 9 | G5: =SUM(F5:F8) -> 17 | H5: =1/3 -> 0.3333333333 | K5: Liikenne | L5: Vähä/loput
D6: Linja-autovuorot | F6: 3 | K6: KVL | L6: 500 | Z6: Järjestä tieosat luokan mukaan
D7: Työmatkat | F7: 2 | K7: KVLRAS | L7: 50 | U7: Lajittele muutosten/ nollauksen jälkeen
D8: Koulukuljetusreitit | F8: 3 | K8: KKVL | L8: 500
D9: Säännöllinen tavaraliikenne | G9: Yht. | H9: painotus | K9: Työmatkat | Z9: Näytä vain soratiet
D10: KVLRAS | F10: 9 | G10: =SUM(F10:F20) -> 22 | H10: 0.3333333333 | K10: Pisteet | M10: Työmatkoja
D11: Maito | F11: 2 | K11: =F7 -> 2 | L11: =CONCATENATE("≥ ",M11,) -> ≥ 300 | M11: 300
D12: Jäte | F12: 1 | K12: =CONCATENATE("0-",K11) -> 0-2 | L12: 0–299 lineaarisesti | Z12: Tienumerojärjestys
D13: Maa-aines | F13: 1 | K13: Linja-autovuorot | R13: Merkitsevyysluokka | U13: % max pisteistä | W13: Tieosista
D14: Turve | F14: 1 | K14: Pisteet | M14: Vuoromäärä | R14: 1 luokka | U14: =CK27 -> 0.8595258237 | W14: 0.05
D15: Viljansäilytys ja kasvih. | F15: 1 | K15: =$F$6 -> 3 | L15: =CONCATENATE("≥ ",M15,) -> ≥ 10 | M15: 10 | R15: 2 luokka | U15: =CK28 -> 0.6279289792 | W15: 0.2 | Z15: Hae tiejakso
D16: Eläintilat | F16: 2 | K16: =CONCATENATE("0-",K15) -> 0-3 | L16: 0–9 lineaarisesti | R16: 3 luokka | U16: =CK29 -> 0.1777789014 | W16: 0.5
D17: Elintarvikelaitos | F17: 1 | K17: Koulubufferi (3 km tieverkkoa pitkin) | R17: 4 luokka | U17: =CK32 -> 0.02914993585 | W17: =1-SUM(W14:W16) -> 0.25
D18: Tuotantolaitos | F18: 1 | K18: Pisteet | M18: Tieosasta | R18: Kilometrit | T18: Keskivilkas | V18: Vähäliikenteinen | Z18: Suodata KVL:n perusteella
D19: Päivittäistavarakauppa | F19: 1 | K19: =$F$22 -> 1 | L19: =CONCATENATE("≥ ",M19*100," %") -> ≥ 50 % | M19: 0.5 | R19: Luokka | S19: 1 | T19: =SUMIFS(U39:U715,K39:K715,"KESKI",H39:H715,1)/1000 -> 159.069 | V19: =SUMIFS(U39:U715,K39:K715,"VÄHÄ",H39:H715,1)/1000 -> 0
D20: Puukuljetus | F20: 2 | K20: =F22/2 -> 0.5 | L20: =CONCATENATE("1-",M19*100-1," %") -> 1-49 % | R20: Luokka | S20: 2 | T20: =SUMIFS(U39:U715,K39:K715,"KESKI",H39:H715,2)/1000 -> 562.523 | V20: =SUMIFS(U39:U715,K39:K715,"VÄHÄ",H39:H715,2)/1000 -> 23.701
D21: Muut tekijät | G21: Yht. | H21: painotus | K21: Eläintilat (tieosalle kumuloitunut lkm) | R21: Luokka | S21: 3 | T21: =SUMIFS(U39:U715,K39:K715,"KESKI",H39:H715,3)/1000 -> 147.781 | V21: =SUMIFS(U39:U715,K39:K715,"VÄHÄ",H39:H715,3)/1000 -> 1635.64 | CK21: Luokkien min pist.
D22: Koulu | F22: 1 | G22: =SUM(F22:F30) -> 11 | H22: =1/3 -> 0.3333333333 | K22: Pisteet (0-1 lineaarisesti) | M22: Eläinten lkm | R22: Luokka | S22: 4 | T22: =SUMIFS(U39:U715,K39:K715,"KESKI",H39:H715,4)/1000 -> 0 | V22: =SUMIFS(U39:U715,K39:K715,"VÄHÄ",H39:H715,4)/1000 -> 752.406 | Y22: TIEJAKSO-RAPORTTI | CK22: =MIN(IF(H39:H715=S19,G39:G715)) -> 10.7741562
D23: Eriku-reitti | F23: 1 | K23: =$F$16/4 -> 0.5 | L23: Nauta | M23: 300 | R23: Yht. | T23: =SUM(T19:T22) -> 869.373 | V23: =SUM(V19:V22) -> 2411.747 | CK23: =MIN(IF(H39:H715=S20,G39:G715)) -> 7.871089754
D24: Varareitti | F24: 1 | K24: =$F$16/4 -> 0.5 | L24: Lammas/vuohi/hevonen | M24: 100 | CK24: =MIN(IF(H39:H715=S21,G39:G715)) -> 2.22845853
D25: Taajama | F25: 1 | K25: =$F$16/4 -> 0.5 | L25: Sika | M25: 1000 | T25: Keskivilkas | V25: Vähäliikenteinen | CK25: =MIN(IF(H39:H715=S22,G39:G715)) -> 0.3653944459
D26: Asukastiheys | F26: 1 | K26: =$F$16/4 -> 0.5 | L26: Linnut | M26: 30 | R26: Tieosia (kpl) | T26: kpl | U26: osuus | V26: kpl | W26: osuus | X26: KAIKKI | CK26: Osuusmax
D27: KKVL | F27: 3 | K27: Tuotantolaitokset (kumuloituneet) | R27: Luokka 1 | T27: =COUNTIFS(K39:K715,"KESKI",H39:H715,1) -> 33 | U27: =T27/$T$31 -> 0.1683673469 | V27: =COUNTIFS(K39:K715,"VÄHÄ",H39:H715,1) -> 0 | W27: =V27/$V$31 -> 0 | X27: =(T27+V27)/($T$31+$V$31) -> 0.04874446086 | CK27: =CK22/$CE$32 -> 0.8595258237 | CN27: 1=taksi
D28: Matkailureitti | F28: 1 | K28: Pisteet | M28: Laitosten lkm | R28: Luokka 2 | T28: =COUNTIFS(K39:K715,"KESKI",H39:H715,2) -> 130 | U28: =T28/$T$31 -> 0.6632653061 | V28: =COUNTIFS(K39:K715,"VÄHÄ",H39:H715,2) -> 6 | W28: =V28/$V$31 -> 0.01247401247 | X28: =(T28+V28)/($T$31+$V$31) -> 0.2008862629 | CK28: =CK23/$CE$32 -> 0.6279289792 | CN28: 2=pikkubussi
D29: Matkailukohde | F29: 1 | K29: =F26 -> 1 | L29: =CONCATENATE("≥ ",M29,) -> ≥ 3 | M29: 3 | R29: Luokka 3 | T29: =COUNTIFS(K39:K715,"KESKI",H39:H715,3) -> 33 | U29: =T29/$T$31 -> 0.1683673469 | V29: =COUNTIFS(K39:K715,"VÄHÄ",H39:H715,3) -> 305 | W29: =V29/$V$31 -> 0.6340956341 | X29: =(T29+V29)/($T$31+$V$31) -> 0.4992614476 | Y29: =HYPERLINK("https://experience.arcgis.com/experience/ed1320995d494e9685bfce7a77fc9425","ONLINE-KARTTA") -> ONLINE-KARTTA | CE29: MAX | CF29: TIEOSIA | CK29: =CK24/$CE$32 -> 0.1777789014 | CN29: 3=bussi | DS29: Luokka muuttunut
D30: Tien verkollinen asema | F30: 1 | K30: Puukuljetukset (pit.pain.ka) | R30: Luokka 4 | T30: =COUNTIFS(K39:K715,"KESKI",H39:H715,4) -> 0 | U30: =T30/$T$31 -> 0 | V30: =COUNTIFS(K39:K715,"VÄHÄ",H39:H715,4) -> 170 | W30: =V30/$V$31 -> 0.3534303534 | X30: =(T30+V30)/($T$31+$V$31) -> 0.2511078287
F31: Muunneltavat | K31: =F20 -> 2 | L31: =CONCATENATE("≥ ",M31,) -> ≥ 3 | M31: 3 | R31: Yht. | T31: =SUM(T27:T30) -> 196 | U31: =SUM(U27:U30) -> 1 | V31: =SUM(V27:V30) -> 481 | W31: =SUM(W27:W30) -> 1
K32: =CONCATENATE("0-",K31) -> 0-2 | L32: 0–1,99 lineaarisesti | CE32: =MAX(CD39:CD715) -> 12.535 | CF32: =COUNT(P39:P715) -> 677 | CK32: =CK25/$CE$32 -> 0.02914993585 | DS32: 2 x VÄHÄ → LOPUT ja 18 x LOPUT → VÄHÄ
A33: 1 | B33: 2 | D33: 1 | E33: 2 | F33: 3 | G33: 4 | H33: 5 | I33: 6 | J33: 7 | K33: 8 | L33: 9 | M33: 10 | N33: 11 | R33: 14 | S33: 15 | T33: 16 | U33: 17 | V33: 18 | W33: 19 | X33: 20 | Y33: 21 | Z33: 22 | AA33: 23 | AB33: 24 | AG33: 28 | AJ33: 30 | AK33: 31 | AL33: 32 | AM33: 33 | AN33: 34 | AO33: 35 | AP33: 36 | AS33: 37 | AT33: 38 | AU33: 39 | AV33: 40 | AW33: 41 | AX33: 42 | AY33: 43 | AZ33: 44 | BA33: 45 | BB33: 46 | BC33: 47 | BD33: 48 | BE33: 49 | BI33: 50 | BJ33: 51 | BK33: 52 | BL33: 53 | BM33: 54 | BN33: 55 | BO33: 56 | BP33: 57 | BQ33: 58 | BR33: 59 | BS33: 60 | BT33: 61 | BZ33: 67 | CA33: 68 | CB33: 69 | CC33: 70 | CD33: 10.6 | CE33: 71 | CK33: 72 | CL33: 73 | DS33: LOPUT-verkon luokkamuutokset eivät vertailukelpoisia
A34: Lajittelu, ID | B34: LUOKKA | C34: Lajittelu | D34: Sija | E34: Herkkyys, sija ennen muutosta | F34: Herkkyys, sijamuutos | G34: Pisteet | H34: Merk. luokka | I34: Luokan muutos | J34: Google Maps | P34: TIEOSAN OMINAISUUDET | AL34: SÄÄNNÖLLINEN HENKILÖLIIKENNE | AS34: PISTEET YHTEENSÄ (max. 15) | AT34: PISTEET YHTEENSÄ, PAINOTETTU | AU34: SÄÄNNÖLLINEN TAVARALIIKENNE | BI34: PISTEET YHTEENSÄ (max. 25) | BJ34: PISTEET YHTEENSÄ, PAINOTETTU | BK34: MUUT TEKIJÄT | CA34: PISTEET YHTEENSÄ (max. 10) | CB34: PISTEET YHTEENSÄ, PAINOTETTU | CC34: PISTEET YHTEENSÄ (max. 50) | CD34: PISTEET YHTEENSÄ, PAINOTETTU | CE34: MERKITSEVYYS-LUOKKA | CG34: LISÄTIEDOT | DS34: Muutokset 2017-2020
AL35: Liikennemäärä | AM35: Linja-autoliikenne | AO35: Työmatkareitti | AQ35: Koulukuljetus | AU35: Liikennemäärä | AZ35: Maatilat | BK35: 3 km koulubufferi | BN35: Erikoiskuljetusreitti | BQ35: Varareitti | BR35: Taajama | BU35: Asukastiheys | BW35: Liikennemäärä | BX35: Matkailureitti | BY35: Matkailukohde | BZ35: Tien verkollinen asema | CG35: Maantieverkon laajuus | DL35: vertailu | DS35: LUOKKA 2017 | DT35: Sija 2017 | DU35: Sija-muutos | DV35: Luokka 2017 | DW35: Luokanmuutos
A36: Lajittelu, ID | B36: Lajittelu, KVL | K36: LUOKKA | L36: TOIML | M36: Tien nimi | N36: Kunta | O36: Maakunta | P36: TIE | Q36: AOSA | R36: AET | S36: LOSA | T36: LET | U36: PITUUS | V36: KVL, ka | W36: KVLRAS | X36: KKVL | Y36: KVL, ketjutus | Z36: NOPRA, ketjutus | AA36: Hoitoluokka, ketjutus | AB36: Päällyste, ketjutus | AC36: PYPLK | AD36: HEVA 16-20 | AE36: Kaikki onn. | AF36: Huonokunt. pääl. | AG36: KVLYHD | AH36: SEKV | AI36: Painoraj. sillat | AL36: KVL pisteet | AM36: Vuorot | AN36: Pisteet | AO36: Työmatkat | AP36: Pisteet | AQ36: Kalusto | AR36: Pisteet | AU36: KVLRAS pisteet | AV36: Maito | AW36: Jäte | AX36: Maa-aines | AY36: Turve | AZ36: Vilja + kasvih. | BA36: Nauta | BB36: Lammas | BC36: Sika | BD36: Siipikarja | BE36: Elintarvikelaitos | BF36: Tuotantolaitos | BG36: Päivittäistavarakauppa | BH36: Puukuljetus | BK36: Pituus | BL36: Prosentti | BM36: Pisteet | BN36: Pituus | BO36: Prosentti | BP36: Pisteet | BQ36: Pisteet | BR36: Pituus | BS36: Prosentti | BT36: Pisteet | BU36: Asukkaat | BV36: Pisteet | BW36: KKVL pisteet | BX36: Pisteet | BY36: Pisteet | BZ36: Pisteet | CF36: KVLosuus | CL36: Gmaps linkki | CN36: koulu | CO36: Maito, Arla | CP36: Maito, Valio | CQ36: Valio yht | CR36: Jäte | CS36: Maa-aines | CT36: Turve | CU36: Vilja | CV36: Nauta | CW36: Lammas/Vuohi/Hevonen | CX36: Sika | CY36: Siipikarja | CZ36: Elintarvikelaitos | DB36: Koulubufferi | DC36: Tuotanto | DD36: Logistiikka | DE36: Varareitit | DF36: Taajama | DG36: jos kkvl > raja | DH36: jos kkvl/kvl > 1,5 kertainen | DI36: kkvl yhteensä | DJ36: Matkailukohde reititys | DK36: Matkailureitti | DL36: Matkailukohde | DM36: Tien verkollinen asema | DN36: Kauppa | DO36: Puukuljeutkset
D38: SIJA | E38: SIJA2 | F38: SIJAMUUTOS | G38: PISTEET | H38: LUOKKA | I38: LUOKKAMUUTOS | J38: GMAPS | K38: LUOKKA | L38: TOIML | M38: TIE | N38: KUNTA | O38: MAAKUNTA | P38: TIE | Q38: AOSA | R38: AET | S38: LOSA | T38: LET | U38: PITUUS | V38: KVL | W38: KVLRAS | X38: KKVL | Y38: KVL KETJU | Z38: NOPRA KETJU | AA38: HOITOLUOKKA | AB38: PÄÄLLYSTE | AC38: PYPLK | AD38: HEVAT | AE38: KAIKKI ONN | AF38: HUONOKUNT | AG38: KVLYHD | AI38: SILLAT | AJ38: VPS | AK38: Painorajoitus | AL38: KVLPIST | AM38: VUOROT | AN38: VUOROPIST | AO38: TMATKAT | AP38: PIST | AQ38: KALUSTO | AR38: KALUSTOPIST | AS38: P1 | AT38: P1 PAINO | AU38: RAS PIST | AV38: Maito | AW38: Jäte | AX38: Maa-aines | AY38: Turve | AZ38: Maatalousrakennukset | BA38: NAUTA | BB38: LAMMAS | BC38: SIKA | BD38: SIIPI | BE38: Elintarvikelaitos | BF38: Tuotantolaitos | BG38: PTKAUPPA | BI38: P2 | BJ38: P2 paino | BK38: KOULUPIT | BL38: KOULUPROS | BM38: KOULUPIST | BN38: ERIKUPIT | BO38: ERIKUPROS | BP38: ERIKU | BQ38: VARAREITTI | BR38: TAAJAPIT | BS38: TAAJAPROS | BT38: TAAJAPIST | BU38: ASUKASTIH | BV38: ASUKASPIST | BW38: KKVL PIST | BX38: Matkailureitti | BY38: Matkailukohde | BZ38: Tien verkollinen asema | CA38: P3 | CB38: P3 Paino | CC38: PIST YHT | CD38: PIST PAINO | CE38: MERK LUOKKA
A39: =CONCATENATE(P39,"_",Q39) -> 387_1 | B39: 1 | D39: =RANK(CD39,$CD$39:$CD$715) -> 1 | E39: 1 | F39: =E39-D39 -> 0 | G39: =CD39 -> 12.535 | H39: =CE39 -> 1 | I39: =B39-H39 -> 0 | J39: =HYPERLINK(CL39,"Gmaps") -> Gmaps | K39: =IF(V39>$L$6,"KESKI","VÄHÄ") -> KESKI | L39: =IF(P39<40,"Valta",IF(P39<100,"Kanta",IF(P39<1000,"Seutu",IF(P39>999,"Yhdys")))) -> Seutu | M39: Simolantie, Vaalimaantie | N39: Lappeenranta | O39: Etelä-Karjala | P39: 387 | Q39: 1 | R39: 1712 | S39: 1 | T39: =R39+U39 -> 3650 | U39: 1938 | V39: 6239 | W39: 470 | X39: 6863 | Y39: 6239 (98 %) | Z39: 50 (46 %), 60 (52 %) | AA39: Is (98 %) | AB39: AB (98 %) | AC39: Y2 (98 %) | AD39: 1 | AE39: 6 | AF39: 0.09777560499 | AG39: 245 | AL39: =+IF(V39>=$L$6,$F$5,($F$5/($L$6))*V39) -> 9 | AM39: 0 | AN39: =+IF(AM39>=$M$15,$K$15,IF(AM39<($M$15),AM39*($K$15/($M$15)),)) -> 0 | AO39: 2976 | AP39: =+IF(AO39>=$M$11,$K$11,IF(AO39<($M$11),AO39*($K$11/($M$11)),)) -> 2 | AQ39: =IF(CN39=0,"-",IF(CN39=1,"taksi",IF(CN39=2,"pikkubussi","bussi"))) -> bussi | AR39: =IF(CN39=0,0,IF(CN39<3,$F$8/2,$F$8)) -> 3 | AS39: =SUM(AL39,AN39,AP39) -> 11 | AT39: =+AS39*$H$5 -> 3.666666667 | AU39: =+IF(W39=0,0,IF(W39>$L$7,$F$10,($F$10/$L$7)*W39)) -> 9 | AV39: =IF(CP39>0,$F$11,0) -> 2 | AW39: =IF(CR39>0,$F$12,0) -> 0 | AX39: =IF(CS39>0,$F$13,0) -> 1 | AY39: =IF(CT39>0,$F$14,0) -> 0 | AZ39: =IF(CU39>0,$F$15,0) -> 1 | BA39: =+IF(CV39>=$M$23,$K$23,IF(CV39<($M$23),CV39*($K$23/($M$23)),)) -> 0.5 | BB39: =+IF(CW39>=$M$24,$K$24,IF(CW39<($M$24),CW39*($K$24/($M$24)),)) -> 0.5 | BC39: =+IF(CX39>=$M$25,$K$25,IF(CX39<($M$25),CX39*($K$25/($M$25)),)) -> 0.105 | BD39: =+IF(CY39>=$M$26,$K$26,IF(CY39<($M$26),CY39*($K$26/($M$26)),)) -> 0.5 | BE39: =IF(CZ39>0,$F$17,0) -> 1 | BF39: =+IF(DC39>=$M$29,$K$29,IF(DC39<($M$29),DC39*($K$29/($M$29)),)) -> 1 | BG39: =IF(DN39>0,$F$19,0) -> 1 | BH39: =+IF(DO39>=$M$31,$K$31,IF(DO39<($M$31),DO39*($K$31/($M$31)),)) -> 2 | BI39: =SUM(AU39+AV39+AW39+AX39+AY39+AZ39+BE39+BA39+BB39+BC39+BD39+BF39+BG39+BH39) -> 19.605 | BJ39: =+BI39*$H$10 -> 6.535 | BK39: 1904.292968 | BL39: =BK39/U39 -> 0.9826073106 | BM39: =IF(BL39>0,IF(BL39>=$M$19,$K$19,IF(BL39<$M$19,$K$20,0)),0) -> 1 | BN39: 0 | BO39: =BN39/U39 -> 0 | BP39: =IF(BO39,$F$23,0) -> 0 | BQ39: =IF(DE39>0,$F$24,0) -> 1 | BR39: 1904.292968 | BS39: =BR39/U39 -> 0.9826073106 | BT39: =+IF(BS39>=$L$4,$F$25,0) -> 1 | BU39: 789.9896801 | BV39: =IF(BU39>0,IF(BU39>=100,$F$26,IF(BU39<100,$F$26/2)),0) -> 1 | BW39: =SUM(DI39) -> 0 | BX39: 1 | BY39: =IF(DJ39>0,$F$29,0) -> 1 | BZ39: =IF(DM39>0,$F$30,0) -> 1 | CA39: =SUM(BM39,BP39,BV39,BQ39,BT39,BW39,BX39,BY39,BZ39) -> 7 | CB39: =+CA39*$H$22 -> 2.333333333 | CC39: =SUM(AS39,BI39,CA39) -> 37.605 | CD39: =SUM(AT39,BJ39,CB39) -> 12.535 | CE39: =IF(D39<($W$14*$CF$32),1,IF(D39<(($W$15+$W$14)*$CF$32),2,IF(D39<(($W$16+$W$14+$W$15)*$CF$32),3,4))) -> 1 | CL39: https://www.google.com/maps/@61.0406619086,28.1740281371,3a,75y,90t/data=!3m3!1e1!3m1!2e0 | CN39: 3 | CP39: 1 | CR39: 0 | CS39: 5 | CT39: 0 | CU39: 9 | CV39: 1082 | CW39: 273 | CX39: 210 | CY39: 103 | CZ39: 2 | DC39: 10 | DE39: 2097.590552 | DH39: =+IF(X39/V39>1.5,$F$27/2,0) -> 0 | DI39: =SUM(DG39:DH39) -> 0 | DJ39: 3 | DM39: 1 | DN39: 2 | DO39: 7.635635095
A40: 387_2 | B40: 1 | D40: 2 | E40: 2 | F40: 0 | G40: 12.035 | H40: 1 | I40: 0 | J40: Gmaps | K40: KESKI | L40: Seutu | M40: Vaalimaantie | N40: Lappeenranta | O40: Etelä-Karjala | P40: 387 | Q40: 2 | R40: 0 | S40: 2 | T40: 7200 | U40: 7200 | V40: 3485.583333 | W40: 252.625 | X40: 3694.416667 | Y40: 3427 (98 %), 6239 (2 %) | Z40: 100 (72 %), 50 (3 %), 60 (3 %), 80 (22 %) | AA40: Is (100 %) | AB40: AB (100 %) | AC40: Y2 (100 %) | AD40: 4 | AE40: 7 | AF40: 0 | AG40: 118.6875 | AL40: 9 | AM40: 0 | AN40: 0 | AO40: 1149 | AP40: 2 | AQ40: bussi | AR40: 3 | AS40: 11 | AT40: 3.666666667 | AU40: 9 | AV40: 2 | AW40: 0 | AX40: 1 | AY40: 0 | AZ40: 1 | BA40: 0.5 | BB40: 0.5 | BC40: 0.105 | BD40: 0.5 | BE40: 1 | BF40: 1 | BG40: 0 | BH40: 2 | BI40: 18.605 | BJ40: 6.201666667 | BK40: 282.8349458 | BL40: 0.03928263136 | BM40: 0.5 | BN40: 6017.506691 | BO40: 0.8357648182 | BP40: 1 | BQ40: 1 | BR40: 3440.745584 | BS40: 0.4778813311 | BT40: 0 | BU40: 105.8888889 | BV40: 1 | BW40: 0 | BX40: 1 | BY40: 1 | BZ40: 1 | CA40: 6.5 | CB40: 2.166666667 | CC40: 36.105 | CD40: 12.035 | CE40: 1 | CL40: https://www.google.com/maps/@61.0262918451,28.1668783736,3a,75y,90t/data=!3m3!1e1!3m1!2e0 | CN40: 3 | CP40: 1 | CR40: 0 | CS40: 5 | CT40: 0 | CU40: 9 | CV40: 1082 | CW40: 273 | CX40: 210 | CY40: 103 | CZ40: 2 | DC40: 8 | DE40: 1948.689722 | DH40: 0 | DI40: 0 | DJ40: 3 | DM40: 1 | DN40: 0 | DO40: 10.9999307
A41: 353_1 | B41: 1 | D41: 3 | E41: 3 | F41: 0 | G41: 11.94111111 | H41: 1 | I41: 0 | J41: Gmaps | K41: KESKI | L41: Seutu | M41: Kenraalintie, Keskikoskentie | N41: Kouvola | O41: Kymenlaakso | P41: 353 | Q41: 1 | R41: 0 | S41: 1 | T41: 5265 | U41: 5265 | V41: 3193.202279 | W41: 204.2782526 | X41: 3367.206078 | Y41: 2407 (19 %), 2914 (9 %), 3409 (53 %), 3538 (19 %) | Z41: 40 (21 %), 50 (54 %), 60 (21 %), 80 (4 %) | AA41: Ib (28 %), Is (72 %) | AB41: AB (100 %) | AC41: Y2 (100 %) | AD41: 2 | AE41: 9 | AF41: 0.1586956522 | AG41: 98.665717 | AI41: KaS-866, KaS-91 | AL41: 9 | AM41: 2 | AN41: 0.6 | AO41: 1806 | AP41: 2 | AQ41: bussi | AR41: 3 | AS41: 11.6 | AT41: 3.866666667 | AU41: 9 | AV41: 2 | AW41: 0 | AX41: 1 | AY41: 0 | AZ41: 1 | BA41: 0.15 | BB41: 0.24 | BC41: 0.5 | BD41: 0.3333333333 | BE41: 0 | BF41: 1 | BG41: 1 | BH41: 2 | BI41: 18.22333333 | BJ41: 6.074444444 | BK41: 5269.843422 | BL41: 1.000919928 | BM41: 1 | BN41: 1123.224388 | BO41: 0.2133379655 | BP41: 1 | BQ41: 1 | BR41: 4927.406473 | BS41: 0.9358796719 | BT41: 1 | BU41: 576.8660969 | BV41: 1 | BW41: 0 | BX41: 0 | BY41: 0 | BZ41: 1 | CA41: 6 | CB41: 2 | CC41: 35.82333333 | CD41: 11.94111111 | CE41: 1 | CL41: https://www.google.com/maps/@60.7489195238,26.842639314,3a,75y,90t/data=!3m3!1e1!3m1!2e0 | CN41: 3 | CP41: 1 | CR41: 0 | CS41: 2 | CT41: 0 | CU41: 5 | CV41: 90 | CW41: 48 | CX41: 2048 | CY41: 20 | CZ41: 0 | DC41: 7 | DE41: 4827.14747 | DH41: 0 | DI41: 0 | DJ41: 0 | DM41: 1 | DN41: 1 | DO41: 4.651907588
A42: 374_1 | B42: 1 | D42: 4 | E42: 4 | F42: 0 | G42: 11.74695302 | H42: 1 | I42: 0 | J42: Gmaps | K42: KESKI | L42: Seutu | M42: Brandstakantie, Kouvolantie, Puuropytyntie | N42: Hamina | O42: Kymenlaakso | P42: 374 | Q42: 1 | R42: 0 | S42: 1 | T42: 5642 | U42: 5642 | V42: 1442.77313 | W42: 69.0315491 | X42: 1618.313896 | Y42: 544 (31 %), 1473 (27 %), 1821 (21 %), 2086 (16 %) | Z42: 40 (8 %), 50 (58 %), 60 (35 %) | AA42: Ib (101 %) | AB42: AB (101 %) | AC42: Y2 (101 %) | AD42: 0 | AE42: 1 | AF42: 0.007189318726 | AG42: 22.76409075 | AL42: 9 | AM42: 4 | AN42: 1.2 | AO42: 689 | AP42: 2 | AQ42: bussi | AR42: 3 | AS42: 12.2 | AT42: 4.066666667 | AU42: 9 | AV42: 2 | AW42: 1 | AX42: 1 | AY42: 0 | AZ42: 1 | BA42: 0 | BB42: 0.015 | BC42: 0 | BD42: 0 | BE42: 1 | BF42: 1 | BG42: 1 | BH42: 1.025859049 | BI42: 18.04085905 | BJ42: 6.013619683 | BK42: 5703.838342 | BL42: 1.010960358 | BM42: 1 | BN42: 5702.830527 | BO42: 1.010781731 | BP42: 1 | BQ42: 1 | BR42: 2816.785245 | BS42: 0.4992529679 | BT42: 0 | BU42: 207.9227224 | BV42: 1 | BW42: 0 | BX42: 0 | BY42: 0 | BZ42: 1 | CA42: 5 | CB42: 1.666666667 | CC42: 35.24085905 | CD42: 11.74695302 | CE42: 1 | CL42: https://www.google.com/maps/@60.5694234508,27.1260537374,3a,75y,90t/data=!3m3!1e1!3m1!2e0 | CN42: 3 | CP42: 1 | CR42: 2 | CS42: 1 | CT42: 0 | CU42: 7 | CV42: 0 | CW42: 3 | CX42: 0 | CY42: 0 | CZ42: 1 | DC42: 11 | DE42: 5457.17309 | DH42: 0 | DI42: 0 | DJ42: 0 | DM42: 1 | DN42: 1 | DO42: 1.538788573
A43: 354_5 | B43: 1 | D43: 5 | E43: 5 | F43: 0 | G43: 11.64888889 | H43: 1 | I43: 0 | J43: Gmaps | K43: KESKI | L43: Seutu | M43: Elimäentie, Inkeroistentie, Päätie | N43: Kouvola | O43: Kymenlaakso | P43: 354 | Q43: 5 | R43: 0 | S43: 5 | T43: 2685 | U43: 2685 | V43: 3100.472253 | W43: 173.1586592 | X43: 3426.819367 | Y43: 2610 (34 %), 3012 (51 %), 4528 (15 %) | Z43: 40 (13 %), 50 (53 %), 60 (34 %) | AA43: Ib (34 %), Ic (15 %), Is (52 %) | AB43: AB (100 %) | AC43: Y2 (100 %) | AD43: 0 | AE43: 3 | AF43: 0.0195788696 | AG43: 74.50018622 | AL43: 9 | AM43: 0 | AN43: 0 | AO43: 1362 | AP43: 2 | AQ43: bussi | AR43: 3 | AS43: 11 | AT43: 3.666666667 | AU43: 9 | AV43: 2 | AW43: 0 | AX43: 0 | AY43: 0 | AZ43: 1 | BA43: 0.2466666667 | BB43: 0.5 | BC43: 0 | BD43: 0.2 | BE43: 0 | BF43: 1 | BG43: 1 | BH43: 2 | BI43: 16.94666667 | BJ43: 5.648888889 | BK43: 1774.016889 | BL43: 0.660713925 | BM43: 1 | BN43: 2286.24057 | BO43: 0.8514862459 | BP43: 1 | BQ43: 1 | BR43: 1852.239252 | BS43: 0.6898470214 | BT43: 1 | BU43: 231.3594041 | BV43: 1 | BW43: 0 | BX43: 0 | BY43: 1 | BZ43: 1 | CA43: 7 | CB43: 2.333333333 | CC43: 34.94666667 | CD43: 11.64888889 | CE43: 1 | CL43: https://www.google.com/maps/@60.6885436766,26.7635481865,3a,75y,90t/data=!3m3!1e1!3m1!2e0 | CN43: 3 | CP43: 1 | CR43: 0 | CS43: 0 | CT43: 0 | CU43: 8 | CV43: 148 | CW43: 795 | CX43: 0 | CY43: 12 | CZ43: 0 | DC43: 5 | DE43: 3679.621734 | DH43: 0 | DI43: 0 | DJ43: 3 | DM43: 1 | DN43: 5 | DO43: 5.104327206
A44: 170_40 | B44: 1 | D44: 6 | E44: 6 | F44: 0 | G44: 11.6466938 | H44: 1 | I44: 0 | J44: Gmaps | K44: KESKI | L44: Seutu | M44: Vaalimaantie | N44: Virolahti | O44: Kymenlaakso | P44: 170 | Q44: 40 | R44: 0 | S44: 40 | T44: 7620 | U44: 7620 | V44: 725.7349081 | W44: 70.48031496 | X44: 788.167979 | Y44: 697 (58 %), 765 (42 %) | Z44: 80 (100 %) | AA44: Ib (100 %) | AB44: AB (100 %) | AC44: Y2 (100 %) | AD44: 2 | AE44: 9 | AF44: 0 | AG44: 26.38057743 | AL44: 9 | AM44: 9 | AN44: 2.7 | AO44: 139 | AP44: 0.9266666667 | AQ44: bussi | AR44: 3 | AS44: 12.62666667 | AT44: 4.208888889 | AU44: 9 | AV44: 2 | AW44: 0 | AX44: 1 | AY44: 0 | AZ44: 1 | BA44: 0.2566666667 | BB44: 0.5 | BC44: 0 | BD44: 0.4666666667 | BE44: 1 | BF44: 0.6666666667 | BG44: 0 | BH44: 1.42341474 | BI44: 17.31341474 | BJ44: 5.771138247 | BK44: 1185.467388 | BL44: 0.155573148 | BM44: 0.5 | BN44: 7615.957851 | BO44: 0.9994695343 | BP44: 1 | BQ44: 1 | BR44: 276.7394179 | BS44: 0.03631750891 | BT44: 0 | BU44: 5.708661417 | BV44: 0.5 | BW44: 0 | BX44: 0 | BY44: 1 | BZ44: 1 | CA44: 5 | CB44: 1.666666667 | CC44: 34.94008141 | CD44: 11.6466938 | CE44: 1 | CL44: https://www.google.com/maps/@60.5687589376,27.5498333727,3a,75y,90t/data=!3m3!1e1!3m1!2e0 | CN44: 3 | CP44: 1 | CR44: 0 | CS44: 9 | CT44: 0 | CU44: 10 | CV44: 154 | CW44: 138 | CX44: 0 | CY44: 28 | CZ44: 3 | DC44: 2 | DE44: 7615.957851 | DH44: 0 | DI44: 0 | DJ44: 2 | DM44: 1 | DN44: 0 | DO44: 2.13512211
A45: 380_2 | B45: 1 | D45: 7 | E45: 7 | F45: 0 | G45: 11.61166667 | H45: 1 | I45: 0 | J45: Gmaps | K45: KESKI | L45: Seutu | M45: Iitiäntie, Toukkalantie | N45: Lemi | O45: Etelä-Karjala | P45: 380 | Q45: 2 | R45: 0 | S45: 2 | T45: 8902 | U45: 8902 | V45: 1579.824309 | W45: 66.52639856 | X45: 1791.073242 | Y45: 934 (12 %), 1666 (88 %) | Z45: 40 (14 %), 50 (3 %), 60 (5 %), 80 (77 %) | AA45: II (100 %) | AB45: AB (22 %), PAB (78 %) | AC45: Y2 (100 %) | AD45: 3 | AE45: 10 | AF45: 0.168726129 | AG45: 18.88092563 | AL45: 9 | AM45: 12 | AN45: 3 | AO45: 587 | AP45: 2 | AQ45: bussi | AR45: 3 | AS45: 14 | AT45: 4.666666667 | AU45: 9 | AV45: 2 | AW45: 0 | AX45: 1 | AY45: 0 | AZ45: 1 | BA45: 0.06666666667 | BB45: 0.085 | BC45: 0 | BD45: 0.1833333333 | BE45: 0 | BF45: 0 | BG45: 1 | BH45: 2 | BI45: 16.335 | BJ45: 5.445 | BK45: 4232.197631 | BL45: 0.4754209876 | BM45: 0.5 | BN45: 0 | BO45: 0 | BP45: 0 | BQ45: 1 | BR45: 1794.056895 | BS45: 0.2015341378 | BT45: 0 | BU45: 117.2433161 | BV45: 1 | BW45: 0 | BX45: 0 | BY45: 1 | BZ45: 1 | CA45: 4.5 | CB45: 1.5 | CC45: 34.835 | CD45: 11.61166667 | CE45: 1 | CL45: https://www.google.com/maps/@61.0517796626,27.9407174148,3a,75y,90t/data=!3m3!1e1!3m1!2e0 | CN45: 3 | CP45: 1 | CR45: 0 | CS45: 3 | CT45: 0 | CU45: 3 | CV45: 40 | CW45: 17 | CX45: 0 | CY45: 11 | CZ45: 0 | DC45: 0 | DE45: 9963.144293 | DH45: 0 | DI45: 0 | DJ45: 2 | DM45: 1 | DN45: 2 | DO45: 4.249233371
A46: 3846_3 | B46: 1 | D46: 8 | E46: 8 | F46: 0 | G46: 11.59207328 | H46: 1 | I46: 0 | J46: Gmaps | K46: KESKI | L46: Yhdys | M46: Itsenäisyydentie | N46: Luumäki | O46: Etelä-Karjala | P46: 3846 | Q46: 3 | R46: 0 | S46: 3 | T46: 10475 | U46: 10475 | V46: 1144.254415 | W46: 92.81575179 | X46: 1337.739857 | Y46: 1134 (51 %), 1155 (49 %) | Z46: 50 (8 %), 60 (47 %), 80 (45 %) | AA46: II (100 %) | AB46: AB (100 %) | AC46: Y2 (100 %) | AD46: 1 | AE46: 11 | AF46: 0 | AG46: 32.6052506 | AL46: 9 | AM46: 15 | AN46: 3 | AO46: 545 | AP46: 2 | AQ46: bussi | AR46: 3 | AS46: 14 | AT46: 4.666666667 | AU46: 9 | AV46: 0 | AW46: 0 | AX46: 0 | AY46: 1 | AZ46: 1 | BA46: 0.1316666667 | BB46: 0 | BC46: 0.5 | BD46: 0.1 | BE46: 1 | BF46: 0.3333333333 | BG46: 1 | BH46: 1.71121984 | BI46: 15.77621984 | BJ46: 5.258739947 | BK46: 3790.206019 | BL46: 0.3618335101 | BM46: 0.5 | BN46: 10482.97024 | BO46: 1.000760882 | BP46: 1 | BQ46: 1 | BR46: 3806.889554 | BS46: 0.3634262104 | BT46: 0 | BU46: 66.2052506 | BV46: 0.5 | BW46: 0 | BX46: 0 | BY46: 1 | BZ46: 1 | CA46: 5 | CB46: 1.666666667 | CC46: 34.77621984 | CD46: 11.59207328 | CE46: 1 | CL46: https://www.google.com/maps/@60.9375366841,27.7038630548,3a,75y,90t/data=!3m3!1e1!3m1!2e0 | CN46: 3 | CP46: 0 | CR46: 0 | CS46: 0 | CT46: 4 | CU46: 17 | CV46: 79 | CW46: 0 | CX46: 2999 | CY46: 6 | CZ46: 1 | DC46: 1 | DE46: 10962.83831 | DH46: 0 | DI46: 0 | DJ46: 5 | DM46: 1 | DN46: 1 | DO46: 2.56682976
A47: 357_1 | B47: 1 | D47: 9 | E47: 9 | F47: 0 | G47: 11.56222222 | H47: 1 | I47: 0 | J47: Gmaps | K47: KESKI | L47: Seutu | M47: Hurukselantie, Tapiontie | N47: Kotka | O47: Kymenlaakso | P47: 357 | Q47: 1 | R47: 0 | S47: 1 | T47: 4818 | U47: 4818 | V47: 2477.036322 | W47: 123.9692819 | X47: 2756.694271 | Y47: 1377 (24 %), 2402 (43 %), 3373 (33 %) | Z47: 50 (28 %), 60 (25 %), 80 (47 %) | AA47: Ib (67 %), Is (33 %) | AB47: AB (100 %) | AC47: Y2 (100 %) | AD47: 5 | AE47: 9 | AF47: 0.2735990974 | AG47: 38.3007472 | AL47: 9 | AM47: 0 | AN47: 0 | AO47: 1787 | AP47: 2 | AQ47: bussi | AR47: 3 | AS47: 11 | AT47: 3.666666667 | AU47: 9 | AV47: 2 | AW47: 0 | AX47: 1 | AY47: 1 | AZ47: 1 | BA47: 0 | BB47: 0.02 | BC47: 0 | BD47: 0 | BE47: 0 | BF47: 0.6666666667 | BG47: 0 | BH47: 2 | BI47: 16.68666667 | BJ47: 5.562222222 | BK47: 4809.563569 | BL47: 0.9982489766 | BM47: 1 | BN47: 4809.563569 | BO47: 0.9982489766 | BP47: 1 | BQ47: 1 | BR47: 4492.380077 | BS47: 0.9324159562 | BT47: 1 | BU47: 248.837692 | BV47: 1 | BW47: 0 | BX47: 0 | BY47: 1 | BZ47: 1 | CA47: 7 | CB47: 2.333333333 | CC47: 34.68666667 | CD47: 11.56222222 | CE47: 1 | CL47: https://www.google.com/maps/@60.5209844674,26.9506298078,3a,75y,90t/data=!3m3!1e1!3m1!2e0 | CN47: 3 | CP47: 1 | CR47: 0 | CS47: 1 | CT47: 1 | CU47: 11 | CV47: 0 | CW47: 4 | CX47: 0 | CY47: 0 | CZ47: 0 | DC47: 2 | DE47: 5109.87451 | DH47: 0 | DI47: 0 | DJ47: 2 | DM47: 1 | DN47: 0 | DO47: 3.507138344
A48: 170_38 | B48: 1 | D48: 10 | E48: 10 | F48: 0 | G48: 11.44716841 | H48: 1 | I48: 0 | J48: Gmaps | K48: KESKI | L48: Seutu | M48: Vaalimaantie | N48: Virolahti | O48: Kymenlaakso | P48: 170 | Q48: 38 | R48: 0 | S48: 38 | T48: 5361 | U48: 5361 | V48: 1026 | W48: 69 | X48: 1217 | Y48: 1026 (100 %) | Z48: 50 (4 %), 60 (14 %), 80 (82 %) | AA48: I (7 %), Ib (93 %) | AB48: AB (100 %) | AC48: Y2 (100 %) | AD48: 0 | AE48: 8 | AF48: 0 | AG48: 29 | AL48: 9 | AM48: 10 | AN48: 3 | AO48: 329 | AP48: 2 | AQ48: bussi | AR48: 3 | AS48: 14 | AT48: 4.666666667 | AU48: 9 | AV48: 2 | AW48: 0 | AX48: 0 | AY48: 0 | AZ48: 1 | BA48: 0.5 | BB48: 0.475 | BC48: 0 | BD48: 0 | BE48: 0 | BF48: 0.6666666667 | BG48: 1 | BH48: 1.199838556 | BI48: 15.84150522 | BJ48: 5.280501741 | BK48: 0 | BL48: 0 | BM48: 0 | BN48: 5361.514021 | BO48: 1.000095881 | BP48: 1 | BQ48: 1 | BR48: 0 | BS48: 0 | BT48: 0 | BU48: 6.603245663 | BV48: 0.5 | BW48: 0 | BX48: 0 | BY48: 1 | BZ48: 1 | CA48: 4.5 | CB48: 1.5 | CC48: 34.34150522 | CD48: 11.44716841 | CE48: 1 | CL48: https://www.google.com/maps/@60.5668284516,27.3812806254,3a,75y,90t/data=!3m3!1e1!3m1!2e0 | CN48: 3 | CP48: 1 | CR48: 0 | CS48: 0 | CT48: 0 | CU48: 17 | CV48: 394 | CW48: 95 | CX48: 0 | CY48: 0 | CZ48: 0 | DC48: 2 | DE48: 5361.514021 | DH48: 0 | DI48: 0 | DJ48: 1 | DM48: 1 | DN48: 1 | DO48: 1.799757834
A49: 4081_1 | B49: 1 | D49: 11 | E49: 11 | F49: 0 | G49: 11.44 | H49: 1 | I49: 0 | J49: Gmaps | K49: KESKI | L49: Yhdys | M49: Hyötiöntie, Pajarilanväylä, Vehkataipaleentie | N49: Lappeenranta | O49: Etelä-Karjala | P49: 4081 | Q49: 1 | R49: 0 | S49: 1 | T49: 4045 | U49: 4045 | V49: 2130.127565 | W49: 171.3406675 | X49: 2648.048208 | Y49: 1815 (92 %), 5786 (8 %) | Z49: 50 (2 %), 60 (8 %), 80 (90 %) | AA49: Ib (100 %) | AB49: AB (100 %) | AC49: Y2 (100 %) | AD49: 1 | AE49: 5 | AF49: 0.1935850773 | AG49: 70.75648949 | AL49: 9 | AM49: 0 | AN49: 0 | AO49: 1712 | AP49: 2 | AQ49: pikkubussi | AR49: 1.5 | AS49: 11 | AT49: 3.666666667 | AU49: 9 | AV49: 2 | AW49: 1 | AX49: 1 | AY49: 1 | AZ49: 1 | BA49: 0.02 | BB49: 0 | BC49: 0 | BD49: 0.4666666667 | BE49: 0 | BF49: 0.3333333333 | BG49: 0 | BH49: 2 | BI49: 17.82 | BJ49: 5.94 | BK49: 2625.599905 | BL49: 0.649097628 | BM49: 1 | BN49: 303.5632574 | BO49: 0.07504654078 | BP49: 1 | BQ49: 1 | BR49: 374.1199152 | BS49: 0.09248947224 | BT49: 0 | BU49: 70.5315204 | BV49: 0.5 | BW49: 0 | BX49: 0 | BY49: 1 | BZ49: 1 | CA49: 5.5 | CB49: 1.833333333 | CC49: 34.32 | CD49: 11.44 | CE49: 1 | CL49: https://www.google.com/maps/@61.0540391675,28.262757174,3a,75y,90t/data=!3m3!1e1!3m1!2e0 | CN49: 2 | CP49: 1 | CR49: 1 | CS49: 6 | CT49: 1 | CU49: 3 | CV49: 12 | CW49: 0 | CX49: 0 | CY49: 28 | CZ49: 0 | DC49: 1 | DE49: 301.626632 | DH49: 0 | DI49: 0 | DJ49: 6 | DM49: 1 | DN49: 0 | DO49: 6.089866565
A50: 160_311 | B50: 1 | D50: 12 | E50: 12 | F50: 0 | G50: 11.38888889 | H50: 1 | I50: 0 | J50: Gmaps | K50: KESKI | L50: Seutu | M50: Karjalantie | N50: Imatra | O50: Etelä-Karjala | P50: 160 | Q50: 311 | R50: 3133 | S50: 311 | T50: 4742 | U50: 1609 | V50: 2598 | W50: 266 | X50: 3094 | Y50: 2598 (99 %) | Z50: 50 (33 %), 60 (66 %) | AA50: Ib (99 %) | AB50: AB (99 %) | AC50: Y2 (99 %) | AD50: 0 | AE50: 0 | AF50: 0.5771260997 | AG50: 184 | AL50: 9 | AM50: 17 | AN50: 3 | AO50: 460 | AP50: 2 | AQ50: taksi | AR50: 1.5 | AS50: 14 | AT50: 4.666666667 | AU50: 9 | AV50: 2 | AW50: 1 | AX50: 1 | AY50: 0 | AZ50: 0 | BA50: 0 | BB50: 0 | BC50: 0 | BD50: 0 | BE50: 0 | BF50: 0.6666666667 | BG50: 0 | BH50: 2 | BI50: 15.66666667 | BJ50: 5.222222222 | BK50: 0 | BL50: 0 | BM50: 0 | BN50: 1600.034497 | BO50: 0.9944279035 | BP50: 1 | BQ50: 1 | BR50: 907.5325673 | BS50: 0.5640351568 | BT50: 1 | BU50: 58.29707893 | BV50: 0.5 | BW50: 0 | BX50: 0 | BY50: 0 | BZ50: 1 | CA50: 4.5 | CB50: 1.5 | CC50: 34.16666667 | CD50: 11.38888889 | CE50: 1 | CL50: https://www.google.com/maps/@61.2462078135,28.8716831052,3a,75y,90t/data=!3m3!1e1!3m1!2e0 | CN50: 1 | CP50: 1 | CR50: 1 | CS50: 3 | CT50: 0 | CU50: 0 | CV50: 0 | CW50: 0 | CX50: 0 | CY50: 0 | CZ50: 0 | DC50: 2 | DE50: 3200.068993 | DH50: 0 | DI50: 0 | DJ50: 0 | DM50: 1 | DN50: 0 | DO50: 39.16018675
A51: 170_32 | B51: 1 | D51: 13 | E51: 13 | F51: 0 | G51: 11.38833333 | H51: 1 | I51: 0 | J51: Gmaps | K51: KESKI | L51: Seutu | M51: Haminantie, Helsingintie, Puuropytyntie | N51: Hamina, Kotka | O51: Kymenlaakso | P51: 170 | Q51: 32 | R51: 0 | S51: 32 | T51: 6699 | U51: 6699 | V51: 3329 | W51: 225 | X51: 3479 | Y51: 3329 (101 %) | Z51: 50 (11 %), 60 (20 %), 70 (71 %) | AA51: Ib (101 %) | AB51: AB (101 %) | AC51: Y2 (101 %) | AD51: 4 | AE51: 9 | AF51: 0.02899391128 | AG51: 70 | AL51: 9 | AM51: 0 | AN51: 0 | AO51: 1014 | AP51: 2 | AQ51: bussi | AR51: 3 | AS51: 11 | AT51: 3.666666667 | AU51: 9 | AV51: 0 | AW51: 1 | AX51: 1 | AY51: 0 | AZ51: 1 | BA51: 0 | BB51: 0.165 | BC51: 0 | BD51: 0 | BE51: 1 | BF51: 1 | BG51: 1 | BH51: 2 | BI51: 17.165 | BJ51: 5.721666667 | BK51: 6776.749303 | BL51: 1.011606106 | BM51: 1 | BN51: 6776.749303 | BO51: 1.011606106 | BP51: 1 | BQ51: 1 | BR51: 5245.45548 | BS51: 0.7830206718 | BT51: 1 | BU51: 122.3764741 | BV51: 1 | BW51: 0 | BX51: 0 | BY51: 0 | BZ51: 1 | CA51: 6 | CB51: 2 | CC51: 34.165 | CD51: 11.38833333 | CE51: 1 | CL51: https://www.google.com/maps/@60.5595942555,27.0075743043,3a,75y,90t/data=!3m3!1e1!3m1!2e0 | CN51: 3 | CP51: 0 | CR51: 2 | CS51: 1 | CT51: 0 | CU51: 20 | CV51: 0 | CW51: 33 | CX51: 0 | CY51: 0 | CZ51: 1 | DC51: 8 | DE51: 6776.749303 | DH51: 0 | DI51: 0 | DJ51: 0 | DM51: 1 | DN51: 3 | DO51: 5.608169462
A52: 408_1 | B52: 1 | D52: 14 | E52: 14 | F52: 0 | G52: 11.38222222 | H52: 1 | I52: 0 | J52: Gmaps | K52: KESKI | L52: Seutu | M52: Taipalsaarentie | N52: Lappeenranta | O52: Etelä-Karjala | P52: 408 | Q52: 1 | R52: 1989 | S52: 1 | T52: 6354 | U52: 4365 | V52: 7072.564948 | W52: 242.6474227 | X52: 7602.444674 | Y52: 5886 (67 %), 9513 (33 %) | Z52: 50 (5 %), 70 (94 %) | AA52: Ib (100 %) | AB52: AB (100 %) | AC52: Y2 (100 %) | AD52: 2 | AE52: 6 | AF52: 0.2703804348 | AG52: 53.22749141 | AL52: 9 | AM52: 40 | AN52: 3 | AO52: 3068 | AP52: 2 | AQ52: pikkubussi | AR52: 1.5 | AS52: 14 | AT52: 4.666666667 | AU52: 9 | AV52: 0 | AW52: 0 | AX52: 1 | AY52: 0 | AZ52: 1 | BA52: 0.1266666667 | BB52: 0.02 | BC52: 0 | BD52: 0 | BE52: 0 | BF52: 1 | BG52: 1 | BH52: 2 | BI52: 15.14666667 | BJ52: 5.048888889 | BK52: 4348.199499 | BL52: 0.996151088 | BM52: 1 | BN52: 0 | BO52: 0 | BP52: 0 | BQ52: 0 | BR52: 4197.699912 | BS52: 0.9616723739 | BT52: 1 | BU52: 1189.461627 | BV52: 1 | BW52: 0 | BX52: 0 | BY52: 1 | BZ52: 1 | CA52: 5 | CB52: 1.666666667 | CC52: 34.14666667 | CD52: 11.38222222 | CE52: 1 | CL52: https://www.google.com/maps/@61.0650855568,28.1657767523,3a,75y,90t/data=!3m3!1e1!3m1!2e0 | CN52: 2 | CP52: 0 | CR52: 0 | CS52: 2 | CT52: 0 | CU52: 1 | CV52: 76 | CW52: 4 | CX52: 0 | CY52: 0 | CZ52: 0 | DC52: 10 | DE52: 0 | DH52: 0 | DI52: 0 | DJ52: 8 | DM52: 1 | DN52: 2 | DO52: 7.291684008
A53: 14928_1 | B53: 1 | D53: 15 | E53: 15 | F53: 0 | G53: 11.34555556 | H53: 1 | I53: 0 | J53: Gmaps | K53: KESKI | L53: Yhdys | M53: Tehtaantie | N53: Rautjärvi | O53: Etelä-Karjala | P53: 14928 | Q53: 1 | R53: 0 | S53: 1 | T53: 2579 | U53: 2579 | V53: 634.7421481 | W53: 108.4722761 | X53: 657.865064 | Y53: 327 (65 %), 584 (23 %), 2420 (12 %) | Z53: 50 (27 %), 60 (73 %) | AA53: Ib (100 %) | AB53: AB (100 %) | AC53: Y3 (100 %) | AD53: 0 | AE53: 0 | AF53: 0.03877471888 | AG53: 77.43156262 | AL53: 9 | AM53: 9 | AN53: 2.7 | AO53: 484 | AP53: 2 | AQ53: bussi | AR53: 3 | AS53: 13.7 | AT53: 4.566666667 | AU53: 9 | AV53: 0 | AW53: 1 | AX53: 0 | AY53: 0 | AZ53: 1 | BA53: 0.1916666667 | BB53: 0.245 | BC53: 0 | BD53: 0.06666666667 | BE53: 0 | BF53: 0.3333333333 | BG53: 1 | BH53: 2 | BI53: 14.83666667 | BJ53: 4.945555556 | BK53: 2572.615823 | BL53: 0.9975245534 | BM53: 1 | BN53: 662.8152445 | BO53: 0.2570047478 | BP53: 1 | BQ53: 0 | BR53: 1477.215971 | BS53: 0.5727863402 | BT53: 1 | BU53: 99.92245056 | BV53: 0.5 | BW53: 0 | BX53: 0 | BY53: 1 | BZ53: 1 | CA53: 5.5 | CB53: 1.833333333 | CC53: 34.03666667 | CD53: 11.34555556 | CE53: 1 | CL53: https://www.google.com/maps/@61.4245425028,29.3608605812,3a,75y,90t/data=!3m3!1e1!3m1!2e0 | CN53: 3 | CP53: 0 | CR53: 1 | CS53: 0 | CT53: 0 | CU53: 2 | CV53: 115 | CW53: 49 | CX53: 0 | CY53: 4 | CZ53: 0 | DC53: 1 | DE53: 0 | DH53: 0 | DI53: 0 | DJ53: 4 | DM53: 1 | DN53: 2 | DO53: 20.41793525
A54: 3594_1 | B54: 1 | D54: 16 | E54: 16 | F54: 0 | G54: 11.32578691 | H54: 1 | I54: 0 | J54: Gmaps | K54: KESKI | L54: Yhdys | M54: Karttenniementie | N54: Kouvola | O54: Kymenlaakso | P54: 3594 | Q54: 1 | R54: 0 | S54: 1 | T54: 2503 | U54: 2503 | V54: 1345 | W54: 97 | X54: 1540 | Y54: 1345 (100 %) | Z54: 50 (11 %), 80 (89 %) | AA54: Is (100 %) | AB54: AB (100 %) | AC54: Y2 (100 %) | AD54: 2 | AE54: 3 | AF54: 0.240622506 | AG54: 20 | AL54: 9 | AM54: 2 | AN54: 0.6 | AO54: 1133 | AP54: 2 | AQ54: pikkubussi | AR54: 1.5 | AS54: 11.6 | AT54: 3.866666667 | AU54: 9 | AV54: 2 | AW54: 0 | AX54: 1 | AY54: 0 | AZ54: 1 | BA54: 0.15 | BB54: 0.24 | BC54: 0.5 | BD54: 0.3333333333 | BE54: 0 | BF54: 0.6666666667 | BG54: 1 | BH54: 0.4873607339 | BI54: 16.37736073 | BJ54: 5.459120245 | BK54: 2503.279224 | BL54: 1.000111556 | BM54: 1 | BN54: 1027.178838 | BO54: 0.4103790804 | BP54: 1 | BQ54: 1 | BR54: 1592.222309 | BS54: 0.636125573 | BT54: 1 | BU54: 264.0831003 | BV54: 1 | BW54: 0 | BX54: 0 | BY54: 0 | BZ54: 1 | CA54: 6 | CB54: 2 | CC54: 33.97736073 | CD54: 11.32578691 | CE54: 1 | CL54: https://www.google.com/maps/@60.7912795228,26.8108051858,3a,75y,90t/data=!3m3!1e1!3m1!2e0 | CN54: 2 | CP54: 1 | CR54: 0 | CS54: 2 | CT54: 0 | CU54: 7 | CV54: 90 | CW54: 48 | CX54: 3050 | CY54: 20 | CZ54: 0 | DC54: 2 | DE54: 2503.279224 | DH54: 0 | DI54: 0 | DJ54: 0 | DM54: 1 | DN54: 2 | DO54: 0.7310411009
A55: 387_3 | B55: 1 | D55: 17 | E55: 17 | F55: 0 | G55: 11.31277778 | H55: 1 | I55: 0 | J55: Gmaps | K55: KESKI | L55: Seutu | M55: Vaalimaantie | N55: Lappeenranta | O55: Etelä-Karjala | P55: 387 | Q55: 3 | R55: 0 | S55: 3 | T55: 6062 | U55: 6062 | V55: 2528 | W55: 199 | X55: 2764 | Y55: 2528 (100 %) | Z55: 100 (88 %), 80 (12 %) | AA55: Is (100 %) | AB55: AB (100 %) | AC55: Y2 (100 %) | AD55: 0 | AE55: 9 | AF55: 0 | AG55: 106 | AL55: 9 | AM55: 0 | AN55: 0 | AO55: 635 | AP55: 2 | AQ55: bussi | AR55: 3 | AS55: 11 | AT55: 3.666666667 | AU55: 9 | AV55: 2 | AW55: 0 | AX55: 1 | AY55: 0 | AZ55: 1 | BA55: 0.5 | BB55: 0.5 | BC55: 0.105 | BD55: 0.5 | BE55: 1 | BF55: 0.3333333333 | BG55: 0 | BH55: 2 | BI55: 17.93833333 | BJ55: 5.979444444 | BK55: 2576.164029 | BL55: 0.4249693218 | BM55: 0.5 | BN55: 6068.043232 | BO55: 1.000996904 | BP55: 1 | BQ55: 0 | BR55: 418.2331647 | BS55: 0.06899260387 | BT55: 0 | BU55: 13.4938964 | BV55: 0.5 | BW55: 0 | BX55: 1 | BY55: 1 | BZ55: 1 | CA55: 5 | CB55: 1.666666667 | CC55: 33.93833333 | CD55: 11.31277778 | CE55: 1 | CL55: https://www.google.com/maps/@60.9630333317,28.1536946012,3a,75y,90t/data=!3m3!1e1!3m1!2e0 | CN55: 3 | CP55: 1 | CR55: 0 | CS55: 1 | CT55: 0 | CU55: 5 | CV55: 892 | CW55: 270 | CX55: 210 | CY55: 60 | CZ55: 2 | DC55: 1 | DE55: 0 | DH55: 0 | DI55: 0 | DJ55: 2 | DM55: 1 | DN55: 0 | DO55: 10.99969987
A56: 3932_1 | B56: 1 | D56: 18 | E56: 18 | F56: 0 | G56: 11.30108832 | H56: 1 | I56: 0 | J56: Gmaps | K56: KESKI | L56: Yhdys | M56: Penttiläntie, Saimaantie | N56: Lappeenranta | O56: Etelä-Karjala | P56: 3932 | Q56: 1 | R56: 0 | S56: 1 | T56: 7139 | U56: 7139 | V56: 1200.844236 | W56: 47.68861185 | X56: 1333.028575 | Y56: 808 (41 %), 992 (51 %), 4335 (9 %) | Z56: 40 (26 %), 50 (7 %), 60 (68 %), 80 (0 %) | AA56: I (0 %), II (100 %) | AB56: AB (101 %) | AC56: Y3 (101 %) | AD56: 4 | AE56: 7 | AF56: 0.01360544218 | AG56: 8.883457067 | AL56: 9 | AM56: 42 | AN56: 3 | AO56: 1027 | AP56: 2 | AQ56: bussi | AR56: 3 | AS56: 14 | AT56: 4.666666667 | AU56: 8.583950133 | AV56: 2 | AW56: 0 | AX56: 1 | AY56: 0 | AZ56: 1 | BA56: 0.175 | BB56: 0.5 | BC56: 0 | BD56: 0.2 | BE56: 0 | BF56: 0.6666666667 | BG56: 1 | BH56: 0.7776481679 | BI56: 15.90326497 | BJ56: 5.301088323 | BK56: 0 | BL56: 0 | BM56: 0 | BN56: 0 | BO56: 0 | BP56: 0 | BQ56: 1 | BR56: 2913.418678 | BS56: 0.4080989883 | BT56: 0 | BU56: 157.585096 | BV56: 1 | BW56: 0 | BX56: 0 | BY56: 1 | BZ56: 1 | CA56: 4 | CB56: 1.333333333 | CC56: 33.90326497 | CD56: 11.30108832 | CE56: 1 | CL56: https://www.google.com/maps/@61.1212093248,28.5027289562,3a,75y,90t/data=!3m3!1e1!3m1!2e0 | CN56: 3 | CP56: 1 | CR56: 0 | CS56: 1 | CT56: 0 | CU56: 10 | CV56: 105 | CW56: 229 | CX56: 0 | CY56: 12 | CZ56: 0 | DC56: 2 | DE56: 434.9061985 | DH56: 0 | DI56: 0 | DJ56: 1 | DM56: 1 | DN56: 2 | DO56: 1.166472252
A57: 354_1 | B57: 1 | D57: 19 | E57: 19 | F57: 0 | G57: 11.28183333 | H57: 1 | I57: 0 | J57: Gmaps | K57: KESKI | L57: Seutu | M57: Elimäentie | N57: Kouvola | O57: Kymenlaakso | P57: 354 | Q57: 1 | R57: 0 | S57: 1 | T57: 3834 | U57: 3834 | V57: 1261 | W57: 140 | X57: 1387 | Y57: 1261 (100 %) | Z57: 80 (100 %) | AA57: Ib (100 %) | AB57: AB (100 %) | AC57: Y2 (100 %) | AD57: 4 | AE57: 6 | AF57: 0 | AG57: 76 | AL57: 9 | AM57: 0 | AN57: 0 | AO57: 601 | AP57: 2 | AQ57: pikkubussi | AR57: 1.5 | AS57: 11 | AT57: 3.666666667 | AU57: 9 | AV57: 2 | AW57: 0 | AX57: 1 | AY57: 0 | AZ57: 1 | BA57: 0.5 | BB57: 0.5 | BC57: 0.0455 | BD57: 0.3 | BE57: 1 | BF57: 1 | BG57: 0 | BH57: 2 | BI57: 18.3455 | BJ57: 6.115166667 | BK57: 3830.001387 | BL57: 0.9989570649 | BM57: 1 | BN57: 3830.001387 | BO57: 0.9989570649 | BP57: 1 | BQ57: 1 | BR57: 1582.889998 | BS57: 0.4128560244 | BT57: 0 | BU57: 84.48095983 | BV57: 0.5 | BW57: 0 | BX57: 0 | BY57: 0 | BZ57: 1 | CA57: 4.5 | CB57: 1.5 | CC57: 33.8455 | CD57: 11.28183333 | CE57: 1 | CL57: https://www.google.com/maps/@60.7252647398,26.4166128176,3a,75y,90t/data=!3m3!1e1!3m1!2e0 | CN57: 2 | CP57: 1 | CR57: 0 | CS57: 1 | CT57: 0 | CU57: 33 | CV57: 979 | CW57: 346 | CX57: 91 | CY57: 18 | CZ57: 1 | DC57: 5 | DE57: 14961.13628 | DH57: 0 | DI57: 0 | DJ57: 0 | DM57: 1 | DN57: 0 | DO57: 6.0000981
A58: 384_2 | B58: 1 | D58: 20 | E58: 20 | F58: 0 | G58: 11.23952335 | H58: 1 | I58: 0 | J58: Gmaps | K58: KESKI | L58: Seutu | M58: Keskustie, Miehikkäläntie, Taavetintie | N58: Miehikkälä, Virolahti | O58: Kymenlaakso | P58: 384 | Q58: 2 | R58: 0 | S58: 2 | T58: 9354 | U58: 9354 | V58: 1124.391704 | W58: 58.85460765 | X58: 1271.783408 | Y58: 495 (15 %), 1219 (57 %), 1261 (28 %) | Z58: 40 (22 %), 50 (8 %), 60 (21 %), 80 (49 %) | AA58: Ic (83 %), II (17 %) | AB58: AB (4 %), PAB (96 %) | AC58: Y2 (100 %) | AD58: 2 | AE58: 8 | AF58: 0.1207729469 | AG58: 15.84958307 | AL58: 9 | AM58: 10 | AN58: 3 | AO58: 386 | AP58: 2 | AQ58: bussi | AR58: 3 | AS58: 14 | AT58: 4.666666667 | AU58: 9 | AV58: 2 | AW58: 0 | AX58: 1 | AY58: 0 | AZ58: 1 | BA58: 0.24 | BB58: 0.5 | BC58: 0 | BD58: 0 | BE58: 0 | BF58: 0 | BG58: 1 | BH58: 0.9785700501 | BI58: 15.71857005 | BJ58: 5.23952335 | BK58: 4634.690901 | BL58: 0.4954768977 | BM58: 0.5 | BN58: 0 | BO58: 0 | BP58: 0 | BQ58: 1 | BR58: 2890.305367 | BS58: 0.3089913799 | BT58: 0 | BU58: 82.83087449 | BV58: 0.5 | BW58: 0 | BX58: 0 | BY58: 1 | BZ58: 1 | CA58: 4 | CB58: 1.333333333 | CC58: 33.71857005 | CD58: 11.23952335 | CE58: 1 | CL58: https://www.google.com/maps/@60.6063376251,27.7048513748,3a,75y,90t/data=!3m3!1e1!3m1!2e0 | CN58: 3 | CP58: 1 | CR58: 0 | CS58: 2 | CT58: 0 | CU58: 20 | CV58: 144 | CW58: 239 | CX58: 0 | CY58: 0 | CZ58: 0 | DC58: 0 | DE58: 4012.98414 | DH58: 0 | DI58: 0 | DJ58: 1 | DM58: 1 | DN58: 1 | DO58: 1.467855075
A59: 14840_1 | B59: 1 | D59: 21 | E59: 21 | F59: 0 | G59: 11.14777778 | H59: 1 | I59: 0 | J59: Gmaps | K59: KESKI | L59: Yhdys | M59: Ahvenlammentie, Karjalaisentie | N59: Lappeenranta | O59: Etelä-Karjala | P59: 14840 | Q59: 1 | R59: 0 | S59: 1 | T59: 2822 | U59: 2822 | V59: 1713.951807 | W59: 85.55350815 | X59: 1922.776045 | Y59: 1666 (29 %), 1734 (71 %) | Z59: 40 (40 %), 50 (59 %) | AA59: II (100 %) | AB59: AB (100 %) | AC59: Y2 (100 %) | AD59: 1 | AE59: 1 | AF59: 0.2976190476 | AG59: 37.38625089 | AL59: 9 | AM59: 0 | AN59: 0 | AO59: 1116 | AP59: 2 | AQ59: bussi | AR59: 3 | AS59: 11 | AT59: 3.666666667 | AU59: 9 | AV59: 0 | AW59: 1 | AX59: 1 | AY59: 0 | AZ59: 1 | BA59: 0.2633333333 | BB59: 0.18 | BC59: 0 | BD59: 0 | BE59: 0 | BF59: 1 | BG59: 1 | BH59: 2 | BI59: 16.44333333 | BJ59: 5.481111111 | BK59: 2819.651084 | BL59: 0.9991676413 | BM59: 1 | BN59: 0 | BO59: 0 | BP59: 0 | BQ59: 1 | BR59: 2819.651084 | BS59: 0.9991676413 | BT59: 1 | BU59: 559.5322466 | BV59: 1 | BW59: 0 | BX59: 0 | BY59: 1 | BZ59: 1 | CA59: 6 | CB59: 2 | CC59: 33.44333333 | CD59: 11.14777778 | CE59: 1 | CL59: https://www.google.com/maps/@61.1270374864,28.4510647724,3a,75y,90t/data=!3m3!1e1!3m1!2e0 | CN59: 3 | CP59: 0 | CR59: 1 | CS59: 1 | CT59: 0 | CU59: 7 | CV59: 158 | CW59: 36 | CX59: 0 | CY59: 0 | CZ59: 0 | DC59: 6 | DE59: 2950.353595 | DH59: 0 | DI59: 0 | DJ59: 1 | DM59: 1 | DN59: 1 | DO59: 3.925564221
A60: 380_1 | B60: 1 | D60: 22 | E60: 22 | F60: 0 | G60: 11.10378714 | H60: 1 | I60: 0 | J60: Gmaps | K60: KESKI | L60: Seutu | M60: Iitiäntie, Lemintie | N60: Lappeenranta, Lemi | O60: Etelä-Karjala | P60: 380 | Q60: 1 | R60: 0 | S60: 1 | T60: 4172 | U60: 4172 | V60: 2053 | W60: 88 | X60: 2436 | Y60: 2053 (100 %) | Z60: 80 (100 %) | AA60: II (100 %) | AB60: AB (100 %) | AC60: Y2 (100 %) | AD60: 0 | AE60: 5 | AF60: 0.02396931927 | AG60: 18 | AL60: 9 | AM60: 12 | AN60: 3 | AO60: 690 | AP60: 2 | AQ60: bussi | AR60: 3 | AS60: 14 | AT60: 4.666666667 | AU60: 9 | AV60: 2 | AW60: 0 | AX60: 1 | AY60: 0 | AZ60: 1 | BA60: 0.125 | BB60: 0.02 | BC60: 0 | BD60: 0 | BE60: 0 | BF60: 0.6666666667 | BG60: 0 | BH60: 1.999694766 | BI60: 15.81136143 | BJ60: 5.270453811 | BK60: 0 | BL60: 0 | BM60: 0 | BN60: 0 | BO60: 0 | BP60: 0 | BQ60: 1 | BR60: 1554.017315 | BS60: 0.3724873717 | BT60: 0 | BU60: 53.16395014 | BV60: 0.5 | BW60: 0 | BX60: 0 | BY60: 1 | BZ60: 1 | CA60: 3.5 | CB60: 1.166666667 | CC60: 33.31136143 | CD60: 11.10378714 | CE60: 1 | CL60: https://www.google.com/maps/@61.050824221,28.0145896561,3a,75y,90t/data=!3m3!1e1!3m1!2e0 | CN60: 3 | CP60: 1 | CR60: 0 | CS60: 2 | CT60: 0 | CU60: 2 | CV60: 75 | CW60: 4 | CX60: 0 | CY60: 0 | CZ60: 0 | DC60: 2 | DE60: 4787.251097 | DH60: 0 | DI60: 0 | DJ60: 2 | DM60: 1 | DN60: 0 | DO60: 2.999542149
A61: 359_5 | B61: 1 | D61: 23 | E61: 23 | F61: 0 | G61: 11.03947327 | H61: 1 | I61: 0 | J61: Gmaps | K61: KESKI | L61: Seutu | M61: Anjalantie | N61: Kouvola | O61: Kymenlaakso | P61: 359 | Q61: 5 | R61: 0 | S61: 5 | T61: 2846 | U61: 2846 | V61: 3513 | W61: 217 | X61: 3746 | Y61: 3513 (100 %) | Z61: 50 (71 %), 60 (29 %) | AA61: Is (100 %) | AB61: AB (100 %) | AC61: Y2 (100 %) | AD61: 0 | AE61: 6 | AF61: 0.5530913978 | AG61: 80 | AL61: 9 | AM61: 0 | AN61: 0 | AO61: 1166 | AP61: 2 | AQ61: bussi | AR61: 3 | AS61: 11 | AT61: 3.666666667 | AU61: 9 | AV61: 2 | AW61: 0 | AX61: 1 | AY61: 0 | AZ61: 1 | BA61: 0.04666666667 | BB61: 0.075 | BC61: 0 | BD61: 0 | BE61: 1 | BF61: 1 | BG61: 1 | BH61: 0.9967531322 | BI61: 17.1184198 | BJ61: 5.706139933 | BK61: 2452.507491 | BL61: 0.8617384015 | BM61: 1 | BN61: 0 | BO61: 0 | BP61: 0 | BQ61: 1 | BR61: 2456.518304 | BS61: 0.8631476823 | BT61: 1 | BU61: 554.8137737 | BV61: 1 | BW61: 0 | BX61: 0 | BY61: 0 | BZ61: 1 | CA61: 5 | CB61: 1.666666667 | CC61: 33.1184198 | CD61: 11.03947327 | CE61: 1 | CL61: https://www.google.com/maps/@60.8444522619,26.6034239845,3a,75y,90t/data=!3m3!1e1!3m1!2e0 | CN61: 3 | CP61: 1 | CR61: 0 | CS61: 3 | CT61: 0 | CU61: 1 | CV61: 28 | CW61: 15 | CX61: 0 | CY61: 0 | CZ61: 3 | DC61: 5 | DE61: 7581.674878 | DH61: 0 | DI61: 0 | DJ61: 0 | DM61: 1 | DN61: 1 | DO61: 1.495129698
A62: 365_1 | B62: 1 | D62: 24 | E62: 24 | F62: 0 | G62: 10.915 | H62: 1 | I62: 0 | J62: Gmaps | K62: KESKI | L62: Seutu | M62: Helsingintie | N62: Kouvola | O62: Kymenlaakso | P62: 365 | Q62: 1 | R62: 0 | S62: 1 | T62: 2195 | U62: 2195 | V62: 5128 | W62: 303 | X62: 5474 | Y62: 5128 (101 %) | Z62: 50 (3 %), 70 (97 %), 80 (1 %) | AA62: Is (101 %) | AB62: AB (101 %) | AC62: Y2 (101 %) | AD62: 1 | AE62: 8 | AF62: 0 | AG62: 136 | AL62: 9 | AM62: 2 | AN62: 0.6 | AO62: 1662 | AP62: 2 | AQ62: pikkubussi | AR62: 1.5 | AS62: 11.6 | AT62: 3.866666667 | AU62: 9 | AV62: 2 | AW62: 0 | AX62: 0 | AY62: 0 | AZ62: 1 | BA62: 0 | BB62: 0.145 | BC62: 0 | BD62: 0 | BE62: 0 | BF62: 1 | BG62: 1 | BH62: 2 | BI62: 16.145 | BJ62: 5.381666667 | BK62: 920.4728481 | BL62: 0.4193498169 | BM62: 0.5 | BN62: 2211.453821 | BO62: 1.007496046 | BP62: 1 | BQ62: 1 | BR62: 1812.131679 | BS62: 0.825572519 | BT62: 1 | BU62: 85.92255125 | BV62: 0.5 | BW62: 0 | BX62: 0 | BY62: 0 | BZ62: 1 | CA62: 5 | CB62: 1.666666667 | CC62: 32.745 | CD62: 10.915 | CE62: 1 | CL62: https://www.google.com/maps/@60.8743352948,26.6031101268,3a,75y,90t/data=!3m3!1e1!3m1!2e0 | CN62: 2 | CP62: 1 | CR62: 0 | CS62: 0 | CT62: 0 | CU62: 3 | CV62: 0 | CW62: 29 | CX62: 0 | CY62: 0 | CZ62: 0 | DC62: 8 | DE62: 2211.453821 | DH62: 0 | DI62: 0 | DJ62: 0 | DM62: 1 | DN62: 5 | DO62: 33.15522901
A63: 387_7 | B63: 1 | D63: 25 | E63: 25 | F63: 0 | G63: 10.91444444 | H63: 1 | I63: 0 | J63: Gmaps | K63: KESKI | L63: Seutu | M63: Vaalimaantie | N63: Lappeenranta | O63: Etelä-Karjala | P63: 387 | Q63: 7 | R63: 0 | S63: 7 | T63: 6203 | U63: 6203 | V63: 1257 | W63: 120 | X63: 1585 | Y63: 1257 (100 %) | Z63: 100 (97 %), 80 (3 %) | AA63: Is (100 %) | AB63: AB (100 %) | AC63: Y2 (100 %) | AD63: 1 | AE63: 2 | AF63: 0 | AG63: 90 | AL63: 9 | AM63: 0 | AN63: 0 | AO63: 332 | AP63: 2 | AQ63: bussi | AR63: 3 | AS63: 11 | AT63: 3.666666667 | AU63: 9 | AV63: 2 | AW63: 0 | AX63: 1 | AY63: 0 | AZ63: 1 | BA63: 0.06666666667 | BB63: 0.01 | BC63: 0 | BD63: 0 | BE63: 0 | BF63: 0.6666666667 | BG63: 1 | BH63: 2 | BI63: 16.74333333 | BJ63: 5.581111111 | BK63: 2630.560412 | BL63: 0.4240787381 | BM63: 0.5 | BN63: 6207.995074 | BO63: 1.000805267 | BP63: 1 | BQ63: 0 | BR63: 0 | BS63: 0 | BT63: 0 | BU63: 2.047396421 | BV63: 0.5 | BW63: 0 | BX63: 1 | BY63: 1 | BZ63: 1 | CA63: 5 | CB63: 1.666666667 | CC63: 32.74333333 | CD63: 10.91444444 | CE63: 1 | CL63: https://www.google.com/maps/@60.789635217,28.0083859499,3a,75y,90t/data=!3m3!1e1!3m1!2e0 | CN63: 3 | CP63: 1 | CR63: 0 | CS63: 1 | CT63: 0 | CU63: 2 | CV63: 40 | CW63: 2 | CX63: 0 | CY63: 0 | CZ63: 0 | DC63: 2 | DE63: 0 | DH63: 0 | DI63: 0 | DJ63: 1 | DM63: 1 | DN63: 1 | DO63: 6.00032695
A64: 408_3 | B64: 1 | D64: 26 | E64: 26 | F64: 0 | G64: 10.87899941 | H64: 1 | I64: 0 | J64: Gmaps | K64: KESKI | L64: Seutu | M64: Savilahdentie, Taipalsaarentie | N64: Taipalsaari | O64: Etelä-Karjala | P64: 408 | Q64: 3 | R64: 0 | S64: 3 | T64: 5589 | U64: 5589 | V64: 1527 | W64: 54 | X64: 1920 | Y64: 1527 (100 %) | Z64: 40 (13 %), 50 (3 %), 60 (55 %), 80 (29 %) | AA64: II (100 %) | AB64: AB (71 %), PAB (29 %) | AC64: Y2 (100 %) | AD64: 3 | AE64: 5 | AF64: 0.05367686527 | AG64: 11 | AL64: 9 | AM64: 43 | AN64: 3 | AO64: 598 | AP64: 2 | AQ64: bussi | AR64: 3 | AS64: 14 | AT64: 4.666666667 | AU64: 9 | AV64: 0 | AW64: 0 | AX64: 1 | AY64: 0 | AZ64: 1 | BA64: 0.1266666667 | BB64: 0.01 | BC64: 0 | BD64: 0 | BE64: 0 | BF64: 0.6666666667 | BG64: 0 | BH64: 1.833664888 | BI64: 13.63699822 | BJ64: 4.545666074 | BK64: 4074.499491 | BL64: 0.7290212008 | BM64: 1 | BN64: 0 | BO64: 0 | BP64: 0 | BQ64: 0 | BR64: 3166.623914 | BS64: 0.566581484 | BT64: 1 | BU64: 103.6858114 | BV64: 1 | BW64: 0 | BX64: 0 | BY64: 1 | BZ64: 1 | CA64: 5 | CB64: 1.666666667 | CC64: 32.63699822 | CD64: 10.87899941 | CE64: 1 | CL64: https://www.google.com/maps/@61.1521401115,28.0739784343,3a,75y,90t/data=!3m3!1e1!3m1!2e0 | CN64: 3 | CP64: 0 | CR64: 0 | CS64: 1 | CT64: 0 | CU64: 1 | CV64: 76 | CW64: 2 | CX64: 0 | CY64: 0 | CZ64: 0 | DC64: 2 | DE64: 0 | DH64: 0 | DI64: 0 | DJ64: 2 | DM64: 1 | DN64: 0 | DO64: 2.750497332
A65: 397_1 | B65: 1 | D65: 27 | E65: 27 | F65: 0 | G65: 10.86578013 | H65: 1 | I65: 0 | J65: Gmaps | K65: KESKI | L65: Seutu | M65: Helsingintie, Imatranväylä, Joutsenrannantie | N65: Lappeenranta | O65: Etelä-Karjala | P65: 397 | Q65: 1 | R65: 0 | S65: 1 | T65: 1991 | U65: 1991 | V65: 4287 | W65: 142 | X65: 4884 | Y65: 4287 (101 %) | Z65: 50 (40 %), 80 (61 %) | AA65: I (101 %) | AB65: AB (101 %) | AC65: Y2 (101 %) | AD65: 1 | AE65: 3 | AF65: 0.04512635379 | AG65: 10 | AL65: 9 | AM65: 46 | AN65: 3 | AO65: 1906 | AP65: 2 | AQ65: bussi | AR65: 3 | AS65: 14 | AT65: 4.666666667 | AU65: 9 | AV65: 0 | AW65: 0 | AX65: 1 | AY65: 0 | AZ65: 1 | BA65: 0 | BB65: 0 | BC65: 0 | BD65: 0 | BE65: 0 | BF65: 0.3333333333 | BG65: 0 | BH65: 0.2640070697 | BI65: 11.5973404 | BJ65: 3.865780134 | BK65: 2010.143028 | BL65: 1.009614781 | BM65: 1 | BN65: 1981.628681 | BO65: 0.9952931598 | BP65: 1 | BQ65: 1 | BR65: 2010.143028 | BS65: 1.009614781 | BT65: 1 | BU65: 117.52888 | BV65: 1 | BW65: 0 | BX65: 0 | BY65: 1 | BZ65: 1 | CA65: 7 | CB65: 2.333333333 | CC65: 32.5973404 | CD65: 10.86578013 | CE65: 1 | CL65: https://www.google.com/maps/@61.1729790294,28.6953748979,3a,75y,90t/data=!3m3!1e1!3m1!2e0 | CN65: 3 | CP65: 0 | CR65: 0 | CS65: 1 | CT65: 0 | CU65: 4 | CV65: 0 | CW65: 0 | CX65: 0 | CY65: 0 | CZ65: 0 | DC65: 1 | DE65: 4291.543718 | DH65: 0 | DI65: 0 | DJ65: 2 | DM65: 1 | DN65: 0 | DO65: 0.3960106046
A66: 384_1 | B66: 1 | D66: 28 | E66: 28 | F66: 0 | G66: 10.85418023 | H66: 1 | I66: 0 | J66: Gmaps | K66: KESKI | L66: Seutu | M66: Virolahdentie | N66: Virolahti | O66: Kymenlaakso | P66: 384 | Q66: 1 | R66: 0 | S66: 1 | T66: 2060 | U66: 2060 | V66: 1669 | W66: 94 | X66: 1923 | Y66: 1669 (100 %) | Z66: 50 (23 %), 60 (77 %) | AA66: II (100 %) | AB66: AB (66 %), PAB (33 %) | AC66: Y2 (100 %) | AD66: 2 | AE66: 3 | AF66: 0 | AG66: 25 | AL66: 9 | AM66: 9 | AN66: 2.7 | AO66: 425 | AP66: 2 | AQ66: bussi | AR66: 3 | AS66: 13.7 | AT66: 4.566666667 | AU66: 9 | AV66: 2 | AW66: 0 | AX66: 1 | AY66: 0 | AZ66: 1 | BA66: 0.1216666667 | BB66: 0.02 | BC66: 0 | BD66: 0 | BE66: 0 | BF66: 0.3333333333 | BG66: 1 | BH66: 0.8875406964 | BI66: 15.3625407 | BJ66: 5.120846899 | BK66: 2054.69153 | BL66: 0.9974230729 | BM66: 1 | BN66: 0 | BO66: 0 | BP66: 0 | BQ66: 1 | BR66: 0 | BS66: 0 | BT66: 0 | BU66: 27.42718447 | BV66: 0.5 | BW66: 0 | BX66: 0 | BY66: 0 | BZ66: 1 | CA66: 3.5 | CB66: 1.166666667 | CC66: 32.5625407 | CD66: 10.85418023 | CE66: 1 | CL66: https://www.google.com/maps/@60.5879917035,27.7126307121,3a,75y,90t/data=!3m3!1e1!3m1!2e0 | CN66: 3 | CP66: 1 | CR66: 0 | CS66: 5 | CT66: 0 | CU66: 7 | CV66: 73 | CW66: 4 | CX66: 0 | CY66: 0 | CZ66: 0 | DC66: 1 | DE66: 4109.38306 | DH66: 0 | DI66: 0 | DJ66: 0 | DM66: 1 | DN66: 1 | DO66: 1.331311045
A67: 354_2 | B67: 1 | D67: 29 | E67: 29 | F67: 0 | G67: 10.8485 | H67: 1 | I67: 0 | J67: Gmaps | K67: KESKI | L67: Seutu | M67: Elimäentie | N67: Kouvola | O67: Kymenlaakso | P67: 354 | Q67: 2 | R67: 0 | S67: 2 | T67: 5778 | U67: 5778 | V67: 1351 | W67: 131 | X67: 1496 | Y67: 1351 (100 %) | Z67: 100 (98 %), 80 (2 %) | AA67: Ib (100 %) | AB67: AB (100 %) | AC67: Y2 (100 %) | AD67: 2 | AE67: 5 | AF67: 0 | AG67: 67 | AL67: 9 | AM67: 0 | AN67: 0 | AO67: 388 | AP67: 2 | AQ67: pikkubussi | AR67: 1.5 | AS67: 11 | AT67: 3.666666667 | AU67: 9 | AV67: 2 | AW67: 0 | AX67: 1 | AY67: 0 | AZ67: 1 | BA67: 0.5 | BB67: 0.5 | BC67: 0.0455 | BD67: 0.1666666667 | BE67: 1 | BF67: 0.3333333333 | BG67: 0 | BH67: 2 | BI67: 17.5455 | BJ67: 5.8485 | BK67: 1167.190712 | BL67: 0.2020060077 | BM67: 0.5 | BN67: 5770.554876 | BO67: 0.9987114704 | BP67: 1 | BQ67: 1 | BR67: 0 | BS67: 0 | BT67: 0 | BU67: 0.2769124264 | BV67: 0.5 | BW67: 0 | BX67: 0 | BY67: 0 | BZ67: 1 | CA67: 4 | CB67: 1.333333333 | CC67: 32.5455 | CD67: 10.8485 | CE67: 1 | CL67: https://www.google.com/maps/@60.7116480432,26.4757084314,3a,75y,90t/data=!3m3!1e1!3m1!2e0 | CN67: 2 | CP67: 1 | CR67: 0 | CS67: 1 | CT67: 0 | CU67: 20 | CV67: 629 | CW67: 262 | CX67: 91 | CY67: 10 | CZ67: 1 | DC67: 1 | DE67: 5770.554876 | DH67: 0 | DI67: 0 | DJ67: 0 | DM67: 1 | DN67: 0 | DO67: 5.999596355
A68: 387_9 | B68: 1 | D68: 30 | E68: 30 | F68: 0 | G68: 10.79722222 | H68: 1 | I68: 0 | J68: Gmaps | K68: KESKI | L68: Seutu | M68: Lappeenrannantie, Vaalimaantie | N68: Lappeenranta, Miehikkälä | O68: Kymenlaakso, Etelä-Karjala | P68: 387 | Q68: 9 | R68: 0 | S68: 9 | T68: 7428 | U68: 7428 | V68: 1257 | W68: 120 | X68: 1585 | Y68: 1257 (100 %) | Z68: 60 (28 %), 80 (72 %) | AA68: Is (100 %) | AB68: AB (100 %) | AC68: Y2 (100 %) | AD68: 2 | AE68: 10 | AF68: 0 | AG68: 90 | AL68: 9 | AM68: 0 | AN68: 0 | AO68: 286 | AP68: 1.906666667 | AQ68: bussi | AR68: 3 | AS68: 10.90666667 | AT68: 3.635555556 | AU68: 9 | AV68: 2 | AW68: 0 | AX68: 1 | AY68: 0 | AZ68: 1 | BA68: 0.2933333333 | BB68: 0.025 | BC68: 0 | BD68: 0 | BE68: 0 | BF68: 0.6666666667 | BG68: 1 | BH68: 2 | BI68: 16.985 | BJ68: 5.661666667 | BK68: 0 | BL68: 0 | BM68: 0 | BN68: 7426.106667 | BO68: 0.9997451087 | BP68: 1 | BQ68: 0 | BR68: 0 | BS68: 0 | BT68: 0 | BU68: 11.9816909 | BV68: 0.5 | BW68: 0 | BX68: 1 | BY68: 1 | BZ68: 1 | CA68: 4.5 | CB68: 1.5 | CC68: 32.39166667 | CD68: 10.79722222 | CE68: 1 | CL68: https://www.google.com/maps/@60.7127695411,27.9509822876,3a,75y,90t/data=!3m3!1e1!3m1!2e0 | CN68: 3 | CP68: 1 | CR68: 0 | CS68: 7 | CT68: 0 | CU68: 6 | CV68: 176 | CW68: 5 | CX68: 0 | CY68: 0 | CZ68: 0 | DC68: 2 | DE68: 0 | DH68: 0 | DI68: 0 | DJ68: 4 | DM68: 1 | DN68: 1 | DO68: 5.999686504
A69: 387_11 | B69: 1 | D69: 31 | E69: 31 | F69: 0 | G69: 10.79666667 | H69: 1 | I69: 0 | J69: Gmaps | K69: KESKI | L69: Seutu | M69: Lappeenrannantie | N69: Miehikkälä, Virolahti | O69: Kymenlaakso | P69: 387 | Q69: 11 | R69: 0 | S69: 11 | T69: 5079 | U69: 5079 | V69: 1408 | W69: 148 | X69: 1776 | Y69: 1408 (100 %) | Z69: 100 (53 %), 80 (47 %) | AA69: I (80 %), Is (20 %) | AB69: AB (100 %) | AC69: Y2 (100 %) | AD69: 0 | AE69: 1 | AF69: 0 | AG69: 100 | AL69: 9 | AM69: 0 | AN69: 0 | AO69: 251 | AP69: 1.673333333 | AQ69: bussi | AR69: 3 | AS69: 10.67333333 | AT69: 3.557777778 | AU69: 9 | AV69: 2 | AW69: 0 | AX69: 1 | AY69: 0 | AZ69: 1 | BA69: 0.5 | BB69: 0.05 | BC69: 0 | BD69: 0 | BE69: 0 | BF69: 0.6666666667 | BG69: 1 | BH69: 2 | BI69: 17.21666667 | BJ69: 5.738888889 | BK69: 0 | BL69: 0 | BM69: 0 | BN69: 3674.234104 | BO69: 0.7234168348 | BP69: 1 | BQ69: 0 | BR69: 0 | BS69: 0 | BT69: 0 | BU69: 8.38747785 | BV69: 0.5 | BW69: 0 | BX69: 1 | BY69: 1 | BZ69: 1 | CA69: 4.5 | CB69: 1.5 | CC69: 32.39 | CD69: 10.79666667 | CE69: 1 | CL69: https://www.google.com/maps/@60.6409847974,27.8783326251,3a,75y,90t/data=!3m3!1e1!3m1!2e0 | CN69: 3 | CP69: 1 | CR69: 0 | CS69: 8 | CT69: 0 | CU69: 9 | CV69: 324 | CW69: 10 | CX69: 0 | CY69: 0 | CZ69: 0 | DC69: 2 | DE69: 0 | DH69: 0 | DI69: 0 | DJ69: 4 | DM69: 1 | DN69: 1 | DO69: 5.170656586
A70: 387_10 | B70: 1 | D70: 32 | E70: 32 | F70: 0 | G70: 10.795 | H70: 1 | I70: 0 | J70: Gmaps | K70: KESKI | L70: Seutu | M70: Lappeenrannantie | N70: Miehikkälä | O70: Kymenlaakso | P70: 387 | Q70: 10 | R70: 0 | S70: 10 | T70: 2445 | U70: 2445 | V70: 1408 | W70: 148 | X70: 1776 | Y70: 1408 (100 %) | Z70: 60 (71 %), 80 (29 %) | AA70: Is (100 %) | AB70: AB (100 %) | AC70: Y2 (100 %) | AD70: 0 | AE70: 1 | AF70: 0 | AG70: 100 | AL70: 9 | AM70: 0 | AN70: 0 | AO70: 273 | AP70: 1.82 | AQ70: bussi | AR70: 3 | AS70: 10.82 | AT70: 3.606666667 | AU70: 9 | AV70: 2 | AW70: 0 | AX70: 1 | AY70: 0 | AZ70: 1 | BA70: 0.3633333333 | BB70: 0.035 | BC70: 0 | BD70: 0 | BE70: 0 | BF70: 0.6666666667 | BG70: 1 | BH70: 2 | BI70: 17.065 | BJ70: 5.688333333 | BK70: 0 | BL70: 0 | BM70: 0 | BN70: 2442.386528 | BO70: 0.9989310952 | BP70: 1 | BQ70: 0 | BR70: 0 | BS70: 0 | BT70: 0 | BU70: 42.78118609 | BV70: 0.5 | BW70: 0 | BX70: 1 | BY70: 1 | BZ70: 1 | CA70: 4.5 | CB70: 1.5 | CC70: 32.385 | CD70: 10.795 | CE70: 1 | CL70: https://www.google.com/maps/@60.6605415365,27.8882637867,3a,75y,90t/data=!3m3!1e1!3m1!2e0 | CN70: 3 | CP70: 1 | CR70: 0 | CS70: 7 | CT70: 0 | CU70: 6 | CV70: 218 | CW70: 7 | CX70: 0 | CY70: 0 | CZ70: 0 | DC70: 2 | DE70: 0 | DH70: 0 | DI70: 0 | DJ70: 4 | DM70: 1 | DN70: 1 | DO70: 5.999869322
A71: 170_36 | B71: 1 | D71: 33 | E71: 33 | F71: 0 | G71: 10.7741562 | H71: 1 | I71: 0 | J71: Gmaps | K71: KESKI | L71: Seutu | M71: Vanha Vaalimaantie | N71: Hamina | O71: Kymenlaakso | P71: 170 | Q71: 36 | R71: 0 | S71: 36 | T71: 2366 | U71: 2366 | V71: 1434 | W71: 64 | X71: 1595 | Y71: 1434 (101 %) | Z71: 50 (7 %), 60 (17 %), 80 (76 %) | AA71: I (24 %), Ib (76 %) | AB71: AB (101 %) | AC71: Y2 (101 %) | AD71: 0 | AE71: 2 | AF71: 0 | AG71: 19 | AL71: 9 | AM71: 9 | AN71: 2.7 | AO71: 234 | AP71: 1.56 | AQ71: - | AR71: 0 | AS71: 13.26 | AT71: 4.42 | AU71: 9 | AV71: 0 | AW71: 0 | AX71: 1 | AY71: 0 | AZ71: 1 | BA71: 0 | BB71: 0.065 | BC71: 0 | BD71: 0.5 | BE71: 1 | BF71: 0.6666666667 | BG71: 1 | BH71: 0.3308019323 | BI71: 14.5624686 | BJ71: 4.8541562 | BK71: 0 | BL71: 0 | BM71: 0 | BN71: 2378.339983 | BO71: 1.005215546 | BP71: 1 | BQ71: 1 | BR71: 0 | BS71: 0 | BT71: 0 | BU71: 19.6534235 | BV71: 0.5 | BW71: 0 | BX71: 0 | BY71: 1 | BZ71: 1 | CA71: 4.5 | CB71: 1.5 | CC71: 32.3224686 | CD71: 10.7741562 | CE71: 1 | CL71: https://www.google.com/maps/@60.559794768,27.2681127346,3a,75y,90t/data=!3m3!1e1!3m1!2e0 | CN71: 0 | CP71: 0 | CR71: 0 | CS71: 2 | CT71: 0 | CU71: 3 | CV71: 0 | CW71: 13 | CX71: 0 | CY71: 57 | CZ71: 1 | DC71: 2 | DE71: 2378.339983 | DH71: 0 | DI71: 0 | DJ71: 2 | DM71: 1 | DN71: 1 | DO71: 0.4962028985
A72: 3503_1 | B72: 2 | D72: 34 | E72: 34 | F72: 0 | G72: 10.76225825 | H72: 2 | I72: 0 | J72: Gmaps | K72: KESKI | L72: Yhdys | M72: Pyhtääntie | N72: Pyhtää | O72: Kymenlaakso | P72: 3503 | Q72: 1 | R72: 0 | S72: 1 | T72: 335 | U72: 335 | V72: 1630 | W72: 171 | X72: 1221 | Y72: 1630 (67 %) | Z72: 50 (67 %) | AA72: I (67 %) | AB72: AB (67 %) | AC72: Y3 (67 %) | AD72: 0 | AE72: 0 | AF72: 0.2985074627 | AG72: 110 | AL72: 9 | AM72: 0 | AN72: 0 | AO72: 326 | AP72: 2 | AQ72: - | AR72: 0 | AS72: 11 | AT72: 3.666666667 | AU72: 9 | AV72: 2 | AW72: 0 | AX72: 1 | AY72: 0 | AZ72: 1 | BA72: 0.165 | BB72: 0.13 | BC72: 0 | BD72: 0.5 | BE72: 1 | BF72: 0.3333333333 | BG72: 1 | BH72: 1.158441417 | BI72: 17.28677475 | BJ72: 5.76225825 | BK72: 224.0868763 | BL72: 0.6689160486 | BM72: 1 | BN72: 0 | BO72: 0 | BP72: 0 | BQ72: 1 | BR72: 0 | BS72: 0 | BT72: 0 | BU72: 0 | BV72: 0 | BW72: 0 | BX72: 0 | BY72: 1 | BZ72: 1 | CA72: 4 | CB72: 1.333333333 | CC72: 32.28677475 | CD72: 10.76225825 | CE72: 2 | CL72: https://www.google.com/maps/@60.4865410114,26.5640462111,3a,75y,90t/data=!3m3!1e1!3m1!2e0 | CN72: 0 | CP72: 1 | CR72: 0 | CS72: 4 | CT72: 0 | CU72: 13 | CV72: 99 | CW72: 26 | CX72: 0 | CY72: 300 | CZ72: 2 | DC72: 1 | DE72: 366.8079469 | DH72: 0 | DI72: 0 | DJ72: 5 | DM72: 1 | DN72: 1 | DO72: 1.737662126
A73: 408_2 | B73: 2 | D73: 35 | E73: 35 | F73: 0 | G73: 10.71556621 | H73: 2 | I73: 0 | J73: Gmaps | K73: KESKI | L73: Seutu | M73: Taipalsaarentie | N73: Lappeenranta, Taipalsaari | O73: Etelä-Karjala | P73: 408 | Q73: 2 | R73: 0 | S73: 2 | T73: 6939 | U73: 6939 | V73: 4689.444444 | W73: 166.5555556 | X73: 5394.222222 | Y73: 2949 (41 %), 5886 (59 %) | Z73: 60 (12 %), 70 (88 %) | AA73: Ib (100 %) | AB73: AB (100 %) | AC73: Y2 (100 %) | AD73: 7 | AE73: 13 | AF73: 0 | AG73: 22.25925926 | AL73: 9 | AM73: 43 | AN73: 3 | AO73: 1447 | AP73: 2 | AQ73: bussi | AR73: 3 | AS73: 14 | AT73: 4.666666667 | AU73: 9 | AV73: 0 | AW73: 0 | AX73: 1 | AY73: 0 | AZ73: 1 | BA73: 0.1266666667 | BB73: 0.02 | BC73: 0 | BD73: 0 | BE73: 0 | BF73: 1 | BG73: 1 | BH73: 1.000031966 | BI73: 14.14669863 | BJ73: 4.715566211 | BK73: 5555.679852 | BL73: 0.8006456048 | BM73: 1 | BN73: 0 | BO73: 0 | BP73: 0 | BQ73: 0 | BR73: 1946.570336 | BS73: 0.2805260609 | BT73: 0 | BU73: 124.1389249 | BV73: 1 | BW73: 0 | BX73: 0 | BY73: 1 | BZ73: 1 | CA73: 4 | CB73: 1.333333333 | CC73: 32.14669863 | CD73: 10.71556621 | CE73: 2 | CL73: https://www.google.com/maps/@61.0995451396,28.1312340025,3a,75y,90t/data=!3m3!1e1!3m1!2e0 | CN73: 3 | CP73: 0 | CR73: 0 | CS73: 1 | CT73: 0 | CU73: 1 | CV73: 76 | CW73: 4 | CX73: 0 | CY73: 0 | CZ73: 0 | DC73: 4 | DE73: 0 | DH73: 0 | DI73: 0 | DJ73: 5 | DM73: 1 | DN73: 1 | DO73: 1.500047948
A74: 3963_1 | B74: 2 | D74: 36 | E74: 36 | F74: 0 | G74: 10.71309511 | H74: 2 | I74: 0 | J74: Gmaps | K74: KESKI | L74: Yhdys | M74: Asematie | N74: Lappeenranta | O74: Etelä-Karjala | P74: 3963 | Q74: 1 | R74: 0 | S74: 1 | T74: 793 | U74: 793 | V74: 1972.281211 | W74: 71.67591425 | X74: 2360.860025 | Y74: 161 (24 %), 2543 (76 %) | Z74: 40 (100 %) | AA74: II (100 %) | AB74: AB (100 %) | AC74: Y2 (100 %) | AD74: 0 | AE74: 0 | AF74: 0.8827238335 | AG74: 5.562421185 | AL74: 9 | AM74: 42 | AN74: 3 | AO74: 440 | AP74: 2 | AQ74: bussi | AR74: 3 | AS74: 14 | AT74: 4.666666667 | AU74: 9 | AV74: 0 | AW74: 0 | AX74: 1 | AY74: 0 | AZ74: 1 | BA74: 0 | BB74: 0 | BC74: 0 | BD74: 0 | BE74: 0 | BF74: 0 | BG74: 0 | BH74: 0.1392853192 | BI74: 11.13928532 | BJ74: 3.713095106 | BK74: 794.1008687 | BL74: 1.001388233 | BM74: 1 | BN74: 785.5571507 | BO74: 0.9906143136 | BP74: 1 | BQ74: 1 | BR74: 794.1008687 | BS74: 1.001388233 | BT74: 1 | BU74: 408.5750315 | BV74: 1 | BW74: 0 | BX74: 0 | BY74: 1 | BZ74: 1 | CA74: 7 | CB74: 2.333333333 | CC74: 32.13928532 | CD74: 10.71309511 | CE74: 2 | CL74: https://www.google.com/maps/@61.1730957075,28.6983579387,3a,75y,90t/data=!3m3!1e1!3m1!2e0 | CN74: 3 | CP74: 0 | CR74: 0 | CS74: 1 | CT74: 0 | CU74: 2 | CV74: 0 | CW74: 0 | CX74: 0 | CY74: 0 | CZ74: 0 | DC74: 0 | DE74: 600.6497232 | DH74: 0 | DI74: 0 | DJ74: 2 | DM74: 1 | DN74: 0 | DO74: 0.2089279788
A75: 170_33 | B75: 2 | D75: 37 | E75: 37 | F75: 0 | G75: 10.7105522 | H75: 2 | I75: 0 | J75: Gmaps | K75: KESKI | L75: Seutu | M75: Mt 170 | N75: Hamina | O75: Kymenlaakso | P75: 170 | Q75: 33 | R75: 0 | S75: 33 | T75: 2749 | U75: 2749 | V75: 8221.618043 | W75: 585.463805 | X75: 8563.800655 | Y75: 7712 (30 %), 8436 (70 %) | Z75: 50 (2 %), 60 (33 %), 80 (65 %) | AA75: Is (100 %) | AB75: AB (100 %) | AC75: Y2 (100 %) | AD75: 0 | AE75: 1 | AF75: 0.4438360011 | AG75: 317.6144052 | AL75: 9 | AM75: 0 | AN75: 0 | AO75: 2051 | AP75: 2 | AQ75: bussi | AR75: 3 | AS75: 11 | AT75: 3.666666667 | AU75: 9 | AV75: 0 | AW75: 1 | AX75: 1 | AY75: 0 | AZ75: 1 | BA75: 0 | BB75: 0 | BC75: 0 | BD75: 0 | BE75: 1 | BF75: 1 | BG75: 1 | BH75: 1.131656605 | BI75: 16.13165661 | BJ75: 5.377218868 | BK75: 2746.930577 | BL75: 0.9992472087 | BM75: 1 | BN75: 0 | BO75: 0 | BP75: 0 | BQ75: 1 | BR75: 2746.930577 | BS75: 0.9992472087 | BT75: 1 | BU75: 432.4117861 | BV75: 1 | BW75: 0 | BX75: 0 | BY75: 0 | BZ75: 1 | CA75: 5 | CB75: 1.666666667 | CC75: 32.13165661 | CD75: 10.7105522 | CE75: 2 | CL75: https://www.google.com/maps/@60.5696985002,27.1261942752,3a,75y,90t/data=!3m3!1e1!3m1!2e0 | CN75: 3 | CP75: 0 | CR75: 2 | CS75: 1 | CT75: 0 | CU75: 1 | CV75: 0 | CW75: 0 | CX75: 0 | CY75: 0 | CZ75: 1 | DC75: 14 | DE75: 2746.930577 | DH75: 0 | DI75: 0 | DJ75: 0 | DM75: 1 | DN75: 1 | DO75: 1.697484908
A76: 371_7 | B76: 2 | D76: 38 | E76: 38 | F76: 0 | G76: 10.64418698 | H76: 2 | I76: 0 | J76: Gmaps | K76: KESKI | L76: Seutu | M76: Matarojantie | N76: Kouvola | O76: Kymenlaakso | P76: 371 | Q76: 7 | R76: 0 | S76: 7 | T76: 7142 | U76: 7142 | V76: 1198 | W76: 63 | X76: 1307 | Y76: 1198 (100 %) | Z76: 60 (5 %), 80 (95 %) | AA76: I (3 %), Ib (96 %) | AB76: AB (100 %) | AC76: Y2 (100 %) | AD76: 3 | AE76: 7 | AF76: 0.0280033604 | AG76: 13 | AL76: 9 | AM76: 2 | AN76: 0.6 | AO76: 722 | AP76: 2 | AQ76: bussi | AR76: 3 | AS76: 11.6 | AT76: 3.866666667 | AU76: 9 | AV76: 2 | AW76: 1 | AX76: 1 | AY76: 0 | AZ76: 1 | BA76: 0.165 | BB76: 0.07 | BC76: 0.137 | BD76: 0 | BE76: 0 | BF76: 0.6666666667 | BG76: 1 | BH76: 1.293894274 | BI76: 17.33256094 | BJ76: 5.777520314 | BK76: 358.0902496 | BL76: 0.05013865158 | BM76: 0.5 | BN76: 0 | BO76: 0 | BP76: 0 | BQ76: 1 | BR76: 187.8026138 | BS76: 0.02629552139 | BT76: 0 | BU76: 4.18650238 | BV76: 0.5 | BW76: 0 | BX76: 0 | BY76: 0 | BZ76: 1 | CA76: 3 | CB76: 1 | CC76: 31.93256094 | CD76: 10.64418698 | CE76: 2 | CL76: https://www.google.com/maps/@60.7378393387,26.9548449542,3a,75y,90t/data=!3m3!1e1!3m1!2e0 | CN76: 3 | CP76: 1 | CR76: 2 | CS76: 3 | CT76: 0 | CU76: 4 | CV76: 99 | CW76: 14 | CX76: 274 | CY76: 0 | CZ76: 0 | DC76: 2 | DE76: 188.4323778 | DH76: 0 | DI76: 0 | DJ76: 0 | DM76: 1 | DN76: 1 | DO76: 1.940841411
A77: 170_35 | B77: 2 | D77: 39 | E77: 39 | F77: 0 | G77: 10.61396004 | H77: 2 | I77: 0 | J77: Gmaps | K77: KESKI | L77: Seutu | M77: Kekkosenkatu, Vanha Vaalimaantie | N77: Hamina | O77: Kymenlaakso | P77: 170 | Q77: 35 | R77: 2666 | S77: 35 | T77: 4899 | U77: 2233 | V77: 1623.888043 | W77: 74.5382893 | X77: 1847.322436 | Y77: 1434 (79 %), 2389 (20 %) | Z77: 50 (31 %), 80 (67 %) | AA77: Ib (99 %) | AB77: AB (99 %) | AC77: Y2 (99 %) | AD77: 2 | AE77: 4 | AF77: 0 | AG77: 22.380206 | AL77: 9 | AM77: 9 | AN77: 2.7 | AO77: 243 | AP77: 1.62 | AQ77: taksi | AR77: 1.5 | AS77: 13.32 | AT77: 4.44 | AU77: 9 | AV77: 0 | AW77: 0 | AX77: 0 | AY77: 0 | AZ77: 1 | BA77: 0 | BB77: 0.025 | BC77: 0 | BD77: 0.5 | BE77: 0 | BF77: 0.6666666667 | BG77: 1 | BH77: 0.3302134647 | BI77: 12.52188013 | BJ77: 4.173960044 | BK77: 1528.020308 | BL77: 0.6842903304 | BM77: 1 | BN77: 2200.503039 | BO77: 0.9854469499 | BP77: 1 | BQ77: 1 | BR77: 702.4040405 | BS77: 0.3145562206 | BT77: 0 | BU77: 126.4666368 | BV77: 1 | BW77: 0 | BX77: 0 | BY77: 1 | BZ77: 1 | CA77: 6 | CB77: 2 | CC77: 31.84188013 | CD77: 10.61396004 | CE77: 2 | CL77: https://www.google.com/maps/@60.5553971398,27.2369087308,3a,75y,90t/data=!3m3!1e1!3m1!2e0 | CN77: 1 | CP77: 0 | CR77: 0 | CS77: 0 | CT77: 0 | CU77: 1 | CV77: 0 | CW77: 5 | CX77: 0 | CY77: 57 | CZ77: 0 | DC77: 2 | DE77: 2200.503039 | DH77: 0 | DI77: 0 | DJ77: 1 | DM77: 1 | DN77: 1 | DO77: 0.495320197
A78: 387_4 | B78: 2 | D78: 40 | E78: 40 | F78: 0 | G78: 10.61111111 | H78: 2 | I78: 0 | J78: Gmaps | K78: KESKI | L78: Seutu | M78: Vaalimaantie | N78: Lappeenranta | O78: Etelä-Karjala | P78: 387 | Q78: 4 | R78: 0 | S78: 4 | T78: 6105 | U78: 6105 | V78: 2528 | W78: 199 | X78: 2764 | Y78: 2528 (100 %) | Z78: 100 (82 %), 80 (18 %) | AA78: Is (100 %) | AB78: AB (100 %) | AC78: Y2 (100 %) | AD78: 5 | AE78: 11 | AF78: 0 | AG78: 106 | AL78: 9 | AM78: 0 | AN78: 0 | AO78: 485 | AP78: 2 | AQ78: - | AR78: 0 | AS78: 11 | AT78: 3.666666667 | AU78: 9 | AV78: 2 | AW78: 0 | AX78: 1 | AY78: 0 | AZ78: 1 | BA78: 0.5 | BB78: 0.5 | BC78: 0 | BD78: 0.5 | BE78: 0 | BF78: 0.3333333333 | BG78: 0 | BH78: 2 | BI78: 16.83333333 | BJ78: 5.611111111 | BK78: 2639.41778 | BL78: 0.4323370646 | BM78: 0.5 | BN78: 6115.627392 | BO78: 1.001740769 | BP78: 1 | BQ78: 0 | BR78: 0 | BS78: 0 | BT78: 0 | BU78: 11.07289107 | BV78: 0.5 | BW78: 0 | BX78: 1 | BY78: 0 | BZ78: 1 | CA78: 4 | CB78: 1.333333333 | CC78: 31.83333333 | CD78: 10.61111111 | CE78: 2 | CL78: https://www.google.com/maps/@60.9115268119,28.134324908,3a,75y,90t/data=!3m3!1e1!3m1!2e0 | CN78: 0 | CP78: 1 | CR78: 0 | CS78: 1 | CT78: 0 | CU78: 3 | CV78: 847 | CW78: 263 | CX78: 0 | CY78: 60 | CZ78: 0 | DC78: 1 | DE78: 0 | DH78: 0 | DI78: 0 | DJ78: 0 | DM78: 1 | DN78: 0 | DO78: 11.00001614
A79: 170_41 | B79: 2 | D79: 41 | E79: 41 | F79: 0 | G79: 10.61103752 | H79: 2 | I79: 0 | J79: Gmaps | K79: KESKI | L79: Seutu | M79: Vaalimaantie | N79: Virolahti | O79: Kymenlaakso | P79: 170 | Q79: 41 | R79: 0 | S79: 41 | T79: 1761 | U79: 1761 | V79: 697 | W79: 54 | X79: 800 | Y79: 697 (100 %) | Z79: 50 (15 %), 60 (32 %), 80 (53 %) | AA79: Ib (100 %) | AB79: AB (100 %) | AC79: Y2 (100 %) | AD79: 1 | AE79: 4 | AF79: 0 | AG79: 23 | AL79: 9 | AM79: 9 | AN79: 2.7 | AO79: 120 | AP79: 0.8 | AQ79: bussi | AR79: 3 | AS79: 12.5 | AT79: 4.166666667 | AU79: 9 | AV79: 2 | AW79: 0 | AX79: 0 | AY79: 0 | AZ79: 1 | BA79: 0 | BB79: 0 | BC79: 0 | BD79: 0 | BE79: 0 | BF79: 0.3333333333 | BG79: 0 | BH79: 0.9997792268 | BI79: 13.33311256 | BJ79: 4.444370853 | BK79: 1767.677619 | BL79: 1.003791947 | BM79: 1 | BN79: 1767.677619 | BO79: 1.003791947 | BP79: 1 | BQ79: 1 | BR79: 1615.974003 | BS79: 0.9176456576 | BT79: 1 | BU79: 119.2504259 | BV79: 1 | BW79: 0 | BX79: 0 | BY79: 0 | BZ79: 1 | CA79: 6 | CB79: 2 | CC79: 31.83311256 | CD79: 10.61103752 | CE79: 2 | CL79: https://www.google.com/maps/@60.5823017359,27.6821387861,3a,75y,90t/data=!3m3!1e1!3m1!2e0 | CN79: 3 | CP79: 1 | CR79: 0 | CS79: 0 | CT79: 0 | CU79: 1 | CV79: 0 | CW79: 0 | CX79: 0 | CY79: 0 | CZ79: 0 | DC79: 1 | DE79: 1767.677619 | DH79: 0 | DI79: 0 | DJ79: 0 | DM79: 1 | DN79: 0 | DO79: 1.49966884
A80: 368_1 | B80: 2 | D80: 42 | E80: 42 | F80: 0 | G80: 10.53555556 | H80: 2 | I80: 0 | J80: Gmaps | K80: KESKI | L80: Seutu | M80: Kalevantie, Multamäentie | N80: Kouvola | O80: Kymenlaakso | P80: 368 | Q80: 1 | R80: 0 | S80: 1 | T80: 7313 | U80: 7313 | V80: 2408.699576 | W80: 135.4619171 | X80: 2824.395323 | Y80: 1660 (72 %), 4384 (27 %) | Z80: 40 (20 %), 50 (8 %), 80 (71 %) | AA80: Ib (100 %) | AB80: AB (100 %) | AC80: Y2 (100 %) | AD80: 7 | AE80: 17 | AF80: 0.1180637544 | AG80: 31.94735403 | AL80: 9 | AM80: 0 | AN80: 0 | AO80: 1465 | AP80: 2 | AQ80: bussi | AR80: 3 | AS80: 11 | AT80: 3.666666667 | AU80: 9 | AV80: 2 | AW80: 0 | AX80: 1 | AY80: 0 | AZ80: 1 | BA80: 0.03166666667 | BB80: 0.075 | BC80: 0 | BD80: 0.1666666667 | BE80: 0 | BF80: 0.3333333333 | BG80: 1 | BH80: 2 | BI80: 16.60666667 | BJ80: 5.535555556 | BK80: 4661.457594 | BL80: 0.6374207021 | BM80: 1 | BN80: 0 | BO80: 0 | BP80: 0 | BQ80: 1 | BR80: 3125.088312 | BS80: 0.4273332849 | BT80: 0 | BU80: 241.118556 | BV80: 1 | BW80: 0 | BX80: 0 | BY80: 0 | BZ80: 1 | CA80: 4 | CB80: 1.333333333 | CC80: 31.60666667 | CD80: 10.53555556 | CE80: 2 | CL80: https://www.google.com/maps/@60.9298712395,26.8010535766,3a,75y,90t/data=!3m3!1e1!3m1!2e0 | CN80: 3 | CP80: 1 | CR80: 0 | CS80: 4 | CT80: 0 | CU80: 2 | CV80: 19 | CW80: 15 | CX80: 0 | CY80: 10 | CZ80: 0 | DC80: 1 | DE80: 7823.481778 | DH80: 0 | DI80: 0 | DJ80: 0 | DM80: 1 | DN80: 2 | DO80: 5.768125512
A81: 170_24 | B81: 2 | D81: 43 | E81: 43 | F81: 0 | G81: 10.46910944 | H81: 2 | I81: 0 | J81: Gmaps | K81: KESKI | L81: Seutu | M81: Valtatie | N81: Pyhtää | O81: Kymenlaakso | P81: 170 | Q81: 24 | R81: 0 | S81: 24 | T81: 5719 | U81: 5719 | V81: 1425 | W81: 59 | X81: 1685 | Y81: 1425 (100 %) | Z81: 60 (30 %), 80 (70 %) | AA81: Ib (100 %) | AB81: AB (100 %) | AC81: Y2 (100 %) | AD81: 2 | AE81: 5 | AF81: 0 | AG81: 16 | AL81: 9 | AM81: 2 | AN81: 0.6 | AO81: 127 | AP81: 0.8466666667 | AQ81: bussi | AR81: 3 | AS81: 10.44666667 | AT81: 3.482222222 | AU81: 9 | AV81: 2 | AW81: 0 | AX81: 1 | AY81: 0 | AZ81: 1 | BA81: 0.165 | BB81: 0.105 | BC81: 0 | BD81: 0.5 | BE81: 1 | BF81: 0.3333333333 | BG81: 0 | BH81: 0.8573283132 | BI81: 15.96066165 | BJ81: 5.320220549 | BK81: 1007.565031 | BL81: 0.1761785331 | BM81: 0.5 | BN81: 5732.856393 | BO81: 1.00242287 | BP81: 1 | BQ81: 1 | BR81: 0 | BS81: 0 | BT81: 0 | BU81: 2.710264032 | BV81: 0.5 | BW81: 0 | BX81: 0 | BY81: 1 | BZ81: 1 | CA81: 5 | CB81: 1.666666667 | CC81: 31.40732831 | CD81: 10.46910944 | CE81: 2 | CL81: https://www.google.com/maps/@60.4894472102,26.562233133,3a,75y,90t/data=!3m3!1e1!3m1!2e0 | CN81: 3 | CP81: 1 | CR81: 0 | CS81: 4 | CT81: 0 | CU81: 11 | CV81: 99 | CW81: 21 | CX81: 0 | CY81: 300 | CZ81: 2 | DC81: 1 | DE81: 5732.856393 | DH81: 0 | DI81: 0 | DJ81: 3 | DM81: 1 | DN81: 0 | DO81: 1.28599247
A82: 4164_10 | B82: 2 | D82: 44 | E82: 44 | F82: 0 | G82: 10.42222222 | H82: 2 | I82: 0 | J82: Gmaps | K82: KESKI | L82: Yhdys | M82: Mäntyharjuntie | N82: Kouvola | O82: Kymenlaakso | P82: 4164 | Q82: 10 | R82: 0 | S82: 10 | T82: 1014 | U82: 1014 | V82: 717 | W82: 53 | X82: 1093 | Y82: 717 (100 %) | Z82: 40 (11 %), 50 (88 %) | AA82: II (100 %) | AB82: AB (99 %), PAB (1 %) | AC82: Y3 (100 %) | AD82: 0 | AE82: 0 | AF82: 0.09861932939 | AG82: 18 | AL82: 9 | AM82: 0 | AN82: 0 | AO82: 180 | AP82: 1.2 | AQ82: bussi | AR82: 3 | AS82: 10.2 | AT82: 3.4 | AU82: 9 | AV82: 2 | AW82: 0 | AX82: 1 | AY82: 0 | AZ82: 1 | BA82: 0.1583333333 | BB82: 0.075 | BC82: 0 | BD82: 0 | BE82: 0 | BF82: 0.3333333333 | BG82: 0 | BH82: 2 | BI82: 15.56666667 | BJ82: 5.188888889 | BK82: 1010.114827 | BL82: 0.9961684687 | BM82: 1 | BN82: 0 | BO82: 0 | BP82: 0 | BQ82: 0 | BR82: 878.8351349 | BS82: 0.8667013165 | BT82: 1 | BU82: 294.9704142 | BV82: 1 | BW82: 1.5 | BX82: 0 | BY82: 0 | BZ82: 1 | CA82: 5.5 | CB82: 1.833333333 | CC82: 31.26666667 | CD82: 10.42222222 | CE82: 2 | CL82: https://www.google.com/maps/@61.0595505071,26.4627574315,3a,75y,90t/data=!3m3!1e1!3m1!2e0 | CN82: 3 | CP82: 1 | CR82: 0 | CS82: 1 | CT82: 0 | CU82: 4 | CV82: 95 | CW82: 15 | CX82: 0 | CY82: 0 | CZ82: 0 | DC82: 1 | DE82: 0 | DH82: 1.5 | DI82: 1.5 | DJ82: 0 | DM82: 1 | DN82: 0 | DO82: 3.156076828
A83: 4021_1 | B83: 2 | D83: 45 | E83: 45 | F83: 0 | G83: 10.38767679 | H83: 2 | I83: 0 | J83: Gmaps | K83: KESKI | L83: Yhdys | M83: Niukkalantie | N83: Parikkala | O83: Etelä-Karjala | P83: 4021 | Q83: 1 | R83: 0 | S83: 1 | T83: 4681 | U83: 4681 | V83: 603 | W83: 48 | X83: 707 | Y83: 603 (100 %) | Z83: 50 (16 %), 80 (84 %) | AA83: II (100 %) | AB83: PAB (100 %) | AC83: Y3 (100 %) | AD83: 0 | AE83: 0 | AF83: 0.2563554796 | AG83: 15 | AL83: 9 | AM83: 0 | AN83: 0 | AO83: 91 | AP83: 0.6066666667 | AQ83: - | AR83: 0 | AS83: 9.606666667 | AT83: 3.202222222 | AU83: 8.64 | AV83: 2 | AW83: 0 | AX83: 1 | AY83: 0 | AZ83: 1 | BA83: 0.5 | BB83: 0.5 | BC83: 0 | BD83: 0.1166666667 | BE83: 1 | BF83: 0.3333333333 | BG83: 1 | BH83: 1.966363699 | BI83: 18.0563637 | BJ83: 6.0187879 | BK83: 0 | BL83: 0 | BM83: 0 | BN83: 0 | BO83: 0 | BP83: 0 | BQ83: 1 | BR83: 0 | BS83: 0 | BT83: 0 | BU83: 5.554368725 | BV83: 0.5 | BW83: 0 | BX83: 0 | BY83: 1 | BZ83: 1 | CA83: 3.5 | CB83: 1.166666667 | CC83: 31.16303037 | CD83: 10.38767679 | CE83: 2 | CL83: https://www.google.com/maps/@61.7182683308,29.6830027493,3a,75y,90t/data=!3m3!1e1!3m1!2e0 | CN83: 0 | CP83: 1 | CR83: 0 | CS83: 1 | CT83: 0 | CU83: 10 | CV83: 805 | CW83: 256 | CX83: 0 | CY83: 7 | CZ83: 1 | DC83: 1 | DE83: 11992.87254 | DH83: 0 | DI83: 0 | DJ83: 7 | DM83: 1 | DN83: 2 | DO83: 2.949545549
A84: 355_1 | B84: 2 | D84: 46 | E84: 46 | F84: 0 | G84: 10.37759842 | H84: 2 | I84: 0 | J84: Gmaps | K84: KESKI | L84: Seutu | M84: Merituulentie | N84: Kotka | O84: Kymenlaakso | P84: 355 | Q84: 1 | R84: 615 | S84: 1 | T84: 3742 | U84: 3127 | V84: 7286.673169 | W84: 1193.228973 | X84: 8049.682763 | Y84: 5425 (43 %), 8701 (57 %) | Z84: 40 (9 %), 50 (91 %) | AA84: Ise (100 %) | AB84: AB (100 %) | AC84: Y1 (100 %) | AD84: 0 | AE84: 5 | AF84: 0.3907394283 | AG84: 934.5682763 | AL84: 9 | AM84: 0 | AN84: 0 | AO84: 2244 | AP84: 2 | AQ84: bussi | AR84: 3 | AS84: 11 | AT84: 3.666666667 | AU84: 9 | AV84: 0 | AW84: 1 | AX84: 1 | AY84: 0 | AZ84: 1 | BA84: 0 | BB84: 0 | BC84: 0 | BD84: 0 | BE84: 0 | BF84: 1 | BG84: 1 | BH84: 0.1327952531 | BI84: 14.13279525 | BJ84: 4.710931751 | BK84: 2840.128401 | BL84: 0.908259802 | BM84: 1 | BN84: 3121.079719 | BO84: 0.9981067217 | BP84: 1 | BQ84: 0 | BR84: 2236.383754 | BS84: 0.7151850828 | BT84: 1 | BU84: 223.5049568 | BV84: 1 | BW84: 0 | BX84: 0 | BY84: 1 | BZ84: 1 | CA84: 6 | CB84: 2 | CC84: 31.13279525 | CD84: 10.37759842 | CE84: 2 | CL84: https://www.google.com/maps/@60.4595384147,26.9217990867,3a,75y,90t/data=!3m3!1e1!3m1!2e0 | CN84: 3 | CP84: 0 | CR84: 2 | CS84: 1 | CT84: 0 | CU84: 4 | CV84: 0 | CW84: 0 | CX84: 0 | CY84: 0 | CZ84: 0 | DC84: 6 | DE84: 0 | DH84: 0 | DI84: 0 | DJ84: 1 | DM84: 1 | DN84: 1 | DO84: 0.1991928797
A85: 170_31 | B85: 2 | D85: 47 | E85: 47 | F85: 0 | G85: 10.35981205 | H85: 2 | I85: 0 | J85: Gmaps | K85: KESKI | L85: Seutu | M85: Haminantie, Otsolantie | N85: Kotka | O85: Kymenlaakso | P85: 170 | Q85: 31 | R85: 0 | S85: 31 | T85: 3208 | U85: 3208 | V85: 3360.238778 | W85: 234.048005 | X85: 3593.875312 | Y85: 2510 (33 %), 3781 (66 %) | Z85: 50 (13 %), 60 (87 %) | AA85: Ib (99 %) | AB85: AB (99 %) | AC85: Y2 (99 %) | AD85: 1 | AE85: 2 | AF85: 0.0507227999 | AG85: 64.98628429 | AL85: 9 | AM85: 0 | AN85: 0 | AO85: 1438 | AP85: 2 | AQ85: bussi | AR85: 3 | AS85: 11 | AT85: 3.666666667 | AU85: 9 | AV85: 0 | AW85: 0 | AX85: 0 | AY85: 0 | AZ85: 1 | BA85: 0 | BB85: 0.17 | BC85: 0 | BD85: 0 | BE85: 0 | BF85: 1 | BG85: 1 | BH85: 1.909436135 | BI85: 14.07943614 | BJ85: 4.693145378 | BK85: 3126.759781 | BL85: 0.9746757422 | BM85: 1 | BN85: 3189.101183 | BO85: 0.9941088475 | BP85: 1 | BQ85: 1 | BR85: 2624.535086 | BS85: 0.8181219095 | BT85: 1 | BU85: 103.2107232 | BV85: 1 | BW85: 0 | BX85: 0 | BY85: 0 | BZ85: 1 | CA85: 6 | CB85: 2 | CC85: 31.07943614 | CD85: 10.35981205 | CE85: 2 | CL85: https://www.google.com/maps/@60.5389518378,26.9771581463,3a,75y,90t/data=!3m3!1e1!3m1!2e0 | CN85: 3 | CP85: 0 | CR85: 0 | CS85: 0 | CT85: 0 | CU85: 19 | CV85: 0 | CW85: 34 | CX85: 0 | CY85: 0 | CZ85: 0 | DC85: 13 | DE85: 9938.487507 | DH85: 0 | DI85: 0 | DJ85: 0 | DM85: 1 | DN85: 3 | DO85: 2.864154203
A86: 3593_1 | B86: 2 | D86: 48 | E86: 48 | F86: 0 | G86: 10.34777778 | H86: 2 | I86: 0 | J86: Gmaps | K86: KESKI | L86: Yhdys | M86: Jokisillantie | N86: Kouvola | O86: Kymenlaakso | P86: 3593 | Q86: 1 | R86: 974 | S86: 1 | T86: 8506 | U86: 7532 | V86: 2619.194238 | W86: 79.04925651 | X86: 2841.55855 | Y86: 2578 (96 %), 3563 (4 %) | Z86: 50 (7 %), 60 (93 %) | AA86: Is (100 %) | AB86: AB (100 %) | AC86: Y2 (100 %) | AD86: 7 | AE86: 11 | AF86: 0 | AG86: 6.920074349 | AL86: 9 | AM86: 0 | AN86: 0 | AO86: 758 | AP86: 2 | AQ86: bussi | AR86: 3 | AS86: 11 | AT86: 3.666666667 | AU86: 9 | AV86: 2 | AW86: 0 | AX86: 1 | AY86: 0 | AZ86: 1 | BA86: 0.15 | BB86: 0.26 | BC86: 0.5 | BD86: 0.3333333333 | BE86: 0 | BF86: 0.6666666667 | BG86: 1 | BH86: 0.1333333333 | BI86: 16.04333333 | BJ86: 5.347777778 | BK86: 2834.5905 | BL86: 0.3763396841 | BM86: 0.5 | BN86: 6743.2154 | BO86: 0.8952755444 | BP86: 1 | BQ86: 1 | BR86: 420.5338395 | BS86: 0.05583295798 | BT86: 0 | BU86: 50.46468401 | BV86: 0.5 | BW86: 0 | BX86: 0 | BY86: 0 | BZ86: 1 | CA86: 4 | CB86: 1.333333333 | CC86: 31.04333333 | CD86: 10.34777778 | CE86: 2 | CL86: https://www.google.com/maps/@60.7724150303,26.7824408246,3a,75y,90t/data=!3m3!1e1!3m1!2e0 | CN86: 3 | CP86: 1 | CR86: 0 | CS86: 2 | CT86: 0 | CU86: 5 | CV86: 90 | CW86: 52 | CX86: 2048 | CY86: 20 | CZ86: 0 | DC86: 2 | DE86: 310.7400941 | DH86: 0 | DI86: 0 | DJ86: 0 | DM86: 1 | DN86: 2 | DO86: 0.2
A87: 365_2 | B87: 2 | D87: 49 | E87: 49 | F87: 0 | G87: 10.33666667 | H87: 2 | I87: 0 | J87: Gmaps | K87: KESKI | L87: Seutu | M87: Kuusaantie | N87: Kouvola | O87: Kymenlaakso | P87: 365 | Q87: 2 | R87: 2768 | S87: 2 | T87: 3291 | U87: 523 | V87: 2069 | W87: 97 | X87: 2460 | Y87: 2069 (100 %) | Z87: 50 (100 %) | AA87: Ib (100 %) | AB87: AB (100 %) | AC87: Y2 (100 %) | AD87: 0 | AE87: 0 | AF87: 0.3603603604 | AG87: 31 | AL87: 9 | AM87: 0 | AN87: 0 | AO87: 417 | AP87: 2 | AQ87: pikkubussi | AR87: 1.5 | AS87: 11 | AT87: 3.666666667 | AU87: 9 | AV87: 2 | AW87: 0 | AX87: 0 | AY87: 0 | AZ87: 1 | BA87: 0 | BB87: 0.01 | BC87: 0 | BD87: 0 | BE87: 0 | BF87: 1 | BG87: 1 | BH87: 2 | BI87: 16.01 | BJ87: 5.336666667 | BK87: 522.927444 | BL87: 0.9998612697 | BM87: 1 | BN87: 0 | BO87: 0 | BP87: 0 | BQ87: 0 | BR87: 395.3457406 | BS87: 0.7559191981 | BT87: 1 | BU87: 228.6806883 | BV87: 1 | BW87: 0 | BX87: 0 | BY87: 0 | BZ87: 1 | CA87: 4 | CB87: 1.333333333 | CC87: 31.01 | CD87: 10.33666667 | CE87: 2 | CL87: https://www.google.com/maps/@60.9480179212,26.618759453,3a,75y,90t/data=!3m3!1e1!3m1!2e0 | CN87: 2 | CP87: 1 | CR87: 0 | CS87: 0 | CT87: 0 | CU87: 6 | CV87: 0 | CW87: 2 | CX87: 0 | CY87: 0 | CZ87: 0 | DC87: 8 | DE87: 0 | DH87: 0 | DI87: 0 | DJ87: 0 | DM87: 1 | DN87: 2 | DO87: 20.49921323
A88: 372_2 | B88: 2 | D88: 50 | E88: 50 | F88: 0 | G88: 10.33333333 | H88: 2 | I88: 0 | J88: Gmaps | K88: KESKI | L88: Seutu | M88: Satamantie | N88: Hamina | O88: Kymenlaakso | P88: 372 | Q88: 2 | R88: 0 | S88: 2 | T88: 2230 | U88: 2230 | V88: 2510 | W88: 685 | X88: 2510 | Y88: 2510 (100 %) | Z88: 50 (100 %) | AA88: Is (100 %) | AB88: AB (100 %) | AC88: Y2 (100 %) | AD88: 1 | AE88: 1 | AF88: 0 | AG88: 599 | AL88: 9 | AM88: 0 | AN88: 0 | AO88: 637 | AP88: 2 | AQ88: taksi | AR88: 1.5 | AS88: 11 | AT88: 3.666666667 | AU88: 9 | AV88: 0 | AW88: 1 | AX88: 1 | AY88: 0 | AZ88: 1 | BA88: 0 | BB88: 0 | BC88: 0 | BD88: 0 | BE88: 1 | BF88: 1 | BG88: 1 | BH88: 0 | BI88: 15 | BJ88: 5 | BK88: 2236.754596 | BL88: 1.003028967 | BM88: 1 | BN88: 2236.754596 | BO88: 1.003028967 | BP88: 1 | BQ88: 0 | BR88: 2236.754596 | BS88: 1.003028967 | BT88: 1 | BU88: 488.5650224 | BV88: 1 | BW88: 0 | BX88: 0 | BY88: 0 | BZ88: 1 | CA88: 5 | CB88: 1.666666667 | CC88: 31 | CD88: 10.33333333 | CE88: 2 | CL88: https://www.google.com/maps/@60.5666714759,27.1599346095,3a,75y,90t/data=!3m3!1e1!3m1!2e0 | CN88: 1 | CP88: 0 | CR88: 2 | CS88: 1 | CT88: 0 | CU88: 1 | CV88: 0 | CW88: 0 | CX88: 0 | CY88: 0 | CZ88: 1 | DC88: 14 | DE88: 0 | DH88: 0 | DI88: 0 | DJ88: 0 | DM88: 1 | DN88: 1 | DO88: 0
A89: 14871_1 | B89: 2 | D89: 51 | E89: 51 | F89: 0 | G89: 10.31626192 | H89: 2 | I89: 0 | J89: Gmaps | K89: KESKI | L89: Yhdys | M89: Kaljaniementie, Patotie | N89: Imatra, Ruokolahti | O89: Etelä-Karjala | P89: 14871 | Q89: 1 | R89: 0 | S89: 1 | T89: 5329 | U89: 5329 | V89: 1434.309814 | W89: 78.98123475 | X89: 1747.062488 | Y89: 1136 (78 %), 2473 (22 %) | Z89: 40 (14 %), 60 (86 %) | AA89: Ib (22 %), II (78 %) | AB89: AB (100 %) | AC89: Y2 (100 %) | AD89: 1 | AE89: 1 | AF89: 0.1180334021 | AG89: 28.25539501 | AL89: 9 | AM89: 8 | AN89: 2.4 | AO89: 546 | AP89: 2 | AQ89: bussi | AR89: 3 | AS89: 13.4 | AT89: 4.466666667 | AU89: 9 | AV89: 2 | AW89: 1 | AX89: 1 | AY89: 0 | AZ89: 0 | BA89: 0 | BB89: 0 | BC89: 0 | BD89: 0 | BE89: 0 | BF89: 0.6666666667 | BG89: 0 | BH89: 1.882119088 | BI89: 15.54878575 | BJ89: 5.182928585 | BK89: 607.5504923 | BL89: 0.1140083491 | BM89: 0.5 | BN89: 0 | BO89: 0 | BP89: 0 | BQ89: 0 | BR89: 2271.794877 | BS89: 0.4263079146 | BT89: 0 | BU89: 70.23831863 | BV89: 0.5 | BW89: 0 | BX89: 0 | BY89: 0 | BZ89: 1 | CA89: 2 | CB89: 0.6666666667 | CC89: 30.94878575 | CD89: 10.31626192 | CE89: 2 | CL89: https://www.google.com/maps/@61.2783361998,28.8176682928,3a,75y,90t/data=!3m3!1e1!3m1!2e0 | CN89: 3 | CP89: 1 | CR89: 1 | CS89: 3 | CT89: 0 | CU89: 0 | CV89: 0 | CW89: 0 | CX89: 0 | CY89: 0 | CZ89: 0 | DC89: 2 | DE89: 0 | DH89: 0 | DI89: 0 | DJ89: 0 | DM89: 1 | DN89: 0 | DO89: 2.823178632
A90: 170_27 | B90: 2 | D90: 52 | E90: 52 | F90: 0 | G90: 10.27784732 | H90: 2 | I90: 0 | J90: Gmaps | K90: KESKI | L90: Seutu | M90: Sutelantie | N90: Kotka | O90: Kymenlaakso | P90: 170 | Q90: 27 | R90: 0 | S90: 27 | T90: 2783 | U90: 2783 | V90: 2198 | W90: 178 | X90: 2682 | Y90: 2198 (100 %) | Z90: 40 (14 %), 50 (4 %), 60 (82 %) | AA90: Ib (100 %) | AB90: AB (100 %) | AC90: Y2 (100 %) | AD90: 1 | AE90: 2 | AF90: 0.173553719 | AG90: 21 | AL90: 9 | AM90: 2 | AN90: 0.6 | AO90: 503 | AP90: 2 | AQ90: bussi | AR90: 3 | AS90: 11.6 | AT90: 3.866666667 | AU90: 9 | AV90: 2 | AW90: 0 | AX90: 0 | AY90: 0 | AZ90: 0 | BA90: 0 | BB90: 0 | BC90: 0 | BD90: 0 | BE90: 0 | BF90: 1 | BG90: 1 | BH90: 0.2335419663 | BI90: 13.23354197 | BJ90: 4.411180655 | BK90: 2229.140523 | BL90: 0.800984737 | BM90: 1 | BN90: 2789.398035 | BO90: 1.00229897 | BP90: 1 | BQ90: 1 | BR90: 2023.488592 | BS90: 0.7270889657 | BT90: 1 | BU90: 215.7024793 | BV90: 1 | BW90: 0 | BX90: 0 | BY90: 0 | BZ90: 1 | CA90: 6 | CB90: 2 | CC90: 30.83354197 | CD90: 10.27784732 | CE90: 2 | CL90: https://www.google.com/maps/@60.4950253213,26.8235466702,3a,75y,90t/data=!3m3!1e1!3m1!2e0 | CN90: 3 | CP90: 1 | CR90: 0 | CS90: 0 | CT90: 0 | CU90: 0 | CV90: 0 | CW90: 0 | CX90: 0 | CY90: 0 | CZ90: 0 | DC90: 6 | DE90: 2789.398035 | DH90: 0 | DI90: 0 | DJ90: 0 | DM90: 1 | DN90: 1 | DO90: 0.3503129494
A91: 357_2 | B91: 2 | D91: 53 | E91: 53 | F91: 0 | G91: 10.27777778 | H91: 2 | I91: 0 | J91: Gmaps | K91: KESKI | L91: Seutu | M91: Hurukselantie | N91: Kotka | O91: Kymenlaakso | P91: 357 | Q91: 2 | R91: 0 | S91: 2 | T91: 7179 | U91: 7179 | V91: 1377 | W91: 93 | X91: 1686 | Y91: 1377 (100 %) | Z91: 50 (9 %), 80 (91 %) | AA91: Ib (100 %) | AB91: AB (100 %) | AC91: Y2 (100 %) | AD91: 1 | AE91: 8 | AF91: 0 | AG91: 41 | AL91: 9 | AM91: 0 | AN91: 0 | AO91: 272 | AP91: 1.813333333 | AQ91: bussi | AR91: 3 | AS91: 10.81333333 | AT91: 3.604444444 | AU91: 9 | AV91: 2 | AW91: 0 | AX91: 1 | AY91: 1 | AZ91: 0 | BA91: 0 | BB91: 0.02 | BC91: 0 | BD91: 0 | BE91: 0 | BF91: 0 | BG91: 0 | BH91: 2 | BI91: 15.02 | BJ91: 5.006666667 | BK91: 851.012812 | BL91: 0.1185419713 | BM91: 0.5 | BN91: 7182.551073 | BO91: 1.000494647 | BP91: 1 | BQ91: 1 | BR91: 627.8920422 | BS91: 0.08746232653 | BT91: 0 | BU91: 34.19696337 | BV91: 0.5 | BW91: 0 | BX91: 0 | BY91: 1 | BZ91: 1 | CA91: 5 | CB91: 1.666666667 | CC91: 30.83333333 | CD91: 10.27777778 | CE91: 2 | CL91: https://www.google.com/maps/@60.5548279942,26.8988803223,3a,75y,90t/data=!3m3!1e1!3m1!2e0 | CN91: 3 | CP91: 1 | CR91: 0 | CS91: 1 | CT91: 1 | CU91: 0 | CV91: 0 | CW91: 4 | CX91: 0 | CY91: 0 | CZ91: 0 | DC91: 0 | DE91: 7182.551073 | DH91: 0 | DI91: 0 | DJ91: 2 | DM91: 1 | DN91: 0 | DO91: 3.000192725
A92: 3513_7 | B92: 2 | D92: 54 | E92: 54 | F92: 0 | G92: 10.22894774 | H92: 2 | I92: 0 | J92: Gmaps | K92: KESKI | L92: Yhdys | M92: Museotie, Virojoentie | N92: Virolahti | O92: Kymenlaakso | P92: 3513 | Q92: 7 | R92: 0 | S92: 7 | T92: 5439 | U92: 5439 | V92: 963.1283324 | W92: 39.17595146 | X92: 1306.955874 | Y92: 744 (67 %), 1259 (28 %), 2250 (5 %) | Z92: 40 (29 %), 50 (21 %), 60 (45 %), 80 (5 %) | AA92: Ic (100 %) | AB92: AB (46 %), PAB (54 %) | AC92: Y3 (100 %) | AD92: 2 | AE92: 5 | AF92: 0.09615384615 | AG92: 4.60452289 | AI92: KaS-27 | AL92: 9 | AM92: 12 | AN92: 3 | AO92: 491 | AP92: 2 | AQ92: bussi | AR92: 3 | AS92: 14 | AT92: 4.666666667 | AU92: 7.051671263 | AV92: 2 | AW92: 0 | AX92: 1 | AY92: 0 | AZ92: 1 | BA92: 0.1216666667 | BB92: 0.02 | BC92: 0 | BD92: 0 | BE92: 0 | BF92: 0 | BG92: 1 | BH92: 0.4935052831 | BI92: 12.68684321 | BJ92: 4.228947738 | BK92: 3747.980492 | BL92: 0.6890936739 | BM92: 1 | BN92: 0 | BO92: 0 | BP92: 0 | BQ92: 0 | BR92: 2497.500867 | BS92: 0.459183833 | BT92: 0 | BU92: 175.8411473 | BV92: 1 | BW92: 0 | BX92: 1 | BY92: 0 | BZ92: 1 | CA92: 4 | CB92: 1.333333333 | CC92: 30.68684321 | CD92: 10.22894774 | CE92: 2 | CL92: https://www.google.com/maps/@60.5517163126,27.6738547215,3a,75y,90t/data=!3m3!1e1!3m1!2e0 | CN92: 3 | CP92: 1 | CR92: 0 | CS92: 5 | CT92: 0 | CU92: 4 | CV92: 73 | CW92: 4 | CX92: 0 | CY92: 0 | CZ92: 0 | DC92: 0 | DE92: 0 | DH92: 0 | DI92: 0 | DJ92: 0 | DM92: 1 | DN92: 1 | DO92: 0.7402579246
A93: 357_4 | B93: 2 | D93: 55 | E93: 55 | F93: 0 | G93: 10.13985779 | H93: 2 | I93: 0 | J93: Gmaps | K93: KESKI | L93: Seutu | M93: Hurukselantie, Majakiventie | N93: Kotka, Kouvola | O93: Kymenlaakso | P93: 357 | Q93: 4 | R93: 0 | S93: 4 | T93: 3742 | U93: 3742 | V93: 1377 | W93: 93 | X93: 1686 | Y93: 1377 (100 %) | Z93: 60 (62 %), 80 (38 %) | AA93: Ib (100 %) | AB93: AB (100 %) | AC93: Y2 (100 %) | AD93: 1 | AE93: 2 | AF93: 0 | AG93: 41 | AL93: 9 | AM93: 0 | AN93: 0 | AO93: 183 | AP93: 1.22 | AQ93: bussi | AR93: 3 | AS93: 10.22 | AT93: 3.406666667 | AU93: 9 | AV93: 2 | AW93: 0 | AX93: 0 | AY93: 0 | AZ93: 1 | BA93: 0 | BB93: 0.5 | BC93: 0 | BD93: 0.2 | BE93: 0 | BF93: 0 | BG93: 1 | BH93: 1.999573378 | BI93: 15.69957338 | BJ93: 5.233191126 | BK93: 0 | BL93: 0 | BM93: 0 | BN93: 3741.157187 | BO93: 0.9997747695 | BP93: 1 | BQ93: 1 | BR93: 0 | BS93: 0 | BT93: 0 | BU93: 41.82255478 | BV93: 0.5 | BW93: 0 | BX93: 0 | BY93: 1 | BZ93: 1 | CA93: 4.5 | CB93: 1.5 | CC93: 30.41957338 | CD93: 10.13985779 | CE93: 2 | CL93: https://www.google.com/maps/@60.6568728626,26.7800043227,3a,75y,90t/data=!3m3!1e1!3m1!2e0 | CN93: 3 | CP93: 1 | CR93: 0 | CS93: 0 | CT93: 0 | CU93: 1 | CV93: 0 | CW93: 737 | CX93: 0 | CY93: 12 | CZ93: 0 | DC93: 0 | DE93: 3741.157187 | DH93: 0 | DI93: 0 | DJ93: 2 | DM93: 1 | DN93: 1 | DO93: 2.999360067
A94: 387_8 | B94: 2 | D94: 56 | E94: 56 | F94: 0 | G94: 10.07666667 | H94: 2 | I94: 0 | J94: Gmaps | K94: KESKI | L94: Seutu | M94: Vaalimaantie | N94: Lappeenranta | O94: Etelä-Karjala | P94: 387 | Q94: 8 | R94: 0 | S94: 8 | T94: 4806 | U94: 4806 | V94: 1257 | W94: 120 | X94: 1585 | Y94: 1257 (100 %) | Z94: 100 (32 %), 60 (1 %), 80 (67 %) | AA94: Is (100 %) | AB94: AB (100 %) | AC94: Y2 (100 %) | AD94: 0 | AE94: 2 | AF94: 0 | AG94: 90 | AL94: 9 | AM94: 0 | AN94: 0 | AO94: 267 | AP94: 1.78 | AQ94: pikkubussi | AR94: 1.5 | AS94: 10.78 | AT94: 3.593333333 | AU94: 9 | AV94: 0 | AW94: 0 | AX94: 1 | AY94: 0 | AZ94: 1 | BA94: 0.2583333333 | BB94: 0.025 | BC94: 0 | BD94: 0 | BE94: 0 | BF94: 0.6666666667 | BG94: 1 | BH94: 2 | BI94: 14.95 | BJ94: 4.983333333 | BK94: 0 | BL94: 0 | BM94: 0 | BN94: 4810.579109 | BO94: 1.00095279 | BP94: 1 | BQ94: 0 | BR94: 0 | BS94: 0 | BT94: 0 | BU94: 8.135663754 | BV94: 0.5 | BW94: 0 | BX94: 1 | BY94: 1 | BZ94: 1 | CA94: 4.5 | CB94: 1.5 | CC94: 30.23 | CD94: 10.07666667 | CE94: 2 | CL94: https://www.google.com/maps/@60.7418334702,28.0013941731,3a,75y,90t/data=!3m3!1e1!3m1!2e0 | CN94: 2 | CP94: 0 | CR94: 0 | CS94: 7 | CT94: 0 | CU94: 6 | CV94: 155 | CW94: 5 | CX94: 0 | CY94: 0 | CZ94: 0 | DC94: 2 | DE94: 0 | DH94: 0 | DI94: 0 | DJ94: 1 | DM94: 1 | DN94: 1 | DO94: 5.999694063
A95: 354_3 | B95: 2 | D95: 57 | E95: 57 | F95: 0 | G95: 10.05138889 | H95: 2 | I95: 0 | J95: Gmaps | K95: KESKI | L95: Seutu | M95: Elimäentie | N95: Kouvola | O95: Kymenlaakso | P95: 354 | Q95: 3 | R95: 0 | S95: 3 | T95: 7216 | U95: 7216 | V95: 1169 | W95: 123 | X95: 1276 | Y95: 1169 (100 %) | Z95: 100 (97 %), 80 (3 %) | AA95: Ib (100 %) | AB95: AB (100 %) | AC95: Y2 (100 %) | AD95: 3 | AE95: 7 | AF95: 0 | AG95: 69 | AL95: 9 | AM95: 0 | AN95: 0 | AO95: 363 | AP95: 2 | AQ95: pikkubussi | AR95: 1.5 | AS95: 11 | AT95: 3.666666667 | AU95: 9 | AV95: 2 | AW95: 0 | AX95: 1 | AY95: 0 | AZ95: 1 | BA95: 0.485 | BB95: 0.5 | BC95: 0.0025 | BD95: 0.1666666667 | BE95: 1 | BF95: 0 | BG95: 0 | BH95: 2 | BI95: 17.15416667 | BJ95: 5.718055556 | BK95: 0 | BL95: 0 | BM95: 0 | BN95: 7216.47227 | BO95: 1.000065448 | BP95: 1 | BQ95: 0 | BR95: 0 | BS95: 0 | BT95: 0 | BU95: 0 | BV95: 0 | BW95: 0 | BX95: 0 | BY95: 0 | BZ95: 1 | CA95: 2 | CB95: 0.6666666667 | CC95: 30.15416667 | CD95: 10.05138889 | CE95: 2 | CL95: https://www.google.com/maps/@60.6906853775,26.5698188714,3a,75y,90t/data=!3m3!1e1!3m1!2e0 | CN95: 2 | CP95: 1 | CR95: 0 | CS95: 1 | CT95: 0 | CU95: 3 | CV95: 291 | CW95: 249 | CX95: 5 | CY95: 10 | CZ95: 1 | DC95: 0 | DE95: 0 | DH95: 0 | DI95: 0 | DJ95: 0 | DM95: 1 | DN95: 0 | DO95: 6.000080066
A96: 369_6 | B96: 2 | D96: 58 | E96: 58 | F96: 0 | G96: 10.04524968 | H96: 2 | I96: 0 | J96: Gmaps | K96: KESKI | L96: Seutu | M96: Kääpäläntie, Tuohikotintie, Vekarantie | N96: Kouvola | O96: Kymenlaakso | P96: 369 | Q96: 6 | R96: 0 | S96: 6 | T96: 7736 | U96: 7736 | V96: 780.6442606 | W96: 48.94622544 | X96: 857.1034126 | Y96: 549 (74 %), 1445 (26 %) | Z96: 40 (12 %), 50 (21 %), 60 (41 %), 80 (26 %) | AA96: II (100 %) | AB96: AB (58 %), PAB (42 %) | AC96: Y2 (100 %) | AD96: 1 | AE96: 5 | AF96: 0.01758014478 | AG96: 9.034126163 | AL96: 9 | AM96: 0 | AN96: 0 | AO96: 770 | AP96: 2 | AQ96: bussi | AR96: 3 | AS96: 11 | AT96: 3.666666667 | AU96: 8.810320579 | AV96: 2 | AW96: 0 | AX96: 0 | AY96: 0 | AZ96: 1 | BA96: 0.035 | BB96: 0 | BC96: 0 | BD96: 0 | BE96: 0 | BF96: 0.3333333333 | BG96: 1 | BH96: 1.457095116 | BI96: 14.63574903 | BJ96: 4.878583009 | BK96: 4428.165998 | BL96: 0.5724102893 | BM96: 1 | BN96: 0 | BO96: 0 | BP96: 0 | BQ96: 1 | BR96: 0 | BS96: 0 | BT96: 0 | BU96: 28.56773526 | BV96: 0.5 | BW96: 0 | BX96: 0 | BY96: 1 | BZ96: 1 | CA96: 4.5 | CB96: 1.5 | CC96: 30.13574903 | CD96: 10.04524968 | CE96: 2 | CL96: https://www.google.com/maps/@61.0876710196,26.9381701697,3a,75y,90t/data=!3m3!1e1!3m1!2e0 | CN96: 3 | CP96: 1 | CR96: 0 | CS96: 0 | CT96: 0 | CU96: 1 | CV96: 21 | CW96: 0 | CX96: 0 | CY96: 0 | CZ96: 0 | DC96: 1 | DE96: 15461.72411 | DH96: 0 | DI96: 0 | DJ96: 2 | DM96: 1 | DN96: 1 | DO96: 2.185642673
A97: 3821_2 | B97: 2 | D97: 59 | E97: 59 | F97: 0 | G97: 10.04460271 | H97: 2 | I97: 0 | J97: Gmaps | K97: KESKI | L97: Yhdys | M97: Karjalantie | N97: Lappeenranta | O97: Etelä-Karjala | P97: 3821 | Q97: 2 | R97: 5708 | S97: 2 | T97: 6826 | U97: 1118 | V97: 5566 | W97: 169 | X97: 5655 | Y97: 5566 (99 %) | Z97: 50 (66 %), 60 (33 %) | AA97: II (99 %) | AB97: AB (99 %) | AC97: Y2 (99 %) | AD97: 1 | AE97: 3 | AF97: 0 | AG97: 17 | AL97: 9 | AM97: 44 | AN97: 3 | AO97: 2240 | AP97: 2 | AQ97: bussi | AR97: 3 | AS97: 14 | AT97: 4.666666667 | AU97: 9 | AV97: 0 | AW97: 0 | AX97: 0 | AY97: 0 | AZ97: 0 | BA97: 0 | BB97: 0 | BC97: 0 | BD97: 0 | BE97: 0 | BF97: 1 | BG97: 1 | BH97: 0.1338081196 | BI97: 11.13380812 | BJ97: 3.711269373 | BK97: 1108.550763 | BL97: 0.9915480888 | BM97: 1 | BN97: 423.4075765 | BO97: 0.3787187625 | BP97: 1 | BQ97: 0 | BR97: 1108.550763 | BS97: 0.9915480888 | BT97: 1 | BU97: 865.8318426 | BV97: 1 | BW97: 0 | BX97: 0 | BY97: 0 | BZ97: 1 | CA97: 5 | CB97: 1.666666667 | CC97: 30.13380812 | CD97: 10.04460271 | CE97: 2 | CL97: https://www.google.com/maps/@61.0696431539,28.2715597262,3a,75y,90t/data=!3m3!1e1!3m1!2e0 | CN97: 3 | CP97: 0 | CR97: 0 | CS97: 0 | CT97: 0 | CU97: 0 | CV97: 0 | CW97: 0 | CX97: 0 | CY97: 0 | CZ97: 0 | DC97: 3 | DE97: 0 | DH97: 0 | DI97: 0 | DJ97: 0 | DM97: 1 | DN97: 1 | DO97: 0.2007121794
A98: 170_39 | B98: 2 | D98: 60 | E98: 60 | F98: 0 | G98: 10.04211177 | H98: 2 | I98: 0 | J98: Gmaps | K98: KESKI | L98: Seutu | M98: Vaalimaantie | N98: Virolahti | O98: Kymenlaakso | P98: 170 | Q98: 39 | R98: 0 | S98: 39 | T98: 4308 | U98: 4308 | V98: 828.9777159 | W98: 87.11699164 | X98: 881.0807799 | Y98: 765 (75 %), 1026 (25 %) | Z98: 80 (100 %) | AA98: Ib (100 %) | AB98: AB (100 %) | AC98: Y2 (100 %) | AD98: 0 | AE98: 6 | AF98: 0 | AG98: 30.5097493 | AL98: 9 | AM98: 9 | AN98: 2.7 | AO98: 151 | AP98: 1.006666667 | AQ98: bussi | AR98: 3 | AS98: 12.70666667 | AT98: 4.235555556 | AU98: 9 | AV98: 2 | AW98: 0 | AX98: 0 | AY98: 0 | AZ98: 1 | BA98: 0 | BB98: 0.165 | BC98: 0 | BD98: 0 | BE98: 0 | BF98: 0 | BG98: 0 | BH98: 1.75466863 | BI98: 13.91966863 | BJ98: 4.639889543 | BK98: 0 | BL98: 0 | BM98: 0 | BN98: 4307.477789 | BO98: 0.9998787812 | BP98: 1 | BQ98: 1 | BR98: 0 | BS98: 0 | BT98: 0 | BU98: 5.547818013 | BV98: 0.5 | BW98: 0 | BX98: 0 | BY98: 0 | BZ98: 1 | CA98: 3.5 | CB98: 1.166666667 | CC98: 30.1263353 | CD98: 10.04211177 | CE98: 2 | CL98: https://www.google.com/maps/@60.5682553027,27.4747531628,3a,75y,90t/data=!3m3!1e1!3m1!2e0 | CN98: 3 | CP98: 1 | CR98: 0 | CS98: 0 | CT98: 0 | CU98: 2 | CV98: 0 | CW98: 33 | CX98: 0 | CY98: 0 | CZ98: 0 | DC98: 0 | DE98: 4307.477789 | DH98: 0 | DI98: 0 | DJ98: 0 | DM98: 1 | DN98: 0 | DO98: 2.632002944
A99: 370_1 | B99: 2 | D99: 61 | E99: 61 | F99: 0 | G99: 10.01903809 | H99: 2 | I99: 0 | J99: Gmaps | K99: KESKI | L99: Seutu | M99: Ahlmanintie, Valkealanväylä | N99: Kouvola | O99: Kymenlaakso | P99: 370 | Q99: 1 | R99: 1601 | S99: 1 | T99: 5084 | U99: 3483 | V99: 6834.343095 | W99: 220.1622165 | X99: 7379.673844 | Y99: 6719 (57 %), 6984 (44 %) | Z99: 50 (6 %), 60 (15 %), 70 (79 %), 80 (0 %) | AA99: Is (100 %) | AB99: AB (100 %) | AC99: Y2 (100 %) | AD99: 2 | AE99: 10 | AF99: 0.02681473456 | AG99: 41.65834051 | AL99: 9 | AM99: 4 | AN99: 1.2 | AO99: 3545 | AP99: 2 | AQ99: pikkubussi | AR99: 1.5 | AS99: 12.2 | AT99: 4.066666667 | AU99: 9 | AV99: 0 | AW99: 0 | AX99: 0 | AY99: 0 | AZ99: 1 | BA99: 0 | BB99: 0 | BC99: 0 | BD99: 0 | BE99: 0 | BF99: 0 | BG99: 0 | BH99: 1.857114278 | BI99: 11.85711428 | BJ99: 3.952371426 | BK99: 3453.811075 | BL99: 0.9916196025 | BM99: 1 | BN99: 3486.891526 | BO99: 1.001117291 | BP99: 1 | BQ99: 1 | BR99: 2525.370637 | BS99: 0.7250561692 | BT99: 1 | BU99: 269.9971289 | BV99: 1 | BW99: 0 | BX99: 0 | BY99: 0 | BZ99: 1 | CA99: 6 | CB99: 2 | CC99: 30.05711428 | CD99: 10.01903809 | CE99: 2 | CL99: https://www.google.com/maps/@60.8837995568,26.6972825822,3a,75y,90t/data=!3m3!1e1!3m1!2e0 | CN99: 2 | CP99: 0 | CR99: 0 | CS99: 0 | CT99: 0 | CU99: 1 | CV99: 0 | CW99: 0 | CX99: 0 | CY99: 0 | CZ99: 0 | DC99: 0 | DE99: 4018.477734 | DH99: 0 | DI99: 0 | DJ99: 0 | DM99: 1 | DN99: 0 | DO99: 2.785671418
A100: 14616_1 | B100: 2 | D100: 62 | E100: 62 | F100: 0 | G100: 10 | H100: 2 | I100: 0 | J100: Gmaps | K100: KESKI | L100: Yhdys | M100: Jyrääntie | N100: Kouvola | O100: Kymenlaakso | P100: 14616 | Q100: 1 | R100: 0 | S100: 1 | T100: 4911 | U100: 4911 | V100: 1259 | W100: 116 | X100: 1478 | Y100: 1259 (100 %) | Z100: 50 (24 %), 60 (23 %), 80 (53 %) | AA100: Ib (100 %) | AB100: AB (100 %), PAB (0 %) | AC100: Y3 (100 %) | AD100: 0 | AE100: 5 | AF100: 0.0652173913 | AG100: 56 | AL100: 9 | AM100: 0 | AN100: 0 | AO100: 322 | AP100: 2 | AQ100: bussi | AR100: 3 | AS100: 11 | AT100: 3.666666667 | AU100: 9 | AV100: 2 | AW100: 0 | AX100: 1 | AY100: 0 | AZ100: 1 | BA100: 0 | BB100: 0 | BC100: 0 | BD100: 0 | BE100: 0 | BF100: 0 | BG100: 0 | BH100: 2 | BI100: 15 | BJ100: 5 | BK100: 2001.125679 | BL100: 0.4074782486 | BM100: 0.5 | BN100: 4910.701464 | BO100: 0.9999392107 | BP100: 1 | BQ100: 1 | BR100: 678.7745002 | BS100: 0.1382151293 | BT100: 0 | BU100: 40.88780289 | BV100: 0.5 | BW100: 0 | BX100: 0 | BY100: 0 | BZ100: 1 | CA100: 4 | CB100: 1.333333333 | CC100: 30 | CD100: 10 | CE100: 2 | CL100: https://www.google.com/maps/@60.8860689153,26.8346140224,3a,75y,90t/data=!3m3!1e1!3m1!2e0 | CN100: 3 | CP100: 1 | CR100: 0 | CS100: 1 | CT100: 0 | CU100: 10 | CV100: 0 | CW100: 0 | CX100: 0 | CY100: 0 | CZ100: 0 | DC100: 0 | DE100: 5135.86687 | DH100: 0 | DI100: 0 | DJ100: 0 | DM100: 1 | DN100: 0 | DO100: 3.836707851
A101: 377_7 | B101: 2 | D101: 63 | E101: 63 | F101: 0 | G101: 9.969444444 | H101: 2 | I101: 0 | J101: Gmaps | K101: KESKI | L101: Seutu | M101: Tuohikotintie | N101: Savitaipale | O101: Etelä-Karjala | P101: 377 | Q101: 7 | R101: 0 | S101: 7 | T101: 4087 | U101: 4087 | V101: 1452.81331 | W101: 75.90702227 | X101: 1691.963788 | Y101: 1056 (34 %), 1654 (66 %) | Z101: 50 (9 %), 60 (35 %), 80 (56 %) | AA101: II (100 %) | AB101: AB (92 %), PAB (8 %) | AC101: Y2 (100 %) | AD101: 0 | AE101: 0 | AF101: 0 | AG101: 21.64497186 | AL101: 9 | AM101: 0 | AN101: 0 | AO101: 305 | AP101: 2 | AQ101: taksi | AR101: 1.5 | AS101: 11 | AT101: 3.666666667 | AU101: 9 | AV101: 2 | AW101: 0 | AX101: 1 | AY101: 0 | AZ101: 1 | BA101: 0.4083333333 | BB101: 0.15 | BC101: 0 | BD101: 0.35 | BE101: 0 | BF101: 0 | BG101: 0 | BH101: 2 | BI101: 15.90833333 | BJ101: 5.302777778 | BK101: 797.2765381 | BL101: 0.1950762266 | BM101: 0.5 | BN101: 0 | BO101: 0 | BP101: 0 | BQ101: 1 | BR101: 867.8436002 | BS101: 0.2123424517 | BT101: 0 | BU101: 21.09126499 | BV101: 0.5 | BW101: 0 | BX101: 0 | BY101: 0 | BZ101: 1 | CA101: 3 | CB101: 1 | CC101: 29.90833333 | CD101: 9.969444444 | CE101: 2 | CL101: https://www.google.com/maps/@61.1619055219,27.6220732646,3a,75y,90t/data=!3m3!1e1!3m1!2e0 | CN101: 1 | CP101: 1 | CR101: 0 | CS101: 3 | CT101: 0 | CU101: 3 | CV101: 245 | CW101: 30 | CX101: 0 | CY101: 21 | CZ101: 0 | DC101: 0 | DE101: 22097.64043 | DH101: 0 | DI101: 0 | DJ101: 0 | DM101: 1 | DN101: 0 | DO101: 8.003025358
A102: 373_1 | B102: 2 | D102: 64 | E102: 64 | F102: 0 | G102: 9.951818785 | H102: 2 | I102: 0 | J102: Gmaps | K102: KESKI | L102: Seutu | M102: Karjalankatu | N102: Kouvola | O102: Kymenlaakso | P102: 373 | Q102: 1 | R102: 4010 | S102: 1 | T102: 5731 | U102: 1721 | V102: 3160 | W102: 205 | X102: 4196 | Y102: 3160 (99 %) | Z102: 50 (35 %), 60 (65 %) | AA102: Ib (99 %) | AB102: AB (99 %) | AC102: Y2 (99 %) | AD102: 1 | AE102: 6 | AF102: 0.01414879051 | AG102: 63 | AL102: 9 | AM102: 4 | AN102: 1.2 | AO102: 781 | AP102: 2 | AQ102: pikkubussi | AR102: 1.5 | AS102: 12.2 | AT102: 4.066666667 | AU102: 9 | AV102: 0 | AW102: 0 | AX102: 1 | AY102: 0 | AZ102: 0 | BA102: 0 | BB102: 0 | BC102: 0 | BD102: 0 | BE102: 0 | BF102: 1 | BG102: 0 | BH102: 0.6554563541 | BI102: 11.65545635 | BJ102: 3.885152118 | BK102: 557.4586584 | BL102: 0.3239155482 | BM102: 0.5 | BN102: 1699.113305 | BO102: 0.9872825711 | BP102: 1 | BQ102: 1 | BR102: 993.7190208 | BS102: 0.5774079145 | BT102: 1 | BU102: 40.32539221 | BV102: 0.5 | BW102: 0 | BX102: 0 | BY102: 1 | BZ102: 1 | CA102: 6 | CB102: 2 | CC102: 29.85545635 | CD102: 9.951818785 | CE102: 2 | CL102: https://www.google.com/maps/@60.8816157948,26.7713395061,3a,75y,90t/data=!3m3!1e1!3m1!2e0 | CN102: 2 | CP102: 0 | CR102: 0 | CS102: 3 | CT102: 0 | CU102: 0 | CV102: 0 | CW102: 0 | CX102: 0 | CY102: 0 | CZ102: 0 | DC102: 3 | DE102: 4107.916848 | DH102: 0 | DI102: 0 | DJ102: 1 | DM102: 1 | DN102: 0 | DO102: 0.9831845312
A103: =CONCATENATE(P103,"_",Q103) -> 359_2 | B103: 2 | D103: =RANK(CD103,$CD$39:$CD$715) -> 65 | E103: 65 | F103: =E103-D103 -> 0 | G103: =CD103 -> 9.945609044 | H103: =CE103 -> 2 | I103: =B103-H103 -> 0 | J103: =HYPERLINK(CL103,"Gmaps") -> Gmaps | K103: =IF(V103>$L$6,"KESKI","VÄHÄ") -> KESKI | L103: =IF(P103<40,"Valta",IF(P103<100,"Kanta",IF(P103<1000,"Seutu",IF(P103>999,"Yhdys")))) -> Seutu | M103: Anjalantie | N103: Kouvola | O103: Kymenlaakso | P103: 359 | Q103: 2 | R103: 0 | S103: 2 | T103: =R103+U103 -> 1179 | U103: 1179 | V103: 2229 | W103: 102 | X103: 2551 | Y103: 2229 (100 %) | Z103: 80 (100 %) | AA103: Ib (100 %) | AB103: AB (100 %) | AC103: Y2 (100 %) | AD103: 0 | AE103: 0 | AF103: 0.1330855019 | AG103: 26 | AL103: =+IF(V103>=$L$6,$F$5,($F$5/($L$6))*V103) -> 9 | AM103: 0 | AN103: =+IF(AM103>=$M$15,$K$15,IF(AM103<($M$15),AM103*($K$15/($M$15)),)) -> 0 | AO103: 510 | AP103: =+IF(AO103>=$M$11,$K$11,IF(AO103<($M$11),AO103*($K$11/($M$11)),)) -> 2 | AQ103: =IF(CN103=0,"-",IF(CN103=1,"taksi",IF(CN103=2,"pikkubussi","bussi"))) -> bussi | AR103: =IF(CN103=0,0,IF(CN103<3,$F$8/2,$F$8)) -> 3 | AS103: =SUM(AL103,AN103,AP103) -> 11 | AT103: =+AS103*$H$5 -> 3.666666667 | AU103: =+IF(W103=0,0,IF(W103>$L$7,$F$10,($F$10/$L$7)*W103)) -> 9 | AV103: =IF(CP103>0,$F$11,0) -> 2 | AW103: =IF(CR103>0,$F$12,0) -> 0 | AX103: =IF(CS103>0,$F$13,0) -> 1 | AY103: =IF(CT103>0,$F$14,0) -> 0 | AZ103: =IF(CU103>0,$F$15,0) -> 1 | BA103: =+IF(CV103>=$M$23,$K$23,IF(CV103<($M$23),CV103*($K$23/($M$23)),)) -> 0.08666666667 | BB103: =+IF(CW103>=$M$24,$K$24,IF(CW103<($M$24),CW103*($K$24/($M$24)),)) -> 0.24 | BC103: =+IF(CX103>=$M$25,$K$25,IF(CX103<($M$25),CX103*($K$25/($M$25)),)) -> 0.5 | BD103: =+IF(CY103>=$M$26,$K$26,IF(CY103<($M$26),CY103*($K$26/($M$26)),)) -> 0.1333333333 | BE103: =IF(CZ103>0,$F$17,0) -> 0 | BF103: =+IF(DC103>=$M$29,$K$29,IF(DC103<($M$29),DC103*($K$29/($M$29)),)) -> 0 | BG103: =IF(DN103>0,$F$19,0) -> 0 | BH103: =+IF(DO103>=$M$31,$K$31,IF(DO103<($M$31),DO103*($K$31/($M$31)),)) -> 0.8768271317 | BI103: =SUM(AU103+AV103+AW103+AX103+AY103+AZ103+BE103+BA103+BB103+BC103+BD103+BF103+BG103+BH103) -> 14.83682713 | BJ103: =+BI103*$H$10 -> 4.945609044 | BK103: 1178.853525 | BL103: =BK103/U103 -> 0.9998757637 | BM103: =IF(BL103>0,IF(BL103>=$M$19,$K$19,IF(BL103<$M$19,$K$20,0)),0) -> 1 | BN103: 0 | BO103: =BN103/U103 -> 0 | BP103: =IF(BO103,$F$23,0) -> 0 | BQ103: =IF(DE103>0,$F$24,0) -> 0 | BR103: 1178.853525 | BS103: =BR103/U103 -> 0.9998757637 | BT103: =+IF(BS103>=$L$4,$F$25,0) -> 1 | BU103: 164.5462256 | BV103: =IF(BU103>0,IF(BU103>=100,$F$26,IF(BU103<100,$F$26/2)),0) -> 1 | BW103: =SUM(DI103) -> 0 | BX103: 0 | BY103: =IF(DJ103>0,$F$29,0) -> 0 | BZ103: =IF(DM103>0,$F$30,0) -> 1 | CA103: =SUM(BM103,BP103,BV103,BQ103,BT103,BW103,BX103,BY103,BZ103) -> 4 | CB103: =+CA103*$H$22 -> 1.333333333 | CC103: =SUM(AS103,BI103,CA103) -> 29.83682713 | CD103: =SUM(AT103,BJ103,CB103) -> 9.945609044 | CE103: =IF(D103<($W$14*$CF$32),1,IF(D103<(($W$15+$W$14)*$CF$32),2,IF(D103<(($W$16+$W$14+$W$15)*$CF$32),3,4))) -> 2 | CL103: https://www.google.com/maps/@60.748873077,26.7743960193,3a,75y,90t/data=!3m3!1e1!3m1!2e0 | CN103: 3 | CP103: 1 | CR103: 0 | CS103: 1 | CT103: 0 | CU103: 4 | CV103: 52 | CW103: 48 | CX103: 2048 | CY103: 8 | CZ103: 0 | DC103: 0 | DE103: 0 | DH103: =+IF(X103/V103>1.5,$F$27/2,0) -> 0 | DI103: =SUM(DG103:DH103) -> 0 | DJ103: 0 | DM103: 1 | DN103: 0 | DO103: 1.315240698
A104: 14867_1 | B104: 2 | D104: 66 | E104: 66 | F104: 0 | G104: 9.94 | H104: 2 | I104: 0 | J104: Gmaps | K104: KESKI | L104: Yhdys | M104: Salosaarentie | N104: Ruokolahti | O104: Etelä-Karjala | P104: 14867 | Q104: 1 | R104: 0 | S104: 1 | T104: 5252 | U104: 5252 | V104: 700 | W104: 48 | X104: 1106 | Y104: 700 (100 %) | Z104: 40 (2 %), 50 (19 %), 60 (20 %), 80 (60 %) | AA104: II (100 %) | AB104: AB (2 %), PAB (98 %) | AC104: Y3 (100 %) | AD104: 1 | AE104: 2 | AF104: 0.05712109673 | AG104: 12 | AL104: 9 | AM104: 2 | AN104: 0.6 | AO104: 186 | AP104: 1.24 | AQ104: bussi | AR104: 3 | AS104: 10.84 | AT104: 3.613333333 | AU104: 8.64 | AV104: 2 | AW104: 0 | AX104: 1 | AY104: 0 | AZ104: 0 | BA104: 0.24 | BB104: 0.1 | BC104: 0 | BD104: 0.5 | BE104: 0 | BF104: 0 | BG104: 0 | BH104: 2 | BI104: 14.48 | BJ104: 4.826666667 | BK104: 635.9649228 | BL104: 0.1210900462 | BM104: 0.5 | BN104: 0 | BO104: 0 | BP104: 0 | BQ104: 0 | BR104: 1357.482656 | BS104: 0.2584696603 | BT104: 0 | BU104: 43.45011424 | BV104: 0.5 | BW104: 1.5 | BX104: 0 | BY104: 1 | BZ104: 1 | CA104: 4.5 | CB104: 1.5 | CC104: 29.82 | CD104: 9.94 | CE104: 2 | CL104: https://www.google.com/maps/@61.2783361998,28.8176682928,3a,75y,90t/data=!3m3!1e1!3m1!2e0 | CN104: 3 | CP104: 1 | CR104: 0 | CS104: 3 | CT104: 0 | CU104: 0 | CV104: 144 | CW104: 20 | CX104: 0 | CY104: 46 | CZ104: 0 | DC104: 0 | DE104: 0 | DH104: 1.5 | DI104: 1.5 | DJ104: 4 | DM104: 1 | DN104: 0 | DO104: 3.275345067
A105: 4062_1 | B105: 2 | D105: 67 | E105: 67 | F105: 0 | G105: 9.907345782 | H105: 2 | I105: 0 | J105: Gmaps | K105: KESKI | L105: Yhdys | M105: Pappilanlahdentie, Ukonsalmentie | N105: Ruokolahti | O105: Etelä-Karjala | P105: 4062 | Q105: 1 | R105: 0 | S105: 1 | T105: 2034 | U105: 2034 | V105: 1116.961652 | W105: 40.23303835 | X105: 1254.58997 | Y105: 840 (39 %), 1298 (60 %) | Z105: 40 (100 %) | AA105: II (100 %) | AB105: AB (93 %), PAB (6 %) | AC105: Y2 (100 %) | AD105: 0 | AE105: 0 | AF105: 0.06588003933 | AG105: 5 | AL105: 9 | AM105: 8 | AN105: 2.4 | AO105: 186 | AP105: 1.24 | AQ105: bussi | AR105: 3 | AS105: 12.64 | AT105: 4.213333333 | AU105: 7.241946903 | AV105: 2 | AW105: 0 | AX105: 1 | AY105: 0 | AZ105: 0 | BA105: 0.24 | BB105: 0.1 | BC105: 0 | BD105: 0.5 | BE105: 0 | BF105: 0 | BG105: 0 | BH105: 1.000090442 | BI105: 12.08203735 | BJ105: 4.027345782 | BK105: 2029.632904 | BL105: 0.9978529519 | BM105: 1 | BN105: 0 | BO105: 0 | BP105: 0 | BQ105: 0 | BR105: 2029.632904 | BS105: 0.9978529519 | BT105: 1 | BU105: 199.9016716 | BV105: 1 | BW105: 0 | BX105: 0 | BY105: 1 | BZ105: 1 | CA105: 5 | CB105: 1.666666667 | CC105: 29.72203735 | CD105: 9.907345782 | CE105: 2 | CL105: https://www.google.com/maps/@61.2891722958,28.8408780805,3a,75y,90t/data=!3m3!1e1!3m1!2e0 | CN105: 3 | CP105: 1 | CR105: 0 | CS105: 3 | CT105: 0 | CU105: 0 | CV105: 144 | CW105: 20 | CX105: 0 | CY105: 46 | CZ105: 0 | DC105: 0 | DE105: 0 | DH105: 0 | DI105: 0 | DJ105: 4 | DM105: 1 | DN105: 0 | DO105: 1.500135664
A106: 378_6 | B106: 2 | D106: 68 | E106: 68 | F106: 0 | G106: 9.887955766 | H106: 2 | I106: 0 | J106: Gmaps | K106: KESKI | L106: Seutu | M106: Taavetintie | N106: Savitaipale | O106: Etelä-Karjala | P106: 378 | Q106: 6 | R106: 0 | S106: 6 | T106: 7452 | U106: 7452 | V106: 558.7997853 | W106: 65.68223296 | X106: 665.1081589 | Y106: 266 (32 %), 694 (68 %) | Z106: 60 (8 %), 80 (92 %) | AA106: II (100 %) | AB106: AB (100 %) | AC106: Y2 (100 %) | AD106: 4 | AE106: 5 | AF106: 0 | AG106: 25.31588835 | AL106: 9 | AM106: 0 | AN106: 0 | AO106: 168 | AP106: 1.12 | AQ106: taksi | AR106: 1.5 | AS106: 10.12 | AT106: 3.373333333 | AU106: 9 | AV106: 2 | AW106: 0 | AX106: 1 | AY106: 0 | AZ106: 1 | BA106: 0.5 | BB106: 0.385 | BC106: 0 | BD106: 0.5 | BE106: 0 | BF106: 0.6666666667 | BG106: 0 | BH106: 1.992200632 | BI106: 17.0438673 | BJ106: 5.6812891 | BK106: 0 | BL106: 0 | BM106: 0 | BN106: 0 | BO106: 0 | BP106: 0 | BQ106: 1 | BR106: 0 | BS106: 0 | BT106: 0 | BU106: 0.9125067096 | BV106: 0.5 | BW106: 0 | BX106: 0 | BY106: 0 | BZ106: 1 | CA106: 2.5 | CB106: 0.8333333333 | CC106: 29.6638673 | CD106: 9.887955766 | CE106: 2 | CL106: https://www.google.com/maps/@61.1251516011,27.6255569869,3a,75y,90t/data=!3m3!1e1!3m1!2e0 | CN106: 1 | CP106: 1 | CR106: 0 | CS106: 3 | CT106: 0 | CU106: 8 | CV106: 1164 | CW106: 77 | CX106: 0 | CY106: 33 | CZ106: 0 | DC106: 2 | DE106: 22883.00423 | DH106: 0 | DI106: 0 | DJ106: 0 | DM106: 1 | DN106: 0 | DO106: 2.988300948
A107: 14750_4 | B107: 2 | D107: 69 | E107: 69 | F107: 0 | G107: 9.870328175 | H107: 2 | I107: 0 | J107: Gmaps | K107: KESKI | L107: Yhdys | M107: Uimintie | N107: Lemi | O107: Etelä-Karjala | P107: 14750 | Q107: 4 | R107: 0 | S107: 4 | T107: 1260 | U107: 1260 | V107: 778 | W107: 37 | X107: 982 | Y107: 778 (100 %) | Z107: 40 (52 %), 60 (48 %) | AA107: II (100 %) | AB107: AB (41 %), PAB (60 %) | AC107: Y3 (100 %) | AD107: 0 | AE107: 1 | AF107: 0.2063492063 | AG107: 7 | AL107: 9 | AM107: 0 | AN107: 0 | AO107: 96 | AP107: 0.64 | AQ107: taksi | AR107: 1.5 | AS107: 9.64 | AT107: 3.213333333 | AU107: 6.66 | AV107: 2 | AW107: 0 | AX107: 1 | AY107: 0 | AZ107: 1 | BA107: 0.06666666667 | BB107: 0.07 | BC107: 0 | BD107: 0.1833333333 | BE107: 0 | BF107: 0 | BG107: 1 | BH107: 1.990984525 | BI107: 13.97098453 | BJ107: 4.656994842 | BK107: 1261.018199 | BL107: 1.000808094 | BM107: 1 | BN107: 0 | BO107: 0 | BP107: 0 | BQ107: 1 | BR107: 633.8791299 | BS107: 0.5030786745 | BT107: 1 | BU107: 214.9206349 | BV107: 1 | BW107: 0 | BX107: 0 | BY107: 1 | BZ107: 1 | CA107: 6 | CB107: 2 | CC107: 29.61098453 | CD107: 9.870328175 | CE107: 2 | CL107: https://www.google.com/maps/@61.0514210856,27.7973403262,3a,75y,90t/data=!3m3!1e1!3m1!2e0 | CN107: 1 | CP107: 1 | CR107: 0 | CS107: 1 | CT107: 0 | CU107: 2 | CV107: 40 | CW107: 14 | CX107: 0 | CY107: 11 | CZ107: 0 | DC107: 0 | DE107: 1261.018199 | DH107: 0 | DI107: 0 | DJ107: 1 | DM107: 1 | DN107: 1 | DO107: 2.986476788
A108: 14879_1 | B108: 2 | D108: 70 | E108: 70 | F108: 0 | G108: 9.86741834 | H108: 2 | I108: 0 | J108: Gmaps | K108: KESKI | L108: Yhdys | M108: Rasilantie | N108: Ruokolahti | O108: Etelä-Karjala | P108: 14879 | Q108: 1 | R108: 0 | S108: 1 | T108: 2351 | U108: 2351 | V108: 2478 | W108: 54 | X108: 2861 | Y108: 2478 (100 %) | Z108: 40 (100 %) | AA108: II (100 %) | AB108: AB (92 %), PAB (8 %) | AC108: Y2 (100 %) | AD108: 0 | AE108: 1 | AF108: 0.2126754573 | AG108: 5 | AL108: 9 | AM108: 8 | AN108: 2.4 | AO108: 450 | AP108: 2 | AQ108: bussi | AR108: 3 | AS108: 13.4 | AT108: 4.466666667 | AU108: 9 | AV108: 2 | AW108: 0 | AX108: 0 | AY108: 0 | AZ108: 0 | BA108: 0 | BB108: 0 | BC108: 0 | BD108: 0 | BE108: 0 | BF108: 0 | BG108: 1 | BH108: 0.2022550214 | BI108: 12.20225502 | BJ108: 4.06741834 | BK108: 2350.121266 | BL108: 0.9996262296 | BM108: 1 | BN108: 0 | BO108: 0 | BP108: 0 | BQ108: 0 | BR108: 2350.121266 | BS108: 0.9996262296 | BT108: 1 | BU108: 688.6431306 | BV108: 1 | BW108: 0 | BX108: 0 | BY108: 0 | BZ108: 1 | CA108: 4 | CB108: 1.333333333 | CC108: 29.60225502 | CD108: 9.86741834 | CE108: 2 | CL108: https://www.google.com/maps/@61.2862520524,28.8274310761,3a,75y,90t/data=!3m3!1e1!3m1!2e0 | CN108: 3 | CP108: 1 | CR108: 0 | CS108: 0 | CT108: 0 | CU108: 0 | CV108: 0 | CW108: 0 | CX108: 0 | CY108: 0 | CZ108: 0 | DC108: 0 | DE108: 0 | DH108: 0 | DI108: 0 | DJ108: 0 | DM108: 1 | DN108: 1 | DO108: 0.303382532
A109: 367_1 | B109: 2 | D109: 71 | E109: 71 | F109: 0 | G109: 9.819815853 | H109: 2 | I109: 0 | J109: Gmaps | K109: KESKI | L109: Seutu | M109: Kymenlaaksontie | N109: Kouvola | O109: Kymenlaakso | P109: 367 | Q109: 1 | R109: 1920 | S109: 1 | T109: 5255 | U109: 3335 | V109: 6871 | W109: 180 | X109: 7067 | Y109: 6871 (100 %) | Z109: 60 (4 %), 80 (96 %) | AA109: Is (100 %) | AB109: AB (100 %) | AC109: Y2 (100 %) | AD109: 3 | AE109: 10 | AF109: 0 | AG109: 34 | AL109: 9 | AM109: 0 | AN109: 0 | AO109: 1603 | AP109: 2 | AQ109: bussi | AR109: 3 | AS109: 11 | AT109: 3.666666667 | AU109: 9 | AV109: 2 | AW109: 0 | AX109: 0 | AY109: 0 | AZ109: 0 | BA109: 0 | BB109: 0 | BC109: 0 | BD109: 0 | BE109: 0 | BF109: 0.6666666667 | BG109: 0 | BH109: 0.792780892 | BI109: 12.45944756 | BJ109: 4.153149186 | BK109: 2356.864866 | BL109: 0.7067061067 | BM109: 1 | BN109: 3335.319691 | BO109: 1.000095859 | BP109: 1 | BQ109: 1 | BR109: 2087.106331 | BS109: 0.6258189899 | BT109: 1 | BU109: 124.8575712 | BV109: 1 | BW109: 0 | BX109: 0 | BY109: 0 | BZ109: 1 | CA109: 6 | CB109: 2 | CC109: 29.45944756 | CD109: 9.819815853 | CE109: 2 | CL109: https://www.google.com/maps/@60.8508400917,26.6941993799,3a,75y,90t/data=!3m3!1e1!3m1!2e0 | CN109: 3 | CP109: 1 | CR109: 0 | CS109: 0 | CT109: 0 | CU109: 0 | CV109: 0 | CW109: 0 | CX109: 0 | CY109: 0 | CZ109: 0 | DC109: 2 | DE109: 3335.319691 | DH109: 0 | DI109: 0 | DJ109: 0 | DM109: 1 | DN109: 0 | DO109: 1.189171338
A110: 3864_1 | B110: 2 | D110: 72 | E110: 72 | F110: 0 | G110: 9.792121136 | H110: 2 | I110: 0 | J110: Gmaps | K110: KESKI | L110: Yhdys | M110: Ylämaantie | N110: Lappeenranta | O110: Etelä-Karjala | P110: 3864 | Q110: 1 | R110: 0 | S110: 1 | T110: 3275 | U110: 3275 | V110: 686.8751145 | W110: 43.45221374 | X110: 820.7868702 | Y110: 622 (36 %), 724 (64 %) | Z110: 60 (12 %), 80 (88 %) | AA110: II (100 %) | AB110: AB (100%) | AC110: Y3 (100 %) | AD110: 2 | AE110: 4 | AF110: 0 | AG110: 12.63603053 | AL110: 9 | AM110: 0 | AN110: 0 | AO110: 152 | AP110: 1.013333333 | AQ110: pikkubussi | AR110: 1.5 | AS110: 10.01333333 | AT110: 3.337777778 | AU110: 7.821398473 | AV110: 2 | AW110: 0 | AX110: 1 | AY110: 1 | AZ110: 1 | BA110: 0.5 | BB110: 0.175 | BC110: 0 | BD110: 0.03333333333 | BE110: 0 | BF110: 0.3333333333 | BG110: 0 | BH110: 1.999964935 | BI110: 15.86303007 | BJ110: 5.287676692 | BK110: 0 | BL110: 0 | BM110: 0 | BN110: 722.692063 | BO110: 0.2206693322 | BP110: 1 | BQ110: 0 | BR110: 0 | BS110: 0 | BT110: 0 | BU110: 0.9465648855 | BV110: 0.5 | BW110: 0 | BX110: 0 | BY110: 1 | BZ110: 1 | CA110: 3.5 | CB110: 1.166666667 | CC110: 29.37636341 | CD110: 9.792121136 | CE110: 2 | CL110: https://www.google.com/maps/@61.0252704864,28.0411794155,3a,75y,90t/data=!3m3!1e1!3m1!2e0 | CN110: 2 | CP110: 1 | CR110: 0 | CS110: 1 | CT110: 1 | CU110: 8 | CV110: 431 | CW110: 35 | CX110: 0 | CY110: 2 | CZ110: 0 | DC110: 1 | DE110: 0 | DH110: 0 | DI110: 0 | DJ110: 1 | DM110: 1 | DN110: 0 | DO110: 2.999947402
A111: 3544_1 | B111: 2 | D111: 73 | E111: 73 | F111: 0 | G111: 9.777777778 | H111: 2 | I111: 0 | J111: Gmaps | K111: KESKI | L111: Yhdys | M111: Inkeroistentie | N111: Kouvola | O111: Kymenlaakso | P111: 3544 | Q111: 1 | R111: 0 | S111: 1 | T111: 1509 | U111: 1509 | V111: 1942 | W111: 129 | X111: 2057 | Y111: 1942 (100 %) | Z111: 50 (19 %), 60 (80 %) | AA111: Is (100 %) | AB111: AB (100 %) | AC111: Y2 (100 %) | AD111: 1 | AE111: 3 | AF111: 0 | AG111: 49 | AL111: 9 | AM111: 0 | AN111: 0 | AO111: 411 | AP111: 2 | AQ111: bussi | AR111: 3 | AS111: 11 | AT111: 3.666666667 | AU111: 9 | AV111: 0 | AW111: 0 | AX111: 0 | AY111: 0 | AZ111: 0 | BA111: 0 | BB111: 0 | BC111: 0 | BD111: 0 | BE111: 0 | BF111: 0.3333333333 | BG111: 1 | BH111: 2 | BI111: 12.33333333 | BJ111: 4.111111111 | BK111: 1507.212613 | BL111: 0.9988155153 | BM111: 1 | BN111: 1507.212613 | BO111: 0.9988155153 | BP111: 1 | BQ111: 1 | BR111: 1507.212613 | BS111: 0.9988155153 | BT111: 1 | BU111: 536.7793241 | BV111: 1 | BW111: 0 | BX111: 0 | BY111: 0 | BZ111: 1 | CA111: 6 | CB111: 2 | CC111: 29.33333333 | CD111: 9.777777778 | CE111: 2 | CL111: https://www.google.com/maps/@60.6973905231,26.84607525,3a,75y,90t/data=!3m3!1e1!3m1!2e0 | CN111: 3 | CP111: 0 | CR111: 0 | CS111: 0 | CT111: 0 | CU111: 0 | CV111: 0 | CW111: 0 | CX111: 0 | CY111: 0 | CZ111: 0 | DC111: 1 | DE111: 2700.938051 | DH111: 0 | DI111: 0 | DJ111: 0 | DM111: 1 | DN111: 1 | DO111: 5.730017625
A112: 3933_1 | B112: 2 | D112: 73 | E112: 73 | F112: 0 | G112: 9.777777778 | H112: 2 | I112: 0 | J112: Gmaps | K112: KESKI | L112: Yhdys | M112: Saimaantie | N112: Lappeenranta | O112: Etelä-Karjala | P112: 3933 | Q112: 1 | R112: 0 | S112: 1 | T112: 1012 | U112: 1012 | V112: 2811 | W112: 128 | X112: 3150 | Y112: 2811 (92 %) | Z112: 40 (90 %), 80 (2 %) | AA112: I (2 %), II (90 %) | AB112: AB (92 %) | AC112: Y2 (92 %) | AD112: 0 | AE112: 1 | AF112: 0.06951871658 | AG112: 66 | AL112: 9 | AM112: 0 | AN112: 0 | AO112: 445 | AP112: 2 | AQ112: bussi | AR112: 3 | AS112: 11 | AT112: 3.666666667 | AU112: 9 | AV112: 0 | AW112: 0 | AX112: 0 | AY112: 0 | AZ112: 1 | BA112: 0 | BB112: 0 | BC112: 0 | BD112: 0 | BE112: 0 | BF112: 0.3333333333 | BG112: 1 | BH112: 2 | BI112: 13.33333333 | BJ112: 4.444444444 | BK112: 616.6336856 | BL112: 0.6093218237 | BM112: 1 | BN112: 0 | BO112: 0 | BP112: 0 | BQ112: 1 | BR112: 931.4135172 | BS112: 0.9203690882 | BT112: 1 | BU112: 931.8181818 | BV112: 1 | BW112: 0 | BX112: 0 | BY112: 0 | BZ112: 1 | CA112: 5 | CB112: 1.666666667 | CC112: 29.33333333 | CD112: 9.777777778 | CE112: 2 | CL112: https://www.google.com/maps/@61.1232169994,28.5003301135,3a,75y,90t/data=!3m3!1e1!3m1!2e0 | CN112: 3 | CP112: 0 | CR112: 0 | CS112: 0 | CT112: 0 | CU112: 6 | CV112: 0 | CW112: 0 | CX112: 0 | CY112: 0 | CZ112: 0 | DC112: 1 | DE112: 431.4904431 | DH112: 0 | DI112: 0 | DJ112: 0 | DM112: 1 | DN112: 1 | DO112: 36.4460917
A113: 170_26 | B113: 2 | D113: 75 | E113: 75 | F113: 0 | G113: 9.776131776 | H113: 2 | I113: 0 | J113: Gmaps | K113: KESKI | L113: Seutu | M113: Valtatie | N113: Kotka, Pyhtää | O113: Kymenlaakso | P113: 170 | Q113: 26 | R113: 0 | S113: 26 | T113: 4709 | U113: 4709 | V113: 1302 | W113: 34 | X113: 1438 | Y113: 1302 (100 %) | Z113: 50 (65 %), 80 (35 %) | AA113: Ib (100 %) | AB113: AB (100 %) | AC113: Y2 (100 %) | AD113: 1 | AE113: 3 | AF113: 0.001911233808 | AG113: 9 | AL113: 9 | AM113: 2 | AN113: 0.6 | AO113: 441 | AP113: 2 | AQ113: bussi | AR113: 3 | AS113: 11.6 | AT113: 3.866666667 | AU113: 6.12 | AV113: 2 | AW113: 0 | AX113: 1 | AY113: 0 | AZ113: 1 | BA113: 0.05166666667 | BB113: 0.05 | BC113: 0 | BD113: 0 | BE113: 0 | BF113: 0.3333333333 | BG113: 0 | BH113: 0.6733953289 | BI113: 11.22839533 | BJ113: 3.742798443 | BK113: 2479.220719 | BL113: 0.5264856061 | BM113: 1 | BN113: 4706.657752 | BO113: 0.9995026019 | BP113: 1 | BQ113: 1 | BR113: 3316.460589 | BS113: 0.7042812889 | BT113: 1 | BU113: 82.79889573 | BV113: 0.5 | BW113: 0 | BX113: 0 | BY113: 1 | BZ113: 1 | CA113: 6.5 | CB113: 2.166666667 | CC113: 29.32839533 | CD113: 9.776131776 | CE113: 2 | CL113: https://www.google.com/maps/@60.4948620313,26.7386594891,3a,75y,90t/data=!3m3!1e1!3m1!2e0 | CN113: 3 | CP113: 1 | CR113: 0 | CS113: 1 | CT113: 0 | CU113: 8 | CV113: 31 | CW113: 10 | CX113: 0 | CY113: 0 | CZ113: 0 | DC113: 1 | DE113: 4706.657752 | DH113: 0 | DI113: 0 | DJ113: 1 | DM113: 1 | DN113: 0 | DO113: 1.010092993
A114: 363_9 | B114: 2 | D114: 76 | E114: 76 | F114: 0 | G114: 9.746830682 | H114: 2 | I114: 0 | J114: Gmaps | K114: KESKI | L114: Seutu | M114: Jaalantie | N114: Kouvola | O114: Kymenlaakso | P114: 363 | Q114: 9 | R114: 0 | S114: 9 | T114: 2831 | U114: 2831 | V114: 1434 | W114: 94 | X114: 2119 | Y114: 1434 (100 %) | Z114: 40 (72 %), 50 (2 %), 60 (27 %) | AA114: Ic (100 %) | AB114: AB (100 %) | AC114: Y2 (100 %) | AD114: 1 | AE114: 5 | AF114: 0.08159660897 | AG114: 38 | AL114: 9 | AM114: 0 | AN114: 0 | AO114: 186 | AP114: 1.24 | AQ114: bussi | AR114: 3 | AS114: 10.24 | AT114: 3.413333333 | AU114: 9 | AV114: 2 | AW114: 0 | AX114: 0 | AY114: 0 | AZ114: 1 | BA114: 0 | BB114: 0 | BC114: 0 | BD114: 0 | BE114: 0 | BF114: 0 | BG114: 1 | BH114: 1.000492045 | BI114: 14.00049204 | BJ114: 4.666830682 | BK114: 2822.611149 | BL114: 0.9970367886 | BM114: 1 | BN114: 0 | BO114: 0 | BP114: 0 | BQ114: 1 | BR114: 2070.388457 | BS114: 0.7313276076 | BT114: 1 | BU114: 154.2564465 | BV114: 1 | BW114: 0 | BX114: 0 | BY114: 0 | BZ114: 1 | CA114: 5 | CB114: 1.666666667 | CC114: 29.24049204 | CD114: 9.746830682 | CE114: 2 | CL114: https://www.google.com/maps/@61.0514356032,26.4695620687,3a,75y,90t/data=!3m3!1e1!3m1!2e0 | CN114: 3 | CP114: 1 | CR114: 0 | CS114: 0 | CT114: 0 | CU114: 3 | CV114: 0 | CW114: 0 | CX114: 0 | CY114: 0 | CZ114: 0 | DC114: 0 | DE114: 2822.611149 | DH114: 0 | DI114: 0 | DJ114: 0 | DM114: 1 | DN114: 1 | DO114: 1.500738067
A115: 387_6 | B115: 2 | D115: 77 | E115: 77 | F115: 0 | G115: 9.711111111 | H115: 2 | I115: 0 | J115: Gmaps | K115: KESKI | L115: Seutu | M115: Vaalimaantie | N115: Lappeenranta | O115: Etelä-Karjala | P115: 387 | Q115: 6 | R115: 0 | S115: 6 | T115: 5072 | U115: 5072 | V115: 2528 | W115: 199 | X115: 2764 | Y115: 2528 (100 %) | Z115: 100 (95 %), 80 (6 %) | AA115: Is (100 %) | AB115: AB (100 %) | AC115: Y2 (100 %) | AD115: 0 | AE115: 4 | AF115: 0 | AG115: 106 | AL115: 9 | AM115: 0 | AN115: 0 | AO115: 398 | AP115: 2 | AQ115: bussi | AR115: 3 | AS115: 11 | AT115: 3.666666667 | AU115: 9 | AV115: 2 | AW115: 0 | AX115: 0 | AY115: 0 | AZ115: 0 | BA115: 0.02833333333 | BB115: 0.355 | BC115: 0 | BD115: 0.25 | BE115: 0 | BF115: 0 | BG115: 0 | BH115: 2 | BI115: 13.63333333 | BJ115: 4.544444444 | BK115: 2585.96346 | BL115: 0.50985084 | BM115: 1 | BN115: 5081.742738 | BO115: 1.001920887 | BP115: 1 | BQ115: 0 | BR115: 254.5043949 | BS115: 0.05017831129 | BT115: 0 | BU115: 3.391167192 | BV115: 0.5 | BW115: 0 | BX115: 1 | BY115: 0 | BZ115: 1 | CA115: 4.5 | CB115: 1.5 | CC115: 29.13333333 | CD115: 9.711111111 | CE115: 2 | CL115: https://www.google.com/maps/@60.8166688451,28.0782127573,3a,75y,90t/data=!3m3!1e1!3m1!2e0 | CN115: 3 | CP115: 1 | CR115: 0 | CS115: 0 | CT115: 0 | CU115: 0 | CV115: 17 | CW115: 71 | CX115: 0 | CY115: 15 | CZ115: 0 | DC115: 0 | DE115: 0 | DH115: 0 | DI115: 0 | DJ115: 0 | DM115: 1 | DN115: 0 | DO115: 6.000035796
A116: 14821_2 | B116: 2 | D116: 78 | E116: 78 | F116: 0 | G116: 9.707275044 | H116: 2 | I116: 0 | J116: Gmaps | K116: KESKI | L116: Yhdys | M116: Vanha Viipurintie | N116: Lappeenranta | O116: Etelä-Karjala | P116: 14821 | Q116: 2 | R116: 1072 | S116: 2 | T116: 6665 | U116: 5593 | V116: 1496.659574 | W116: 69.6513499 | X116: 1471.899696 | Y116: 1165 (54 %), 1879 (46 %) | Z116: 60 (12 %), 80 (88 %) | AA116: Ib (100 %) | AB116: AB (100 %) | AC116: Y3 (100 %) | AD116: 5 | AE116: 6 | AF116: 0.51725371 | AG116: 12 | AL116: 9 | AM116: 0 | AN116: 0 | AO116: 457 | AP116: 2 | AQ116: bussi | AR116: 3 | AS116: 11 | AT116: 3.666666667 | AU116: 9 | AV116: 2 | AW116: 0 | AX116: 1 | AY116: 0 | AZ116: 1 | BA116: 0.1066666667 | BB116: 0.015 | BC116: 0 | BD116: 0.5 | BE116: 0 | BF116: 0 | BG116: 0 | BH116: 1.000158464 | BI116: 14.62182513 | BJ116: 4.87394171 | BK116: 2312.968066 | BL116: 0.4135469455 | BM116: 0.5 | BN116: 0 | BO116: 0 | BP116: 0 | BQ116: 0 | BR116: 981.0973543 | BS116: 0.1754152252 | BT116: 0 | BU116: 179.2776685 | BV116: 1 | BW116: 0 | BX116: 0 | BY116: 1 | BZ116: 1 | CA116: 3.5 | CB116: 1.166666667 | CC116: 29.12182513 | CD116: 9.707275044 | CE116: 2 | CL116: https://www.google.com/maps/@61.0393936691,28.2291605482,3a,75y,90t/data=!3m3!1e1!3m1!2e0 | CN116: 3 | CP116: 1 | CR116: 0 | CS116: 1 | CT116: 0 | CU116: 2 | CV116: 64 | CW116: 3 | CX116: 0 | CY116: 1298 | CZ116: 0 | DC116: 0 | DE116: 0 | DH116: 0 | DI116: 0 | DJ116: 1 | DM116: 1 | DN116: 0 | DO116: 1.500237696
A117: 160_312 | B117: 2 | D117: 79 | E117: 79 | F117: 0 | G117: 9.705333333 | H117: 2 | I117: 0 | J117: Gmaps | K117: VÄHÄ | L117: Seutu | M117: Karjalantie | N117: Imatra | O117: Etelä-Karjala | P117: 160 | Q117: 312 | R117: 0 | S117: 312 | T117: 1249 | U117: 1249 | V117: 482 | W117: 43 | X117: 593 | Y117: 482 (100 %) | Z117: 60 (100 %) | AA117: Ib (100 %) | AB117: AB (100 %) | AC117: Y3 (100 %) | AD117: 2 | AE117: 3 | AF117: 0.1084425036 | AG117: 25 | AL117: 8.676 | AM117: 9 | AN117: 2.7 | AO117: 449 | AP117: 2 | AQ117: bussi | AR117: 3 | AS117: 13.376 | AT117: 4.458666667 | AU117: 7.74 | AV117: 2 | AW117: 0 | AX117: 1 | AY117: 0 | AZ117: 0 | BA117: 0 | BB117: 0 | BC117: 0 | BD117: 0 | BE117: 0 | BF117: 0 | BG117: 0 | BH117: 2 | BI117: 12.74 | BJ117: 4.246666667 | BK117: 0 | BL117: 0 | BM117: 0 | BN117: 1252.945209 | BO117: 1.003158694 | BP117: 1 | BQ117: 1 | BR117: 0 | BS117: 0 | BT117: 0 | BU117: 0 | BV117: 0 | BW117: 0 | BX117: 0 | BY117: 0 | BZ117: 1 | CA117: 3 | CB117: 1 | CC117: 29.116 | CD117: 9.705333333 | CE117: 2 | CL117: https://www.google.com/maps/@61.2594422866,28.8817129697,3a,75y,90t/data=!3m3!1e1!3m1!2e0 | CN117: 3 | CP117: 1 | CR117: 0 | CS117: 1 | CT117: 0 | CU117: 0 | CV117: 0 | CW117: 0 | CX117: 0 | CY117: 0 | CZ117: 0 | DC117: 0 | DE117: 1252.945209 | DH117: 0 | DI117: 0 | DJ117: 0 | DM117: 1 | DN117: 0 | DO117: 9.27731045
A118: 368_2 | B118: 2 | D118: 80 | E118: 80 | F118: 0 | G118: 9.7 | H118: 2 | I118: 0 | J118: Gmaps | K118: KESKI | L118: Seutu | M118: Multamäentie | N118: Kouvola | O118: Kymenlaakso | P118: 368 | Q118: 2 | R118: 0 | S118: 2 | T118: 3995 | U118: 3995 | V118: 1889 | W118: 109 | X118: 2467 | Y118: 1889 (100 %) | Z118: 60 (20 %), 80 (80 %) | AA118: Ib (100 %) | AB118: AB (100 %) | AC118: Y2 (100 %) | AD118: 2 | AE118: 6 | AF118: 0.1501877347 | AG118: 28 | AL118: 9 | AM118: 0 | AN118: 0 | AO118: 409 | AP118: 2 | AQ118: bussi | AR118: 3 | AS118: 11 | AT118: 3.666666667 | AU118: 9 | AV118: 2 | AW118: 0 | AX118: 1 | AY118: 0 | AZ118: 1 | BA118: 0.1 | BB118: 0.5 | BC118: 0 | BD118: 0 | BE118: 0 | BF118: 0 | BG118: 0 | BH118: 2 | BI118: 15.6 | BJ118: 5.2 | BK118: 0 | BL118: 0 | BM118: 0 | BN118: 0 | BO118: 0 | BP118: 0 | BQ118: 1 | BR118: 0 | BS118: 0 | BT118: 0 | BU118: 12.14017522 | BV118: 0.5 | BW118: 0 | BX118: 0 | BY118: 0 | BZ118: 1 | CA118: 2.5 | CB118: 0.8333333333 | CC118: 29.1 | CD118: 9.7 | CE118: 2 | CL118: https://www.google.com/maps/@60.9864003243,26.7509371052,3a,75y,90t/data=!3m3!1e1!3m1!2e0 | CN118: 3 | CP118: 1 | CR118: 0 | CS118: 5 | CT118: 0 | CU118: 3 | CV118: 60 | CW118: 174 | CX118: 0 | CY118: 0 | CZ118: 0 | DC118: 0 | DE118: 3980.091889 | DH118: 0 | DI118: 0 | DJ118: 0 | DM118: 1 | DN118: 0 | DO118: 5.206432939
A119: 368_3 | B119: 2 | D119: 81 | E119: 81 | F119: 0 | G119: 9.641666667 | H119: 2 | I119: 0 | J119: Gmaps | K119: KESKI | L119: Seutu | M119: Anttilantie, Näkkimistönmäentie | N119: Kouvola | O119: Kymenlaakso | P119: 368 | Q119: 3 | R119: 0 | S119: 3 | T119: 7279 | U119: 7279 | V119: 1358 | W119: 96 | X119: 1872 | Y119: 1358 (100 %) | Z119: 60 (7 %), 70 (0 %), 80 (93 %) | AA119: Ib (100 %) | AB119: AB (100 %) | AC119: Y2 (100 %) | AD119: 0 | AE119: 2 | AF119: 0.01373815084 | AG119: 23 | AL119: 9 | AM119: 0 | AN119: 0 | AO119: 235 | AP119: 1.566666667 | AQ119: bussi | AR119: 3 | AS119: 10.56666667 | AT119: 3.522222222 | AU119: 9 | AV119: 2 | AW119: 0 | AX119: 0 | AY119: 0 | AZ119: 0 | BA119: 0.3583333333 | BB119: 0.5 | BC119: 0 | BD119: 0 | BE119: 0 | BF119: 0 | BG119: 1 | BH119: 2 | BI119: 14.85833333 | BJ119: 4.952777778 | BK119: 0 | BL119: 0 | BM119: 0 | BN119: 0 | BO119: 0 | BP119: 0 | BQ119: 1 | BR119: 0 | BS119: 0 | BT119: 0 | BU119: 16.40335211 | BV119: 0.5 | BW119: 0 | BX119: 0 | BY119: 1 | BZ119: 1 | CA119: 3.5 | CB119: 1.166666667 | CC119: 28.925 | CD119: 9.641666667 | CE119: 2 | CL119: https://www.google.com/maps/@61.0184344403,26.7668098658,3a,75y,90t/data=!3m3!1e1!3m1!2e0 | CN119: 3 | CP119: 1 | CR119: 0 | CS119: 0 | CT119: 0 | CU119: 0 | CV119: 215 | CW119: 167 | CX119: 0 | CY119: 0 | CZ119: 0 | DC119: 0 | DE119: 7264.805626 | DH119: 0 | DI119: 0 | DJ119: 1 | DM119: 1 | DN119: 1 | DO119: 5.850963633
A120: 375_4 | B120: 2 | D120: 82 | E120: 82 | F120: 0 | G120: 9.639327195 | H120: 2 | I120: 0 | J120: Gmaps | K120: KESKI | L120: Seutu | M120: Sippolantie | N120: Kouvola | O120: Kymenlaakso | P120: 375 | Q120: 4 | R120: 0 | S120: 4 | T120: 3762 | U120: 3762 | V120: 948.0717703 | W120: 49.09569378 | X120: 1022.84689 | Y120: 730 (43 %), 1113 (57 %) | Z120: 40 (32 %), 50 (20 %), 60 (25 %), 80 (23 %) | AA120: Ic (100 %) | AB120: AB (57 %), PAB (43 %) | AC120: Y3 (100 %) | AD120: 2 | AE120: 2 | AF120: 0.2025518341 | AG120: 11 | AL120: 9 | AM120: 2 | AN120: 0.6 | AO120: 363 | AP120: 2 | AQ120: bussi | AR120: 3 | AS120: 11.6 | AT120: 3.866666667 | AU120: 8.83722488 | AV120: 2 | AW120: 0 | AX120: 1 | AY120: 0 | AZ120: 1 | BA120: 0 | BB120: 0.035 | BC120: 0 | BD120: 0 | BE120: 0 | BF120: 0 | BG120: 1 | BH120: 0.9457567043 | BI120: 14.81798158 | BJ120: 4.939327195 | BK120: 3752.002953 | BL120: 0.9973426243 | BM120: 1 | BN120: 0 | BO120: 0 | BP120: 0 | BQ120: 0 | BR120: 1607.985514 | BS120: 0.4274283664 | BT120: 0 | BU120: 46.81020734 | BV120: 0.5 | BW120: 0 | BX120: 0 | BY120: 0 | BZ120: 1 | CA120: 2.5 | CB120: 0.8333333333 | CC120: 28.91798158 | CD120: 9.639327195 | CE120: 2 | CL120: https://www.google.com/maps/@60.7558738427,27.0222661039,3a,75y,90t/data=!3m3!1e1!3m1!2e0 | CN120: 3 | CP120: 1 | CR120: 0 | CS120: 2 | CT120: 0 | CU120: 4 | CV120: 0 | CW120: 7 | CX120: 0 | CY120: 0 | CZ120: 0 | DC120: 0 | DE120: 0 | DH120: 0 | DI120: 0 | DJ120: 0 | DM120: 1 | DN120: 1 | DO120: 1.418635056
A121: 387_5 | B121: 2 | D121: 83 | E121: 83 | F121: 0 | G121: 9.621666667 | H121: 2 | I121: 0 | J121: Gmaps | K121: KESKI | L121: Seutu | M121: Vaalimaantie | N121: Lappeenranta | O121: Etelä-Karjala | P121: 387 | Q121: 5 | R121: 0 | S121: 5 | T121: 5624 | U121: 5624 | V121: 2528 | W121: 199 | X121: 2764 | Y121: 2528 (100 %) | Z121: 100 (100 %) | AA121: Is (100 %) | AB121: AB (100 %) | AC121: Y2 (100 %) | AD121: 0 | AE121: 6 | AF121: 0 | AG121: 106 | AL121: 9 | AM121: 0 | AN121: 0 | AO121: 396 | AP121: 2 | AQ121: bussi | AR121: 3 | AS121: 11 | AT121: 3.666666667 | AU121: 9 | AV121: 2 | AW121: 0 | AX121: 0 | AY121: 0 | AZ121: 0 | BA121: 0.03166666667 | BB121: 0.5 | BC121: 0 | BD121: 0.5 | BE121: 0 | BF121: 0.3333333333 | BG121: 0 | BH121: 2 | BI121: 14.365 | BJ121: 4.788333333 | BK121: 0 | BL121: 0 | BM121: 0 | BN121: 5620.211952 | BO121: 0.9993264496 | BP121: 1 | BQ121: 0 | BR121: 0 | BS121: 0 | BT121: 0 | BU121: 4.783072546 | BV121: 0.5 | BW121: 0 | BX121: 1 | BY121: 0 | BZ121: 1 | CA121: 3.5 | CB121: 1.166666667 | CC121: 28.865 | CD121: 9.621666667 | CE121: 2 | CL121: https://www.google.com/maps/@60.8581926196,28.1316546872,3a,75y,90t/data=!3m3!1e1!3m1!2e0 | CN121: 3 | CP121: 1 | CR121: 0 | CS121: 0 | CT121: 0 | CU121: 0 | CV121: 19 | CW121: 223 | CX121: 0 | CY121: 60 | CZ121: 0 | DC121: 1 | DE121: 0 | DH121: 0 | DI121: 0 | DJ121: 0 | DM121: 1 | DN121: 0 | DO121: 6.000307512
A122: 14852_1 | B122: 2 | D122: 84 | E122: 84 | F122: 0 | G122: 9.611000904 | H122: 2 | I122: 0 | J122: Gmaps | K122: KESKI | L122: Yhdys | M122: Aholantie, Rantatie | N122: Lappeenranta | O122: Etelä-Karjala | P122: 14852 | Q122: 1 | R122: 0 | S122: 1 | T122: 8382 | U122: 8382 | V122: 652.2423049 | W122: 123.3594607 | X122: 980.9070628 | Y122: 539 (54 %), 692 (15 %), 831 (31 %) | Z122: 40 (4 %), 50 (3 %), 60 (86 %), 80 (8 %) | AA122: II (100 %) | AB122: AB (62 %), PAB (38 %) | AC122: Y3 (100 %) | AD122: 2 | AE122: 6 | AF122: 0.107372942 | AG122: 48.74898592 | AL122: 9 | AM122: 0 | AN122: 0 | AO122: 352 | AP122: 2 | AQ122: bussi | AR122: 3 | AS122: 11 | AT122: 3.666666667 | AU122: 9 | AV122: 0 | AW122: 0 | AX122: 1 | AY122: 0 | AZ122: 1 | BA122: 0 | BB122: 0 | BC122: 0 | BD122: 0 | BE122: 0 | BF122: 0.3333333333 | BG122: 0 | BH122: 1.999669379 | BI122: 13.33300271 | BJ122: 4.444334238 | BK122: 102.7121193 | BL122: 0.01225389159 | BM122: 0.5 | BN122: 0 | BO122: 0 | BP122: 0 | BQ122: 1 | BR122: 1407.963256 | BS122: 0.1679746189 | BT122: 0 | BU122: 78.66857552 | BV122: 0.5 | BW122: 1.5 | BX122: 0 | BY122: 0 | BZ122: 1 | CA122: 4.5 | CB122: 1.5 | CC122: 28.83300271 | CD122: 9.611000904 | CE122: 2 | CL122: https://www.google.com/maps/@61.1260810372,28.4950070804,3a,75y,90t/data=!3m3!1e1!3m1!2e0 | CN122: 3 | CP122: 0 | CR122: 0 | CS122: 3 | CT122: 0 | CU122: 7 | CV122: 0 | CW122: 0 | CX122: 0 | CY122: 0 | CZ122: 0 | DC122: 1 | DE122: 8586.62977 | DH122: 1.5 | DI122: 1.5 | DJ122: 0 | DM122: 1 | DN122: 0 | DO122: 2.999504069
A123: 378_1 | B123: 2 | D123: 85 | E123: 85 | F123: 0 | G123: 9.583333333 | H123: 2 | I123: 0 | J123: Gmaps | K123: KESKI | L123: Seutu | M123: Savitaipaleentie | N123: Luumäki | O123: Etelä-Karjala | P123: 378 | Q123: 1 | R123: 0 | S123: 1 | T123: 7031 | U123: 7031 | V123: 1222 | W123: 97 | X123: 1556 | Y123: 1222 (100 %) | Z123: 60 (8 %), 80 (91 %) | AA123: II (100 %) | AB123: AB (100 %) | AC123: Y2 (100 %) | AD123: 1 | AE123: 3 | AF123: 0 | AG123: 31 | AL123: 9 | AM123: 0 | AN123: 0 | AO123: 235 | AP123: 1.566666667 | AQ123: taksi | AR123: 1.5 | AS123: 10.56666667 | AT123: 3.522222222 | AU123: 9 | AV123: 0 | AW123: 0 | AX123: 1 | AY123: 1 | AZ123: 1 | BA123: 0.04333333333 | BB123: 0.04 | BC123: 0 | BD123: 0.1 | BE123: 0 | BF123: 0 | BG123: 0 | BH123: 2 | BI123: 14.18333333 | BJ123: 4.727777778 | BK123: 737.1058776 | BL123: 0.1048365635 | BM123: 0.5 | BN123: 0 | BO123: 0 | BP123: 0 | BQ123: 1 | BR123: 136.5744495 | BS123: 0.01942461236 | BT123: 0 | BU123: 4.935286588 | BV123: 0.5 | BW123: 0 | BX123: 0 | BY123: 1 | BZ123: 1 | CA123: 4 | CB123: 1.333333333 | CC123: 28.75 | CD123: 9.583333333 | CE123: 2 | CL123: https://www.google.com/maps/@60.9298498382,27.5838740611,3a,75y,90t/data=!3m3!1e1!3m1!2e0 | CN123: 1 | CP123: 0 | CR123: 0 | CS123: 2 | CT123: 4 | CU123: 2 | CV123: 26 | CW123: 8 | CX123: 0 | CY123: 6 | CZ123: 0 | DC123: 0 | DE123: 6998.753172 | DH123: 0 | DI123: 0 | DJ123: 1 | DM123: 1 | DN123: 0 | DO123: 5.557451138
A124: 170_25 | B124: 2 | D124: 86 | E124: 86 | F124: 0 | G124: 9.577692384 | H124: 2 | I124: 0 | J124: Gmaps | K124: KESKI | L124: Seutu | M124: Valtatie | N124: Pyhtää | O124: Kymenlaakso | P124: 170 | Q124: 25 | R124: 0 | S124: 25 | T124: 4164 | U124: 4164 | V124: 1373.737272 | W124: 47.96878002 | X124: 1624.652738 | Y124: 1346 (65 %), 1425 (35 %) | Z124: 50 (5 %), 80 (95 %) | AA124: Ib (100 %) | AB124: AB (100 %) | AC124: Y2 (100 %) | AD124: 1 | AE124: 2 | AF124: 0 | AG124: 10.15994236 | AL124: 9 | AM124: 2 | AN124: 0.6 | AO124: 310 | AP124: 2 | AQ124: bussi | AR124: 3 | AS124: 11.6 | AT124: 3.866666667 | AU124: 8.634380403 | AV124: 2 | AW124: 0 | AX124: 0 | AY124: 0 | AZ124: 1 | BA124: 0 | BB124: 0 | BC124: 0 | BD124: 0 | BE124: 0 | BF124: 0 | BG124: 0 | BH124: 0.9986967474 | BI124: 12.63307715 | BJ124: 4.211025717 | BK124: 2315.98133 | BL124: 0.5561914817 | BM124: 1 | BN124: 4158.753239 | BO124: 0.998739971 | BP124: 1 | BQ124: 1 | BR124: 1947.520165 | BS124: 0.4677041703 | BT124: 0 | BU124: 92.98751201 | BV124: 0.5 | BW124: 0 | BX124: 0 | BY124: 0 | BZ124: 1 | CA124: 4.5 | CB124: 1.5 | CC124: 28.73307715 | CD124: 9.577692384 | CE124: 2 | CL124: https://www.google.com/maps/@60.4886427031,26.6644841567,3a,75y,90t/data=!3m3!1e1!3m1!2e0 | CN124: 3 | CP124: 1 | CR124: 0 | CS124: 0 | CT124: 0 | CU124: 2 | CV124: 0 | CW124: 0 | CX124: 0 | CY124: 0 | CZ124: 0 | DC124: 0 | DE124: 4158.753239 | DH124: 0 | DI124: 0 | DJ124: 0 | DM124: 1 | DN124: 0 | DO124: 1.498045121
A125: 363_8 | B125: 2 | D125: 87 | E125: 87 | F125: 0 | G125: 9.555551444 | H125: 2 | I125: 0 | J125: Gmaps | K125: KESKI | L125: Seutu | M125: Jaalantie, Kimolantie | N125: Kouvola | O125: Kymenlaakso | P125: 363 | Q125: 8 | R125: 0 | S125: 8 | T125: 6875 | U125: 6875 | V125: 894.5864727 | W125: 98.01032727 | X125: 1214.787927 | Y125: 884 (96 %), 1125 (4 %) | Z125: 40 (5 %), 50 (9 %), 60 (17 %), 80 (68 %) | AA125: Ic (100 %) | AB125: AB (30 %), PAB (70 %) | AC125: Y2 (100 %) | AD125: 0 | AE125: 5 | AF125: 0.16 | AG125: 58.38501818 | AL125: 9 | AM125: 0 | AN125: 0 | AO125: 165 | AP125: 1.1 | AQ125: bussi | AR125: 3 | AS125: 10.1 | AT125: 3.366666667 | AU125: 9 | AV125: 2 | AW125: 0 | AX125: 1 | AY125: 0 | AZ125: 1 | BA125: 0.1583333333 | BB125: 0.075 | BC125: 0 | BD125: 0 | BE125: 0 | BF125: 0.3333333333 | BG125: 0 | BH125: 1.999987664 | BI125: 15.56665433 | BJ125: 5.188884777 | BK125: 2818.256596 | BL125: 0.4099282322 | BM125: 0.5 | BN125: 0 | BO125: 0 | BP125: 0 | BQ125: 1 | BR125: 597.1667998 | BS125: 0.08686062542 | BT125: 0 | BU125: 23.56363636 | BV125: 0.5 | BW125: 0 | BX125: 0 | BY125: 0 | BZ125: 1 | CA125: 3 | CB125: 1 | CC125: 28.66665433 | CD125: 9.555551444 | CE125: 2 | CL125: https://www.google.com/maps/@61.0450543308,26.3606810501,3a,75y,90t/data=!3m3!1e1!3m1!2e0 | CN125: 3 | CP125: 1 | CR125: 0 | CS125: 1 | CT125: 0 | CU125: 3 | CV125: 95 | CW125: 15 | CX125: 0 | CY125: 0 | CZ125: 0 | DC125: 1 | DE125: 6871.390135 | DH125: 0 | DI125: 0 | DJ125: 0 | DM125: 1 | DN125: 0 | DO125: 2.999981496
A126: 14672_1 | B126: 2 | D126: 88 | E126: 88 | F126: 0 | G126: 9.485797071 | H126: 2 | I126: 0 | J126: Gmaps | K126: KESKI | L126: Yhdys | M126: Ensontie, Tenkkiilintie | N126: Hamina | O126: Kymenlaakso | P126: 14672 | Q126: 1 | R126: 0 | S126: 1 | T126: 3010 | U126: 3010 | V126: 2223 | W126: 126 | X126: 2227 | Y126: 2223 (98 %) | Z126: 50 (98 %) | AA126: I (98 %) | AB126: AB (98 %) | AC126: Y2 (98 %) | AD126: 1 | AE126: 2 | AF126: 0.09933774834 | AG126: 57 | AL126: 9 | AM126: 0 | AN126: 0 | AO126: 286 | AP126: 1.906666667 | AQ126: taksi | AR126: 1.5 | AS126: 10.90666667 | AT126: 3.635555556 | AU126: 9 | AV126: 0 | AW126: 1 | AX126: 0 | AY126: 0 | AZ126: 0 | BA126: 0 | BB126: 0 | BC126: 0 | BD126: 0 | BE126: 1 | BF126: 1 | BG126: 1 | BH126: 0.5507245452 | BI126: 13.55072455 | BJ126: 4.516908182 | BK126: 2954.895233 | BL126: 0.9816927686 | BM126: 1 | BN126: 0 | BO126: 0 | BP126: 0 | BQ126: 0 | BR126: 2758.928478 | BS126: 0.9165875341 | BT126: 1 | BU126: 430.0332226 | BV126: 1 | BW126: 0 | BX126: 0 | BY126: 0 | BZ126: 1 | CA126: 4 | CB126: 1.333333333 | CC126: 28.45739121 | CD126: 9.485797071 | CE126: 2 | CL126: https://www.google.com/maps/@60.5648582232,27.1272013678,3a,75y,90t/data=!3m3!1e1!3m1!2e0 | CN126: 1 | CP126: 0 | CR126: 2 | CS126: 0 | CT126: 0 | CU126: 0 | CV126: 0 | CW126: 0 | CX126: 0 | CY126: 0 | CZ126: 1 | DC126: 4 | DE126: 0 | DH126: 0 | DI126: 0 | DJ126: 0 | DM126: 1 | DN126: 1 | DO126: 0.8260868177
A127: 408_7 | B127: 2 | D127: 89 | E127: 89 | F127: 0 | G127: 9.481676376 | H127: 2 | I127: 0 | J127: Gmaps | K127: KESKI | L127: Seutu | M127: Taipalsaarentie | N127: Savitaipale | O127: Etelä-Karjala | P127: 408 | Q127: 7 | R127: 0 | S127: 7 | T127: 5384 | U127: 5384 | V127: 633 | W127: 42 | X127: 823 | Y127: 633 (100 %) | Z127: 40 (11 %), 60 (58 %), 80 (30 %) | AA127: II (100 %) | AB127: PAB (100 %) | AC127: Y2 (100 %) | AD127: 0 | AE127: 0 | AF127: 0.01560178306 | AG127: 6 | AL127: 9 | AM127: 0 | AN127: 0 | AO127: 124 | AP127: 0.8266666667 | AQ127: taksi | AR127: 1.5 | AS127: 9.826666667 | AT127: 3.275555556 | AU127: 7.56 | AV127: 2 | AW127: 0 | AX127: 1 | AY127: 1 | AZ127: 1 | BA127: 0.5 | BB127: 0.445 | BC127: 0 | BD127: 0.1166666667 | BE127: 0 | BF127: 0 | BG127: 0 | BH127: 1.996695794 | BI127: 15.61836246 | BJ127: 5.20612082 | BK127: 2479.446833 | BL127: 0.4605213285 | BM127: 0.5 | BN127: 0 | BO127: 0 | BP127: 0 | BQ127: 0 | BR127: 1262.555303 | BS127: 0.2345013565 | BT127: 0 | BU127: 32.70802377 | BV127: 0.5 | BW127: 0 | BX127: 0 | BY127: 1 | BZ127: 1 | CA127: 3 | CB127: 1 | CC127: 28.44502913 | CD127: 9.481676376 | CE127: 2 | CL127: https://www.google.com/maps/@61.2151689342,27.7800203999,3a,75y,90t/data=!3m3!1e1!3m1!2e0 | CN127: 1 | CP127: 1 | CR127: 0 | CS127: 1 | CT127: 3 | CU127: 6 | CV127: 397 | CW127: 89 | CX127: 0 | CY127: 7 | CZ127: 0 | DC127: 0 | DE127: 0 | DH127: 0 | DI127: 0 | DJ127: 2 | DM127: 1 | DN127: 0 | DO127: 2.995043691
A128: 377_5 | B128: 2 | D128: 90 | E128: 90 | F128: 0 | G128: 9.478888889 | H128: 2 | I128: 0 | J128: Gmaps | K128: KESKI | L128: Seutu | M128: Tuohikotintie | N128: Savitaipale | O128: Etelä-Karjala | P128: 377 | Q128: 5 | R128: 0 | S128: 5 | T128: 6420 | U128: 6420 | V128: 646.4785047 | W128: 56.31028037 | X128: 905.2791277 | Y128: 560 (56 %), 758 (44 %) | Z128: 50 (30 %), 60 (2 %), 80 (68 %) | AA128: II (100 %) | AB128: AB (100 %) | AC128: Y2 (100 %) | AD128: 0 | AE128: 0 | AF128: 0 | AG128: 23 | AL128: 9 | AM128: 0 | AN128: 0 | AO128: 184 | AP128: 1.226666667 | AQ128: taksi | AR128: 1.5 | AS128: 10.22666667 | AT128: 3.408888889 | AU128: 9 | AV128: 2 | AW128: 0 | AX128: 0 | AY128: 0 | AZ128: 1 | BA128: 0.325 | BB128: 0.035 | BC128: 0 | BD128: 0.35 | BE128: 0 | BF128: 0 | BG128: 0 | BH128: 2 | BI128: 14.71 | BJ128: 4.903333333 | BK128: 4361.598566 | BL128: 0.6793767237 | BM128: 1 | BN128: 0 | BO128: 0 | BP128: 0 | BQ128: 1 | BR128: 0 | BS128: 0 | BT128: 0 | BU128: 12.19626168 | BV128: 0.5 | BW128: 0 | BX128: 0 | BY128: 0 | BZ128: 1 | CA128: 3.5 | CB128: 1.166666667 | CC128: 28.43666667 | CD128: 9.478888889 | CE128: 2 | CL128: https://www.google.com/maps/@61.1264214147,27.4267062091,3a,75y,90t/data=!3m3!1e1!3m1!2e0 | CN128: 1 | CP128: 1 | CR128: 0 | CS128: 0 | CT128: 0 | CU128: 3 | CV128: 195 | CW128: 7 | CX128: 0 | CY128: 21 | CZ128: 0 | DC128: 0 | DE128: 32096.57962 | DH128: 0 | DI128: 0 | DJ128: 0 | DM128: 1 | DN128: 0 | DO128: 5.348697618
A129: 3504_1 | B129: 2 | D129: 91 | E129: 91 | F129: 0 | G129: 9.478853116 | H129: 2 | I129: 0 | J129: Gmaps | K129: KESKI | L129: Yhdys | M129: Heinsuontie | N129: Kotka | O129: Kymenlaakso | P129: 3504 | Q129: 1 | R129: 0 | S129: 1 | T129: 289 | U129: 289 | V129: 2065 | W129: 117 | X129: 2144 | Y129: 2065 (79 %) | Z129: 50 (79 %) | AA129: I (79 %) | AB129: AB (79 %) | AC129: Y3 (79 %) | AD129: 0 | AE129: 0 | AF129: 0 | AG129: 31 | AL129: 9 | AM129: 0 | AN129: 0 | AO129: 454 | AP129: 2 | AQ129: - | AR129: 0 | AS129: 11 | AT129: 3.666666667 | AU129: 9 | AV129: 0 | AW129: 1 | AX129: 1 | AY129: 1 | AZ129: 1 | BA129: 0.05166666667 | BB129: 0.05 | BC129: 0 | BD129: 0 | BE129: 0 | BF129: 0.3333333333 | BG129: 0 | BH129: 0.5015593476 | BI129: 13.93655935 | BJ129: 4.645519783 | BK129: 0 | BL129: 0 | BM129: 0 | BN129: 0 | BO129: 0 | BP129: 0 | BQ129: 1 | BR129: 0 | BS129: 0 | BT129: 0 | BU129: 20.76124567 | BV129: 0.5 | BW129: 0 | BX129: 0 | BY129: 1 | BZ129: 1 | CA129: 3.5 | CB129: 1.166666667 | CC129: 28.43655935 | CD129: 9.478853116 | CE129: 2 | CL129: https://www.google.com/maps/@60.4951324898,26.8232683221,3a,75y,90t/data=!3m3!1e1!3m1!2e0 | CN129: 0 | CP129: 0 | CR129: 2 | CS129: 7 | CT129: 1 | CU129: 8 | CV129: 31 | CW129: 10 | CX129: 0 | CY129: 0 | CZ129: 0 | DC129: 1 | DE129: 375.5637255 | DH129: 0 | DI129: 0 | DJ129: 2 | DM129: 1 | DN129: 0 | DO129: 0.7523390214
A130: 3751_1 | B130: 2 | D130: 92 | E130: 92 | F130: 0 | G130: 9.473389086 | H130: 2 | I130: 0 | J130: Gmaps | K130: KESKI | L130: Yhdys | M130: Saverontie, Utintie | N130: Kouvola | O130: Kymenlaakso | P130: 3751 | Q130: 1 | R130: 0 | S130: 1 | T130: 6473 | U130: 6473 | V130: 606.1492353 | W130: 42.02780782 | X130: 648.3066584 | Y130: 388 (71 %), 1148 (29 %) | Z130: 40 (24 %), 50 (18 %), 80 (57 %) | AA130: Ic (29 %), II (71 %) | AB130: AB (39 %), PAB (61 %) | AC130: Y3 (100 %) | AD130: 3 | AE130: 4 | AF130: 0.03089757454 | AG130: 17.85184613 | AL130: 9 | AM130: 0 | AN130: 0 | AO130: 595 | AP130: 2 | AQ130: bussi | AR130: 3 | AS130: 11 | AT130: 3.666666667 | AU130: 7.565005407 | AV130: 2 | AW130: 0 | AX130: 0 | AY130: 1 | AZ130: 1 | BA130: 0.3266666667 | BB130: 0.05 | BC130: 0 | BD130: 0 | BE130: 0 | BF130: 0.3333333333 | BG130: 0 | BH130: 1.645161852 | BI130: 13.92016726 | BJ130: 4.640055753 | BK130: 4291.684062 | BL130: 0.663013141 | BM130: 1 | BN130: 0 | BO130: 0 | BP130: 0 | BQ130: 1 | BR130: 1516.717504 | BS130: 0.2343144607 | BT130: 0 | BU130: 56.4344199 | BV130: 0.5 | BW130: 0 | BX130: 0 | BY130: 0 | BZ130: 1 | CA130: 3.5 | CB130: 1.166666667 | CC130: 28.42016726 | CD130: 9.473389086 | CE130: 2 | CL130: https://www.google.com/maps/@60.8910024411,26.9049421554,3a,75y,90t/data=!3m3!1e1!3m1!2e0 | CN130: 3 | CP130: 1 | CR130: 0 | CS130: 0 | CT130: 6 | CU130: 1 | CV130: 196 | CW130: 10 | CX130: 0 | CY130: 0 | CZ130: 0 | DC130: 1 | DE130: 3149.135039 | DH130: 0 | DI130: 0 | DJ130: 0 | DM130: 1 | DN130: 0 | DO130: 2.467742778
A131: 371_6 | B131: 2 | D131: 93 | E131: 93 | F131: 0 | G131: 9.467153998 | H131: 2 | I131: 0 | J131: Gmaps | K131: KESKI | L131: Seutu | M131: Matarojantie | N131: Kouvola | O131: Kymenlaakso | P131: 371 | Q131: 6 | R131: 0 | S131: 6 | T131: 1414 | U131: 1414 | V131: 1198 | W131: 63 | X131: 1307 | Y131: 1198 (100 %) | Z131: 80 (100 %) | AA131: Ib (100 %) | AB131: AB (100 %) | AC131: Y2 (100 %) | AD131: 1 | AE131: 2 | AF131: 0 | AG131: 13 | AL131: 9 | AM131: 2 | AN131: 0.6 | AO131: 265 | AP131: 1.766666667 | AQ131: bussi | AR131: 3 | AS131: 11.36666667 | AT131: 3.788888889 | AU131: 9 | AV131: 2 | AW131: 0 | AX131: 1 | AY131: 0 | AZ131: 1 | BA131: 0 | BB131: 0.035 | BC131: 0 | BD131: 0 | BE131: 0 | BF131: 0 | BG131: 1 | BH131: 0.9997953267 | BI131: 15.03479533 | BJ131: 5.011598442 | BK131: 1295.200043 | BL131: 0.9159830573 | BM131: 1 | BN131: 0 | BO131: 0 | BP131: 0 | BQ131: 0 | BR131: 0 | BS131: 0 | BT131: 0 | BU131: 0 | BV131: 0 | BW131: 0 | BX131: 0 | BY131: 0 | BZ131: 1 | CA131: 2 | CB131: 0.6666666667 | CC131: 28.40146199 | CD131: 9.467153998 | CE131: 2 | CL131: https://www.google.com/maps/@60.7322679185,26.9775683939,3a,75y,90t/data=!3m3!1e1!3m1!2e0 | CN131: 3 | CP131: 1 | CR131: 0 | CS131: 2 | CT131: 0 | CU131: 4 | CV131: 0 | CW131: 7 | CX131: 0 | CY131: 0 | CZ131: 0 | DC131: 0 | DE131: 0 | DH131: 0 | DI131: 0 | DJ131: 0 | DM131: 1 | DN131: 1 | DO131: 1.49969299
A132: 170_42 | B132: 2 | D132: 94 | E132: 94 | F132: 0 | G132: 9.464170016 | H132: 2 | I132: 0 | J132: Gmaps | K132: KESKI | L132: Seutu | M132: Vaalimaantie | N132: Virolahti | O132: Kymenlaakso | P132: 170 | Q132: 42 | R132: 0 | S132: 42 | T132: 6545 | U132: 6545 | V132: 928.8692131 | W132: 55.40993125 | X132: 965.4663102 | Y132: 843 (44 %), 959 (41 %), 1093 (16 %) | Z132: 40 (1 %), 50 (7 %), 60 (20 %), 80 (72 %) | AA132: I (2 %), Ib (98 %) | AB132: AB (100 %) | AC132: Y2 (100 %) | AD132: 1 | AE132: 3 | AF132: 0 | AG132: 30.26065699 | AL132: 9 | AM132: 0 | AN132: 0 | AO132: 217 | AP132: 1.446666667 | AQ132: bussi | AR132: 3 | AS132: 10.44666667 | AT132: 3.482222222 | AU132: 9 | AV132: 2 | AW132: 0 | AX132: 0 | AY132: 0 | AZ132: 1 | BA132: 0.015 | BB132: 0.07 | BC132: 0 | BD132: 0 | BE132: 0 | BF132: 0 | BG132: 1 | BH132: 0.8608433815 | BI132: 13.94584338 | BJ132: 4.648614461 | BK132: 2240.883789 | BL132: 0.3423810219 | BM132: 0.5 | BN132: 6550.135576 | BO132: 1.000784656 | BP132: 1 | BQ132: 1 | BR132: 906.1420735 | BS132: 0.1384479868 | BT132: 0 | BU132: 34.01069519 | BV132: 0.5 | BW132: 0 | BX132: 0 | BY132: 0 | BZ132: 1 | CA132: 4 | CB132: 1.333333333 | CC132: 28.39251005 | CD132: 9.464170016 | CE132: 2 | CL132: https://www.google.com/maps/@60.5876723954,27.712843563,3a,75y,90t/data=!3m3!1e1!3m1!2e0 | CN132: 3 | CP132: 1 | CR132: 0 | CS132: 0 | CT132: 0 | CU132: 9 | CV132: 9 | CW132: 14 | CX132: 0 | CY132: 0 | CZ132: 0 | DC132: 0 | DE132: 6550.135576 | DH132: 0 | DI132: 0 | DJ132: 0 | DM132: 1 | DN132: 1 | DO132: 1.291265072
A133: 3691_1 | B133: 2 | D133: 95 | E133: 95 | F133: 0 | G133: 9.449823357 | H133: 2 | I133: 0 | J133: Gmaps | K133: KESKI | L133: Yhdys | M133: Vekarantie | N133: Kouvola | O133: Kymenlaakso | P133: 3691 | Q133: 1 | R133: 0 | S133: 1 | T133: 4775 | U133: 4775 | V133: 799 | W133: 61 | X133: 933 | Y133: 799 (100 %) | Z133: 80 (100 %) | AA133: II (100 %) | AB133: AB (100 %) | AC133: Y3 (100 %) | AD133: 0 | AE133: 3 | AF133: 0.06282722513 | AG133: 10 | AL133: 9 | AM133: 0 | AN133: 0 | AO133: 563 | AP133: 2 | AQ133: bussi | AR133: 3 | AS133: 11 | AT133: 3.666666667 | AU133: 9 | AV133: 0 | AW133: 0 | AX133: 1 | AY133: 0 | AZ133: 1 | BA133: 0.3816666667 | BB133: 0.5 | BC133: 0 | BD133: 0.1 | BE133: 0 | BF133: 0 | BG133: 1 | BH133: 0.8678034046 | BI133: 13.84947007 | BJ133: 4.616490024 | BK133: 0 | BL133: 0 | BM133: 0 | BN133: 0 | BO133: 0 | BP133: 0 | BQ133: 1 | BR133: 0 | BS133: 0 | BT133: 0 | BU133: 5.130890052 | BV133: 0.5 | BW133: 0 | BX133: 0 | BY133: 1 | BZ133: 1 | CA133: 3.5 | CB133: 1.166666667 | CC133: 28.34947007 | CD133: 9.449823357 | CE133: 2 | CL133: https://www.google.com/maps/@61.0282342887,26.9832867616,3a,75y,90t/data=!3m3!1e1!3m1!2e0 | CN133: 3 | CP133: 0 | CR133: 0 | CS133: 1 | CT133: 0 | CU133: 2 | CV133: 229 | CW133: 121 | CX133: 0 | CY133: 6 | CZ133: 0 | DC133: 0 | DE133: 9555.929443 | DH133: 0 | DI133: 0 | DJ133: 4 | DM133: 1 | DN133: 1 | DO133: 1.301705107
A134: 375_1 | B134: 2 | D134: 96 | E134: 96 | F134: 0 | G134: 9.425781078 | H134: 2 | I134: 0 | J134: Gmaps | K134: VÄHÄ | L134: Seutu | M134: Rautojantie | N134: Kouvola | O134: Kymenlaakso | P134: 375 | Q134: 1 | R134: 0 | S134: 1 | T134: 6666 | U134: 6666 | V134: 390.660066 | W134: 41.70627063 | X134: 484.960396 | Y134: 350 (77 %), 526 (23 %) | Z134: 60 (28 %), 80 (72 %) | AA134: Ib (23 %), II (77 %) | AB134: AB (100 %) | AC134: Y3 (100 %) | AD134: 0 | AE134: 0 | AF134: 0.2550255026 | AG134: 17.1650165 | AL134: 7.031881188 | AM134: 4 | AN134: 1.2 | AO134: 192 | AP134: 1.28 | AQ134: bussi | AR134: 3 | AS134: 9.511881188 | AT134: 3.170627063 | AU134: 7.507128713 | AV134: 2 | AW134: 0 | AX134: 0 | AY134: 1 | AZ134: 1 | BA134: 0.04666666667 | BB134: 0.045 | BC134: 0 | BD134: 0 | BE134: 0 | BF134: 0.6666666667 | BG134: 1 | BH134: 2 | BI134: 15.26546205 | BJ134: 5.088487349 | BK134: 3470.077217 | BL134: 0.5205636389 | BM134: 1 | BN134: 0 | BO134: 0 | BP134: 0 | BQ134: 1 | BR134: 651.9783757 | BS134: 0.09780653701 | BT134: 0 | BU134: 20.2220222 | BV134: 0.5 | BW134: 0 | BX134: 0 | BY134: 0 | BZ134: 1 | CA134: 3.5 | CB134: 1.166666667 | CC134: 28.27734323 | CD134: 9.425781078 | CE134: 2 | CL134: https://www.google.com/maps/@60.9034357769,27.1286050563,3a,75y,90t/data=!3m3!1e1!3m1!2e0 | CN134: 3 | CP134: 1 | CR134: 0 | CS134: 0 | CT134: 3 | CU134: 4 | CV134: 28 | CW134: 9 | CX134: 0 | CY134: 0 | CZ134: 0 | DC134: 2 | DE134: 1093.327241 | DH134: 0 | DI134: 0 | DJ134: 0 | DM134: 1 | DN134: 1 | DO134: 3.151918037
A135: 4015_2 | B135: 2 | D135: 97 | E135: 97 | F135: 0 | G135: 9.424084551 | H135: 2 | I135: 0 | J135: Gmaps | K135: KESKI | L135: Yhdys | M135: Parikkalantie | N135: Parikkala | O135: Etelä-Karjala | P135: 4015 | Q135: 2 | R135: 0 | S135: 2 | T135: 4266 | U135: 4266 | V135: 1823 | W135: 51 | X135: 2272 | Y135: 1823 (100 %) | Z135: 40 (28 %), 50 (72 %) | AA135: II (100 %) | AB135: AB (100 %) | AC135: Y2 (100 %) | AD135: 2 | AE135: 4 | AF135: 0.03891233005 | AG135: 5 | AL135: 9 | AM135: 6 | AN135: 1.8 | AO135: 507 | AP135: 2 | AQ135: bussi | AR135: 3 | AS135: 12.8 | AT135: 4.266666667 | AU135: 9 | AV135: 0 | AW135: 0 | AX135: 0 | AY135: 0 | AZ135: 0 | BA135: 0 | BB135: 0 | BC135: 0 | BD135: 0 | BE135: 0 | BF135: 0.3333333333 | BG135: 1 | BH135: 0.1389203205 | BI135: 10.47225365 | BJ135: 3.490751218 | BK135: 2520.961855 | BL135: 0.5909427696 | BM135: 1 | BN135: 4266.234519 | BO135: 1.000054974 | BP135: 1 | BQ135: 1 | BR135: 1687.264127 | BS135: 0.395514329 | BT135: 0 | BU135: 316.1509611 | BV135: 1 | BW135: 0 | BX135: 0 | BY135: 0 | BZ135: 1 | CA135: 5 | CB135: 1.666666667 | CC135: 28.27225365 | CD135: 9.424084551 | CE135: 2 | CL135: https://www.google.com/maps/@61.5503492166,29.5023603449,3a,75y,90t/data=!3m3!1e1!3m1!2e0 | CN135: 3 | CP135: 0 | CR135: 0 | CS135: 0 | CT135: 0 | CU135: 0 | CV135: 0 | CW135: 0 | CX135: 0 | CY135: 0 | CZ135: 0 | DC135: 1 | DE135: 4266.234519 | DH135: 0 | DI135: 0 | DJ135: 0 | DM135: 1 | DN135: 1 | DO135: 0.2083804807
A136: 438_1 | B136: 2 | D136: 98 | E136: 98 | F136: 0 | G136: 9.4 | H136: 2 | I136: 0 | J136: Gmaps | K136: KESKI | L136: Seutu | M136: Eräjärventie | N136: Ruokolahti | O136: Etelä-Karjala | P136: 438 | Q136: 1 | R136: 0 | S136: 1 | T136: 4945 | U136: 4945 | V136: 566 | W136: 61 | X136: 760 | Y136: 566 (100 %) | Z136: 60 (7 %), 80 (93 %) | AA136: II (100 %) | AB136: PAB (100 %) | AC136: Y3 (100 %) | AD136: 0 | AE136: 0 | AF136: 0 | AG136: 33 | AL136: 9 | AM136: 0 | AN136: 0 | AO136: 130 | AP136: 0.8666666667 | AQ136: - | AR136: 0 | AS136: 9.866666667 | AT136: 3.288888889 | AU136: 9 | AV136: 2 | AW136: 0 | AX136: 1 | AY136: 0 | AZ136: 0 | BA136: 0.5 | BB136: 0 | BC136: 0 | BD136: 0 | BE136: 0 | BF136: 0.3333333333 | BG136: 0 | BH136: 2 | BI136: 14.83333333 | BJ136: 4.944444444 | BK136: 0 | BL136: 0 | BM136: 0 | BN136: 0 | BO136: 0 | BP136: 0 | BQ136: 1 | BR136: 0 | BS136: 0 | BT136: 0 | BU136: 8.634984833 | BV136: 0.5 | BW136: 0 | BX136: 0 | BY136: 1 | BZ136: 1 | CA136: 3.5 | CB136: 1.166666667 | CC136: 28.2 | CD136: 9.4 | CE136: 2 | CL136: https://www.google.com/maps/@61.3457993559,28.7672304393,3a,75y,90t/data=!3m3!1e1!3m1!2e0 | CN136: 0 | CP136: 1 | CR136: 0 | CS136: 1 | CT136: 0 | CU136: 0 | CV136: 432 | CW136: 0 | CX136: 0 | CY136: 0 | CZ136: 0 | DC136: 1 | DE136: 4937.562443 | DH136: 0 | DI136: 0 | DJ136: 4 | DM136: 1 | DN136: 0 | DO136: 20.49975887
A137: 372_1 | B137: 2 | D137: 99 | E137: 99 | F137: 0 | G137: 9.333333333 | H137: 2 | I137: 0 | J137: Gmaps | K137: KESKI | L137: Seutu | M137: Satamantie, Suokalliontie | N137: Hamina | O137: Kymenlaakso | P137: 372 | Q137: 1 | R137: 0 | S137: 1 | T137: 2512 | U137: 2512 | V137: 1792.601513 | W137: 252.5390127 | X137: 1819.494029 | Y137: 1320 (67 %), 2759 (33 %) | Z137: 50 (56 %), 60 (44 %) | AA137: Is (100 %) | AB137: AB (100 %) | AC137: Y2 (100 %) | AD137: 0 | AE137: 2 | AF137: 0.005244755245 | AG137: 179.9705414 | AL137: 9 | AM137: 0 | AN137: 0 | AO137: 977 | AP137: 2 | AQ137: bussi | AR137: 3 | AS137: 11 | AT137: 3.666666667 | AU137: 9 | AV137: 0 | AW137: 0 | AX137: 0 | AY137: 0 | AZ137: 0 | BA137: 0 | BB137: 0 | BC137: 0 | BD137: 0 | BE137: 0 | BF137: 0 | BG137: 0 | BH137: 2 | BI137: 11 | BJ137: 3.666666667 | BK137: 2510.848048 | BL137: 0.9995414203 | BM137: 1 | BN137: 2510.848048 | BO137: 0.9995414203 | BP137: 1 | BQ137: 1 | BR137: 1475.108832 | BS137: 0.5872248536 | BT137: 1 | BU137: 428.5429936 | BV137: 1 | BW137: 0 | BX137: 0 | BY137: 0 | BZ137: 1 | CA137: 6 | CB137: 2 | CC137: 28 | CD137: 9.333333333 | CE137: 2 | CL137: https://www.google.com/maps/@60.5877523221,27.1506049192,3a,75y,90t/data=!3m3!1e1!3m1!2e0 | CN137: 3 | CP137: 0 | CR137: 0 | CS137: 0 | CT137: 0 | CU137: 0 | CV137: 0 | CW137: 0 | CX137: 0 | CY137: 0 | CZ137: 0 | DC137: 0 | DE137: 298.9593717 | DH137: 0 | DI137: 0 | DJ137: 0 | DM137: 1 | DN137: 0 | DO137: 13.46
A138: 14867_2 | B138: 2 | D138: 100 | E138: 100 | F138: 0 | G138: 9.32 | H138: 2 | I138: 0 | J138: Gmaps | K138: KESKI | L138: Yhdys | M138: Salosaarentie, Äitsaarentie | N138: Ruokolahti | O138: Etelä-Karjala | P138: 14867 | Q138: 2 | R138: 0 | S138: 2 | T138: 4196 | U138: 4196 | V138: 700 | W138: 48 | X138: 1106 | Y138: 700 (100 %) | Z138: 50 (29 %), 80 (72 %) | AA138: II (100 %) | AB138: PAB (100 %) | AC138: Y3 (100 %) | AD138: 0 | AE138: 2 | AF138: 0 | AG138: 12 | AL138: 9 | AM138: 0 | AN138: 0 | AO138: 72 | AP138: 0.48 | AQ138: bussi | AR138: 3 | AS138: 9.48 | AT138: 3.16 | AU138: 8.64 | AV138: 2 | AW138: 0 | AX138: 1 | AY138: 0 | AZ138: 0 | BA138: 0.24 | BB138: 0.1 | BC138: 0 | BD138: 0.5 | BE138: 0 | BF138: 0 | BG138: 0 | BH138: 2 | BI138: 14.48 | BJ138: 4.826666667 | BK138: 0 | BL138: 0 | BM138: 0 | BN138: 0 | BO138: 0 | BP138: 0 | BQ138: 0 | BR138: 0 | BS138: 0 | BT138: 0 | BU138: 1.263107722 | BV138: 0.5 | BW138: 1.5 | BX138: 0 | BY138: 1 | BZ138: 1 | CA138: 4 | CB138: 1.333333333 | CC138: 27.96 | CD138: 9.32 | CE138: 2 | CL138: https://www.google.com/maps/@61.2959825534,28.7383208329,3a,75y,90t/data=!3m3!1e1!3m1!2e0 | CN138: 3 | CP138: 1 | CR138: 0 | CS138: 3 | CT138: 0 | CU138: 0 | CV138: 144 | CW138: 20 | CX138: 0 | CY138: 46 | CZ138: 0 | DC138: 0 | DE138: 0 | DH138: 1.5 | DI138: 1.5 | DJ138: 3 | DM138: 1 | DN138: 0 | DO138: 3.000128116
A139: 14625_1 | B139: 2 | D139: 101 | E139: 101 | F139: 0 | G139: 9.311111111 | H139: 2 | I139: 0 | J139: Gmaps | K139: KESKI | L139: Yhdys | M139: Inkeroistentie, Keltakankaansuora, Keltakankaantie | N139: Kouvola | O139: Kymenlaakso | P139: 14625 | Q139: 1 | R139: 0 | S139: 1 | T139: 5255 | U139: 5255 | V139: 3064.063749 | W139: 239.6098953 | X139: 3192.724072 | Y139: 1810 (8 %), 3173 (92 %) | Z139: 40 (8 %), 50 (11 %), 60 (25 %), 80 (57 %) | AA139: Is (100 %) | AB139: AB (100 %) | AC139: Y2 (100 %) | AD139: 1 | AE139: 7 | AF139: 0.6574867773 | AG139: 133.1246432 | AL139: 9 | AM139: 2 | AN139: 0.6 | AO139: 689 | AP139: 2 | AQ139: bussi | AR139: 3 | AS139: 11.6 | AT139: 3.866666667 | AU139: 9 | AV139: 0 | AW139: 0 | AX139: 0 | AY139: 0 | AZ139: 0 | BA139: 0 | BB139: 0 | BC139: 0 | BD139: 0 | BE139: 0 | BF139: 0.3333333333 | BG139: 0 | BH139: 2 | BI139: 11.33333333 | BJ139: 3.777777778 | BK139: 4695.133709 | BL139: 0.8934602681 | BM139: 1 | BN139: 5256.889144 | BO139: 1.000359495 | BP139: 1 | BQ139: 1 | BR139: 2247.421415 | BS139: 0.4276729619 | BT139: 0 | BU139: 161.8458611 | BV139: 1 | BW139: 0 | BX139: 0 | BY139: 0 | BZ139: 1 | CA139: 5 | CB139: 1.666666667 | CC139: 27.93333333 | CD139: 9.311111111 | CE139: 2 | CL139: https://www.google.com/maps/@60.7493559039,26.8233032604,3a,75y,90t/data=!3m3!1e1!3m1!2e0 | CN139: 3 | CP139: 0 | CR139: 0 | CS139: 0 | CT139: 0 | CU139: 0 | CV139: 0 | CW139: 0 | CX139: 0 | CY139: 0 | CZ139: 0 | DC139: 1 | DE139: 4915.271012 | DH139: 0 | DI139: 0 | DJ139: 0 | DM139: 1 | DN139: 0 | DO139: 18.09597427
A140: 377_6 | B140: 2 | D140: 102 | E140: 102 | F140: 0 | G140: 9.269444444 | H140: 2 | I140: 0 | J140: Gmaps | K140: KESKI | L140: Seutu | M140: Tuohikotintie | N140: Savitaipale | O140: Etelä-Karjala | P140: 377 | Q140: 6 | R140: 0 | S140: 6 | T140: 5890 | U140: 5890 | V140: 758 | W140: 58 | X140: 1121 | Y140: 758 (100 %) | Z140: 80 (100 %) | AA140: II (100 %) | AB140: AB (100 %) | AC140: Y2 (100 %) | AD140: 0 | AE140: 2 | AF140: 0 | AG140: 23 | AL140: 9 | AM140: 0 | AN140: 0 | AO140: 135 | AP140: 0.9 | AQ140: taksi | AR140: 1.5 | AS140: 9.9 | AT140: 3.3 | AU140: 9 | AV140: 2 | AW140: 0 | AX140: 0 | AY140: 0 | AZ140: 1 | BA140: 0.4083333333 | BB140: 0.15 | BC140: 0 | BD140: 0.35 | BE140: 0 | BF140: 0 | BG140: 0 | BH140: 2 | BI140: 14.90833333 | BJ140: 4.969444444 | BK140: 1638.684484 | BL140: 0.2782146831 | BM140: 0.5 | BN140: 0 | BO140: 0 | BP140: 0 | BQ140: 1 | BR140: 0 | BS140: 0 | BT140: 0 | BU140: 2.054329372 | BV140: 0.5 | BW140: 0 | BX140: 0 | BY140: 0 | BZ140: 1 | CA140: 3 | CB140: 1 | CC140: 27.80833333 | CD140: 9.269444444 | CE140: 2 | CL140: https://www.google.com/maps/@61.1340586041,27.5346208709,3a,75y,90t/data=!3m3!1e1!3m1!2e0 | CN140: 1 | CP140: 1 | CR140: 0 | CS140: 0 | CT140: 0 | CU140: 3 | CV140: 245 | CW140: 30 | CX140: 0 | CY140: 21 | CZ140: 0 | DC140: 0 | DE140: 29499.08862 | DH140: 0 | DI140: 0 | DJ140: 0 | DM140: 1 | DN140: 0 | DO140: 5.784246497
A141: 408_5 | B141: 2 | D141: 103 | E141: 103 | F141: 0 | G141: 9.269260231 | H141: 2 | I141: 0 | J141: Gmaps | K141: KESKI | L141: Seutu | M141: Savilahdentie | N141: Taipalsaari | O141: Etelä-Karjala | P141: 408 | Q141: 5 | R141: 0 | S141: 5 | T141: 4816 | U141: 4816 | V141: 674 | W141: 51 | X141: 937 | Y141: 674 (100 %) | Z141: 50 (3 %), 60 (53 %), 80 (44 %) | AA141: II (100 %) | AB141: AB (39 %), PAB (61 %) | AC141: Y2 (100 %) | AD141: 1 | AE141: 3 | AF141: 0 | AG141: 10 | AL141: 9 | AM141: 0 | AN141: 0 | AO141: 105 | AP141: 0.7 | AQ141: taksi | AR141: 1.5 | AS141: 9.7 | AT141: 3.233333333 | AU141: 9 | AV141: 2 | AW141: 0 | AX141: 1 | AY141: 1 | AZ141: 1 | BA141: 0.3566666667 | BB141: 0.295 | BC141: 0 | BD141: 0 | BE141: 0 | BF141: 0 | BG141: 0 | BH141: 1.956114025 | BI141: 16.60778069 | BJ141: 5.535926897 | BK141: 0 | BL141: 0 | BM141: 0 | BN141: 0 | BO141: 0 | BP141: 0 | BQ141: 0 | BR141: 0 | BS141: 0 | BT141: 0 | BU141: 18.50083056 | BV141: 0.5 | BW141: 0 | BX141: 0 | BY141: 0 | BZ141: 1 | CA141: 1.5 | CB141: 0.5 | CC141: 27.80778069 | CD141: 9.269260231 | CE141: 2 | CL141: https://www.google.com/maps/@61.2125585328,27.9478186529,3a,75y,90t/data=!3m3!1e1!3m1!2e0 | CN141: 1 | CP141: 1 | CR141: 0 | CS141: 1 | CT141: 3 | CU141: 3 | CV141: 214 | CW141: 59 | CX141: 0 | CY141: 0 | CZ141: 0 | DC141: 0 | DE141: 0 | DH141: 0 | DI141: 0 | DJ141: 0 | DM141: 1 | DN141: 0 | DO141: 2.934171038
A142: 359_6 | B142: 2 | D142: 104 | E142: 104 | F142: 0 | G142: 9.217814249 | H142: 2 | I142: 0 | J142: Gmaps | K142: KESKI | L142: Seutu | M142: Venäläistöyryntie | N142: Kouvola | O142: Kymenlaakso | P142: 359 | Q142: 6 | R142: 0 | S142: 6 | T142: 933 | U142: 933 | V142: 1502 | W142: 121 | X142: 1768 | Y142: 1502 (100 %) | Z142: 60 (67 %), 80 (33 %) | AA142: Ib (100 %) | AB142: AB (100 %) | AC142: Y2 (100 %) | AD142: 0 | AE142: 0 | AF142: 0.03536977492 | AG142: 59 | AL142: 9 | AM142: 0 | AN142: 0 | AO142: 1093 | AP142: 2 | AQ142: pikkubussi | AR142: 1.5 | AS142: 11 | AT142: 3.666666667 | AU142: 9 | AV142: 2 | AW142: 0 | AX142: 0 | AY142: 0 | AZ142: 0 | BA142: 0 | BB142: 0.02 | BC142: 0 | BD142: 0.1333333333 | BE142: 0 | BF142: 0 | BG142: 0 | BH142: 1.000109413 | BI142: 12.15344275 | BJ142: 4.051147582 | BK142: 0 | BL142: 0 | BM142: 0 | BN142: 935.2756796 | BO142: 1.002439099 | BP142: 1 | BQ142: 1 | BR142: 556.9876312 | BS142: 0.5969856711 | BT142: 1 | BU142: 46.08788853 | BV142: 0.5 | BW142: 0 | BX142: 0 | BY142: 0 | BZ142: 1 | CA142: 4.5 | CB142: 1.5 | CC142: 27.65344275 | CD142: 9.217814249 | CE142: 2 | CL142: https://www.google.com/maps/@60.8607320748,26.5695284947,3a,75y,90t/data=!3m3!1e1!3m1!2e0 | CN142: 2 | CP142: 1 | CR142: 0 | CS142: 0 | CT142: 0 | CU142: 0 | CV142: 0 | CW142: 4 | CX142: 0 | CY142: 8 | CZ142: 0 | DC142: 0 | DE142: 2805.827039 | DH142: 0 | DI142: 0 | DJ142: 0 | DM142: 1 | DN142: 0 | DO142: 1.50016412
A143: 357_3 | B143: 2 | D143: 105 | E143: 105 | F143: 0 | G143: 9.215550276 | H143: 2 | I143: 0 | J143: Gmaps | K143: KESKI | L143: Seutu | M143: Hurukselantie | N143: Kotka | O143: Kymenlaakso | P143: 357 | Q143: 3 | R143: 0 | S143: 3 | T143: 6420 | U143: 6420 | V143: 1377 | W143: 93 | X143: 1686 | Y143: 1377 (100 %) | Z143: 80 (100 %) | AA143: Ib (100 %) | AB143: AB (100 %) | AC143: Y2 (100 %) | AD143: 1 | AE143: 4 | AF143: 0 | AG143: 41 | AL143: 9 | AM143: 0 | AN143: 0 | AO143: 172 | AP143: 1.146666667 | AQ143: bussi | AR143: 3 | AS143: 10.14666667 | AT143: 3.382222222 | AU143: 9 | AV143: 2 | AW143: 0 | AX143: 0 | AY143: 0 | AZ143: 0 | BA143: 0 | BB143: 0 | BC143: 0 | BD143: 0 | BE143: 0 | BF143: 0 | BG143: 0 | BH143: 1.999984162 | BI143: 12.99998416 | BJ143: 4.333328054 | BK143: 0 | BL143: 0 | BM143: 0 | BN143: 6415.367135 | BO143: 0.9992783699 | BP143: 1 | BQ143: 1 | BR143: 0 | BS143: 0 | BT143: 0 | BU143: 4.190031153 | BV143: 0.5 | BW143: 0 | BX143: 0 | BY143: 1 | BZ143: 1 | CA143: 4.5 | CB143: 1.5 | CC143: 27.64665083 | CD143: 9.215550276 | CE143: 2 | CL143: https://www.google.com/maps/@60.6053451987,26.8246653174,3a,75y,90t/data=!3m3!1e1!3m1!2e0 | CN143: 3 | CP143: 1 | CR143: 0 | CS143: 0 | CT143: 0 | CU143: 0 | CV143: 0 | CW143: 0 | CX143: 0 | CY143: 0 | CZ143: 0 | DC143: 0 | DE143: 6415.367135 | DH143: 0 | DI143: 0 | DJ143: 2 | DM143: 1 | DN143: 0 | DO143: 2.999976244
A144: 3573_1 | B144: 2 | D144: 106 | E144: 106 | F144: 0 | G144: 9.204828332 | H144: 2 | I144: 0 | J144: Gmaps | K144: KESKI | L144: Yhdys | M144: Kymintie | N144: Kotka | O144: Kymenlaakso | P144: 3573 | Q144: 1 | R144: 0 | S144: 1 | T144: 3148 | U144: 3148 | V144: 3489.123253 | W144: 116.3100381 | X144: 4215.121982 | Y144: 2710 (49 %), 4224 (50 %) | Z144: 40 (36 %), 50 (61 %), 60 (1 %) | AA144: Is (98 %) | AB144: AB (98 %) | AC144: Y2 (98 %) | AD144: 0 | AE144: 4 | AF144: 0.006382978723 | AG144: 23.0292249 | AL144: 9 | AM144: 0 | AN144: 0 | AO144: 707 | AP144: 2 | AQ144: bussi | AR144: 3 | AS144: 11 | AT144: 3.666666667 | AU144: 9 | AV144: 0 | AW144: 0 | AX144: 0 | AY144: 0 | AZ144: 0 | BA144: 0 | BB144: 0 | BC144: 0 | BD144: 0 | BE144: 0 | BF144: 0.6666666667 | BG144: 0 | BH144: 0.9478183303 | BI144: 10.614485 | BJ144: 3.538161666 | BK144: 3094.326205 | BL144: 0.9829498744 | BM144: 1 | BN144: 3094.326205 | BO144: 0.9829498744 | BP144: 1 | BQ144: 0 | BR144: 2510.77678 | BS144: 0.7975783928 | BT144: 1 | BU144: 425.7306226 | BV144: 1 | BW144: 0 | BX144: 0 | BY144: 1 | BZ144: 1 | CA144: 6 | CB144: 2 | CC144: 27.614485 | CD144: 9.204828332 | CE144: 2 | CL144: https://www.google.com/maps/@60.5069891837,26.8975583906,3a,75y,90t/data=!3m3!1e1!3m1!2e0 | CN144: 3 | CP144: 0 | CR144: 0 | CS144: 0 | CT144: 0 | CU144: 0 | CV144: 0 | CW144: 0 | CX144: 0 | CY144: 0 | CZ144: 0 | DC144: 2 | DE144: 0 | DH144: 0 | DI144: 0 | DJ144: 1 | DM144: 1 | DN144: 0 | DO144: 1.421727496
A145: 408_4 | B145: 2 | D145: 107 | E145: 107 | F145: 0 | G145: 9.203197341 | H145: 2 | I145: 0 | J145: Gmaps | K145: KESKI | L145: Seutu | M145: Savilahdentie | N145: Taipalsaari | O145: Etelä-Karjala | P145: 408 | Q145: 4 | R145: 0 | S145: 4 | T145: 4994 | U145: 4994 | V145: 1527 | W145: 54 | X145: 1920 | Y145: 1527 (100 %) | Z145: 50 (21 %), 60 (37 %), 80 (42 %) | AA145: II (100 %) | AB145: AB (85 %), PAB (15 %) | AC145: Y2 (100 %) | AD145: 2 | AE145: 2 | AF145: 0.02002402883 | AG145: 11 | AL145: 9 | AM145: 3 | AN145: 0.9 | AO145: 127 | AP145: 0.8466666667 | AQ145: taksi | AR145: 1.5 | AS145: 10.74666667 | AT145: 3.582222222 | AU145: 9 | AV145: 2 | AW145: 0 | AX145: 1 | AY145: 0 | AZ145: 1 | BA145: 0.1516666667 | BB145: 0.225 | BC145: 0 | BD145: 0 | BE145: 0 | BF145: 0 | BG145: 0 | BH145: 1.986258691 | BI145: 15.36292536 | BJ145: 5.120975119 | BK145: 0 | BL145: 0 | BM145: 0 | BN145: 0 | BO145: 0 | BP145: 0 | BQ145: 0 | BR145: 0 | BS145: 0 | BT145: 0 | BU145: 15.57869443 | BV145: 0.5 | BW145: 0 | BX145: 0 | BY145: 0 | BZ145: 1 | CA145: 1.5 | CB145: 0.5 | CC145: 27.60959202 | CD145: 9.203197341 | CE145: 2 | CL145: https://www.google.com/maps/@61.182252872,28.0009633756,3a,75y,90t/data=!3m3!1e1!3m1!2e0 | CN145: 1 | CP145: 1 | CR145: 0 | CS145: 1 | CT145: 0 | CU145: 1 | CV145: 91 | CW145: 45 | CX145: 0 | CY145: 0 | CZ145: 0 | DC145: 0 | DE145: 0 | DH145: 0 | DI145: 0 | DJ145: 0 | DM145: 1 | DN145: 0 | DO145: 2.979388036
A146: 3571_1 | B146: 2 | D146: 108 | E146: 108 | F146: 0 | G146: 9.156441748 | H146: 2 | I146: 0 | J146: Gmaps | K146: KESKI | L146: Yhdys | M146: Karhulantie | N146: Kotka | O146: Kymenlaakso | P146: 3571 | Q146: 1 | R146: 1480 | S146: 1 | T146: 4318 | U146: 2838 | V146: 2060.847075 | W146: 78.67723749 | X146: 2538.73432 | Y146: 1170 (47 %), 2851 (53 %) | Z146: 50 (100 %) | AA146: Ib (47 %), Is (53 %) | AB146: AB (100 %) | AC146: Y2 (100 %) | AD146: 0 | AE146: 3 | AF146: 0.006298110567 | AG146: 25.53911205 | AL146: 9 | AM146: 0 | AN146: 0 | AO146: 502 | AP146: 2 | AQ146: bussi | AR146: 3 | AS146: 11 | AT146: 3.666666667 | AU146: 9 | AV146: 0 | AW146: 0 | AX146: 0 | AY146: 0 | AZ146: 1 | BA146: 0 | BB146: 0 | BC146: 0 | BD146: 0 | BE146: 0 | BF146: 1 | BG146: 0 | BH146: 0.4693252444 | BI146: 11.46932524 | BJ146: 3.823108415 | BK146: 2828.32402 | BL146: 0.9965905637 | BM146: 1 | BN146: 1877.82105 | BO146: 0.6616705601 | BP146: 1 | BQ146: 0 | BR146: 2828.32402 | BS146: 0.9965905637 | BT146: 1 | BU146: 251.5856237 | BV146: 1 | BW146: 0 | BX146: 0 | BY146: 0 | BZ146: 1 | CA146: 5 | CB146: 1.666666667 | CC146: 27.46932524 | CD146: 9.156441748 | CE146: 2 | CL146: https://www.google.com/maps/@60.5280438272,26.9206563977,3a,75y,90t/data=!3m3!1e1!3m1!2e0 | CN146: 3 | CP146: 0 | CR146: 0 | CS146: 0 | CT146: 0 | CU146: 1 | CV146: 0 | CW146: 0 | CX146: 0 | CY146: 0 | CZ146: 0 | DC146: 3 | DE146: 0 | DH146: 0 | DI146: 0 | DJ146: 0 | DM146: 1 | DN146: 0 | DO146: 0.7039878666
A147: 4071_1 | B147: 2 | D147: 109 | E147: 109 | F147: 0 | G147: 9.131376579 | H147: 2 | I147: 0 | J147: Gmaps | K147: KESKI | L147: Yhdys | M147: Muukontie, Partalantie | N147: Lappeenranta | O147: Etelä-Karjala | P147: 4071 | Q147: 1 | R147: 4344 | S147: 1 | T147: 5427 | U147: 1083 | V147: 2149 | W147: 57 | X147: 2485 | Y147: 2149 (99 %) | Z147: 50 (99 %) | AA147: II (99 %) | AB147: AB (99 %) | AC147: Y2 (99 %) | AD147: 0 | AE147: 1 | AF147: 0.1369622476 | AG147: 7 | AL147: 9 | AM147: 0 | AN147: 0 | AO147: 566 | AP147: 2 | AQ147: bussi | AR147: 3 | AS147: 11 | AT147: 3.666666667 | AU147: 9 | AV147: 0 | AW147: 0 | AX147: 0 | AY147: 0 | AZ147: 1 | BA147: 0.05666666667 | BB147: 0 | BC147: 0 | BD147: 0 | BE147: 0 | BF147: 1 | BG147: 0 | BH147: 0.3374630699 | BI147: 11.39412974 | BJ147: 3.798043246 | BK147: 1076.53755 | BL147: 0.9940328254 | BM147: 1 | BN147: 382.1838084 | BO147: 0.3528936366 | BP147: 1 | BQ147: 1 | BR147: 430.6353195 | BS147: 0.397631874 | BT147: 0 | BU147: 147.5530933 | BV147: 1 | BW147: 0 | BX147: 0 | BY147: 0 | BZ147: 1 | CA147: 5 | CB147: 1.666666667 | CC147: 27.39412974 | CD147: 9.131376579 | CE147: 2 | CL147: https://www.google.com/maps/@61.0838095674,28.3334703399,3a,75y,90t/data=!3m3!1e1!3m1!2e0 | CN147: 3 | CP147: 0 | CR147: 0 | CS147: 0 | CT147: 0 | CU147: 2 | CV147: 34 | CW147: 0 | CX147: 0 | CY147: 0 | CZ147: 0 | DC147: 7 | DE147: 526.3755467 | DH147: 0 | DI147: 0 | DJ147: 0 | DM147: 1 | DN147: 0 | DO147: 0.5061946048
A148: 4052_6 | B148: 2 | D148: 110 | E148: 110 | F148: 0 | G148: 9.113604049 | H148: 2 | I148: 0 | J148: Gmaps | K148: KESKI | L148: Yhdys | M148: Melkoniementie | N148: Parikkala | O148: Etelä-Karjala | P148: 4052 | Q148: 6 | R148: 0 | S148: 6 | T148: 3947 | U148: 3947 | V148: 635.2467697 | W148: 32.83481125 | X148: 906.7582974 | Y148: 590 (83 %), 861 (17 %) | Z148: 40 (23 %), 60 (26 %), 80 (51 %) | AA148: II (100 %) | AB148: AB (80 %), PAB (20 %) | AC148: Y3 (100 %) | AD148: 0 | AE148: 0 | AF148: 0.08791487205 | AG148: 5.3339245 | AL148: 9 | AM148: 0 | AN148: 0 | AO148: 135 | AP148: 0.9 | AQ148: taksi | AR148: 1.5 | AS148: 9.9 | AT148: 3.3 | AU148: 5.910266025 | AV148: 2 | AW148: 0 | AX148: 1 | AY148: 0 | AZ148: 1 | BA148: 0.5 | BB148: 0.5 | BC148: 0 | BD148: 0.08333333333 | BE148: 1 | BF148: 0 | BG148: 0 | BH148: 1.947212788 | BI148: 13.94081215 | BJ148: 4.646937382 | BK148: 0 | BL148: 0 | BM148: 0 | BN148: 0 | BO148: 0 | BP148: 0 | BQ148: 1 | BR148: 1755.640792 | BS148: 0.4448038491 | BT148: 0 | BU148: 34.68457056 | BV148: 0.5 | BW148: 0 | BX148: 0 | BY148: 1 | BZ148: 1 | CA148: 3.5 | CB148: 1.166666667 | CC148: 27.34081215 | CD148: 9.113604049 | CE148: 2 | CL148: https://www.google.com/maps/@61.6077355553,29.4121763344,3a,75y,90t/data=!3m3!1e1!3m1!2e0 | CN148: 1 | CP148: 1 | CR148: 0 | CS148: 1 | CT148: 0 | CU148: 4 | CV148: 316 | CW148: 277 | CX148: 0 | CY148: 5 | CZ148: 1 | DC148: 0 | DE148: 3952.401671 | DH148: 0 | DI148: 0 | DJ148: 2 | DM148: 1 | DN148: 0 | DO148: 2.920819183
A149: 354_4 | B149: 2 | D149: 111 | E149: 111 | F149: 0 | G149: 9.111111111 | H149: 2 | I149: 0 | J149: Gmaps | K149: KESKI | L149: Seutu | M149: Elimäentie | N149: Kouvola | O149: Kymenlaakso | P149: 354 | Q149: 4 | R149: 0 | S149: 4 | T149: 3567 | U149: 3567 | V149: 1695 | W149: 172 | X149: 1935 | Y149: 1695 (100 %) | Z149: 60 (33 %), 80 (66 %) | AA149: Ib (100 %) | AB149: AB (100 %) | AC149: Y2 (100 %) | AD149: 2 | AE149: 4 | AF149: 0 | AG149: 104 | AL149: 9 | AM149: 0 | AN149: 0 | AO149: 275 | AP149: 1.833333333 | AQ149: bussi | AR149: 3 | AS149: 10.83333333 | AT149: 3.611111111 | AU149: 9 | AV149: 2 | AW149: 0 | AX149: 0 | AY149: 0 | AZ149: 1 | BA149: 0 | BB149: 0 | BC149: 0 | BD149: 0 | BE149: 0 | BF149: 0 | BG149: 0 | BH149: 2 | BI149: 14 | BJ149: 4.666666667 | BK149: 0 | BL149: 0 | BM149: 0 | BN149: 3562.382978 | BO149: 0.998705629 | BP149: 1 | BQ149: 0 | BR149: 0 | BS149: 0 | BT149: 0 | BU149: 21.53069807 | BV149: 0.5 | BW149: 0 | BX149: 0 | BY149: 0 | BZ149: 1 | CA149: 2.5 | CB149: 0.8333333333 | CC149: 27.33333333 | CD149: 9.111111111 | CE149: 2 | CL149: https://www.google.com/maps/@60.6923740613,26.7007199205,3a,75y,90t/data=!3m3!1e1!3m1!2e0 | CN149: 3 | CP149: 1 | CR149: 0 | CS149: 0 | CT149: 0 | CU149: 1 | CV149: 0 | CW149: 0 | CX149: 0 | CY149: 0 | CZ149: 0 | DC149: 0 | DE149: 0 | DH149: 0 | DI149: 0 | DJ149: 0 | DM149: 1 | DN149: 0 | DO149: 6.000145277
A150: 14832_2 | B150: 2 | D150: 111 | E150: 111 | F150: 0 | G150: 9.111111111 | H150: 2 | I150: 0 | J150: Gmaps | K150: KESKI | L150: Yhdys | M150: Haukilahdentie, Saimaantie | N150: Lappeenranta | O150: Etelä-Karjala | P150: 14832 | Q150: 2 | R150: 0 | S150: 2 | T150: 2917 | U150: 2917 | V150: 1435 | W150: 285 | X150: 1564 | Y150: 1435 (100 %) | Z150: 40 (20 %), 50 (80 %) | AA150: II (100 %) | AB150: AB (100 %) | AC150: Y2 (100 %) | AD150: 0 | AE150: 2 | AF150: 0.348645869 | AG150: 246 | AL150: 9 | AM150: 0 | AN150: 0 | AO150: 490 | AP150: 2 | AQ150: bussi | AR150: 3 | AS150: 11 | AT150: 3.666666667 | AU150: 9 | AV150: 0 | AW150: 0 | AX150: 0 | AY150: 0 | AZ150: 0 | BA150: 0 | BB150: 0 | BC150: 0 | BD150: 0 | BE150: 0 | BF150: 0.3333333333 | BG150: 0 | BH150: 2 | BI150: 11.33333333 | BJ150: 3.777777778 | BK150: 2910.069514 | BL150: 0.997624105 | BM150: 1 | BN150: 2910.069514 | BO150: 0.997624105 | BP150: 1 | BQ150: 0 | BR150: 2910.069514 | BS150: 0.997624105 | BT150: 1 | BU150: 287.1786082 | BV150: 1 | BW150: 0 | BX150: 0 | BY150: 0 | BZ150: 1 | CA150: 5 | CB150: 1.666666667 | CC150: 27.33333333 | CD150: 9.111111111 | CE150: 2 | CL150: https://www.google.com/maps/@61.1270374864,28.4510647724,3a,75y,90t/data=!3m3!1e1!3m1!2e0 | CN150: 3 | CP150: 0 | CR150: 0 | CS150: 0 | CT150: 0 | CU150: 0 | CV150: 0 | CW150: 0 | CX150: 0 | CY150: 0 | CZ150: 0 | DC150: 1 | DE150: 0 | DH150: 0 | DI150: 0 | DJ150: 0 | DM150: 1 | DN150: 0 | DO150: 17.58443296
A151: 4081_2 | B151: 2 | D151: 113 | E151: 113 | F151: 0 | G151: 9.102224294 | H151: 2 | I151: 0 | J151: Gmaps | K151: KESKI | L151: Yhdys | M151: Mantereentie, Vehkataipaleentie | N151: Lappeenranta, Taipalsaari | O151: Etelä-Karjala | P151: 4081 | Q151: 2 | R151: 0 | S151: 2 | T151: 6644 | U151: 6644 | V151: 1207 | W151: 58 | X151: 1492 | Y151: 1207 (100 %) | Z151: 60 (9 %), 80 (90 %) | AA151: II (100 %) | AB151: AB (100 %) | AC151: Y2 (100 %) | AD151: 3 | AE151: 5 | AF151: 0 | AG151: 14 | AL151: 9 | AM151: 0 | AN151: 0 | AO151: 244 | AP151: 1.626666667 | AQ151: taksi | AR151: 1.5 | AS151: 10.62666667 | AT151: 3.542222222 | AU151: 9 | AV151: 0 | AW151: 0 | AX151: 1 | AY151: 1 | AZ151: 1 | BA151: 0.02 | BB151: 0 | BC151: 0 | BD151: 0.4666666667 | BE151: 0 | BF151: 0.3333333333 | BG151: 0 | BH151: 0.8600062148 | BI151: 13.68000621 | BJ151: 4.560002072 | BK151: 2646.215955 | BL151: 0.3982865677 | BM151: 0.5 | BN151: 0 | BO151: 0 | BP151: 0 | BQ151: 0 | BR151: 0 | BS151: 0 | BT151: 0 | BU151: 23.11860325 | BV151: 0.5 | BW151: 0 | BX151: 0 | BY151: 1 | BZ151: 1 | CA151: 3 | CB151: 1 | CC151: 27.30667288 | CD151: 9.102224294 | CE151: 2 | CL151: https://www.google.com/maps/@61.1038679579,28.2455424805,3a,75y,90t/data=!3m3!1e1!3m1!2e0 | CN151: 1 | CP151: 0 | CR151: 0 | CS151: 5 | CT151: 1 | CU151: 3 | CV151: 12 | CW151: 0 | CX151: 0 | CY151: 28 | CZ151: 0 | DC151: 1 | DE151: 0 | DH151: 0 | DI151: 0 | DJ151: 3 | DM151: 1 | DN151: 0 | DO151: 1.290009322
A152: 367_2 | B152: 2 | D152: 114 | E152: 114 | F152: 0 | G152: 9.032187764 | H152: 2 | I152: 0 | J152: Gmaps | K152: KESKI | L152: Seutu | M152: Kymenlaaksontie | N152: Kouvola | O152: Kymenlaakso | P152: 367 | Q152: 2 | R152: 0 | S152: 2 | T152: 3046 | U152: 3046 | V152: 3092 | W152: 131 | X152: 3354 | Y152: 3092 (100 %) | Z152: 60 (8 %), 80 (92 %) | AA152: Is (100 %) | AB152: AB (100 %) | AC152: Y2 (100 %) | AD152: 2 | AE152: 9 | AF152: 0.01430348259 | AG152: 43 | AL152: 9 | AM152: 0 | AN152: 0 | AO152: 1620 | AP152: 2 | AQ152: bussi | AR152: 3 | AS152: 11 | AT152: 3.666666667 | AU152: 9 | AV152: 2 | AW152: 0 | AX152: 0 | AY152: 0 | AZ152: 1 | BA152: 0 | BB152: 0.02 | BC152: 0 | BD152: 0 | BE152: 0 | BF152: 0.6666666667 | BG152: 0 | BH152: 0.9098966262 | BI152: 13.59656329 | BJ152: 4.532187764 | BK152: 0 | BL152: 0 | BM152: 0 | BN152: 0 | BO152: 0 | BP152: 0 | BQ152: 1 | BR152: 0 | BS152: 0 | BT152: 0 | BU152: 8.732764281 | BV152: 0.5 | BW152: 0 | BX152: 0 | BY152: 0 | BZ152: 1 | CA152: 2.5 | CB152: 0.8333333333 | CC152: 27.09656329 | CD152: 9.032187764 | CE152: 2 | CL152: https://www.google.com/maps/@60.8304003332,26.7359214211,3a,75y,90t/data=!3m3!1e1!3m1!2e0 | CN152: 3 | CP152: 1 | CR152: 0 | CS152: 0 | CT152: 0 | CU152: 2 | CV152: 0 | CW152: 4 | CX152: 0 | CY152: 0 | CZ152: 0 | DC152: 2 | DE152: 3041.966728 | DH152: 0 | DI152: 0 | DJ152: 0 | DM152: 1 | DN152: 0 | DO152: 1.364844939
A153: 409_1 | B153: 2 | D153: 115 | E153: 115 | F153: 0 | G153: 9.004454618 | H153: 2 | I153: 0 | J153: Gmaps | K153: KESKI | L153: Seutu | M153: Partakoskentie, Savitaipaleentie | N153: Savitaipale | O153: Etelä-Karjala | P153: 409 | Q153: 1 | R153: 0 | S153: 1 | T153: 7800 | U153: 7800 | V153: 589.7028205 | W153: 32.58230769 | X153: 806.0323077 | Y153: 391 (78 %), 1247 (8 %), 1360 (13 %) | Z153: 40 (21 %), 50 (7 %), 60 (9 %), 80 (62 %) | AA153: II (100 %) | AB153: AB (23 %), PAB (77 %) | AC153: Y3 (100 %) | AD153: 1 | AE153: 2 | AF153: 0.2051282051 | AG153: 5.605128205 | AL153: 9 | AM153: 8 | AN153: 2.4 | AO153: 363 | AP153: 2 | AQ153: taksi | AR153: 1.5 | AS153: 13.4 | AT153: 4.466666667 | AU153: 5.864815385 | AV153: 2 | AW153: 0 | AX153: 0 | AY153: 0 | AZ153: 0 | BA153: 0.04833333333 | BB153: 0 | BC153: 0 | BD153: 0 | BE153: 0 | BF153: 0.3333333333 | BG153: 0 | BH153: 1.366881803 | BI153: 9.613363855 | BJ153: 3.204454618 | BK153: 3869.898756 | BL153: 0.4961408662 | BM153: 0.5 | BN153: 0 | BO153: 0 | BP153: 0 | BQ153: 1 | BR153: 3082.766366 | BS153: 0.3952264572 | BT153: 0 | BU153: 56.14102564 | BV153: 0.5 | BW153: 0 | BX153: 0 | BY153: 1 | BZ153: 1 | CA153: 4 | CB153: 1.333333333 | CC153: 27.01336385 | CD153: 9.004454618 | CE153: 2 | CL153: https://www.google.com/maps/@61.1912400784,27.7078906212,3a,75y,90t/data=!3m3!1e1!3m1!2e0 | CN153: 1 | CP153: 1 | CR153: 0 | CS153: 0 | CT153: 0 | CU153: 0 | CV153: 29 | CW153: 0 | CX153: 0 | CY153: 0 | CZ153: 0 | DC153: 1 | DE153: 1036.834171 | DH153: 0 | DI153: 0 | DJ153: 3 | DM153: 1 | DN153: 0 | DO153: 2.050322705
A154: 170_23 | B154: 2 | D154: 116 | E154: 116 | F154: 0 | G154: 9.00119977 | H154: 2 | I154: 0 | J154: Gmaps | K154: KESKI | L154: Seutu | M154: Pyhtääntie, Valtatie | N154: Pyhtää | O154: Kymenlaakso | P154: 170 | Q154: 23 | R154: 0 | S154: 23 | T154: 4126 | U154: 4126 | V154: 1132.303684 | W154: 44.91274842 | X154: 1357.861609 | Y154: 586 (50 %), 1685 (50 %) | Z154: 40 (42 %), 50 (10 %), 80 (48 %) | AA154: Ib (100 %) | AB154: AB (100 %) | AC154: Y2 (100 %) | AD154: 0 | AE154: 0 | AF154: 0.04847309743 | AG154: 9.976732913 | AL154: 9 | AM154: 2 | AN154: 0.6 | AO154: 263 | AP154: 1.753333333 | AQ154: bussi | AR154: 3 | AS154: 11.35333333 | AT154: 3.784444444 | AU154: 8.084294716 | AV154: 0 | AW154: 0 | AX154: 0 | AY154: 0 | AZ154: 0 | BA154: 0 | BB154: 0 | BC154: 0 | BD154: 0 | BE154: 0 | BF154: 0 | BG154: 1 | BH154: 0.5659712594 | BI154: 9.650265976 | BJ154: 3.216755325 | BK154: 4118.798956 | BL154: 0.9982547155 | BM154: 1 | BN154: 4118.798956 | BO154: 0.9982547155 | BP154: 1 | BQ154: 1 | BR154: 1874.378027 | BS154: 0.4542845436 | BT154: 0 | BU154: 128.7203102 | BV154: 1 | BW154: 0 | BX154: 0 | BY154: 1 | BZ154: 1 | CA154: 6 | CB154: 2 | CC154: 27.00359931 | CD154: 9.00119977 | CE154: 2 | CL154: https://www.google.com/maps/@60.4895445172,26.4914117412,3a,75y,90t/data=!3m3!1e1!3m1!2e0 | CN154: 3 | CP154: 0 | CR154: 0 | CS154: 0 | CT154: 0 | CU154: 0 | CV154: 0 | CW154: 0 | CX154: 0 | CY154: 0 | CZ154: 0 | DC154: 0 | DE154: 4118.798956 | DH154: 0 | DI154: 0 | DJ154: 1 | DM154: 1 | DN154: 1 | DO154: 0.8489568891
A155: 3663_1 | B155: 2 | D155: 117 | E155: 117 | F155: 0 | G155: 9 | H155: 2 | I155: 0 | J155: Gmaps | K155: KESKI | L155: Yhdys | M155: Kuusaanniementie | N155: Kouvola | O155: Kymenlaakso | P155: 3663 | Q155: 1 | R155: 0 | S155: 1 | T155: 1866 | U155: 1866 | V155: 1758 | W155: 290 | X155: 1902 | Y155: 1758 (100 %) | Z155: 50 (100 %) | AA155: Ib (100 %) | AB155: AB (100 %) | AC155: Y2 (100 %) | AD155: 2 | AE155: 5 | AF155: 0.4105037513 | AG155: 252 | AL155: 9 | AM155: 0 | AN155: 0 | AO155: 643 | AP155: 2 | AQ155: pikkubussi | AR155: 1.5 | AS155: 11 | AT155: 3.666666667 | AU155: 9 | AV155: 0 | AW155: 0 | AX155: 0 | AY155: 0 | AZ155: 0 | BA155: 0 | BB155: 0 | BC155: 0 | BD155: 0 | BE155: 0 | BF155: 1 | BG155: 0 | BH155: 2 | BI155: 12 | BJ155: 4 | BK155: 1870.565047 | BL155: 1.002446435 | BM155: 1 | BN155: 0 | BO155: 0 | BP155: 0 | BQ155: 0 | BR155: 1010.722135 | BS155: 0.5416517338 | BT155: 1 | BU155: 109.2711683 | BV155: 1 | BW155: 0 | BX155: 0 | BY155: 0 | BZ155: 1 | CA155: 4 | CB155: 1.333333333 | CC155: 27 | CD155: 9 | CE155: 2 | CL155: https://www.google.com/maps/@60.9392953031,26.6484100796,3a,75y,90t/data=!3m3!1e1!3m1!2e0 | CN155: 2 | CP155: 0 | CR155: 0 | CS155: 0 | CT155: 0 | CU155: 0 | CV155: 0 | CW155: 0 | CX155: 0 | CY155: 0 | CZ155: 0 | DC155: 5 | DE155: 0 | DH155: 0 | DI155: 0 | DJ155: 0 | DM155: 1 | DN155: 0 | DO155: 10.99994461
A156: 3662_1 | B156: 2 | D156: 118 | E156: 118 | F156: 0 | G156: 9 | H156: 2 | I156: 0 | J156: Gmaps | K156: KESKI | L156: Yhdys | M156: Kuparintie, Multahovintie | N156: Kouvola | O156: Kymenlaakso | P156: 3662 | Q156: 1 | R156: 1083 | S156: 1 | T156: 10200 | U156: 9117 | V156: 916.7797521 | W156: 60.74421411 | X156: 1137.317319 | Y156: 749 (51 %), 942 (43 %), 2177 (6 %) | Z156: 50 (23 %), 60 (13 %), 80 (64 %) | AA156: Ib (6 %), Ic (94 %) | AB156: AB (15 %), PAB (84 %) | AC156: Y3 (100 %) | AD156: 5 | AE156: 16 | AF156: 0.03685092127 | AG156: 21.25150817 | AL156: 9 | AM156: 0 | AN156: 0 | AO156: 655 | AP156: 2 | AQ156: bussi | AR156: 3 | AS156: 11 | AT156: 3.666666667 | AU156: 9 | AV156: 2 | AW156: 0 | AX156: 1 | AY156: 0 | AZ156: 0 | BA156: 0 | BB156: 0 | BC156: 0 | BD156: 0 | BE156: 0 | BF156: 0 | BG156: 0 | BH156: 2 | BI156: 14 | BJ156: 4.666666667 | BK156: 1191.640536 | BL156: 0.1307053346 | BM156: 0.5 | BN156: 0 | BO156: 0 | BP156: 0 | BQ156: 0 | BR156: 1220.337672 | BS156: 0.1338529858 | BT156: 0 | BU156: 42.15202369 | BV156: 0.5 | BW156: 0 | BX156: 0 | BY156: 0 | BZ156: 1 | CA156: 2 | CB156: 0.6666666667 | CC156: 27 | CD156: 9 | CE156: 2 | CL156: https://www.google.com/maps/@60.9388116194,26.638785391,3a,75y,90t/data=!3m3!1e1!3m1!2e0 | CN156: 3 | CP156: 1 | CR156: 0 | CS156: 2 | CT156: 0 | CU156: 0 | CV156: 0 | CW156: 0 | CX156: 0 | CY156: 0 | CZ156: 0 | DC156: 0 | DE156: 0 | DH156: 0 | DI156: 0 | DJ156: 0 | DM156: 1 | DN156: 0 | DO156: 3.578514581
A157: 364_2 | B157: 2 | D157: 119 | E157: 119 | F157: 0 | G157: 8.951842884 | H157: 2 | I157: 0 | J157: Gmaps | K157: KESKI | L157: Seutu | M157: Koriansuora, Koriantie | N157: Kouvola | O157: Kymenlaakso | P157: 364 | Q157: 2 | R157: 0 | S157: 2 | T157: 3304 | U157: 3304 | V157: 6105 | W157: 228.0581114 | X157: 6499.876513 | Y157: 5367 (69 %), 7845 (29 %) | Z157: 40 (36 %), 60 (15 %), 80 (47 %) | AA157: Is (99 %) | AB157: AB (99 %) | AC157: Y2 (99 %) | AD157: 8 | AE157: 23 | AF157: 0 | AG157: 52.99757869 | AL157: 9 | AM157: 0 | AN157: 0 | AO157: 1615 | AP157: 2 | AQ157: bussi | AR157: 3 | AS157: 11 | AT157: 3.666666667 | AU157: 9 | AV157: 0 | AW157: 0 | AX157: 0 | AY157: 0 | AZ157: 0 | BA157: 0 | BB157: 0 | BC157: 0 | BD157: 0 | BE157: 1 | BF157: 0.6666666667 | BG157: 0 | BH157: 0.1888619855 | BI157: 10.85552865 | BJ157: 3.618509551 | BK157: 3256.425673 | BL157: 0.9856009905 | BM157: 1 | BN157: 0 | BO157: 0 | BP157: 0 | BQ157: 1 | BR157: 1676.811633 | BS157: 0.5075095742 | BT157: 1 | BU157: 387.6210654 | BV157: 1 | BW157: 0 | BX157: 0 | BY157: 0 | BZ157: 1 | CA157: 5 | CB157: 1.666666667 | CC157: 26.85552865 | CD157: 8.951842884 | CE157: 2 | CL157: https://www.google.com/maps/@60.8444144682,26.6036935261,3a,75y,90t/data=!3m3!1e1!3m1!2e0 | CN157: 3 | CP157: 0 | CR157: 0 | CS157: 0 | CT157: 0 | CU157: 0 | CV157: 0 | CW157: 0 | CX157: 0 | CY157: 0 | CZ157: 3 | DC157: 2 | DE157: 4491.911307 | DH157: 0 | DI157: 0 | DJ157: 0 | DM157: 1 | DN157: 0 | DO157: 0.2832929782
A158: 4164_9 | B158: 2 | D158: 120 | E158: 120 | F158: 0 | G158: 8.950397285 | H158: 2 | I158: 0 | J158: Gmaps | K158: KESKI | L158: Yhdys | M158: Mäntyharjuntie | N158: Kouvola | O158: Kymenlaakso | P158: 4164 | Q158: 9 | R158: 0 | S158: 9 | T158: 4197 | U158: 4197 | V158: 729 | W158: 47 | X158: 1014 | Y158: 729 (100 %) | Z158: 50 (3 %), 60 (47 %), 80 (50 %) | AA158: II (100 %) | AB158: PAB (100 %) | AC158: Y3 (100 %) | AD158: 0 | AE158: 1 | AF158: 0.2613771742 | AG158: 11 | AL158: 9 | AM158: 0 | AN158: 0 | AO158: 62 | AP158: 0.4133333333 | AQ158: bussi | AR158: 3 | AS158: 9.413333333 | AT158: 3.137777778 | AU158: 8.46 | AV158: 2 | AW158: 0 | AX158: 0 | AY158: 0 | AZ158: 1 | BA158: 0.015 | BB158: 0.015 | BC158: 0 | BD158: 0 | BE158: 0 | BF158: 0 | BG158: 1 | BH158: 1.947858523 | BI158: 14.43785852 | BJ158: 4.812619508 | BK158: 1845.594426 | BL158: 0.4397413452 | BM158: 0.5 | BN158: 0 | BO158: 0 | BP158: 0 | BQ158: 1 | BR158: 5.93705886 | BS158: 0.001414595869 | BT158: 0 | BU158: 2.263521563 | BV158: 0.5 | BW158: 0 | BX158: 0 | BY158: 0 | BZ158: 1 | CA158: 3 | CB158: 1 | CC158: 26.85119186 | CD158: 8.950397285 | CE158: 2 | CL158: https://www.google.com/maps/@61.0891038012,26.4870747466,3a,75y,90t/data=!3m3!1e1!3m1!2e0 | CN158: 3 | CP158: 1 | CR158: 0 | CS158: 0 | CT158: 0 | CU158: 2 | CV158: 9 | CW158: 3 | CX158: 0 | CY158: 0 | CZ158: 0 | DC158: 0 | DE158: 4199.48364 | DH158: 0 | DI158: 0 | DJ158: 0 | DM158: 1 | DN158: 1 | DO158: 2.921787784
A159: 408_6 | B159: 2 | D159: 121 | E159: 121 | F159: 0 | G159: 8.921175551 | H159: 2 | I159: 0 | J159: Gmaps | K159: KESKI | L159: Seutu | M159: Savilahdentie, Taipalsaarentie | N159: Savitaipale, Taipalsaari | O159: Etelä-Karjala | P159: 408 | Q159: 6 | R159: 0 | S159: 6 | T159: 5621 | U159: 5621 | V159: 543.1750578 | W159: 38.51165273 | X159: 781.5758762 | Y159: 427 (44 %), 633 (56 %) | Z159: 60 (3 %), 80 (97 %) | AA159: II (100 %) | AB159: AB (31 %), PAB (69 %) | AC159: Y2 (100 %) | AD159: 0 | AE159: 1 | AF159: 0 | AG159: 6.872086817 | AL159: 9 | AM159: 0 | AN159: 0 | AO159: 96 | AP159: 0.64 | AQ159: taksi | AR159: 1.5 | AS159: 9.64 | AT159: 3.213333333 | AU159: 6.932097492 | AV159: 2 | AW159: 0 | AX159: 1 | AY159: 1 | AZ159: 1 | BA159: 0.5 | BB159: 0.445 | BC159: 0 | BD159: 0.1166666667 | BE159: 0 | BF159: 0 | BG159: 0 | BH159: 1.629762494 | BI159: 14.62352665 | BJ159: 4.874508884 | BK159: 0 | BL159: 0 | BM159: 0 | BN159: 0 | BO159: 0 | BP159: 0 | BQ159: 0 | BR159: 0 | BS159: 0 | BT159: 0 | BU159: 0.8717310087 | BV159: 0.5 | BW159: 0 | BX159: 0 | BY159: 1 | BZ159: 1 | CA159: 2.5 | CB159: 0.8333333333 | CC159: 26.76352665 | CD159: 8.921175551 | CE159: 2 | CL159: https://www.google.com/maps/@61.2268594488,27.8760675172,3a,75y,90t/data=!3m3!1e1!3m1!2e0 | CN159: 1 | CP159: 1 | CR159: 0 | CS159: 1 | CT159: 3 | CU159: 5 | CV159: 397 | CW159: 89 | CX159: 0 | CY159: 7 | CZ159: 0 | DC159: 0 | DE159: 0 | DH159: 0 | DI159: 0 | DJ159: 2 | DM159: 1 | DN159: 0 | DO159: 2.444643741
A160: 14799_1 | B160: 2 | D160: 122 | E160: 122 | F160: 0 | G160: 8.84145744 | H160: 2 | I160: 0 | J160: Gmaps | K160: KESKI | L160: Yhdys | M160: Suur-Saimaantie | N160: Taipalsaari | O160: Etelä-Karjala | P160: 14799 | Q160: 1 | R160: 0 | S160: 1 | T160: 6578 | U160: 6578 | V160: 1024 | W160: 50 | X160: 1624 | Y160: 1024 (100 %) | Z160: 50 (7 %), 60 (53 %), 80 (39 %) | AA160: II (100 %) | AB160: PAB (100 %) | AC160: Y3 (100 %) | AD160: 1 | AE160: 1 | AF160: 0.07601094558 | AG160: 7 | AL160: 9 | AM160: 2 | AN160: 0.6 | AO160: 102 | AP160: 0.68 | AQ160: bussi | AR160: 3 | AS160: 10.28 | AT160: 3.426666667 | AU160: 9 | AV160: 0 | AW160: 0 | AX160: 1 | AY160: 0 | AZ160: 1 | BA160: 0 | BB160: 0.01 | BC160: 0 | BD160: 0 | BE160: 0 | BF160: 0.3333333333 | BG160: 0 | BH160: 0.4010389862 | BI160: 11.74437232 | BJ160: 3.914790773 | BK160: 342.8607355 | BL160: 0.05212233741 | BM160: 0.5 | BN160: 0 | BO160: 0 | BP160: 0 | BQ160: 0 | BR160: 0 | BS160: 0 | BT160: 0 | BU160: 21.48069322 | BV160: 0.5 | BW160: 1.5 | BX160: 0 | BY160: 1 | BZ160: 1 | CA160: 4.5 | CB160: 1.5 | CC160: 26.52437232 | CD160: 8.84145744 | CE160: 2 | CL160: https://www.google.com/maps/@61.1535478928,28.0899102548,3a,75y,90t/data=!3m3!1e1!3m1!2e0 | CN160: 3 | CP160: 0 | CR160: 0 | CS160: 1 | CT160: 0 | CU160: 1 | CV160: 0 | CW160: 2 | CX160: 0 | CY160: 0 | CZ160: 0 | DC160: 1 | DE160: 0 | DH160: 1.5 | DI160: 1.5 | DJ160: 1 | DM160: 1 | DN160: 0 | DO160: 0.6015584793
A161: 371_1 | B161: 2 | D161: 123 | E161: 123 | F161: 0 | G161: 8.811031121 | H161: 2 | I161: 0 | J161: Gmaps | K161: KESKI | L161: Seutu | M161: Kouvolantie | N161: Hamina | O161: Kymenlaakso | P161: 371 | Q161: 1 | R161: 2309 | S161: 1 | T161: 3611 | U161: 1302 | V161: 3709 | W161: 86 | X161: 4421 | Y161: 3709 (99 %) | Z161: 60 (99 %) | AA161: II (99 %) | AB161: AB (99 %) | AC161: Y2 (99 %) | AD161: 0 | AE161: 1 | AF161: 0.07680491551 | AG161: 14 | AL161: 9 | AM161: 4 | AN161: 1.2 | AO161: 165 | AP161: 1.1 | AQ161: bussi | AR161: 3 | AS161: 11.3 | AT161: 3.766666667 | AU161: 9 | AV161: 0 | AW161: 0 | AX161: 0 | AY161: 0 | AZ161: 0 | BA161: 0 | BB161: 0 | BC161: 0 | BD161: 0 | BE161: 0 | BF161: 1 | BG161: 0 | BH161: 0.1330933643 | BI161: 10.13309336 | BJ161: 3.377697788 | BK161: 1292.948801 | BL161: 0.9930482339 | BM161: 1 | BN161: 1292.948801 | BO161: 0.9930482339 | BP161: 1 | BQ161: 0 | BR161: 1292.948801 | BS161: 0.9930482339 | BT161: 1 | BU161: 680.4915515 | BV161: 1 | BW161: 0 | BX161: 0 | BY161: 0 | BZ161: 1 | CA161: 5 | CB161: 1.666666667 | CC161: 26.43309336 | CD161: 8.811031121 | CE161: 2 | CL161: https://www.google.com/maps/@60.5847580106,27.1872510878,3a,75y,90t/data=!3m3!1e1!3m1!2e0 | CN161: 3 | CP161: 0 | CR161: 0 | CS161: 0 | CT161: 0 | CU161: 0 | CV161: 0 | CW161: 0 | CX161: 0 | CY161: 0 | CZ161: 0 | DC161: 4 | DE161: 0 | DH161: 0 | DI161: 0 | DJ161: 0 | DM161: 1 | DN161: 0 | DO161: 0.1996400465
A162: 359_1 | B162: 2 | D162: 124 | E162: 124 | F162: 0 | G162: 8.797126908 | H162: 2 | I162: 0 | J162: Gmaps | K162: KESKI | L162: Seutu | M162: Anjalantie | N162: Kouvola | O162: Kymenlaakso | P162: 359 | Q162: 1 | R162: 670 | S162: 1 | T162: 7405 | U162: 6735 | V162: 2108 | W162: 92 | X162: 2318 | Y162: 2108 (100 %) | Z162: 60 (11 %), 80 (89 %) | AA162: Ib (100 %) | AB162: AB (100 %) | AC162: Y2 (100 %) | AD162: 3 | AE162: 8 | AF162: 0 | AG162: 25 | AL162: 9 | AM162: 0 | AN162: 0 | AO162: 318 | AP162: 2 | AQ162: bussi | AR162: 3 | AS162: 11 | AT162: 3.666666667 | AU162: 9 | AV162: 2 | AW162: 0 | AX162: 0 | AY162: 0 | AZ162: 1 | BA162: 0.2233333333 | BB162: 0.5 | BC162: 0 | BD162: 0 | BE162: 0 | BF162: 0 | BG162: 0 | BH162: 0.6680473918 | BI162: 13.39138073 | BJ162: 4.463793575 | BK162: 515.6810218 | BL162: 0.07656733806 | BM162: 0.5 | BN162: 0 | BO162: 0 | BP162: 0 | BQ162: 0 | BR162: 1792.907638 | BS162: 0.2662075186 | BT162: 0 | BU162: 46.10244989 | BV162: 0.5 | BW162: 0 | BX162: 0 | BY162: 0 | BZ162: 1 | CA162: 2 | CB162: 0.6666666667 | CC162: 26.39138073 | CD162: 8.797126908 | CE162: 2 | CL162: https://www.google.com/maps/@60.69415837,26.8058640946,3a,75y,90t/data=!3m3!1e1!3m1!2e0 | CN162: 3 | CP162: 1 | CR162: 0 | CS162: 0 | CT162: 0 | CU162: 3 | CV162: 134 | CW162: 103 | CX162: 0 | CY162: 0 | CZ162: 0 | DC162: 0 | DE162: 0 | DH162: 0 | DI162: 0 | DJ162: 0 | DM162: 1 | DN162: 0 | DO162: 1.002071088
A163: 14750_3 | B163: 2 | D163: 125 | E163: 125 | F163: 0 | G163: 8.78385322 | H163: 2 | I163: 0 | J163: Gmaps | K163: KESKI | L163: Yhdys | M163: Uimintie | N163: Lemi | O163: Etelä-Karjala | P163: 14750 | Q163: 3 | R163: 0 | S163: 3 | T163: 6678 | U163: 6678 | V163: 557 | W163: 33 | X163: 771 | Y163: 557 (100 %) | Z163: 60 (16 %), 80 (84 %) | AA163: II (100 %) | AB163: PAB (100 %) | AC163: Y3 (100 %) | AD163: 2 | AE163: 2 | AF163: 0.1048218029 | AG163: 11 | AL163: 9 | AM163: 0 | AN163: 0 | AO163: 108 | AP163: 0.72 | AQ163: taksi | AR163: 1.5 | AS163: 9.72 | AT163: 3.24 | AU163: 5.94 | AV163: 2 | AW163: 0 | AX163: 1 | AY163: 0 | AZ163: 1 | BA163: 0.06666666667 | BB163: 0.07 | BC163: 0 | BD163: 0.1833333333 | BE163: 0 | BF163: 0 | BG163: 1 | BH163: 1.37155966 | BI163: 12.63155966 | BJ163: 4.210519887 | BK163: 1496.574814 | BL163: 0.2241052433 | BM163: 0.5 | BN163: 0 | BO163: 0 | BP163: 0 | BQ163: 1 | BR163: 0 | BS163: 0 | BT163: 0 | BU163: 5.315962863 | BV163: 0.5 | BW163: 0 | BX163: 0 | BY163: 1 | BZ163: 1 | CA163: 4 | CB163: 1.333333333 | CC163: 26.35155966 | CD163: 8.78385322 | CE163: 2 | CL163: https://www.google.com/maps/@61.0272970322,27.7109103588,3a,75y,90t/data=!3m3!1e1!3m1!2e0 | CN163: 1 | CP163: 1 | CR163: 0 | CS163: 1 | CT163: 0 | CU163: 2 | CV163: 40 | CW163: 14 | CX163: 0 | CY163: 11 | CZ163: 0 | DC163: 0 | DE163: 6658.941147 | DH163: 0 | DI163: 0 | DJ163: 1 | DM163: 1 | DN163: 1 | DO163: 2.057339491
A164: 380_4 | B164: 2 | D164: 126 | E164: 126 | F164: 0 | G164: 8.751659542 | H164: 2 | I164: 0 | J164: Gmaps | K164: KESKI | L164: Seutu | M164: Toukkalantie | N164: Lemi | O164: Etelä-Karjala | P164: 380 | Q164: 4 | R164: 0 | S164: 4 | T164: 1300 | U164: 1300 | V164: 835 | W164: 36 | X164: 932 | Y164: 835 (99 %) | Z164: 60 (99 %) | AA164: II (99 %) | AB164: PAB (99 %) | AC164: Y2 (99 %) | AD164: 0 | AE164: 0 | AF164: 0 | AG164: 7 | AL164: 9 | AM164: 4 | AN164: 1.2 | AO164: 159 | AP164: 1.06 | AQ164: bussi | AR164: 3 | AS164: 11.26 | AT164: 3.753333333 | AU164: 6.48 | AV164: 2 | AW164: 0 | AX164: 0 | AY164: 0 | AZ164: 1 | BA164: 0 | BB164: 0.015 | BC164: 0 | BD164: 0 | BE164: 0 | BF164: 0 | BG164: 0 | BH164: 1.999978627 | BI164: 11.49497863 | BJ164: 3.831659542 | BK164: 1291.68047 | BL164: 0.9936003616 | BM164: 1 | BN164: 0 | BO164: 0 | BP164: 0 | BQ164: 1 | BR164: 0 | BS164: 0 | BT164: 0 | BU164: 34.15384615 | BV164: 0.5 | BW164: 0 | BX164: 0 | BY164: 0 | BZ164: 1 | CA164: 3.5 | CB164: 1.166666667 | CC164: 26.25497863 | CD164: 8.751659542 | CE164: 2 | CL164: https://www.google.com/maps/@61.0695616443,27.7964954631,3a,75y,90t/data=!3m3!1e1!3m1!2e0 | CN164: 3 | CP164: 1 | CR164: 0 | CS164: 0 | CT164: 0 | CU164: 1 | CV164: 0 | CW164: 3 | CX164: 0 | CY164: 0 | CZ164: 0 | DC164: 0 | DE164: 2583.36094 | DH164: 0 | DI164: 0 | DJ164: 0 | DM164: 1 | DN164: 0 | DO164: 2.999967941
A165: 359_3 | B165: 2 | D165: 127 | E165: 127 | F165: 0 | G165: 8.747981219 | H165: 2 | I165: 0 | J165: Gmaps | K165: KESKI | L165: Seutu | M165: Anjalantie | N165: Kouvola | O165: Kymenlaakso | P165: 359 | Q165: 3 | R165: 0 | S165: 3 | T165: 8081 | U165: 8081 | V165: 2151 | W165: 122 | X165: 2289 | Y165: 2151 (100 %) | Z165: 60 (3 %), 80 (97 %) | AA165: Ib (100 %) | AB165: AB (100 %) | AC165: Y2 (100 %) | AD165: 2 | AE165: 8 | AF165: 0 | AG165: 43 | AL165: 9 | AM165: 0 | AN165: 0 | AO165: 409 | AP165: 2 | AQ165: bussi | AR165: 3 | AS165: 11 | AT165: 3.666666667 | AU165: 9 | AV165: 2 | AW165: 0 | AX165: 0 | AY165: 0 | AZ165: 1 | BA165: 0 | BB165: 0.075 | BC165: 0 | BD165: 0.2 | BE165: 0 | BF165: 0 | BG165: 0 | BH165: 0.9689436579 | BI165: 13.24394366 | BJ165: 4.414647886 | BK165: 3930.094074 | BL165: 0.4863375911 | BM165: 0.5 | BN165: 0 | BO165: 0 | BP165: 0 | BQ165: 0 | BR165: 3200.542383 | BS165: 0.3960577135 | BT165: 0 | BU165: 43.27434723 | BV165: 0.5 | BW165: 0 | BX165: 0 | BY165: 0 | BZ165: 1 | CA165: 2 | CB165: 0.6666666667 | CC165: 26.24394366 | CD165: 8.747981219 | CE165: 2 | CL165: https://www.google.com/maps/@60.7576673822,26.762655217,3a,75y,90t/data=!3m3!1e1!3m1!2e0 | CN165: 3 | CP165: 1 | CR165: 0 | CS165: 0 | CT165: 0 | CU165: 1 | CV165: 0 | CW165: 15 | CX165: 0 | CY165: 12 | CZ165: 0 | DC165: 0 | DE165: 0 | DH165: 0 | DI165: 0 | DJ165: 0 | DM165: 1 | DN165: 0 | DO165: 1.453415487
A166: 3864_2 | B166: 2 | D166: 128 | E166: 128 | F166: 0 | G166: 8.736202003 | H166: 2 | I166: 0 | J166: Gmaps | K166: KESKI | L166: Yhdys | M166: Ylämaantie | N166: Lappeenranta | O166: Etelä-Karjala | P166: 3864 | Q166: 2 | R166: 0 | S166: 2 | T166: 5687 | U166: 5687 | V166: 632 | W166: 39 | X166: 801 | Y166: 632 (100 %) | Z166: 50 (33 %), 60 (1 %), 80 (65 %) | AA166: II (100 %) | AB166: AB (100%) | AC166: Y3 (8 %) | AD166: 2 | AE166: 3 | AF166: 0 | AG166: 4 | AL166: 9 | AM166: 0 | AN166: 0 | AO166: 102 | AP166: 0.68 | AQ166: bussi | AR166: 3 | AS166: 9.68 | AT166: 3.226666667 | AU166: 7.02 | AV166: 2 | AW166: 0 | AX166: 1 | AY166: 1 | AZ166: 1 | BA166: 0.4533333333 | BB166: 0.175 | BC166: 0 | BD166: 0.03333333333 | BE166: 0 | BF166: 0 | BG166: 0 | BH166: 1.346939341 | BI166: 14.02860601 | BJ166: 4.676202003 | BK166: 0 | BL166: 0 | BM166: 0 | BN166: 0 | BO166: 0 | BP166: 0 | BQ166: 0 | BR166: 0 | BS166: 0 | BT166: 0 | BU166: 24.31862142 | BV166: 0.5 | BW166: 0 | BX166: 0 | BY166: 1 | BZ166: 1 | CA166: 2.5 | CB166: 0.8333333333 | CC166: 26.20860601 | CD166: 8.736202003 | CE166: 2 | CL166: https://www.google.com/maps/@60.9988007422,28.0203733387,3a,75y,90t/data=!3m3!1e1!3m1!2e0 | CN166: 3 | CP166: 1 | CR166: 0 | CS166: 1 | CT166: 1 | CU166: 6 | CV166: 272 | CW166: 35 | CX166: 0 | CY166: 2 | CZ166: 0 | DC166: 0 | DE166: 0 | DH166: 0 | DI166: 0 | DJ166: 1 | DM166: 1 | DN166: 0 | DO166: 2.020409012
A167: =CONCATENATE(P167,"_",Q167) -> 14798_1 | B167: 2 | D167: =RANK(CD167,$CD$39:$CD$715) -> 129 | E167: 129 | F167: =E167-D167 -> 0 | G167: =CD167 -> 8.735497307 | H167: =CE167 -> 2 | I167: =B167-H167 -> 0 | J167: =HYPERLINK(CL167,"Gmaps") -> Gmaps | K167: =IF(V167>$L$6,"KESKI","VÄHÄ") -> KESKI | L167: =IF(P167<40,"Valta",IF(P167<100,"Kanta",IF(P167<1000,"Seutu",IF(P167>999,"Yhdys")))) -> Yhdys | M167: Jauhialantie | N167: Taipalsaari | O167: Etelä-Karjala | P167: 14798 | Q167: 1 | R167: 0 | S167: 1 | T167: =R167+U167 -> 4367 | U167: 4367 | V167: 656.2122739 | W167: 25.63819556 | X167: 790.3189833 | Y167: 584 (78 %), 917 (22 %) | Z167: 40 (18 %), 50 (9 %), 60 (73 %) | AA167: II (100 %) | AB167: AB (100 %) | AC167: Y3 (100 %) | AD167: 1 | AE167: 1 | AF167: 0.09159606137 | AG167: 3.867414701 | AL167: =+IF(V167>=$L$6,$F$5,($F$5/($L$6))*V167) -> 9 | AM167: 42 | AN167: =+IF(AM167>=$M$15,$K$15,IF(AM167<($M$15),AM167*($K$15/($M$15)),)) -> 3 | AO167: 489 | AP167: =+IF(AO167>=$M$11,$K$11,IF(AO167<($M$11),AO167*($K$11/($M$11)),)) -> 2 | AQ167: =IF(CN167=0,"-",IF(CN167=1,"taksi",IF(CN167=2,"pikkubussi","bussi"))) -> bussi | AR167: =IF(CN167=0,0,IF(CN167<3,$F$8/2,$F$8)) -> 3 | AS167: =SUM(AL167,AN167,AP167) -> 14 | AT167: =+AS167*$H$5 -> 4.666666667 | AU167: =+IF(W167=0,0,IF(W167>$L$7,$F$10,($F$10/$L$7)*W167)) -> 4.6148752 | AV167: =IF(CP167>0,$F$11,0) -> 0 | AW167: =IF(CR167>0,$F$12,0) -> 0 | AX167: =IF(CS167>0,$F$13,0) -> 1 | AY167: =IF(CT167>0,$F$14,0) -> 0 | AZ167: =IF(CU167>0,$F$15,0) -> 1 | BA167: =+IF(CV167>=$M$23,$K$23,IF(CV167<($M$23),CV167*($K$23/($M$23)),)) -> 0 | BB167: =+IF(CW167>=$M$24,$K$24,IF(CW167<($M$24),CW167*($K$24/($M$24)),)) -> 0.01 | BC167: =+IF(CX167>=$M$25,$K$25,IF(CX167<($M$25),CX167*($K$25/($M$25)),)) -> 0 | BD167: =+IF(CY167>=$M$26,$K$26,IF(CY167<($M$26),CY167*($K$26/($M$26)),)) -> 0 | BE167: =IF(CZ167>0,$F$17,0) -> 0 | BF167: =+IF(DC167>=$M$29,$K$29,IF(DC167<($M$29),DC167*($K$29/($M$29)),)) -> 0.3333333333 | BG167: =IF(DN167>0,$F$19,0) -> 1 | BH167: =+IF(DO167>=$M$31,$K$31,IF(DO167<($M$31),DO167*($K$31/($M$31)),)) -> 0.2482833864 | BI167: =SUM(AU167+AV167+AW167+AX167+AY167+AZ167+BE167+BA167+BB167+BC167+BD167+BF167+BG167+BH167) -> 8.20649192 | BJ167: =+BI167*$H$10 -> 2.735497307 | BK167: 4365.978795 | BL167: =BK167/U167 -> 0.999766154 | BM167: =IF(BL167>0,IF(BL167>=$M$19,$K$19,IF(BL167<$M$19,$K$20,0)),0) -> 1 | BN167: 0 | BO167: =BN167/U167 -> 0 | BP167: =IF(BO167,$F$23,0) -> 0 | BQ167: =IF(DE167>0,$F$24,0) -> 0 | BR167: 2211.047179 | BS167: =BR167/U167 -> 0.5063080327 | BT167: =+IF(BS167>=$L$4,$F$25,0) -> 1 | BU167: 280.6961301 | BV167: =IF(BU167>0,IF(BU167>=100,$F$26,IF(BU167<100,$F$26/2)),0) -> 1 | BW167: =SUM(DI167) -> 0 | BX167: 0 | BY167: =IF(DJ167>0,$F$29,0) -> 0 | BZ167: =IF(DM167>0,$F$30,0) -> 1 | CA167: =SUM(BM167,BP167,BV167,BQ167,BT167,BW167,BX167,BY167,BZ167) -> 4 | CB167: =+CA167*$H$22 -> 1.333333333 | CC167: =SUM(AS167,BI167,CA167) -> 26.20649192 | CD167: =SUM(AT167,BJ167,CB167) -> 8.735497307 | CE167: =IF(D167<($W$14*$CF$32),1,IF(D167<(($W$15+$W$14)*$CF$32),2,IF(D167<(($W$16+$W$14+$W$15)*$CF$32),3,4))) -> 2 | CL167: https://www.google.com/maps/@61.13018745,28.0987054297,3a,75y,90t/data=!3m3!1e1!3m1!2e0 | CN167: 3 | CP167: 0 | CR167: 0 | CS167: 1 | CT167: 0 | CU167: 1 | CV167: 0 | CW167: 2 | CX167: 0 | CY167: 0 | CZ167: 0 | DC167: 1 | DE167: 0 | DH167: =+IF(X167/V167>1.5,$F$27/2,0) -> 0 | DI167: =SUM(DG167:DH167) -> 0 | DJ167: 0 | DM167: 1 | DN167: 1 | DO167: 0.3724250796
A168: 14594_1 | B168: 2 | D168: 130 | E168: 130 | F168: 0 | G168: 8.733333333 | H168: 2 | I168: 0 | J168: Gmaps | K168: KESKI | L168: Yhdys | M168: Ahlmanintie | N168: Kouvola | O168: Kymenlaakso | P168: 14594 | Q168: 1 | R168: 0 | S168: 1 | T168: 2692 | U168: 2692 | V168: 5988 | W168: 154 | X168: 4976 | Y168: 5988 (100 %) | Z168: 50 (23 %), 60 (76 %) | AA168: Is (100 %) | AB168: AB (100 %) | AC168: Y2 (100 %) | AD168: 6 | AE168: 15 | AF168: 0 | AG168: 21 | AL168: 9 | AM168: 4 | AN168: 1.2 | AO168: 1921 | AP168: 2 | AQ168: pikkubussi | AR168: 1.5 | AS168: 12.2 | AT168: 4.066666667 | AU168: 9 | AV168: 0 | AW168: 0 | AX168: 0 | AY168: 0 | AZ168: 0 | BA168: 0 | BB168: 0 | BC168: 0 | BD168: 0 | BE168: 0 | BF168: 0 | BG168: 0 | BH168: 2 | BI168: 11 | BJ168: 3.666666667 | BK168: 2681.938342 | BL168: 0.9962623856 | BM168: 1 | BN168: 0 | BO168: 0 | BP168: 0 | BQ168: 0 | BR168: 817.6753158 | BS168: 0.3037426879 | BT168: 0 | BU168: 169.205052 | BV168: 1 | BW168: 0 | BX168: 0 | BY168: 0 | BZ168: 1 | CA168: 3 | CB168: 1 | CC168: 26.2 | CD168: 8.733333333 | CE168: 2 | CL168: https://www.google.com/maps/@60.8838689283,26.6971378095,3a,75y,90t/data=!3m3!1e1!3m1!2e0 | CN168: 2 | CP168: 0 | CR168: 0 | CS168: 0 | CT168: 0 | CU168: 0 | CV168: 0 | CW168: 0 | CX168: 0 | CY168: 0 | CZ168: 0 | DC168: 0 | DE168: 0 | DH168: 0 | DI168: 0 | DJ168: 0 | DM168: 1 | DN168: 0 | DO168: 3.007542674
A169: 364_1 | B169: 2 | D169: 131 | E169: 131 | F169: 0 | G169: 8.721234614 | H169: 2 | I169: 0 | J169: Gmaps | K169: KESKI | L169: Seutu | M169: Koriantie | N169: Kouvola | O169: Kymenlaakso | P169: 364 | Q169: 1 | R169: 0 | S169: 1 | T169: 4264 | U169: 4264 | V169: 2758.012664 | W169: 120.125469 | X169: 2898.006567 | Y169: 2238 (59 %), 3500 (41 %) | Z169: 50 (46 %), 60 (7 %), 80 (47 %) | AA169: Is (100 %) | AB169: AB (100 %) | AC169: Y2 (100 %) | AD169: 2 | AE169: 6 | AF169: 0 | AG169: 31.35178236 | AL169: 9 | AM169: 0 | AN169: 0 | AO169: 757 | AP169: 2 | AQ169: bussi | AR169: 3 | AS169: 11 | AT169: 3.666666667 | AU169: 9 | AV169: 0 | AW169: 0 | AX169: 0 | AY169: 0 | AZ169: 0 | BA169: 0 | BB169: 0 | BC169: 0 | BD169: 0 | BE169: 0 | BF169: 0 | BG169: 0 | BH169: 0.1637038423 | BI169: 9.163703842 | BJ169: 3.054567947 | BK169: 2355.436722 | BL169: 0.5524007323 | BM169: 1 | BN169: 226.1433048 | BO169: 0.05303548423 | BP169: 1 | BQ169: 1 | BR169: 2297.424308 | BS169: 0.5387955694 | BT169: 1 | BU169: 234.0525328 | BV169: 1 | BW169: 0 | BX169: 0 | BY169: 0 | BZ169: 1 | CA169: 6 | CB169: 2 | CC169: 26.16370384 | CD169: 8.721234614 | CE169: 2 | CL169: https://www.google.com/maps/@60.826580899,26.5368491435,3a,75y,90t/data=!3m3!1e1!3m1!2e0 | CN169: 3 | CP169: 0 | CR169: 0 | CS169: 0 | CT169: 0 | CU169: 0 | CV169: 0 | CW169: 0 | CX169: 0 | CY169: 0 | CZ169: 0 | DC169: 0 | DE169: 6767.359949 | DH169: 0 | DI169: 0 | DJ169: 0 | DM169: 1 | DN169: 0 | DO169: 0.2455557634
A170: 438_2 | B170: 2 | D170: 132 | E170: 132 | F170: 0 | G170: 8.720555556 | H170: 2 | I170: 0 | J170: Gmaps | K170: KESKI | L170: Seutu | M170: Eräjärventie | N170: Ruokolahti | O170: Etelä-Karjala | P170: 438 | Q170: 2 | R170: 0 | S170: 2 | T170: 6708 | U170: 6708 | V170: 566 | W170: 61 | X170: 760 | Y170: 566 (100 %) | Z170: 80 (100 %) | AA170: II (100 %) | AB170: PAB (100 %) | AC170: Y3 (100 %) | AD170: 0 | AE170: 1 | AF170: 0 | AG170: 33 | AL170: 9 | AM170: 0 | AN170: 0 | AO170: 114 | AP170: 0.76 | AQ170: - | AR170: 0 | AS170: 9.76 | AT170: 3.253333333 | AU170: 9 | AV170: 2 | AW170: 0 | AX170: 0 | AY170: 0 | AZ170: 0 | BA170: 0.06833333333 | BB170: 0 | BC170: 0 | BD170: 0 | BE170: 0 | BF170: 0.3333333333 | BG170: 0 | BH170: 2 | BI170: 13.40166667 | BJ170: 4.467222222 | BK170: 0 | BL170: 0 | BM170: 0 | BN170: 0 | BO170: 0 | BP170: 0 | BQ170: 1 | BR170: 0 | BS170: 0 | BT170: 0 | BU170: 0 | BV170: 0 | BW170: 0 | BX170: 0 | BY170: 1 | BZ170: 1 | CA170: 3 | CB170: 1 | CC170: 26.16166667 | CD170: 8.720555556 | CE170: 2 | CL170: https://www.google.com/maps/@61.3889515746,28.7631939998,3a,75y,90t/data=!3m3!1e1!3m1!2e0 | CN170: 0 | CP170: 1 | CR170: 0 | CS170: 0 | CT170: 0 | CU170: 0 | CV170: 41 | CW170: 0 | CX170: 0 | CY170: 0 | CZ170: 0 | DC170: 1 | DE170: 6712.484536 | DH170: 0 | DI170: 0 | DJ170: 4 | DM170: 1 | DN170: 0 | DO170: 20.50025783
A171: 438_3 | B171: 2 | D171: 133 | E171: 133 | F171: 0 | G171: 8.700555556 | H171: 2 | I171: 0 | J171: Gmaps | K171: KESKI | L171: Seutu | M171: Eräjärventie | N171: Ruokolahti | O171: Etelä-Karjala | P171: 438 | Q171: 3 | R171: 0 | S171: 3 | T171: 3732 | U171: 3732 | V171: 546.6730975 | W171: 59.27438371 | X171: 742.1398714 | Y171: 342 (9 %), 566 (94 %) | Z171: 80 (103 %) | AA171: II (103 %) | AB171: PAB (103 %) | AC171: Y3 (103 %) | AD171: 0 | AE171: 0 | AF171: 0 | AG171: 31.87834941 | AL171: 9 | AM171: 0 | AN171: 0 | AO171: 105 | AP171: 0.7 | AQ171: - | AR171: 0 | AS171: 9.7 | AT171: 3.233333333 | AU171: 9 | AV171: 2 | AW171: 0 | AX171: 0 | AY171: 0 | AZ171: 0 | BA171: 0.06833333333 | BB171: 0 | BC171: 0 | BD171: 0 | BE171: 0 | BF171: 0.3333333333 | BG171: 0 | BH171: 2 | BI171: 13.40166667 | BJ171: 4.467222222 | BK171: 0 | BL171: 0 | BM171: 0 | BN171: 0 | BO171: 0 | BP171: 0 | BQ171: 1 | BR171: 0 | BS171: 0 | BT171: 0 | BU171: 0 | BV171: 0 | BW171: 0 | BX171: 0 | BY171: 1 | BZ171: 1 | CA171: 3 | CB171: 1 | CC171: 26.10166667 | CD171: 8.700555556 | CE171: 2 | CL171: https://www.google.com/maps/@61.4481398777,28.7627639158,3a,75y,90t/data=!3m3!1e1!3m1!2e0 | CN171: 0 | CP171: 1 | CR171: 0 | CS171: 0 | CT171: 0 | CU171: 0 | CV171: 41 | CW171: 0 | CX171: 0 | CY171: 0 | CZ171: 0 | DC171: 1 | DE171: 3853.341824 | DH171: 0 | DI171: 0 | DJ171: 4 | DM171: 1 | DN171: 0 | DO171: 20.49982087
A172: 359_4 | B172: 2 | D172: 134 | E172: 134 | F172: 0 | G172: 8.685345764 | H172: 2 | I172: 0 | J172: Gmaps | K172: KESKI | L172: Seutu | M172: Anjalantie | N172: Kouvola | O172: Kymenlaakso | P172: 359 | Q172: 4 | R172: 0 | S172: 4 | T172: 5970 | U172: 5970 | V172: 2151 | W172: 122 | X172: 2289 | Y172: 2151 (100 %) | Z172: 50 (10 %), 60 (14 %), 80 (75 %) | AA172: Ib (100 %) | AB172: AB (100 %) | AC172: Y2 (100 %) | AD172: 4 | AE172: 6 | AF172: 0 | AG172: 43 | AL172: 9 | AM172: 0 | AN172: 0 | AO172: 516 | AP172: 2 | AQ172: bussi | AR172: 3 | AS172: 11 | AT172: 3.666666667 | AU172: 9 | AV172: 0 | AW172: 0 | AX172: 1 | AY172: 0 | AZ172: 1 | BA172: 0 | BB172: 0.075 | BC172: 0 | BD172: 0 | BE172: 0 | BF172: 0 | BG172: 0 | BH172: 0.9810372919 | BI172: 12.05603729 | BJ172: 4.018679097 | BK172: 3128.654486 | BL172: 0.524062728 | BM172: 1 | BN172: 0 | BO172: 0 | BP172: 0 | BQ172: 0 | BR172: 977.2214331 | BS172: 0.1636886823 | BT172: 0 | BU172: 150.6365159 | BV172: 1 | BW172: 0 | BX172: 0 | BY172: 0 | BZ172: 1 | CA172: 3 | CB172: 1 | CC172: 26.05603729 | CD172: 8.685345764 | CE172: 2 | CL172: https://www.google.com/maps/@60.8163323033,26.6894289683,3a,75y,90t/data=!3m3!1e1!3m1!2e0 | CN172: 3 | CP172: 0 | CR172: 0 | CS172: 3 | CT172: 0 | CU172: 1 | CV172: 0 | CW172: 15 | CX172: 0 | CY172: 0 | CZ172: 0 | DC172: 0 | DE172: 0 | DH172: 0 | DI172: 0 | DJ172: 0 | DM172: 1 | DN172: 0 | DO172: 1.471555938
A173: 371_2 | B173: 2 | D173: 135 | E173: 135 | F173: 0 | G173: 8.655418803 | H173: 2 | I173: 0 | J173: Gmaps | K173: KESKI | L173: Seutu | M173: Husupyölintie, Kapakkamäentie | N173: Hamina | O173: Kymenlaakso | P173: 371 | Q173: 2 | R173: 0 | S173: 2 | T173: 4352 | U173: 4352 | V173: 1459 | W173: 75 | X173: 1559 | Y173: 1459 (100 %) | Z173: 50 (50 %), 60 (4 %), 70 (45 %) | AA173: Ib (100 %) | AB173: AB (100 %) | AC173: Y2 (100 %) | AD173: 0 | AE173: 2 | AF173: 0 | AG173: 16 | AL173: 9 | AM173: 2 | AN173: 0.6 | AO173: 108 | AP173: 0.72 | AQ173: bussi | AR173: 3 | AS173: 10.32 | AT173: 3.44 | AU173: 9 | AV173: 2 | AW173: 0 | AX173: 0 | AY173: 0 | AZ173: 1 | BA173: 0 | BB173: 0 | BC173: 0 | BD173: 0 | BE173: 0 | BF173: 0.3333333333 | BG173: 0 | BH173: 0.3129230743 | BI173: 12.64625641 | BJ173: 4.215418803 | BK173: 2845.692646 | BL173: 0.6538815824 | BM173: 1 | BN173: 0 | BO173: 0 | BP173: 0 | BQ173: 0 | BR173: 1975.273469 | BS173: 0.4538771758 | BT173: 0 | BU173: 150.8961397 | BV173: 1 | BW173: 0 | BX173: 0 | BY173: 0 | BZ173: 1 | CA173: 3 | CB173: 1 | CC173: 25.96625641 | CD173: 8.655418803 | CE173: 2 | CL173: https://www.google.com/maps/@60.5969728521,27.1696393318,3a,75y,90t/data=!3m3!1e1!3m1!2e0 | CN173: 3 | CP173: 1 | CR173: 0 | CS173: 0 | CT173: 0 | CU173: 4 | CV173: 0 | CW173: 0 | CX173: 0 | CY173: 0 | CZ173: 0 | DC173: 1 | DE173: 0 | DH173: 0 | DI173: 0 | DJ173: 0 | DM173: 1 | DN173: 0 | DO173: 0.4693846115
A174: 14831_1 | B174: 2 | D174: 136 | E174: 136 | F174: 0 | G174: 8.647940844 | H174: 2 | I174: 0 | J174: Gmaps | K174: KESKI | L174: Yhdys | M174: Soskuan sulkutie | N174: Lappeenranta | O174: Etelä-Karjala | P174: 14831 | Q174: 1 | R174: 0 | S174: 1 | T174: 2817 | U174: 2817 | V174: 754 | W174: 104 | X174: 777 | Y174: 754 (100 %) | Z174: 50 (22 %), 80 (78 %) | AA174: II (100 %) | AB174: AB (99 %), PAB (1 %) | AC174: Y3 (100 %) | AD174: 1 | AE174: 3 | AF174: 0.1429550908 | AG174: 18 | AL174: 9 | AM174: 0 | AN174: 0 | AO174: 117 | AP174: 0.78 | AQ174: bussi | AR174: 3 | AS174: 9.78 | AT174: 3.26 | AU174: 9 | AV174: 0 | AW174: 1 | AX174: 1 | AY174: 1 | AZ174: 1 | BA174: 0.07 | BB174: 0 | BC174: 0 | BD174: 0 | BE174: 0 | BF174: 0.3333333333 | BG174: 0 | BH174: 0.7604891983 | BI174: 14.16382253 | BJ174: 4.721274177 | BK174: 0 | BL174: 0 | BM174: 0 | BN174: 0 | BO174: 0 | BP174: 0 | BQ174: 1 | BR174: 0 | BS174: 0 | BT174: 0 | BU174: 0 | BV174: 0 | BW174: 0 | BX174: 0 | BY174: 0 | BZ174: 1 | CA174: 2 | CB174: 0.6666666667 | CC174: 25.94382253 | CD174: 8.647940844 | CE174: 2 | CL174: https://www.google.com/maps/@61.0417470951,28.3580609327,3a,75y,90t/data=!3m3!1e1!3m1!2e0 | CN174: 3 | CP174: 0 | CR174: 3 | CS174: 1 | CT174: 1 | CU174: 2 | CV174: 42 | CW174: 0 | CX174: 0 | CY174: 0 | CZ174: 0 | DC174: 1 | DE174: 5851.136824 | DH174: 0 | DI174: 0 | DJ174: 0 | DM174: 1 | DN174: 0 | DO174: 1.140733797
A175: 378_4 | B175: 2 | D175: 137 | E175: 137 | F175: 0 | G175: 8.620549701 | H175: 2 | I175: 0 | J175: Gmaps | K175: KESKI | L175: Seutu | M175: Taavetintie | N175: Savitaipale | O175: Etelä-Karjala | P175: 378 | Q175: 4 | R175: 0 | S175: 4 | T175: 7900 | U175: 7900 | V175: 694 | W175: 72 | X175: 824 | Y175: 694 (100 %) | Z175: 80 (100 %) | AA175: II (100 %) | AB175: AB (100 %) | AC175: Y2 (100 %) | AD175: 2 | AE175: 5 | AF175: 0 | AG175: 25 | AL175: 9 | AM175: 0 | AN175: 0 | AO175: 166 | AP175: 1.106666667 | AQ175: taksi | AR175: 1.5 | AS175: 10.10666667 | AT175: 3.368888889 | AU175: 9 | AV175: 2 | AW175: 0 | AX175: 0 | AY175: 0 | AZ175: 0 | BA175: 0.255 | BB175: 0 | BC175: 0 | BD175: 0 | BE175: 0 | BF175: 0 | BG175: 0 | BH175: 1.999982436 | BI175: 13.25498244 | BJ175: 4.418327479 | BK175: 0 | BL175: 0 | BM175: 0 | BN175: 0 | BO175: 0 | BP175: 0 | BQ175: 1 | BR175: 0 | BS175: 0 | BT175: 0 | BU175: 2.329113924 | BV175: 0.5 | BW175: 0 | BX175: 0 | BY175: 0 | BZ175: 1 | CA175: 2.5 | CB175: 0.8333333333 | CC175: 25.8616491 | CD175: 8.620549701 | CE175: 2 | CL175: https://www.google.com/maps/@61.0470438091,27.5582018244,3a,75y,90t/data=!3m3!1e1!3m1!2e0 | CN175: 1 | CP175: 1 | CR175: 0 | CS175: 0 | CT175: 0 | CU175: 0 | CV175: 153 | CW175: 0 | CX175: 0 | CY175: 0 | CZ175: 0 | DC175: 0 | DE175: 15802.36019 | DH175: 0 | DI175: 0 | DJ175: 0 | DM175: 1 | DN175: 0 | DO175: 2.999973654
A176: 369_5 | B176: 2 | D176: 138 | E176: 138 | F176: 0 | G176: 8.608666667 | H176: 2 | I176: 0 | J176: Gmaps | K176: VÄHÄ | L176: Seutu | M176: Kankaantie | N176: Kouvola | O176: Kymenlaakso | P176: 369 | Q176: 5 | R176: 0 | S176: 5 | T176: 7018 | U176: 7018 | V176: 497 | W176: 45 | X176: 612 | Y176: 497 (100 %) | Z176: 60 (26 %), 80 (74 %) | AA176: II (100 %) | AB176: PAB (100 %) | AC176: Y2 (100 %) | AD176: 2 | AE176: 2 | AF176: 0.2849814762 | AG176: 6 | AL176: 8.946 | AM176: 0 | AN176: 0 | AO176: 117 | AP176: 0.78 | AQ176: bussi | AR176: 3 | AS176: 9.726 | AT176: 3.242 | AU176: 8.1 | AV176: 2 | AW176: 0 | AX176: 0 | AY176: 0 | AZ176: 0 | BA176: 0 | BB176: 0 | BC176: 0 | BD176: 0 | BE176: 0 | BF176: 0 | BG176: 0 | BH176: 2 | BI176: 12.1 | BJ176: 4.033333333 | BK176: 107.8330464 | BL176: 0.01536521038 | BM176: 0.5 | BN176: 0 | BO176: 0 | BP176: 0 | BQ176: 1 | BR176: 0 | BS176: 0 | BT176: 0 | BU176: 2.237104588 | BV176: 0.5 | BW176: 0 | BX176: 0 | BY176: 1 | BZ176: 1 | CA176: 4 | CB176: 1.333333333 | CC176: 25.826 | CD176: 8.608666667 | CE176: 2 | CL176: https://www.google.com/maps/@61.0651015742,26.8294745216,3a,75y,90t/data=!3m3!1e1!3m1!2e0 | CN176: 3 | CP176: 1 | CR176: 0 | CS176: 0 | CT176: 0 | CU176: 0 | CV176: 0 | CW176: 0 | CX176: 0 | CY176: 0 | CZ176: 0 | DC176: 0 | DE176: 14030.87078 | DH176: 0 | DI176: 0 | DJ176: 2 | DM176: 1 | DN176: 0 | DO176: 3.104927517
A177: 4063_1 | B177: 2 | D177: 139 | E177: 139 | F177: 0 | G177: 8.584444444 | H177: 2 | I177: 0 | J177: Gmaps | K177: KESKI | L177: Yhdys | M177: Särkilahdentie | N177: Ruokolahti | O177: Etelä-Karjala | P177: 4063 | Q177: 1 | R177: 0 | S177: 1 | T177: 6710 | U177: 6710 | V177: 635.4485842 | W177: 47 | X177: 929.0184799 | Y177: 574 (74 %), 814 (26 %) | Z177: 80 (100 %) | AA177: II (100 %) | AB177: AB (2 %), PAB (98 %) | AC177: Y3 (100 %) | AD177: 2 | AE177: 3 | AF177: 0.02976190476 | AG177: 13.25603577 | AL177: 9 | AM177: 0 | AN177: 0 | AO177: 119 | AP177: 0.7933333333 | AQ177: bussi | AR177: 3 | AS177: 9.793333333 | AT177: 3.264444444 | AU177: 8.46 | AV177: 2 | AW177: 0 | AX177: 0 | AY177: 0 | AZ177: 0 | BA177: 0 | BB177: 0 | BC177: 0 | BD177: 0 | BE177: 0 | BF177: 0 | BG177: 0 | BH177: 2 | BI177: 12.46 | BJ177: 4.153333333 | BK177: 0 | BL177: 0 | BM177: 0 | BN177: 0 | BO177: 0 | BP177: 0 | BQ177: 1 | BR177: 0 | BS177: 0 | BT177: 0 | BU177: 5.707898659 | BV177: 0.5 | BW177: 0 | BX177: 0 | BY177: 1 | BZ177: 1 | CA177: 3.5 | CB177: 1.166666667 | CC177: 25.75333333 | CD177: 8.584444444 | CE177: 2 | CL177: https://www.google.com/maps/@61.2839204885,28.9811703448,3a,75y,90t/data=!3m3!1e1!3m1!2e0 | CN177: 3 | CP177: 1 | CR177: 0 | CS177: 0 | CT177: 0 | CU177: 0 | CV177: 0 | CW177: 0 | CX177: 0 | CY177: 0 | CZ177: 0 | DC177: 0 | DE177: 8412.186511 | DH177: 0 | DI177: 0 | DJ177: 1 | DM177: 1 | DN177: 0 | DO177: 7.238664071
A178: 378_2 | B178: 2 | D178: 140 | E178: 140 | F178: 0 | G178: 8.561052649 | H178: 2 | I178: 0 | J178: Gmaps | K178: KESKI | L178: Seutu | M178: Savitaipaleentie, Taavetintie | N178: Luumäki, Savitaipale | O178: Etelä-Karjala | P178: 378 | Q178: 2 | R178: 0 | S178: 2 | T178: 7491 | U178: 7491 | V178: 759 | W178: 78 | X178: 966 | Y178: 759 (100 %) | Z178: 80 (100 %) | AA178: II (100 %) | AB178: AB (100 %) | AC178: Y2 (100 %) | AD178: 1 | AE178: 3 | AF178: 0 | AG178: 32 | AL178: 9 | AM178: 0 | AN178: 0 | AO178: 153 | AP178: 1.02 | AQ178: taksi | AR178: 1.5 | AS178: 10.02 | AT178: 3.34 | AU178: 9 | AV178: 0 | AW178: 0 | AX178: 1 | AY178: 0 | AZ178: 1 | BA178: 0.04333333333 | BB178: 0.02 | BC178: 0 | BD178: 0.1 | BE178: 0 | BF178: 0 | BG178: 0 | BH178: 1.999824614 | BI178: 13.16315795 | BJ178: 4.387719316 | BK178: 0 | BL178: 0 | BM178: 0 | BN178: 0 | BO178: 0 | BP178: 0 | BQ178: 1 | BR178: 0 | BS178: 0 | BT178: 0 | BU178: 1.708717127 | BV178: 0.5 | BW178: 0 | BX178: 0 | BY178: 0 | BZ178: 1 | CA178: 2.5 | CB178: 0.8333333333 | CC178: 25.68315795 | CD178: 8.561052649 | CE178: 2 | CL178: https://www.google.com/maps/@60.9836219974,27.5364196676,3a,75y,90t/data=!3m3!1e1!3m1!2e0 | CN178: 1 | CP178: 0 | CR178: 0 | CS178: 2 | CT178: 0 | CU178: 1 | CV178: 26 | CW178: 4 | CX178: 0 | CY178: 6 | CZ178: 0 | DC178: 0 | DE178: 7477.655737 | DH178: 0 | DI178: 0 | DJ178: 0 | DM178: 1 | DN178: 0 | DO178: 2.999736922
A179: 14841_1 | B179: 2 | D179: 141 | E179: 141 | F179: 0 | G179: 8.490672213 | H179: 2 | I179: 0 | J179: Gmaps | K179: KESKI | L179: Yhdys | M179: Lappeentie | N179: Lappeenranta | O179: Etelä-Karjala | P179: 14841 | Q179: 1 | R179: 0 | S179: 1 | T179: 3221 | U179: 3221 | V179: 1927 | W179: 42 | X179: 2066 | Y179: 1927 (100 %) | Z179: 40 (100 %) | AA179: II (100 %) | AB179: AB (100 %) | AC179: Y2 (100 %) | AD179: 1 | AE179: 2 | AF179: 0.4101210804 | AG179: 8 | AL179: 9 | AM179: 0 | AN179: 0 | AO179: 707 | AP179: 2 | AQ179: bussi | AR179: 3 | AS179: 11 | AT179: 3.666666667 | AU179: 7.56 | AV179: 0 | AW179: 0 | AX179: 0 | AY179: 0 | AZ179: 1 | BA179: 0 | BB179: 0 | BC179: 0 | BD179: 0 | BE179: 0 | BF179: 0 | BG179: 1 | BH179: 0.4120166397 | BI179: 9.97201664 | BJ179: 3.324005547 | BK179: 380.0604515 | BL179: 0.1179945518 | BM179: 0.5 | BN179: 0 | BO179: 0 | BP179: 0 | BQ179: 1 | BR179: 3208.992021 | BS179: 0.9962719718 | BT179: 1 | BU179: 995.0325986 | BV179: 1 | BW179: 0 | BX179: 0 | BY179: 0 | BZ179: 1 | CA179: 4.5 | CB179: 1.5 | CC179: 25.47201664 | CD179: 8.490672213 | CE179: 2 | CL179: https://www.google.com/maps/@61.1183062384,28.5079121245,3a,75y,90t/data=!3m3!1e1!3m1!2e0 | CN179: 3 | CP179: 0 | CR179: 0 | CS179: 0 | CT179: 0 | CU179: 1 | CV179: 0 | CW179: 0 | CX179: 0 | CY179: 0 | CZ179: 0 | DC179: 0 | DE179: 1918.451775 | DH179: 0 | DI179: 0 | DJ179: 0 | DM179: 1 | DN179: 1 | DO179: 0.6180249595
A180: 3721_1 | B180: 2 | D180: 142 | E180: 142 | F180: 0 | G180: 8.482014383 | H180: 2 | I180: 0 | J180: Gmaps | K180: KESKI | L180: Yhdys | M180: Liikkalantie | N180: Kouvola | O180: Kymenlaakso | P180: 3721 | Q180: 1 | R180: 0 | S180: 1 | T180: 3738 | U180: 3738 | V180: 829 | W180: 41 | X180: 903 | Y180: 829 (100 %) | Z180: 80 (100 %) | AA180: Ic (100 %) | AB180: AB (2 %), PAB (99 %) | AC180: Y2 (100 %) | AD180: 1 | AE180: 2 | AF180: 0.05211047421 | AG180: 8 | AL180: 9 | AM180: 0 | AN180: 0 | AO180: 177 | AP180: 1.18 | AQ180: bussi | AR180: 3 | AS180: 10.18 | AT180: 3.393333333 | AU180: 7.38 | AV180: 2 | AW180: 0 | AX180: 1 | AY180: 0 | AZ180: 1 | BA180: 0.345 | BB180: 0.09 | BC180: 0 | BD180: 0 | BE180: 0 | BF180: 0.3333333333 | BG180: 0 | BH180: 1.117709817 | BI180: 13.26604315 | BJ180: 4.422014383 | BK180: 779.382438 | BL180: 0.2085025249 | BM180: 0.5 | BN180: 0 | BO180: 0 | BP180: 0 | BQ180: 0 | BR180: 0 | BS180: 0 | BT180: 0 | BU180: 0.8828250401 | BV180: 0.5 | BW180: 0 | BX180: 0 | BY180: 0 | BZ180: 1 | CA180: 2 | CB180: 0.6666666667 | CC180: 25.44604315 | CD180: 8.482014383 | CE180: 2 | CL180: https://www.google.com/maps/@60.6953048906,26.8701130737,3a,75y,90t/data=!3m3!1e1!3m1!2e0 | CN180: 3 | CP180: 1 | CR180: 0 | CS180: 1 | CT180: 0 | CU180: 11 | CV180: 207 | CW180: 18 | CX180: 0 | CY180: 0 | CZ180: 0 | DC180: 1 | DE180: 0 | DH180: 0 | DI180: 0 | DJ180: 0 | DM180: 1 | DN180: 0 | DO180: 1.676564725
A181: 14790_1 | B181: 2 | D181: 143 | E181: 143 | F181: 0 | G181: 8.443172 | H181: 2 | I181: 0 | J181: Gmaps | K181: KESKI | L181: Yhdys | M181: Helsingintie, Korkea-ahon tie | N181: Lappeenranta | O181: Etelä-Karjala | P181: 14790 | Q181: 1 | R181: 0 | S181: 1 | T181: 6240 | U181: 6240 | V181: 667.2676282 | W181: 22.42307692 | X181: 732.1891026 | Y181: 600 (81 %), 965 (18 %) | Z181: 60 (14 %), 80 (85 %) | AA181: II (100 %) | AB181: AB (100 %) | AC181: Y3 (100 %) | AD181: 1 | AE181: 3 | AF181: 0 | AG181: 2.842948718 | AL181: 9 | AM181: 0 | AN181: 0 | AO181: 1571 | AP181: 2 | AQ181: bussi | AR181: 3 | AS181: 11 | AT181: 3.666666667 | AU181: 4.036153846 | AV181: 2 | AW181: 0 | AX181: 1 | AY181: 1 | AZ181: 1 | BA181: 0.3766666667 | BB181: 0.15 | BC181: 0 | BD181: 0.5 | BE181: 0 | BF181: 0 | BG181: 0 | BH181: 0.2666954884 | BI181: 10.329516 | BJ181: 3.443172 | BK181: 2068.853138 | BL181: 0.3315469772 | BM181: 0.5 | BN181: 3750.686491 | BO181: 0.601071553 | BP181: 1 | BQ181: 1 | BR181: 117.4123212 | BS181: 0.01881607712 | BT181: 0 | BU181: 15.17628205 | BV181: 0.5 | BW181: 0 | BX181: 0 | BY181: 0 | BZ181: 1 | CA181: 4 | CB181: 1.333333333 | CC181: 25.329516 | CD181: 8.443172 | CE181: 2 | CL181: https://www.google.com/maps/@61.0361944528,28.1148859771,3a,75y,90t/data=!3m3!1e1!3m1!2e0 | CN181: 3 | CP181: 1 | CR181: 0 | CS181: 1 | CT181: 2 | CU181: 7 | CV181: 226 | CW181: 30 | CX181: 0 | CY181: 84 | CZ181: 0 | DC181: 0 | DE181: 4286.898467 | DH181: 0 | DI181: 0 | DJ181: 0 | DM181: 1 | DN181: 0 | DO181: 0.4000432326
A182: 14918_1 | B182: 2 | D182: 144 | E182: 144 | F182: 0 | G182: 8.431061917 | H182: 2 | I182: 0 | J182: Gmaps | K182: VÄHÄ | L182: Yhdys | M182: Mäkiänkiläntie, Änkiläntie | N182: Rautjärvi | O182: Etelä-Karjala | P182: 14918 | Q182: 1 | R182: 0 | S182: 1 | T182: 1725 | U182: 1725 | V182: 456.2463768 | W182: 42.20289855 | X182: 526.8985507 | Y182: 429 (32 %), 469 (68 %) | Z182: 40 (42 %), 60 (57 %) | AA182: II (100 %) | AB182: AB (13 %), PAB (87 %) | AC182: Y3 (100 %) | AD182: 0 | AE182: 0 | AF182: 0 | AG182: 9.956521739 | AL182: 8.212434783 | AM182: 0 | AN182: 0 | AO182: 176 | AP182: 1.173333333 | AQ182: bussi | AR182: 3 | AS182: 9.385768116 | AT182: 3.128589372 | AU182: 7.596521739 | AV182: 0 | AW182: 0 | AX182: 1 | AY182: 0 | AZ182: 1 | BA182: 0 | BB182: 0.015 | BC182: 0 | BD182: 0.1833333333 | BE182: 0 | BF182: 0.6666666667 | BG182: 0 | BH182: 1.945895895 | BI182: 12.40741763 | BJ182: 4.135805878 | BK182: 1722.360341 | BL182: 0.9984697629 | BM182: 1 | BN182: 1722.360341 | BO182: 0.998469763 | BP182: 1 | BQ182: 0 | BR182: 96.313447 | BS182: 0.05583388232 | BT182: 0 | BU182: 53.33333333 | BV182: 0.5 | BW182: 0 | BX182: 0 | BY182: 0 | BZ182: 1 | CA182: 3.5 | CB182: 1.166666667 | CC182: 25.29318575 | CD182: 8.431061917 | CE182: 2 | CL182: https://www.google.com/maps/@61.4167360612,29.3356358979,3a,75y,90t/data=!3m3!1e1!3m1!2e0 | CN182: 3 | CP182: 0 | CR182: 0 | CS182: 1 | CT182: 0 | CU182: 2 | CV182: 0 | CW182: 3 | CX182: 0 | CY182: 11 | CZ182: 0 | DC182: 2 | DE182: 0 | DH182: 0 | DI182: 0 | DJ182: 0 | DM182: 1 | DN182: 0 | DO182: 2.918843843
A183: 377_1 | B183: 2 | D183: 145 | E183: 145 | F183: 0 | G183: 8.405555556 | H183: 2 | I183: 0 | J183: Gmaps | K183: KESKI | L183: Seutu | M183: Savitaipaleentie | N183: Kouvola | O183: Kymenlaakso | P183: 377 | Q183: 1 | R183: 0 | S183: 1 | T183: 4140 | U183: 4140 | V183: 579 | W183: 60 | X183: 737 | Y183: 579 (100 %) | Z183: 80 (100 %) | AA183: II (100 %) | AB183: AB (28 %), PAB (72 %) | AC183: Y2 (100 %) | AD183: 2 | AE183: 4 | AF183: 0.02415458937 | AG183: 29 | AL183: 9 | AM183: 0 | AN183: 0 | AO183: 104 | AP183: 0.6933333333 | AQ183: bussi | AR183: 3 | AS183: 9.693333333 | AT183: 3.231111111 | AU183: 9 | AV183: 0 | AW183: 0 | AX183: 0 | AY183: 1 | AZ183: 1 | BA183: 0.18 | BB183: 0.01 | BC183: 0 | BD183: 0 | BE183: 0 | BF183: 0.3333333333 | BG183: 0 | BH183: 2 | BI183: 13.52333333 | BJ183: 4.507777778 | BK183: 0 | BL183: 0 | BM183: 0 | BN183: 0 | BO183: 0 | BP183: 0 | BQ183: 1 | BR183: 0 | BS183: 0 | BT183: 0 | BU183: 0 | BV183: 0 | BW183: 0 | BX183: 0 | BY183: 0 | BZ183: 1 | CA183: 2 | CB183: 0.6666666667 | CC183: 25.21666667 | CD183: 8.405555556 | CE183: 2 | CL183: https://www.google.com/maps/@61.0965164623,27.0884122208,3a,75y,90t/data=!3m3!1e1!3m1!2e0 | CN183: 3 | CP183: 0 | CR183: 0 | CS183: 0 | CT183: 6 | CU183: 1 | CV183: 108 | CW183: 2 | CX183: 0 | CY183: 0 | CZ183: 0 | DC183: 1 | DE183: 17112.94462 | DH183: 0 | DI183: 0 | DJ183: 0 | DM183: 1 | DN183: 0 | DO183: 3.543047695
A184: 377_2 | B184: 2 | D184: 146 | E184: 146 | F184: 0 | G184: 8.392152566 | H184: 2 | I184: 0 | J184: Gmaps | K184: KESKI | L184: Seutu | M184: Savitaipaleentie, Tuohikotintie | N184: Kouvola, Savitaipale | O184: Kymenlaakso, Etelä-Karjala | P184: 377 | Q184: 2 | R184: 0 | S184: 2 | T184: 4534 | U184: 4534 | V184: 579 | W184: 60 | X184: 737 | Y184: 579 (100 %) | Z184: 70 (13 %), 80 (87 %) | AA184: II (100 %) | AB184: AB (20 %), PAB (80 %) | AC184: Y2 (100 %) | AD184: 0 | AE184: 0 | AF184: 0 | AG184: 29 | AL184: 9 | AM184: 0 | AN184: 0 | AO184: 98 | AP184: 0.6533333333 | AQ184: - | AR184: 0 | AS184: 9.653333333 | AT184: 3.217777778 | AU184: 9 | AV184: 0 | AW184: 0 | AX184: 0 | AY184: 1 | AZ184: 1 | BA184: 0.18 | BB184: 0.01 | BC184: 0 | BD184: 0 | BE184: 0 | BF184: 0.3333333333 | BG184: 0 | BH184: 1.99979103 | BI184: 13.52312436 | BJ184: 4.507708121 | BK184: 0 | BL184: 0 | BM184: 0 | BN184: 0 | BO184: 0 | BP184: 0 | BQ184: 1 | BR184: 0 | BS184: 0 | BT184: 0 | BU184: 0 | BV184: 0 | BW184: 0 | BX184: 0 | BY184: 0 | BZ184: 1 | CA184: 2 | CB184: 0.6666666667 | CC184: 25.1764577 | CD184: 8.392152566 | CE184: 2 | CL184: https://www.google.com/maps/@61.0914750371,27.1602643213,3a,75y,90t/data=!3m3!1e1!3m1!2e0 | CN184: 0 | CP184: 0 | CR184: 0 | CS184: 0 | CT184: 6 | CU184: 1 | CV184: 108 | CW184: 2 | CX184: 0 | CY184: 0 | CZ184: 0 | DC184: 1 | DE184: 18090.02396 | DH184: 0 | DI184: 0 | DJ184: 0 | DM184: 1 | DN184: 0 | DO184: 2.999686546
A185: 3514_1 | B185: 2 | D185: 147 | E185: 147 | F185: 0 | G185: 8.383917903 | H185: 2 | I185: 0 | J185: Gmaps | K185: VÄHÄ | L185: Yhdys | M185: Salpalinjantie | N185: Virolahti | O185: Kymenlaakso | P185: 3514 | Q185: 1 | R185: 0 | S185: 1 | T185: 2241 | U185: 2241 | V185: 356 | W185: 70 | X185: 453 | Y185: 356 (100 %) | Z185: 50 (19 %), 80 (81 %) | AA185: I (100 %) | AB185: AB (100 %) | AC185: Y3 (100 %) | AD185: 0 | AE185: 0 | AG185: 26 | AL185: 6.408 | AM185: 0 | AN185: 0 | AO185: 122 | AP185: 0.8133333333 | AQ185: - | AR185: 0 | AS185: 7.221333333 | AT185: 2.407111111 | AU185: 9 | AV185: 0 | AW185: 0 | AX185: 1 | AY185: 0 | AZ185: 1 | BA185: 0.34 | BB185: 0.5 | BC185: 0 | BD185: 0.4666666667 | BE185: 1 | BF185: 0.6666666667 | BG185: 0 | BH185: 0.9570870428 | BI185: 14.93042038 | BJ185: 4.976806792 | BK185: 0 | BL185: 0 | BM185: 0 | BN185: 0 | BO185: 0 | BP185: 0 | BQ185: 1 | BR185: 0 | BS185: 0 | BT185: 0 | BU185: 0 | BV185: 0 | BW185: 0 | BX185: 0 | BY185: 1 | BZ185: 1 | CA185: 3 | CB185: 1 | CC185: 25.15175371 | CD185: 8.383917903 | CE185: 2 | CL185: https://www.google.com/maps/@60.5907545281,27.6066548011,3a,75y,90t/data=!3m3!1e1!3m1!2e0 | CN185: 0 | CP185: 0 | CR185: 0 | CS185: 9 | CT185: 0 | CU185: 14 | CV185: 204 | CW185: 138 | CX185: 0 | CY185: 28 | CZ185: 3 | DC185: 2 | DE185: 4460.757635 | DH185: 0 | DI185: 0 | DJ185: 2 | DM185: 1 | DN185: 0 | DO185: 1.435630564
A186: 371_4 | B186: 2 | D186: 148 | E186: 148 | F186: 0 | G186: 8.37821522 | H186: 2 | I186: 0 | J186: Gmaps | K186: KESKI | L186: Seutu | M186: Aholanmäentie, Metsäkyläntie | N186: Hamina, Kouvola | O186: Kymenlaakso | P186: 371 | Q186: 4 | R186: 0 | S186: 4 | T186: 7842 | U186: 7842 | V186: 688 | W186: 41 | X186: 852 | Y186: 688 (100 %) | Z186: 40 (1 %), 50 (50 %), 70 (50 %) | AA186: Ib (100 %) | AB186: AB (100 %) | AC186: Y2 (100 %) | AD186: 4 | AE186: 5 | AF186: 0 | AG186: 9 | AL186: 9 | AM186: 2 | AN186: 0.6 | AO186: 161 | AP186: 1.073333333 | AQ186: bussi | AR186: 3 | AS186: 10.67333333 | AT186: 3.557777778 | AU186: 7.38 | AV186: 2 | AW186: 0 | AX186: 1 | AY186: 0 | AZ186: 1 | BA186: 0.2 | BB186: 0.085 | BC186: 0 | BD186: 0 | BE186: 0 | BF186: 0.3333333333 | BG186: 0 | BH186: 0.4629789945 | BI186: 12.46131233 | BJ186: 4.153770776 | BK186: 2903.870683 | BL186: 0.3702972052 | BM186: 0.5 | BN186: 0 | BO186: 0 | BP186: 0 | BQ186: 0 | BR186: 2124.375529 | BS186: 0.27089716 | BT186: 0 | BU186: 32.92527416 | BV186: 0.5 | BW186: 0 | BX186: 0 | BY186: 0 | BZ186: 1 | CA186: 2 | CB186: 0.6666666667 | CC186: 25.13464566 | CD186: 8.37821522 | CE186: 2 | CL186: https://www.google.com/maps/@60.650885424,27.0787671567,3a,75y,90t/data=!3m3!1e1!3m1!2e0 | CN186: 3 | CP186: 1 | CR186: 0 | CS186: 1 | CT186: 0 | CU186: 3 | CV186: 120 | CW186: 17 | CX186: 0 | CY186: 0 | CZ186: 0 | DC186: 1 | DE186: 0 | DH186: 0 | DI186: 0 | DJ186: 0 | DM186: 1 | DN186: 0 | DO186: 0.6944684918
A187: 3582_1 | B187: 2 | D187: 149 | E187: 149 | F187: 0 | G187: 8.375813173 | H187: 2 | I187: 0 | J187: Gmaps | K187: KESKI | L187: Yhdys | M187: Tavastilantie | N187: Kotka | O187: Kymenlaakso | P187: 3582 | Q187: 1 | R187: 0 | S187: 1 | T187: 3919 | U187: 3919 | V187: 855.4197499 | W187: 40.94182189 | X187: 869.371013 | Y187: 490 (40 %), 1102 (60 %) | Z187: 40 (10 %), 50 (48 %), 60 (41 %) | AA187: Ic (60 %), II (40 %) | AB187: AB (32 %), PAB (68 %) | AC187: Y3 (100 %) | AD187: 0 | AE187: 0 | AF187: 0.2079735907 | AG187: 7.417453432 | AL187: 9 | AM187: 0 | AN187: 0 | AO187: 350 | AP187: 2 | AQ187: bussi | AR187: 3 | AS187: 11 | AT187: 3.666666667 | AU187: 7.369527941 | AV187: 0 | AW187: 0 | AX187: 0 | AY187: 0 | AZ187: 1 | BA187: 0 | BB187: 0.215 | BC187: 0 | BD187: 0 | BE187: 0 | BF187: 0.3333333333 | BG187: 0 | BH187: 0.2095782448 | BI187: 9.127439519 | BJ187: 3.04247984 | BK187: 3912.687832 | BL187: 0.9983893422 | BM187: 1 | BN187: 0 | BO187: 0 | BP187: 0 | BQ187: 1 | BR187: 3663.047599 | BS187: 0.9346893592 | BT187: 1 | BU187: 119.6478694 | BV187: 1 | BW187: 0 | BX187: 0 | BY187: 0 | BZ187: 1 | CA187: 5 | CB187: 1.666666667 | CC187: 25.12743952 | CD187: 8.375813173 | CE187: 2 | CL187: https://www.google.com/maps/@60.5554340415,26.9910152004,3a,75y,90t/data=!3m3!1e1!3m1!2e0 | CN187: 3 | CP187: 0 | CR187: 0 | CS187: 0 | CT187: 0 | CU187: 1 | CV187: 0 | CW187: 43 | CX187: 0 | CY187: 0 | CZ187: 0 | DC187: 1 | DE187: 7825.375664 | DH187: 0 | DI187: 0 | DJ187: 0 | DM187: 1 | DN187: 0 | DO187: 0.3143673672
A188: 3513_4 | B188: 2 | D188: 150 | E188: 150 | F188: 0 | G188: 8.371093516 | H188: 2 | I188: 0 | J188: Gmaps | K188: KESKI | L188: Yhdys | M188: Museotie | N188: Virolahti | O188: Kymenlaakso | P188: 3513 | Q188: 4 | R188: 0 | S188: 4 | T188: 5384 | U188: 5384 | V188: 577 | W188: 27 | X188: 729 | Y188: 577 (100 %) | Z188: 40 (9 %), 60 (91 %) | AA188: II (100 %) | AB188: AB (8 %), PAB (92 %) | AC188: Y3 (100 %) | AD188: 1 | AE188: 2 | AF188: 0.03714710253 | AG188: 2 | AL188: 9 | AM188: 3 | AN188: 0.9 | AO188: 74 | AP188: 0.4933333333 | AQ188: bussi | AR188: 3 | AS188: 10.39333333 | AT188: 3.464444444 | AU188: 4.86 | AV188: 2 | AW188: 0 | AX188: 0 | AY188: 0 | AZ188: 1 | BA188: 0.4466666667 | BB188: 0.02 | BC188: 0 | BD188: 0 | BE188: 0 | BF188: 0.3333333333 | BG188: 1 | BH188: 0.5599472135 | BI188: 10.21994721 | BJ188: 3.406649071 | BK188: 2695.498931 | BL188: 0.5006498757 | BM188: 1 | BN188: 0 | BO188: 0 | BP188: 0 | BQ188: 0 | BR188: 1453.827343 | BS188: 0.2700273668 | BT188: 0 | BU188: 31.74219911 | BV188: 0.5 | BW188: 0 | BX188: 1 | BY188: 1 | BZ188: 1 | CA188: 4.5 | CB188: 1.5 | CC188: 25.11328055 | CD188: 8.371093516 | CE188: 2 | CL188: https://www.google.com/maps/@60.5160693114,27.4579972365,3a,75y,90t/data=!3m3!1e1!3m1!2e0 | CN188: 3 | CP188: 1 | CR188: 0 | CS188: 0 | CT188: 0 | CU188: 1 | CV188: 268 | CW188: 4 | CX188: 0 | CY188: 0 | CZ188: 0 | DC188: 1 | DE188: 0 | DH188: 0 | DI188: 0 | DJ188: 1 | DM188: 1 | DN188: 1 | DO188: 0.8399208202
A189: 14821_3 | B189: 2 | D189: 151 | E189: 151 | F189: 0 | G189: 8.348786015 | H189: 2 | I189: 0 | J189: Gmaps | K189: KESKI | L189: Yhdys | M189: Vanha Viipurintie | N189: Lappeenranta | O189: Etelä-Karjala | P189: 14821 | Q189: 3 | R189: 0 | S189: 3 | T189: 3845 | U189: 3845 | V189: 1165 | W189: 52 | X189: 1235 | Y189: 1165 (100 %) | Z189: 60 (7 %), 80 (93 %) | AA189: Ib (100 %) | AB189: AB (94 %), PAB (6 %) | AC189: Y3 (100 %) | AD189: 0 | AE189: 2 | AF189: 0.2600780234 | AG189: 12 | AL189: 9 | AM189: 0 | AN189: 0 | AO189: 157 | AP189: 1.046666667 | AQ189: bussi | AR189: 3 | AS189: 10.04666667 | AT189: 3.348888889 | AU189: 9 | AV189: 2 | AW189: 0 | AX189: 1 | AY189: 0 | AZ189: 0 | BA189: 0 | BB189: 0 | BC189: 0 | BD189: 0 | BE189: 0 | BF189: 0 | BG189: 0 | BH189: 0.9996913797 | BI189: 12.99969138 | BJ189: 4.33323046 | BK189: 1436.455888 | BL189: 0.373590608 | BM189: 0.5 | BN189: 0 | BO189: 0 | BP189: 0 | BQ189: 0 | BR189: 0 | BS189: 0 | BT189: 0 | BU189: 39.40182055 | BV189: 0.5 | BW189: 0 | BX189: 0 | BY189: 0 | BZ189: 1 | CA189: 2 | CB189: 0.6666666667 | CC189: 25.04635805 | CD189: 8.348786015 | CE189: 2 | CL189: https://www.google.com/maps/@61.0027278892,28.2970902969,3a,75y,90t/data=!3m3!1e1!3m1!2e0 | CN189: 3 | CP189: 1 | CR189: 0 | CS189: 1 | CT189: 0 | CU189: 0 | CV189: 0 | CW189: 0 | CX189: 0 | CY189: 0 | CZ189: 0 | DC189: 0 | DE189: 0 | DH189: 0 | DI189: 0 | DJ189: 0 | DM189: 1 | DN189: 0 | DO189: 1.49953707
A190: 378_5 | B190: 2 | D190: 152 | E190: 152 | F190: 0 | G190: 8.332120137 | H190: 2 | I190: 0 | J190: Gmaps | K190: KESKI | L190: Seutu | M190: 0 | N190: Savitaipale | O190: Etelä-Karjala | P190: 378 | Q190: 5 | R190: 0 | S190: 5 | T190: 1876 | U190: 1876 | V190: 694 | W190: 72 | X190: 824 | Y190: 694 (100 %) | Z190: 80 (100 %) | AA190: II (100 %) | AB190: AB (100 %) | AC190: Y2 (100 %) | AD190: 0 | AE190: 2 | AF190: 0 | AG190: 25 | AL190: 9 | AM190: 0 | AN190: 0 | AO190: 123 | AP190: 0.82 | AQ190: taksi | AR190: 1.5 | AS190: 9.82 | AT190: 3.273333333 | AU190: 9 | AV190: 2 | AW190: 0 | AX190: 0 | AY190: 0 | AZ190: 0 | BA190: 0.35 | BB190: 0 | BC190: 0 | BD190: 0 | BE190: 0 | BF190: 0 | BG190: 0 | BH190: 1.326360411 | BI190: 12.67636041 | BJ190: 4.22545347 | BK190: 0 | BL190: 0 | BM190: 0 | BN190: 0 | BO190: 0 | BP190: 0 | BQ190: 1 | BR190: 0 | BS190: 0 | BT190: 0 | BU190: 2.665245203 | BV190: 0.5 | BW190: 0 | BX190: 0 | BY190: 0 | BZ190: 1 | CA190: 2.5 | CB190: 0.8333333333 | CC190: 24.99636041 | CD190: 8.332120137 | CE190: 2 | CL190: https://www.google.com/maps/@61.1090465575,27.6213100413,3a,75y,90t/data=!3m3!1e1!3m1!2e0 | CN190: 1 | CP190: 1 | CR190: 0 | CS190: 0 | CT190: 0 | CU190: 0 | CV190: 210 | CW190: 0 | CX190: 0 | CY190: 0 | CZ190: 0 | DC190: 0 | DE190: 3758.235238 | DH190: 0 | DI190: 0 | DJ190: 0 | DM190: 1 | DN190: 0 | DO190: 1.989540616
A191: 14844_1 | B191: 2 | D191: 153 | E191: 153 | F191: 0 | G191: 8.294156142 | H191: 2 | I191: 0 | J191: Gmaps | K191: KESKI | L191: Yhdys | M191: Karjalaisentie, Kähäriläntie | N191: Lappeenranta | O191: Etelä-Karjala | P191: 14844 | Q191: 1 | R191: 0 | S191: 1 | T191: 4103 | U191: 4103 | V191: 523.8442603 | W191: 42.70046308 | X191: 597.6592737 | Y191: 361 (49 %), 683 (50 %) | Z191: 50 (13 %), 60 (86 %) | AA191: III (100 %) | AB191: AB (10 %), PAB (90 %) | AC191: Y3 (100 %) | AD191: 1 | AE191: 2 | AF191: 0.07306380906 | AG191: 4.494272484 | AL191: 9 | AM191: 0 | AN191: 0 | AO191: 180 | AP191: 1.2 | AQ191: bussi | AR191: 3 | AS191: 10.2 | AT191: 3.4 | AU191: 7.686083354 | AV191: 2 | AW191: 0 | AX191: 1 | AY191: 0 | AZ191: 1 | BA191: 0.2633333333 | BB191: 0.18 | BC191: 0 | BD191: 0 | BE191: 0 | BF191: 0 | BG191: 0 | BH191: 0.5530517401 | BI191: 12.68246843 | BJ191: 4.227489476 | BK191: 193.6996363 | BL191: 0.04720927037 | BM191: 0.5 | BN191: 0 | BO191: 0 | BP191: 0 | BQ191: 0 | BR191: 240.7504991 | BS191: 0.05867669977 | BT191: 0 | BU191: 63.85571533 | BV191: 0.5 | BW191: 0 | BX191: 0 | BY191: 0 | BZ191: 1 | CA191: 2 | CB191: 0.6666666667 | CC191: 24.88246843 | CD191: 8.294156142 | CE191: 2 | CL191: https://www.google.com/maps/@61.1032412205,28.4578879633,3a,75y,90t/data=!3m3!1e1!3m1!2e0 | CN191: 3 | CP191: 1 | CR191: 0 | CS191: 1 | CT191: 0 | CU191: 4 | CV191: 158 | CW191: 36 | CX191: 0 | CY191: 0 | CZ191: 0 | DC191: 0 | DE191: 0 | DH191: 0 | DI191: 0 | DJ191: 0 | DM191: 1 | DN191: 0 | DO191: 0.8295776102
A192: 14618_1 | B192: 2 | D192: 154 | E192: 154 | F192: 0 | G192: 8.292305724 | H192: 2 | I192: 0 | J192: Gmaps | K192: KESKI | L192: Yhdys | M192: Pernoontie | N192: Kotka | O192: Kymenlaakso | P192: 14618 | Q192: 1 | R192: 0 | S192: 1 | T192: 9840 | U192: 9840 | V192: 876.4115854 | W192: 39.1554878 | X192: 1000.465447 | Y192: 287 (44 %), 803 (43 %), 2974 (14 %) | Z192: 40 (5 %), 50 (15 %), 60 (75 %), 80 (6 %) | AA192: Ic (57 %), II (44 %) | AB192: AB (14 %), PAB (86 %) | AC192: Y3 (100 %) | AD192: 1 | AE192: 5 | AF192: 0.07113821138 | AG192: 3.411585366 | AL192: 9 | AM192: 0 | AN192: 0 | AO192: 789 | AP192: 2 | AQ192: bussi | AR192: 3 | AS192: 11 | AT192: 3.666666667 | AU192: 7.047987805 | AV192: 2 | AW192: 0 | AX192: 0 | AY192: 0 | AZ192: 1 | BA192: 0.1683333333 | BB192: 0.16 | BC192: 0 | BD192: 0.3333333333 | BE192: 0 | BF192: 0.3333333333 | BG192: 0 | BH192: 0.3339293681 | BI192: 11.37691717 | BJ192: 3.792305724 | BK192: 1919.832887 | BL192: 0.1951049681 | BM192: 0.5 | BN192: 0 | BO192: 0 | BP192: 0 | BQ192: 0 | BR192: 5516.354567 | BS192: 0.5606051389 | BT192: 1 | BU192: 179.1056911 | BV192: 1 | BW192: 0 | BX192: 0 | BY192: 0 | BZ192: 0 | CA192: 2.5 | CB192: 0.8333333333 | CC192: 24.87691717 | CD192: 8.292305724 | CE192: 2 | CL192: https://www.google.com/maps/@60.5023921646,26.8710574217,3a,75y,90t/data=!3m3!1e1!3m1!2e0 | CN192: 3 | CP192: 1 | CR192: 0 | CS192: 0 | CT192: 0 | CU192: 3 | CV192: 101 | CW192: 32 | CX192: 0 | CY192: 20 | CZ192: 0 | DC192: 1 | DE192: 0 | DH192: 0 | DI192: 0 | DJ192: 0 | DM192: 0 | DN192: 0 | DO192: 0.5008940521
A193: 368_4 | B193: 2 | D193: 155 | E193: 155 | F193: 0 | G193: 8.28311377 | H193: 2 | I193: 0 | J193: Gmaps | K193: KESKI | L193: Seutu | M193: Näkkimistönmäentie, Näkkimistöntie | N193: Kouvola | O193: Kymenlaakso | P193: 368 | Q193: 4 | R193: 0 | S193: 4 | T193: 3471 | U193: 3471 | V193: 1106 | W193: 91 | X193: 1511 | Y193: 1106 (100 %) | Z193: 40 (9 %), 60 (9 %), 80 (82 %) | AA193: Ib (100 %) | AB193: AB (100 %) | AC193: Y2 (100 %) | AD193: 1 | AE193: 1 | AF193: 0.02881014117 | AG193: 27 | AL193: 9 | AM193: 0 | AN193: 0 | AO193: 110 | AP193: 0.7333333333 | AQ193: bussi | AR193: 3 | AS193: 9.733333333 | AT193: 3.244444444 | AU193: 9 | AV193: 0 | AW193: 0 | AX193: 0 | AY193: 0 | AZ193: 0 | BA193: 0 | BB193: 0 | BC193: 0 | BD193: 0 | BE193: 0 | BF193: 0 | BG193: 1 | BH193: 1.616007976 | BI193: 11.61600798 | BJ193: 3.872002659 | BK193: 0 | BL193: 0 | BM193: 0 | BN193: 0 | BO193: 0 | BP193: 0 | BQ193: 1 | BR193: 0 | BS193: 0 | BT193: 0 | BU193: 32.06568712 | BV193: 0.5 | BW193: 0 | BX193: 0 | BY193: 1 | BZ193: 1 | CA193: 3.5 | CB193: 1.166666667 | CC193: 24.84934131 | CD193: 8.28311377 | CE193: 2 | CL193: https://www.google.com/maps/@61.0651015742,26.8294745216,3a,75y,90t/data=!3m3!1e1!3m1!2e0 | CN193: 3 | CP193: 0 | CR193: 0 | CS193: 0 | CT193: 0 | CU193: 0 | CV193: 0 | CW193: 0 | CX193: 0 | CY193: 0 | CZ193: 0 | DC193: 0 | DE193: 3473.432302 | DH193: 0 | DI193: 0 | DJ193: 3 | DM193: 1 | DN193: 1 | DO193: 2.424011963
A194: 4017_1 | B194: 2 | D194: 156 | E194: 156 | F194: 0 | G194: 8.274471493 | H194: 2 | I194: 0 | J194: Gmaps | K194: KESKI | L194: Yhdys | M194: Tiviäntie | N194: Parikkala | O194: Etelä-Karjala | P194: 4017 | Q194: 1 | R194: 0 | S194: 1 | T194: 1075 | U194: 1075 | V194: 1389 | W194: 47 | X194: 1660 | Y194: 1389 (100 %) | Z194: 40 (100 %) | AA194: II (100 %) | AB194: AB (91 %), PAB (9 %) | AC194: Y2 (100 %) | AD194: 0 | AE194: 0 | AF194: 0.1860465116 | AG194: 7 | AL194: 9 | AM194: 0 | AN194: 0 | AO194: 184 | AP194: 1.226666667 | AQ194: bussi | AR194: 3 | AS194: 10.22666667 | AT194: 3.408888889 | AU194: 8.46 | AV194: 0 | AW194: 0 | AX194: 0 | AY194: 0 | AZ194: 0 | BA194: 0 | BB194: 0 | BC194: 0 | BD194: 0 | BE194: 0 | BF194: 0 | BG194: 0 | BH194: 0.1367478136 | BI194: 8.596747814 | BJ194: 2.865582605 | BK194: 1072.629524 | BL194: 0.9977949062 | BM194: 1 | BN194: 1072.629524 | BO194: 0.9977949063 | BP194: 1 | BQ194: 1 | BR194: 1072.629524 | BS194: 0.9977949063 | BT194: 1 | BU194: 573.0232558 | BV194: 1 | BW194: 0 | BX194: 0 | BY194: 0 | BZ194: 1 | CA194: 6 | CB194: 2 | CC194: 24.82341448 | CD194: 8.274471493 | CE194: 2 | CL194: https://www.google.com/maps/@61.5502568052,29.5026933202,3a,75y,90t/data=!3m3!1e1!3m1!2e0 | CN194: 3 | CP194: 0 | CR194: 0 | CS194: 0 | CT194: 0 | CU194: 0 | CV194: 0 | CW194: 0 | CX194: 0 | CY194: 0 | CZ194: 0 | DC194: 0 | DE194: 2145.259049 | DH194: 0 | DI194: 0 | DJ194: 0 | DM194: 1 | DN194: 0 | DO194: 0.2051217204
A195: 369_1 | B195: 2 | D195: 157 | E195: 157 | F195: 0 | G195: 8.247190396 | H195: 2 | I195: 0 | J195: Gmaps | K195: KESKI | L195: Seutu | M195: Selänpääntie | N195: Kouvola | O195: Kymenlaakso | P195: 369 | Q195: 1 | R195: 0 | S195: 1 | T195: 3487 | U195: 3487 | V195: 759 | W195: 46 | X195: 1283 | Y195: 759 (100 %) | Z195: 80 (100 %) | AA195: II (100 %) | AB195: AB (28 %), PAB (72 %) | AC195: Y2 (100 %) | AD195: 1 | AE195: 1 | AF195: 0.08603383998 | AG195: 17 | AL195: 9 | AM195: 0 | AN195: 0 | AO195: 90 | AP195: 0.6 | AQ195: bussi | AR195: 3 | AS195: 9.6 | AT195: 3.2 | AU195: 8.28 | AV195: 0 | AW195: 0 | AX195: 0 | AY195: 0 | AZ195: 1 | BA195: 0.3166666667 | BB195: 0.345 | BC195: 0 | BD195: 0.3666666667 | BE195: 0 | BF195: 0.3333333333 | BG195: 0 | BH195: 0.9999045202 | BI195: 11.64157119 | BJ195: 3.880523729 | BK195: 0 | BL195: 0 | BM195: 0 | BN195: 0 | BO195: 0 | BP195: 0 | BQ195: 0 | BR195: 0 | BS195: 0 | BT195: 0 | BU195: 0 | BV195: 0 | BW195: 1.5 | BX195: 0 | BY195: 1 | BZ195: 1 | CA195: 3.5 | CB195: 1.166666667 | CC195: 24.74157119 | CD195: 8.247190396 | CE195: 2 | CL195: https://www.google.com/maps/@61.0405216048,26.5541032959,3a,75y,90t/data=!3m3!1e1!3m1!2e0 | CN195: 3 | CP195: 0 | CR195: 0 | CS195: 0 | CT195: 0 | CU195: 3 | CV195: 190 | CW195: 69 | CX195: 0 | CY195: 22 | CZ195: 0 | DC195: 1 | DE195: 0 | DH195: 1.5 | DI195: 1.5 | DJ195: 1 | DM195: 1 | DN195: 0 | DO195: 1.49985678
A196: 14545_1 | B196: 2 | D196: 158 | E196: 158 | F196: 0 | G196: 8.240725387 | H196: 2 | I196: 0 | J196: Gmaps | K196: KESKI | L196: Yhdys | M196: Alppiruusuntie, Vanhamaantie | N196: Kouvola | O196: Kymenlaakso | P196: 14545 | Q196: 1 | R196: 0 | S196: 1 | T196: 3032 | U196: 3032 | V196: 838 | W196: 23 | X196: 914 | Y196: 838 (100 %) | Z196: 40 (47 %), 50 (42 %), 60 (11 %) | AA196: II (100 %) | AB196: AB (100 %) | AC196: Y2 (100 %) | AD196: 2 | AE196: 6 | AF196: 0.04353562005 | AG196: 2 | AL196: 9 | AM196: 0 | AN196: 0 | AO196: 437 | AP196: 2 | AQ196: pikkubussi | AR196: 1.5 | AS196: 11 | AT196: 3.666666667 | AU196: 4.14 | AV196: 2 | AW196: 0 | AX196: 0 | AY196: 0 | AZ196: 1 | BA196: 0 | BB196: 0 | BC196: 0 | BD196: 0 | BE196: 0 | BF196: 0.3333333333 | BG196: 1 | BH196: 0.2488428273 | BI196: 8.722176161 | BJ196: 2.907392054 | BK196: 3030.986801 | BL196: 0.9996658314 | BM196: 1 | BN196: 0 | BO196: 0 | BP196: 0 | BQ196: 1 | BR196: 2888.042848 | BS196: 0.9525207283 | BT196: 1 | BU196: 351.616095 | BV196: 1 | BW196: 0 | BX196: 0 | BY196: 0 | BZ196: 1 | CA196: 5 | CB196: 1.666666667 | CC196: 24.72217616 | CD196: 8.240725387 | CE196: 2 | CL196: https://www.google.com/maps/@60.7289552953,26.4329515099,3a,75y,90t/data=!3m3!1e1!3m1!2e0 | CN196: 2 | CP196: 1 | CR196: 0 | CS196: 0 | CT196: 0 | CU196: 1 | CV196: 0 | CW196: 0 | CX196: 0 | CY196: 0 | CZ196: 0 | DC196: 1 | DE196: 945.0491567 | DH196: 0 | DI196: 0 | DJ196: 0 | DM196: 1 | DN196: 1 | DO196: 0.3732642409
A197: 371_5 | B197: 2 | D197: 159 | E197: 159 | F197: 0 | G197: 8.209471388 | H197: 2 | I197: 0 | J197: Gmaps | K197: KESKI | L197: Seutu | M197: Alaportintie | N197: Kouvola | O197: Kymenlaakso | P197: 371 | Q197: 5 | R197: 0 | S197: 5 | T197: 3283 | U197: 3283 | V197: 880 | W197: 52 | X197: 1022 | Y197: 880 (100 %) | Z197: 50 (3 %), 80 (97 %) | AA197: Ib (100 %) | AB197: AB (100 %) | AC197: Y2 (100 %) | AD197: 0 | AE197: 2 | AF197: 0 | AG197: 8 | AL197: 9 | AM197: 2 | AN197: 0.6 | AO197: 168 | AP197: 1.12 | AQ197: bussi | AR197: 3 | AS197: 10.72 | AT197: 3.573333333 | AU197: 9 | AV197: 2 | AW197: 0 | AX197: 0 | AY197: 0 | AZ197: 0 | BA197: 0 | BB197: 0 | BC197: 0 | BD197: 0 | BE197: 0 | BF197: 0 | BG197: 0 | BH197: 0.9084141653 | BI197: 11.90841417 | BJ197: 3.969471388 | BK197: 1404.068872 | BL197: 0.4276786086 | BM197: 0.5 | BN197: 0 | BO197: 0 | BP197: 0 | BQ197: 0 | BR197: 0 | BS197: 0 | BT197: 0 | BU197: 19.82942431 | BV197: 0.5 | BW197: 0 | BX197: 0 | BY197: 0 | BZ197: 1 | CA197: 2 | CB197: 0.6666666667 | CC197: 24.62841417 | CD197: 8.209471388 | CE197: 2 | CL197: https://www.google.com/maps/@60.7059109182,27.0019956528,3a,75y,90t/data=!3m3!1e1!3m1!2e0 | CN197: 3 | CP197: 1 | CR197: 0 | CS197: 0 | CT197: 0 | CU197: 0 | CV197: 0 | CW197: 0 | CX197: 0 | CY197: 0 | CZ197: 0 | DC197: 0 | DE197: 0 | DH197: 0 | DI197: 0 | DJ197: 0 | DM197: 1 | DN197: 0 | DO197: 1.362621248
A198: 4051_1 | B198: 2 | D198: 160 | E198: 160 | F198: 0 | G198: 8.169901668 | H198: 2 | I198: 0 | J198: Gmaps | K198: KESKI | L198: Yhdys | M198: Simpeleentie | N198: Parikkala, Rautjärvi | O198: Etelä-Karjala | P198: 4051 | Q198: 1 | R198: 0 | S198: 1 | T198: 5745 | U198: 5745 | V198: 852.9963446 | W198: 25.87902524 | X198: 1000.897128 | Y198: 600 (57 %), 1091 (19 %), 1258 (24 %) | Z198: 40 (31 %), 50 (18 %), 80 (51 %) | AA198: II (100 %) | AB198: AB (46 %), PAB (53 %) | AC198: Y3 (100 %) | AD198: 2 | AE198: 2 | AF198: 0 | AG198: 2.187293299 | AL198: 9 | AM198: 4 | AN198: 1.2 | AO198: 256 | AP198: 1.706666667 | AQ198: bussi | AR198: 3 | AS198: 11.90666667 | AT198: 3.968888889 | AU198: 4.658224543 | AV198: 2 | AW198: 0 | AX198: 0 | AY198: 0 | AZ198: 0 | BA198: 0.07166666667 | BB198: 0.225 | BC198: 0 | BD198: 0 | BE198: 0 | BF198: 0 | BG198: 0 | BH198: 0.1481471268 | BI198: 7.103038337 | BJ198: 2.367679446 | BK198: 2711.295264 | BL198: 0.4719399937 | BM198: 0.5 | BN198: 5720.642186 | BO198: 0.9957601717 | BP198: 1 | BQ198: 1 | BR198: 2937.771777 | BS198: 0.5113614929 | BT198: 1 | BU198: 156.4664926 | BV198: 1 | BW198: 0 | BX198: 0 | BY198: 0 | BZ198: 1 | CA198: 5.5 | CB198: 1.833333333 | CC198: 24.509705 | CD198: 8.169901668 | CE198: 2 | CL198: https://www.google.com/maps/@61.4594750055,29.4417571788,3a,75y,90t/data=!3m3!1e1!3m1!2e0 | CN198: 3 | CP198: 1 | CR198: 0 | CS198: 0 | CT198: 0 | CU198: 0 | CV198: 43 | CW198: 45 | CX198: 0 | CY198: 0 | CZ198: 0 | DC198: 0 | DE198: 8977.241553 | DH198: 0 | DI198: 0 | DJ198: 0 | DM198: 1 | DN198: 0 | DO198: 0.2222206902
A199: 170_28 | B199: 2 | D199: 161 | E199: 161 | F199: 0 | G199: 8.139853293 | H199: 2 | I199: 0 | J199: Gmaps | K199: KESKI | L199: Seutu | M199: Sutelantie | N199: Kotka | O199: Kymenlaakso | P199: 170 | Q199: 28 | R199: 0 | S199: 28 | T199: 1591 | U199: 1591 | V199: 4877 | W199: 191 | X199: 5484 | Y199: 4877 (102 %) | Z199: 40 (22 %), 50 (80 %) | AA199: Is (102 %) | AB199: AB (102 %) | AC199: Y2 (102 %) | AD199: 1 | AE199: 2 | AF199: 0.7542426147 | AG199: 23 | AL199: 9 | AM199: 2 | AN199: 0.6 | AO199: 103 | AP199: 0.6866666667 | AQ199: bussi | AR199: 3 | AS199: 10.28666667 | AT199: 3.428888889 | AU199: 9 | AV199: 0 | AW199: 0 | AX199: 0 | AY199: 0 | AZ199: 0 | BA199: 0 | BB199: 0 | BC199: 0 | BD199: 0 | BE199: 0 | BF199: 0 | BG199: 0 | BH199: 0.1328932114 | BI199: 9.132893211 | BJ199: 3.044297737 | BK199: 1615.310461 | BL199: 1.015279988 | BM199: 1 | BN199: 1615.310461 | BO199: 1.015279988 | BP199: 1 | BQ199: 1 | BR199: 557.2379056 | BS199: 0.3502438125 | BT199: 0 | BU199: 120.301697 | BV199: 1 | BW199: 0 | BX199: 0 | BY199: 0 | BZ199: 1 | CA199: 5 | CB199: 1.666666667 | CC199: 24.41955988 | CD199: 8.139853293 | CE199: 2 | CL199: https://www.google.com/maps/@60.5022927653,26.8714138337,3a,75y,90t/data=!3m3!1e1!3m1!2e0 | CN199: 3 | CP199: 0 | CR199: 0 | CS199: 0 | CT199: 0 | CU199: 0 | CV199: 0 | CW199: 0 | CX199: 0 | CY199: 0 | CZ199: 0 | DC199: 0 | DE199: 1615.310461 | DH199: 0 | DI199: 0 | DJ199: 0 | DM199: 1 | DN199: 0 | DO199: 0.1993398172
A200: 3721_2 | B200: 2 | D200: 162 | E200: 162 | F200: 0 | G200: 8.123881094 | H200: 2 | I200: 0 | J200: Gmaps | K200: KESKI | L200: Yhdys | M200: Liikkalantie | N200: Kouvola | O200: Kymenlaakso | P200: 3721 | Q200: 2 | R200: 0 | S200: 2 | T200: 4576 | U200: 4576 | V200: 829 | W200: 41 | X200: 903 | Y200: 829 (100 %) | Z200: 50 (24 %), 80 (76 %) | AA200: Ic (100 %) | AB200: PAB (100 %) | AC200: Y2 (100 %) | AD200: 0 | AE200: 1 | AF200: 0.1258741259 | AG200: 8 | AL200: 9 | AM200: 0 | AN200: 0 | AO200: 175 | AP200: 1.166666667 | AQ200: bussi | AR200: 3 | AS200: 10.16666667 | AT200: 3.388888889 | AU200: 7.38 | AV200: 2 | AW200: 0 | AX200: 1 | AY200: 0 | AZ200: 1 | BA200: 0.2166666667 | BB200: 0.08 | BC200: 0 | BD200: 0 | BE200: 0 | BF200: 0.3333333333 | BG200: 0 | BH200: 0.6949766161 | BI200: 12.70497662 | BJ200: 4.234992205 | BK200: 0 | BL200: 0 | BM200: 0 | BN200: 0 | BO200: 0 | BP200: 0 | BQ200: 0 | BR200: 0 | BS200: 0 | BT200: 0 | BU200: 16.6958042 | BV200: 0.5 | BW200: 0 | BX200: 0 | BY200: 0 | BZ200: 1 | CA200: 1.5 | CB200: 0.5 | CC200: 24.37164328 | CD200: 8.123881094 | CE200: 2 | CL200: https://www.google.com/maps/@60.7100093164,26.929111244,3a,75y,90t/data=!3m3!1e1!3m1!2e0 | CN200: 3 | CP200: 1 | CR200: 0 | CS200: 1 | CT200: 0 | CU200: 9 | CV200: 130 | CW200: 16 | CX200: 0 | CY200: 0 | CZ200: 0 | DC200: 1 | DE200: 0 | DH200: 0 | DI200: 0 | DJ200: 0 | DM200: 1 | DN200: 0 | DO200: 1.042464924
A201: 3841_1 | B201: 2 | D201: 163 | E201: 163 | F201: 0 | G201: 8.084057181 | H201: 2 | I201: 0 | J201: Gmaps | K201: KESKI | L201: Yhdys | M201: Kirkkotie, Urontie | N201: Luumäki | O201: Etelä-Karjala | P201: 3841 | Q201: 1 | R201: 0 | S201: 1 | T201: 2557 | U201: 2557 | V201: 582 | W201: 39 | X201: 676 | Y201: 582 (98 %) | Z201: 40 (12 %), 60 (77 %), 80 (9 %) | AA201: II (98 %) | AB201: AB (98 %) | AC201: Y3 (98 %) | AD201: 1 | AE201: 1 | AF201: 0 | AG201: 5 | AL201: 9 | AM201: 1 | AN201: 0.3 | AO201: 132 | AP201: 0.88 | AQ201: bussi | AR201: 3 | AS201: 10.18 | AT201: 3.393333333 | AU201: 7.02 | AV201: 0 | AW201: 0 | AX201: 1 | AY201: 0 | AZ201: 1 | BA201: 0.2233333333 | BB201: 0 | BC201: 0 | BD201: 0 | BE201: 0 | BF201: 0.3333333333 | BG201: 0 | BH201: 0.9955048771 | BI201: 10.57217154 | BJ201: 3.524057181 | BK201: 0 | BL201: 0 | BM201: 0 | BN201: 667.6549907 | BO201: 0.2611087175 | BP201: 1 | BQ201: 0 | BR201: 0 | BS201: 0 | BT201: 0 | BU201: 33.35940555 | BV201: 0.5 | BW201: 0 | BX201: 0 | BY201: 1 | BZ201: 1 | CA201: 3.5 | CB201: 1.166666667 | CC201: 24.25217154 | CD201: 8.084057181 | CE201: 2 | CL201: https://www.google.com/maps/@60.9273463271,27.6314619073,3a,75y,90t/data=!3m3!1e1!3m1!2e0 | CN201: 3 | CP201: 0 | CR201: 0 | CS201: 2 | CT201: 0 | CU201: 9 | CV201: 134 | CW201: 0 | CX201: 0 | CY201: 0 | CZ201: 0 | DC201: 1 | DE201: 0 | DH201: 0 | DI201: 0 | DJ201: 1 | DM201: 1 | DN201: 0 | DO201: 1.493257316
... 514 more rows

Sheet SORATIET
D1: Kaakkois-Suomen ELY-keskuksen tieverkon merkittävyysluokitus, joulukuu 2021
D5: TEKIJÄ | G5: pisteet | H5: raja-arvo
D6: KVL | G6: 3 | H6: 150
D7: KELIRIKKO | G7: 1 | H7: 0.5
D8: MERKITTÄVYYSPISTEET | G8: 6 | H8: 3
G9: =SUM(G6:G8) -> 10
A10: 1 | B10: 2 | K10: 9 | L10: 10 | M10: 11 | Q10: 14 | R10: 15 | S10: 16 | T10: 17 | W10: 18 | X10: 19 | Y10: 20 | Z10: 24 | AA10: 30 | AJ10: 32 | AK10: 33 | AL10: 34 | AM10: 35 | AN10: 36 | AQ10: 37 | AR10: 38 | AS10: 39 | AT10: 40 | AU10: 41 | AV10: 42 | AW10: 43 | AX10: 44 | AY10: 45 | AZ10: 46 | BA10: 47 | BB10: 48 | BC10: 49 | BG10: 50 | BH10: 51 | BI10: 52 | BJ10: 53 | BK10: 54 | BL10: 55 | BM10: 56 | BN10: 57 | BO10: 58 | BP10: 59 | BQ10: 60 | BR10: 61 | BW10: 66 | BX10: 67 | BY10: 68 | BZ10: 69 | CA10: 70 | CB10: 10.6 | CC10: 71
H11: Pistetiedot haettu 22.12.2021
A12: Lajittelu, ID | B12: LUOKKA | C12: merkluokkapist | D12: Soratie sija | E12: Soratie prior. | F12: Soratie-luokka | G12: Merk.- luokitus sija | H12: Merk.- luokitus pisteet | I12: Google Maps | K12: SIJANTI | O12: SORATIEN/-TIEOSUUS | U12: Koko tieosan pituus | V12: Soratie osuus | W12: SORATIEN/-TIEOSUUDEN OMINAISUUDET | AJ12: SÄÄNNÖLLINEN HENKILÖLIIKENNE | AQ12: PISTEET YHTEENSÄ (max. 15) | AR12: PISTEET YHTEENSÄ, PAINOTETTU | AS12: SÄÄNNÖLLINEN TAVARALIIKENNE | BG12: PISTEET YHTEENSÄ (max. 25) | BH12: PISTEET YHTEENSÄ, PAINOTETTU | BI12: MUUT TEKIJÄT | BY12: PISTEET YHTEENSÄ (max. 10) | BZ12: PISTEET YHTEENSÄ, PAINOTETTU | CA12: PISTEET YHTEENSÄ (max. 50) | CB12: PISTEET YHTEENSÄ, PAINOTETTU | CC12: MERKITSEVYYS-LUOKKA
O13: TIE | P13: AOSA | Q13: AET | R13: LOSA | S13: LET | T13: PITUUS | W13: KVL, ka | X13: KVLRAS | Y13: KKVL | Z13: Päällyste | AA13: Tien leveys | AB13: Runkokelirikko | AC13: Runkokelirikko (metriä) | AG13: Pintakunto | AJ13: Liikennemäärä | AK13: Linja-autoliikenne | AM13: Työmatkareitti | AO13: Koulukuljetus | AS13: Liikennemäärä | AX13: Maatilat | BI13: 3 km koulubufferi | BL13: Erikoiskuljetusreitti | BO13: Varareitti | BP13: Taajama | BS13: Asukastiheys | BU13: Liikennemäärä | BV13: Matkailureitti | BW13: Matkailukohde | BX13: Tien verkollinen asema
A14: Lajittelu, ID | B14: Lajittelu, KVL | J14: LUOKKA | K14: TOIML | L14: Tien nimi | M14: Kunta | N14: Maakunta | AB14: Osuus % | AC14: erit.huono | AD14: huono | AE14: tyydyt. | AF14: hyvä | AG14: Tasaisuus | AH14: Kiinteys | AI14: Pölyävyys | AJ14: KVL pisteet | AK14: Vuorot | AL14: Pisteet | AM14: Työmatkat | AN14: Pisteet | AO14: Reitit | AP14: Pisteet | AS14: KVLRAS pisteet | AT14: Maito | AU14: Jäte | AV14: Maa-aines | AW14: Turve | AX14: Vilja + kasvih. | AY14: Nauta | AZ14: Lammas | BA14: Sika | BB14: Siipikarja | BC14: Elintarvikelaitos | BD14: Tuotantolaitos | BE14: Päivittäistavarakauppa | BF14: Puukuljetus | BI14: Pituus | BJ14: Prosentti | BK14: Pisteet | BL14: Pituus | BM14: Prosentti | BN14: Pisteet | BO14: Pisteet | BP14: Pituus | BQ14: Prosentti | BR14: Pisteet | BS14: Asukkaat | BT14: Pisteet | BU14: KKVL pisteet | BV14: Pisteet | BW14: Pisteet | BX14: Pisteet
A16: ID | B16: OLD | C16: OLD2 | D16: Soratie sija | E16: Soratie pist | F16: Soratie luokka | G16: Merk sija | H16: Merk pist | I16: Gmaps | J16: LUOKKA | K16: TOIML | L16: Tie | M16: Kunta | N16: Maakunta | O16: TIE | P16: AOSA | Q16: AET | R16: LOSA | S16: LET | T16: PITUUS | U16: Tieosan pit | V16: Sora osuus | W16: KVL | X16: KVLRAS | Y16: KKVL | Z16: Päällyste | AA16: Tien leveys | AB16: Kelirikko osuus | AC16: erit.huono | AD16: huono | AE16: tyydyt. | AF16: hyvä | AG16: Tasaisuus | AH16: Kiinteys | AI16: Pölyävyys | AJ16: KVLPIST | AK16: VUOROT | AL16: VUOROPIST | AM16: TMATKAT | AN16: PIST | AO16: KALUSTO | AP16: KALUSTOPIST | AQ16: P1 | AR16: P1 PAINO | AS16: RAS PIST | AT16: Maito | AU16: Jäte | AV16: Maa-aines | AW16: Turve | AX16: Maatalousrakennukset | AY16: NAUTA | AZ16: LAMMAS | BA16: SIKA | BB16: SIIPI | BC16: Elintarvikelaitos | BD16: Tuotantolaitos | BE16: PTKAUPPA | BF16: PUUKULJETUS | BG16: P2 | BH16: P2 paino | BI16: KOULUPIT | BJ16: KOULUPROS | BK16: KOULUPIST | BL16: ERIKUPIT | BM16: ERIKUPROS | BN16: ERIKU | BO16: VARAREITTI | BP16: TAAJAPIT | BQ16: TAAJAPROS | BR16: TAAJAPIST | BS16: ASUKASTIH | BT16: ASUKASPIST | BU16: KKVL PIST | BV16: Matkailureitti | BW16: Matkailukohde | BX16: Tien verkollinen asema | BY16: P3 | BZ16: P3 Paino | CA16: PIST YHT | CB16: PIST PAINO | CC16: MERK LUOKKA | CD16: GMAPS
A17: =CONCATENATE(O17,"_",P17) -> 14822_1 | B17: =VLOOKUP(A17,TIEOSAT!$A$39:$CE$715,8,FALSE) -> 3 | C17: =VLOOKUP(A17,TIEOSAT!$A$39:$CE$715,7,FALSE) -> 7.176066087 | D17: =RANK(E17,$E$17:$E$304,0) -> 1 | E17: =IF(W17>$H$6,$G$6,($G$6/$H$6)*W17)+IF(AB17>$H$7,$G$7,($G$7/$H$7)*AB17)+IF(H17>$H$8,$G$8,H17*($G$8/$H$8)) -> 9.554175157 | F17: =IF(W17>=150,1,2) -> 1 | G17: =VLOOKUP(A17,TIEOSAT!$A$39:$CE$715,4,FALSE) -> 198 | H17: 3.035696923 | I17: =HYPERLINK(CD17,"Gmaps") -> Gmaps | J17: =VLOOKUP(A17,TIEOSAT!$A$39:$CE$715,11,FALSE) -> VÄHÄ | K17: =VLOOKUP(A17,TIEOSAT!$A$39:$CE$715,12,FALSE) -> Yhdys | L17: Pajarilantie | M17: =VLOOKUP(A17,TIEOSAT!$A$39:$CE$715,14,FALSE) -> Lappeenranta | N17: =VLOOKUP(A17,TIEOSAT!$A$39:$CE$715,15,FALSE) -> Etelä-Karjala | O17: 14822 | P17: 1 | Q17: 1653 | R17: 1 | S17: 5443 | T17: =S17-Q17 -> 3790 | U17: =VLOOKUP(A17,TIEOSAT!$A$39:$U$715,21,FALSE) -> 5526 | V17: =T17/U17 -> 0.6858487152 | W17: 172.4803721 | X17: 27.76674419 | Y17: 224.4203256 | Z17: sora | AA17: 60 (100 %) | AB17: =SUM(AC17:AE17/T17) -> 0.2770875783 | AC17: 0 | AD17: 204.4978522 | AE17: 845.6640695 | AF17: 724.4010126 | AJ17: =VLOOKUP(A17,TIEOSAT!$A$39:$CE$715,38,FALSE) -> 4.343061889 | AK17: =VLOOKUP(A17,TIEOSAT!$A$39:$CE$715,39,FALSE) -> 0 | AL17: =VLOOKUP(A17,TIEOSAT!$A$39:$CE$715,40,FALSE) -> 0 | AM17: =VLOOKUP(A17,TIEOSAT!$A$39:$CE$715,41,FALSE) -> 128 | AN17: =VLOOKUP(A17,TIEOSAT!$A$39:$CE$715,42,FALSE) -> 0.8533333333 | AO17: =VLOOKUP(A17,TIEOSAT!$A$39:$CE$715,43,FALSE) -> bussi | AP17: =VLOOKUP(A17,TIEOSAT!$A$39:$CE$715,44,FALSE) -> 3 | AQ17: =VLOOKUP(A17,TIEOSAT!$A$39:$CE$715,45,FALSE) -> 5.196395223 | AR17: =VLOOKUP(A17,TIEOSAT!$A$39:$CE$715,46,FALSE) -> 1.732131741 | AS17: =VLOOKUP(A17,TIEOSAT!$A$39:$CE$715,47,FALSE) -> 7.578045603 | AT17: =VLOOKUP(A17,TIEOSAT!$A$39:$CE$715,48,FALSE) -> 2 | AU17: =VLOOKUP(A17,TIEOSAT!$A$39:$CE$715,49,FALSE) -> 1 | AV17: =VLOOKUP(A17,TIEOSAT!$A$39:$CE$715,50,FALSE) -> 1 | AW17: =VLOOKUP(A17,TIEOSAT!$A$39:$CE$715,51,FALSE) -> 0 | AX17: =VLOOKUP(A17,TIEOSAT!$A$39:$CE$715,52,FALSE) -> 1 | AY17: =VLOOKUP(A17,TIEOSAT!$A$39:$CE$715,53,FALSE) -> 0.2533333333 | AZ17: =VLOOKUP(A17,TIEOSAT!$A$39:$CE$715,54,FALSE) -> 0 | BA17: =VLOOKUP(A17,TIEOSAT!$A$39:$CE$715,55,FALSE) -> 0.367 | BB17: =VLOOKUP(A17,TIEOSAT!$A$39:$CE$715,56,FALSE) -> 0 | BC17: =VLOOKUP(A17,TIEOSAT!$A$39:$CE$715,57,FALSE) -> 0 | BD17: =VLOOKUP(A17,TIEOSAT!$A$39:$CE$715,58,FALSE) -> 0 | BE17: =VLOOKUP(A17,TIEOSAT!$A$39:$CE$715,59,FALSE) -> 0 | BF17: =VLOOKUP(A17,TIEOSAT!$A$39:$CE$715,60,FALSE) -> 0.1334241016 | BG17: =VLOOKUP(A17,TIEOSAT!$A$39:$CE$715,60,FALSE) -> 0.1334241016 | BH17: =VLOOKUP(A17,TIEOSAT!$A$39:$CE$715,61,FALSE) -> 13.33180304 | BI17: =VLOOKUP(A17,TIEOSAT!$A$39:$CE$715,62,FALSE) -> 4.443934346 | BJ17: =VLOOKUP(A17,TIEOSAT!$A$39:$CE$715,63,FALSE) -> 811.2543331 | BK17: =VLOOKUP(A17,TIEOSAT!$A$39:$CE$715,64,FALSE) -> 0.1468067921 | BL17: =VLOOKUP(A17,TIEOSAT!$A$39:$CE$715,65,FALSE) -> 0.5 | BM17: =VLOOKUP(A17,TIEOSAT!$A$39:$CE$715,66,FALSE) -> 0 | BN17: =VLOOKUP(A17,TIEOSAT!$A$39:$CE$715,67,FALSE) -> 0 | BO17: =VLOOKUP(A17,TIEOSAT!$A$39:$CE$715,68,FALSE) -> 0 | BP17: =VLOOKUP(A17,TIEOSAT!$A$39:$CE$715,69,FALSE) -> 0 | BQ17: =VLOOKUP(A17,TIEOSAT!$A$39:$CE$715,70,FALSE) -> 1277.655385 | BR17: =VLOOKUP(A17,TIEOSAT!$A$39:$CE$715,71,FALSE) -> 0.2312079959 | BS17: =VLOOKUP(A17,TIEOSAT!$A$39:$CE$715,72,FALSE) -> 0 | BT17: =VLOOKUP(A17,TIEOSAT!$A$39:$CE$715,73,FALSE) -> 27.57871878 | BU17: =VLOOKUP(A17,TIEOSAT!$A$39:$CE$715,74,FALSE) -> 0.5 | BV17: =VLOOKUP(A17,TIEOSAT!$A$39:$CE$715,75,FALSE) -> 0 | BW17: =VLOOKUP(A17,TIEOSAT!$A$39:$CE$715,76,FALSE) -> 0 | BX17: =VLOOKUP(A17,TIEOSAT!$A$39:$CE$715,77,FALSE) -> 1 | BY17: =VLOOKUP(A17,TIEOSAT!$A$39:$CE$715,78,FALSE) -> 1 | BZ17: =VLOOKUP(A17,TIEOSAT!$A$39:$CE$715,79,FALSE) -> 3 | CA17: =VLOOKUP(A17,TIEOSAT!$A$39:$CE$715,80,FALSE) -> 1 | CB17: =VLOOKUP(A17,TIEOSAT!$A$39:$CE$715,81,FALSE) -> 21.52819826 | CC17: =VLOOKUP(A17,TIEOSAT!$A$39:$CE$715,82,FALSE) -> 7.176066087 | CD17: https://www.google.com/maps/@61.0534095884,28.2990687401,3a,75y,90t/data=!3m3!1e1!3m1!2e0
A18: 14783_1 | B18: =VLOOKUP(A18,TIEOSAT!$A$39:$CE$715,8,FALSE) -> 3 | C18: =VLOOKUP(A18,TIEOSAT!$A$39:$CE$715,7,FALSE) -> 5.00492769 | D18: 2 | E18: 9.375099097 | F18: 1 | G18: =VLOOKUP(A18,TIEOSAT!$A$39:$CE$715,4,FALSE) -> 292 | H18: 2.768261023 | I18: Gmaps | J18: =VLOOKUP(A18,TIEOSAT!$A$39:$CE$715,11,FALSE) -> VÄHÄ | K18: =VLOOKUP(A18,TIEOSAT!$A$39:$CE$715,12,FALSE) -> Yhdys | L18: Suolahdentie | M18: =VLOOKUP(A18,TIEOSAT!$A$39:$CE$715,14,FALSE) -> Taipalsaari | N18: =VLOOKUP(A18,TIEOSAT!$A$39:$CE$715,15,FALSE) -> Etelä-Karjala | O18: 14783 | P18: 1 | Q18: 980 | R18: 1 | S18: 2513 | T18: 1533 | U18: =VLOOKUP(A18,TIEOSAT!$A$39:$U$715,21,FALSE) -> 2513 | V18: 0.6100278552 | W18: 175 | X18: 17 | Y18: 265 | Z18: sora | AA18: 55 (92 %), 64 (8 %) | AB18: =SUM(AC18:AE18/T18) -> 0.4192885254 | AC18: 0 | AD18: 60.00089572 | AE18: 582.7684137 | AF18: 52.12530583 | AJ18: =VLOOKUP(A18,TIEOSAT!$A$39:$CE$715,38,FALSE) -> 3.15 | AK18: =VLOOKUP(A18,TIEOSAT!$A$39:$CE$715,39,FALSE) -> 3 | AL18: =VLOOKUP(A18,TIEOSAT!$A$39:$CE$715,40,FALSE) -> 0.9 | AM18: =VLOOKUP(A18,TIEOSAT!$A$39:$CE$715,41,FALSE) -> 31 | AN18: =VLOOKUP(A18,TIEOSAT!$A$39:$CE$715,42,FALSE) -> 0.2066666667 | AO18: =VLOOKUP(A18,TIEOSAT!$A$39:$CE$715,43,FALSE) -> taksi | AP18: =VLOOKUP(A18,TIEOSAT!$A$39:$CE$715,44,FALSE) -> 1.5 | AQ18: =VLOOKUP(A18,TIEOSAT!$A$39:$CE$715,45,FALSE) -> 4.256666667 | AR18: =VLOOKUP(A18,TIEOSAT!$A$39:$CE$715,46,FALSE) -> 1.418888889 | AS18: =VLOOKUP(A18,TIEOSAT!$A$39:$CE$715,47,FALSE) -> 3.06 | AT18: =VLOOKUP(A18,TIEOSAT!$A$39:$CE$715,48,FALSE) -> 2 | AU18: =VLOOKUP(A18,TIEOSAT!$A$39:$CE$715,49,FALSE) -> 0 | AV18: =VLOOKUP(A18,TIEOSAT!$A$39:$CE$715,50,FALSE) -> 0 | AW18: =VLOOKUP(A18,TIEOSAT!$A$39:$CE$715,51,FALSE) -> 1 | AX18: =VLOOKUP(A18,TIEOSAT!$A$39:$CE$715,52,FALSE) -> 1 | AY18: =VLOOKUP(A18,TIEOSAT!$A$39:$CE$715,53,FALSE) -> 0.205 | AZ18: =VLOOKUP(A18,TIEOSAT!$A$39:$CE$715,54,FALSE) -> 0.055 | BA18: =VLOOKUP(A18,TIEOSAT!$A$39:$CE$715,55,FALSE) -> 0 | BB18: =VLOOKUP(A18,TIEOSAT!$A$39:$CE$715,56,FALSE) -> 0 | BC18: =VLOOKUP(A18,TIEOSAT!$A$39:$CE$715,57,FALSE) -> 0 | BD18: =VLOOKUP(A18,TIEOSAT!$A$39:$CE$715,58,FALSE) -> 0 | BE18: =VLOOKUP(A18,TIEOSAT!$A$39:$CE$715,59,FALSE) -> 0 | BF18: =VLOOKUP(A18,TIEOSAT!$A$39:$CE$715,60,FALSE) -> 0.4381164021 | BG18: =VLOOKUP(A18,TIEOSAT!$A$39:$CE$715,60,FALSE) -> 0.4381164021 | BH18: =VLOOKUP(A18,TIEOSAT!$A$39:$CE$715,61,FALSE) -> 7.758116402 | BI18: =VLOOKUP(A18,TIEOSAT!$A$39:$CE$715,62,FALSE) -> 2.586038801 | BJ18: =VLOOKUP(A18,TIEOSAT!$A$39:$CE$715,63,FALSE) -> 0 | BK18: =VLOOKUP(A18,TIEOSAT!$A$39:$CE$715,64,FALSE) -> 0 | BL18: =VLOOKUP(A18,TIEOSAT!$A$39:$CE$715,65,FALSE) -> 0 | BM18: =VLOOKUP(A18,TIEOSAT!$A$39:$CE$715,66,FALSE) -> 0 | BN18: =VLOOKUP(A18,TIEOSAT!$A$39:$CE$715,67,FALSE) -> 0 | BO18: =VLOOKUP(A18,TIEOSAT!$A$39:$CE$715,68,FALSE) -> 0 | BP18: =VLOOKUP(A18,TIEOSAT!$A$39:$CE$715,69,FALSE) -> 0 | BQ18: =VLOOKUP(A18,TIEOSAT!$A$39:$CE$715,70,FALSE) -> 0 | BR18: =VLOOKUP(A18,TIEOSAT!$A$39:$CE$715,71,FALSE) -> 0 | BS18: =VLOOKUP(A18,TIEOSAT!$A$39:$CE$715,72,FALSE) -> 0 | BT18: =VLOOKUP(A18,TIEOSAT!$A$39:$CE$715,73,FALSE) -> 16.51412654 | BU18: =VLOOKUP(A18,TIEOSAT!$A$39:$CE$715,74,FALSE) -> 0.5 | BV18: =VLOOKUP(A18,TIEOSAT!$A$39:$CE$715,75,FALSE) -> 1.5 | BW18: =VLOOKUP(A18,TIEOSAT!$A$39:$CE$715,76,FALSE) -> 0 | BX18: =VLOOKUP(A18,TIEOSAT!$A$39:$CE$715,77,FALSE) -> 0 | BY18: =VLOOKUP(A18,TIEOSAT!$A$39:$CE$715,78,FALSE) -> 1 | BZ18: =VLOOKUP(A18,TIEOSAT!$A$39:$CE$715,79,FALSE) -> 3 | CA18: =VLOOKUP(A18,TIEOSAT!$A$39:$CE$715,80,FALSE) -> 1 | CB18: =VLOOKUP(A18,TIEOSAT!$A$39:$CE$715,81,FALSE) -> 15.01478307 | CC18: =VLOOKUP(A18,TIEOSAT!$A$39:$CE$715,82,FALSE) -> 5.00492769 | CD18: https://www.google.com/maps/@61.2204312221,27.9540105626,3a,75y,90t/data=!3m3!1e1!3m1!2e0
A19: 14707_1 | B19: =VLOOKUP(A19,TIEOSAT!$A$39:$CE$715,8,FALSE) -> 3 | C19: =VLOOKUP(A19,TIEOSAT!$A$39:$CE$715,7,FALSE) -> 5.621590922 | D19: 3 | E19: 9.366289827 | F19: 1 | G19: =VLOOKUP(A19,TIEOSAT!$A$39:$CE$715,4,FALSE) -> 263 | H19: 2.940702033 | I19: Gmaps | J19: =VLOOKUP(A19,TIEOSAT!$A$39:$CE$715,11,FALSE) -> VÄHÄ | K19: =VLOOKUP(A19,TIEOSAT!$A$39:$CE$715,12,FALSE) -> Yhdys | L19: Häppiläntie | M19: =VLOOKUP(A19,TIEOSAT!$A$39:$CE$715,14,FALSE) -> Virolahti | N19: =VLOOKUP(A19,TIEOSAT!$A$39:$CE$715,15,FALSE) -> Kymenlaakso | O19: 14707 | P19: 1 | Q19: 39 | R19: 1 | S19: 7270 | T19: 7231 | U19: =VLOOKUP(A19,TIEOSAT!$A$39:$U$715,21,FALSE) -> 7492 | V19: 0.9651628404 | W19: 242 | X19: 14 | Y19: 245 | Z19: sora | AA19: 50 (100 %) | AB19: =SUM(AC19:AE19/T19) -> 0.2424428806 | AC19: 0 | AD19: 19.96236851 | AE19: 1733.142101 | AF19: 148.8350154 | AJ19: =VLOOKUP(A19,TIEOSAT!$A$39:$CE$715,38,FALSE) -> 4.356 | AK19: =VLOOKUP(A19,TIEOSAT!$A$39:$CE$715,39,FALSE) -> 1 | AL19: =VLOOKUP(A19,TIEOSAT!$A$39:$CE$715,40,FALSE) -> 0.3 | AM19: =VLOOKUP(A19,TIEOSAT!$A$39:$CE$715,41,FALSE) -> 166 | AN19: =VLOOKUP(A19,TIEOSAT!$A$39:$CE$715,42,FALSE) -> 1.106666667 | AO19: =VLOOKUP(A19,TIEOSAT!$A$39:$CE$715,43,FALSE) -> taksi | AP19: =VLOOKUP(A19,TIEOSAT!$A$39:$CE$715,44,FALSE) -> 1.5 | AQ19: =VLOOKUP(A19,TIEOSAT!$A$39:$CE$715,45,FALSE) -> 5.762666667 | AR19: =VLOOKUP(A19,TIEOSAT!$A$39:$CE$715,46,FALSE) -> 1.920888889 | AS19: =VLOOKUP(A19,TIEOSAT!$A$39:$CE$715,47,FALSE) -> 2.52 | AT19: =VLOOKUP(A19,TIEOSAT!$A$39:$CE$715,48,FALSE) -> 2 | AU19: =VLOOKUP(A19,TIEOSAT!$A$39:$CE$715,49,FALSE) -> 0 | AV19: =VLOOKUP(A19,TIEOSAT!$A$39:$CE$715,50,FALSE) -> 0 | AW19: =VLOOKUP(A19,TIEOSAT!$A$39:$CE$715,51,FALSE) -> 0 | AX19: =VLOOKUP(A19,TIEOSAT!$A$39:$CE$715,52,FALSE) -> 1 | AY19: =VLOOKUP(A19,TIEOSAT!$A$39:$CE$715,53,FALSE) -> 0.5 | AZ19: =VLOOKUP(A19,TIEOSAT!$A$39:$CE$715,54,FALSE) -> 0.05 | BA19: =VLOOKUP(A19,TIEOSAT!$A$39:$CE$715,55,FALSE) -> 0 | BB19: =VLOOKUP(A19,TIEOSAT!$A$39:$CE$715,56,FALSE) -> 0 | BC19: =VLOOKUP(A19,TIEOSAT!$A$39:$CE$715,57,FALSE) -> 0 | BD19: =VLOOKUP(A19,TIEOSAT!$A$39:$CE$715,58,FALSE) -> 0.6666666667 | BE19: =VLOOKUP(A19,TIEOSAT!$A$39:$CE$715,59,FALSE) -> 1 | BF19: =VLOOKUP(A19,TIEOSAT!$A$39:$CE$715,60,FALSE) -> 0.3654394326 | BG19: =VLOOKUP(A19,TIEOSAT!$A$39:$CE$715,60,FALSE) -> 0.3654394326 | BH19: =VLOOKUP(A19,TIEOSAT!$A$39:$CE$715,61,FALSE) -> 8.102106099 | BI19: =VLOOKUP(A19,TIEOSAT!$A$39:$CE$715,62,FALSE) -> 2.700702033 | BJ19: =VLOOKUP(A19,TIEOSAT!$A$39:$CE$715,63,FALSE) -> 3222.342546 | BK19: =VLOOKUP(A19,TIEOSAT!$A$39:$CE$715,64,FALSE) -> 0.4301044509 | BL19: =VLOOKUP(A19,TIEOSAT!$A$39:$CE$715,65,FALSE) -> 0.5 | BM19: =VLOOKUP(A19,TIEOSAT!$A$39:$CE$715,66,FALSE) -> 0 | BN19: =VLOOKUP(A19,TIEOSAT!$A$39:$CE$715,67,FALSE) -> 0 | BO19: =VLOOKUP(A19,TIEOSAT!$A$39:$CE$715,68,FALSE) -> 0 | BP19: =VLOOKUP(A19,TIEOSAT!$A$39:$CE$715,69,FALSE) -> 0 | BQ19: =VLOOKUP(A19,TIEOSAT!$A$39:$CE$715,70,FALSE) -> 861.4891161 | BR19: =VLOOKUP(A19,TIEOSAT!$A$39:$CE$715,71,FALSE) -> 0.1149878692 | BS19: =VLOOKUP(A19,TIEOSAT!$A$39:$CE$715,72,FALSE) -> 0 | BT19: =VLOOKUP(A19,TIEOSAT!$A$39:$CE$715,73,FALSE) -> 37.57341164 | BU19: =VLOOKUP(A19,TIEOSAT!$A$39:$CE$715,74,FALSE) -> 0.5 | BV19: =VLOOKUP(A19,TIEOSAT!$A$39:$CE$715,75,FALSE) -> 0 | BW19: =VLOOKUP(A19,TIEOSAT!$A$39:$CE$715,76,FALSE) -> 0 | BX19: =VLOOKUP(A19,TIEOSAT!$A$39:$CE$715,77,FALSE) -> 1 | BY19: =VLOOKUP(A19,TIEOSAT!$A$39:$CE$715,78,FALSE) -> 1 | BZ19: =VLOOKUP(A19,TIEOSAT!$A$39:$CE$715,79,FALSE) -> 3 | CA19: =VLOOKUP(A19,TIEOSAT!$A$39:$CE$715,80,FALSE) -> 1 | CB19: =VLOOKUP(A19,TIEOSAT!$A$39:$CE$715,81,FALSE) -> 16.86477277 | CC19: =VLOOKUP(A19,TIEOSAT!$A$39:$CE$715,82,FALSE) -> 5.621590922 | CD19: https://www.google.com/maps/@60.5635058044,27.3943688969,3a,75y,90t/data=!3m3!1e1!3m1!2e0
A20: 14747_1 | B20: =VLOOKUP(A20,TIEOSAT!$A$39:$CE$715,8,FALSE) -> 3 | C20: =VLOOKUP(A20,TIEOSAT!$A$39:$CE$715,7,FALSE) -> 5.319294304 | D20: 4 | E20: 9.290814739 | F20: 1 | G20: =VLOOKUP(A20,TIEOSAT!$A$39:$CE$715,4,FALSE) -> 279 | H20: 3.232627637 | I20: Gmaps | J20: =VLOOKUP(A20,TIEOSAT!$A$39:$CE$715,11,FALSE) -> VÄHÄ | K20: =VLOOKUP(A20,TIEOSAT!$A$39:$CE$715,12,FALSE) -> Yhdys | L20: Hurttalantie | M20: =VLOOKUP(A20,TIEOSAT!$A$39:$CE$715,14,FALSE) -> Miehikkälä | N20: =VLOOKUP(A20,TIEOSAT!$A$39:$CE$715,15,FALSE) -> Kymenlaakso | O20: 14747 | P20: 1 | Q20: 1187 | R20: 1 | S20: 4467 | T20: 3280 | U20: =VLOOKUP(A20,TIEOSAT!$A$39:$U$715,21,FALSE) -> 4467 | V20: 0.7342735617 | W20: 200 | X20: 12 | Y20: 241 | Z20: sora | AA20: 60 (100 %) | AB20: =SUM(AC20:AE20/T20) -> 0.1454073695 | AC20: 0 | AD20: 112.2431995 | AE20: 364.6929724 | AF20: 9.946118674 | AJ20: =VLOOKUP(A20,TIEOSAT!$A$39:$CE$715,38,FALSE) -> 3.6 | AK20: =VLOOKUP(A20,TIEOSAT!$A$39:$CE$715,39,FALSE) -> 9 | AL20: =VLOOKUP(A20,TIEOSAT!$A$39:$CE$715,40,FALSE) -> 2.7 | AM20: =VLOOKUP(A20,TIEOSAT!$A$39:$CE$715,41,FALSE) -> 95 | AN20: =VLOOKUP(A20,TIEOSAT!$A$39:$CE$715,42,FALSE) -> 0.6333333333 | AO20: =VLOOKUP(A20,TIEOSAT!$A$39:$CE$715,43,FALSE) -> bussi | AP20: =VLOOKUP(A20,TIEOSAT!$A$39:$CE$715,44,FALSE) -> 3 | AQ20: =VLOOKUP(A20,TIEOSAT!$A$39:$CE$715,45,FALSE) -> 6.933333333 | AR20: =VLOOKUP(A20,TIEOSAT!$A$39:$CE$715,46,FALSE) -> 2.311111111 | AS20: =VLOOKUP(A20,TIEOSAT!$A$39:$CE$715,47,FALSE) -> 2.16 | AT20: =VLOOKUP(A20,TIEOSAT!$A$39:$CE$715,48,FALSE) -> 2 | AU20: =VLOOKUP(A20,TIEOSAT!$A$39:$CE$715,49,FALSE) -> 0 | AV20: =VLOOKUP(A20,TIEOSAT!$A$39:$CE$715,50,FALSE) -> 1 | AW20: =VLOOKUP(A20,TIEOSAT!$A$39:$CE$715,51,FALSE) -> 0 | AX20: =VLOOKUP(A20,TIEOSAT!$A$39:$CE$715,52,FALSE) -> 1 | AY20: =VLOOKUP(A20,TIEOSAT!$A$39:$CE$715,53,FALSE) -> 0.16 | AZ20: =VLOOKUP(A20,TIEOSAT!$A$39:$CE$715,54,FALSE) -> 0 | BA20: =VLOOKUP(A20,TIEOSAT!$A$39:$CE$715,55,FALSE) -> 0 | BB20: =VLOOKUP(A20,TIEOSAT!$A$39:$CE$715,56,FALSE) -> 0 | BC20: =VLOOKUP(A20,TIEOSAT!$A$39:$CE$715,57,FALSE) -> 0 | BD20: =VLOOKUP(A20,TIEOSAT!$A$39:$CE$715,58,FALSE) -> 0 | BE20: =VLOOKUP(A20,TIEOSAT!$A$39:$CE$715,59,FALSE) -> 0 | BF20: =VLOOKUP(A20,TIEOSAT!$A$39:$CE$715,60,FALSE) -> 0.2045495784 | BG20: =VLOOKUP(A20,TIEOSAT!$A$39:$CE$715,60,FALSE) -> 0.2045495784 | BH20: =VLOOKUP(A20,TIEOSAT!$A$39:$CE$715,61,FALSE) -> 6.524549578 | BI20: =VLOOKUP(A20,TIEOSAT!$A$39:$CE$715,62,FALSE) -> 2.174849859 | BJ20: =VLOOKUP(A20,TIEOSAT!$A$39:$CE$715,63,FALSE) -> 2459.594358 | BK20: =VLOOKUP(A20,TIEOSAT!$A$39:$CE$715,64,FALSE) -> 0.5506143627 | BL20: =VLOOKUP(A20,TIEOSAT!$A$39:$CE$715,65,FALSE) -> 1 | BM20: =VLOOKUP(A20,TIEOSAT!$A$39:$CE$715,66,FALSE) -> 0 | BN20: =VLOOKUP(A20,TIEOSAT!$A$39:$CE$715,67,FALSE) -> 0 | BO20: =VLOOKUP(A20,TIEOSAT!$A$39:$CE$715,68,FALSE) -> 0 | BP20: =VLOOKUP(A20,TIEOSAT!$A$39:$CE$715,69,FALSE) -> 0 | BQ20: =VLOOKUP(A20,TIEOSAT!$A$39:$CE$715,70,FALSE) -> 930.201602 | BR20: =VLOOKUP(A20,TIEOSAT!$A$39:$CE$715,71,FALSE) -> 0.2082385498 | BS20: =VLOOKUP(A20,TIEOSAT!$A$39:$CE$715,72,FALSE) -> 0 | BT20: =VLOOKUP(A20,TIEOSAT!$A$39:$CE$715,73,FALSE) -> 70.42758003 | BU20: =VLOOKUP(A20,TIEOSAT!$A$39:$CE$715,74,FALSE) -> 0.5 | BV20: =VLOOKUP(A20,TIEOSAT!$A$39:$CE$715,75,FALSE) -> 0 | BW20: =VLOOKUP(A20,TIEOSAT!$A$39:$CE$715,76,FALSE) -> 0 | BX20: =VLOOKUP(A20,TIEOSAT!$A$39:$CE$715,77,FALSE) -> 0 | BY20: =VLOOKUP(A20,TIEOSAT!$A$39:$CE$715,78,FALSE) -> 1 | BZ20: =VLOOKUP(A20,TIEOSAT!$A$39:$CE$715,79,FALSE) -> 2.5 | CA20: =VLOOKUP(A20,TIEOSAT!$A$39:$CE$715,80,FALSE) -> 0.8333333333 | CB20: =VLOOKUP(A20,TIEOSAT!$A$39:$CE$715,81,FALSE) -> 15.95788291 | CC20: =VLOOKUP(A20,TIEOSAT!$A$39:$CE$715,82,FALSE) -> 5.319294304 | CD20: https://www.google.com/maps/@60.6812697872,27.7064653407,3a,75y,90t/data=!3m3!1e1!3m1!2e0
A21: 14790_2 | B21: =VLOOKUP(A21,TIEOSAT!$A$39:$CE$715,8,FALSE) -> 3 | C21: =VLOOKUP(A21,TIEOSAT!$A$39:$CE$715,7,FALSE) -> 5.329081246 | D21: 5 | E21: 9.28820395 | F21: 1 | G21: =VLOOKUP(A21,TIEOSAT!$A$39:$CE$715,4,FALSE) -> 276 | H21: 2.91241458 | I21: Gmaps | J21: =VLOOKUP(A21,TIEOSAT!$A$39:$CE$715,11,FALSE) -> VÄHÄ | K21: =VLOOKUP(A21,TIEOSAT!$A$39:$CE$715,12,FALSE) -> Yhdys | L21: Korkea-ahon tie | M21: =VLOOKUP(A21,TIEOSAT!$A$39:$CE$715,14,FALSE) -> Lappeenranta | N21: =VLOOKUP(A21,TIEOSAT!$A$39:$CE$715,15,FALSE) -> Etelä-Karjala | O21: 14790 | P21: 2 | Q21: 1350 | R21: 2 | S21: 5908 | T21: 4558 | U21: =VLOOKUP(A21,TIEOSAT!$A$39:$U$715,21,FALSE) -> 5908 | V21: 0.7714962762 | W21: 275 | X21: 10 | Y21: 313 | Z21: sora | AA21: 55 (30 %), 60 (70 %) | AB21: =SUM(AC21:AE21/T21) -> 0.2316873954 | AC21: 0 | AD21: 186.8089213 | AE21: 869.222227 | AF21: 49.10176852 | AJ21: =VLOOKUP(A21,TIEOSAT!$A$39:$CE$715,38,FALSE) -> 4.95 | AK21: =VLOOKUP(A21,TIEOSAT!$A$39:$CE$715,39,FALSE) -> 0 | AL21: =VLOOKUP(A21,TIEOSAT!$A$39:$CE$715,40,FALSE) -> 0 | AM21: =VLOOKUP(A21,TIEOSAT!$A$39:$CE$715,41,FALSE) -> 108 | AN21: =VLOOKUP(A21,TIEOSAT!$A$39:$CE$715,42,FALSE) -> 0.72 | AO21: =VLOOKUP(A21,TIEOSAT!$A$39:$CE$715,43,FALSE) -> bussi | AP21: =VLOOKUP(A21,TIEOSAT!$A$39:$CE$715,44,FALSE) -> 3 | AQ21: =VLOOKUP(A21,TIEOSAT!$A$39:$CE$715,45,FALSE) -> 5.67 | AR21: =VLOOKUP(A21,TIEOSAT!$A$39:$CE$715,46,FALSE) -> 1.89 | AS21: =VLOOKUP(A21,TIEOSAT!$A$39:$CE$715,47,FALSE) -> 1.8 | AT21: =VLOOKUP(A21,TIEOSAT!$A$39:$CE$715,48,FALSE) -> 2 | AU21: =VLOOKUP(A21,TIEOSAT!$A$39:$CE$715,49,FALSE) -> 0 | AV21: =VLOOKUP(A21,TIEOSAT!$A$39:$CE$715,50,FALSE) -> 1 | AW21: =VLOOKUP(A21,TIEOSAT!$A$39:$CE$715,51,FALSE) -> 1 | AX21: =VLOOKUP(A21,TIEOSAT!$A$39:$CE$715,52,FALSE) -> 1 | AY21: =VLOOKUP(A21,TIEOSAT!$A$39:$CE$715,53,FALSE) -> 0.225 | AZ21: =VLOOKUP(A21,TIEOSAT!$A$39:$CE$715,54,FALSE) -> 0.15 | BA21: =VLOOKUP(A21,TIEOSAT!$A$39:$CE$715,55,FALSE) -> 0 | BB21: =VLOOKUP(A21,TIEOSAT!$A$39:$CE$715,56,FALSE) -> 0.5 | BC21: =VLOOKUP(A21,TIEOSAT!$A$39:$CE$715,57,FALSE) -> 0 | BD21: =VLOOKUP(A21,TIEOSAT!$A$39:$CE$715,58,FALSE) -> 0 | BE21: =VLOOKUP(A21,TIEOSAT!$A$39:$CE$715,59,FALSE) -> 0 | BF21: =VLOOKUP(A21,TIEOSAT!$A$39:$CE$715,60,FALSE) -> 0.1422437388 | BG21: =VLOOKUP(A21,TIEOSAT!$A$39:$CE$715,60,FALSE) -> 0.1422437388 | BH21: =VLOOKUP(A21,TIEOSAT!$A$39:$CE$715,61,FALSE) -> 7.817243739 | BI21: =VLOOKUP(A21,TIEOSAT!$A$39:$CE$715,62,FALSE) -> 2.605747913 | BJ21: =VLOOKUP(A21,TIEOSAT!$A$39:$CE$715,63,FALSE) -> 4168.828558 | BK21: =VLOOKUP(A21,TIEOSAT!$A$39:$CE$715,64,FALSE) -> 0.7056243328 | BL21: =VLOOKUP(A21,TIEOSAT!$A$39:$CE$715,65,FALSE) -> 1 | BM21: =VLOOKUP(A21,TIEOSAT!$A$39:$CE$715,66,FALSE) -> 0 | BN21: =VLOOKUP(A21,TIEOSAT!$A$39:$CE$715,67,FALSE) -> 0 | BO21: =VLOOKUP(A21,TIEOSAT!$A$39:$CE$715,68,FALSE) -> 0 | BP21: =VLOOKUP(A21,TIEOSAT!$A$39:$CE$715,69,FALSE) -> 0 | BQ21: =VLOOKUP(A21,TIEOSAT!$A$39:$CE$715,70,FALSE) -> 0 | BR21: =VLOOKUP(A21,TIEOSAT!$A$39:$CE$715,71,FALSE) -> 0 | BS21: =VLOOKUP(A21,TIEOSAT!$A$39:$CE$715,72,FALSE) -> 0 | BT21: =VLOOKUP(A21,TIEOSAT!$A$39:$CE$715,73,FALSE) -> 24.20446852 | BU21: =VLOOKUP(A21,TIEOSAT!$A$39:$CE$715,74,FALSE) -> 0.5 | BV21: =VLOOKUP(A21,TIEOSAT!$A$39:$CE$715,75,FALSE) -> 0 | BW21: =VLOOKUP(A21,TIEOSAT!$A$39:$CE$715,76,FALSE) -> 0 | BX21: =VLOOKUP(A21,TIEOSAT!$A$39:$CE$715,77,FALSE) -> 0 | BY21: =VLOOKUP(A21,TIEOSAT!$A$39:$CE$715,78,FALSE) -> 1 | BZ21: =VLOOKUP(A21,TIEOSAT!$A$39:$CE$715,79,FALSE) -> 2.5 | CA21: =VLOOKUP(A21,TIEOSAT!$A$39:$CE$715,80,FALSE) -> 0.8333333333 | CB21: =VLOOKUP(A21,TIEOSAT!$A$39:$CE$715,81,FALSE) -> 15.98724374 | CC21: =VLOOKUP(A21,TIEOSAT!$A$39:$CE$715,82,FALSE) -> 5.329081246 | CD21: https://www.google.com/maps/@60.9730926224,28.0877127489,3a,75y,90t/data=!3m3!1e1!3m1!2e0
A22: 3751_2 | B22: =VLOOKUP(A22,TIEOSAT!$A$39:$CE$715,8,FALSE) -> 3 | C22: =VLOOKUP(A22,TIEOSAT!$A$39:$CE$715,7,FALSE) -> 7.057788996 | D22: 6 | E22: 9.254399705 | F22: 1 | G22: =VLOOKUP(A22,TIEOSAT!$A$39:$CE$715,4,FALSE) -> 205 | H22: 3.01460405 | I22: Gmaps | J22: =VLOOKUP(A22,TIEOSAT!$A$39:$CE$715,11,FALSE) -> VÄHÄ | K22: =VLOOKUP(A22,TIEOSAT!$A$39:$CE$715,12,FALSE) -> Yhdys | L22: Onnenmäentie, Saverontie | M22: =VLOOKUP(A22,TIEOSAT!$A$39:$CE$715,14,FALSE) -> Kouvola | N22: =VLOOKUP(A22,TIEOSAT!$A$39:$CE$715,15,FALSE) -> Kymenlaakso | O22: 3751 | P22: 2 | Q22: 4517 | R22: 2 | S22: 11722 | T22: 7205 | U22: =VLOOKUP(A22,TIEOSAT!$A$39:$U$715,21,FALSE) -> 11774 | V22: 0.6119415662 | W22: 304.2674689 | X22: 24.96936716 | Y22: 348.2813929 | Z22: sora | AA22: 60 (55 %), 61 (45 %) | AB22: =SUM(AC22:AE22/T22) -> 0.1271998523 | AC22: 0 | AD22: 721.7255693 | AE22: 194.7493667 | AF22: 251.8000195 | AJ22: =VLOOKUP(A22,TIEOSAT!$A$39:$CE$715,38,FALSE) -> 6.048550365 | AK22: =VLOOKUP(A22,TIEOSAT!$A$39:$CE$715,39,FALSE) -> 0 | AL22: =VLOOKUP(A22,TIEOSAT!$A$39:$CE$715,40,FALSE) -> 0 | AM22: =VLOOKUP(A22,TIEOSAT!$A$39:$CE$715,41,FALSE) -> 167 | AN22: =VLOOKUP(A22,TIEOSAT!$A$39:$CE$715,42,FALSE) -> 1.113333333 | AO22: =VLOOKUP(A22,TIEOSAT!$A$39:$CE$715,43,FALSE) -> bussi | AP22: =VLOOKUP(A22,TIEOSAT!$A$39:$CE$715,44,FALSE) -> 3 | AQ22: =VLOOKUP(A22,TIEOSAT!$A$39:$CE$715,45,FALSE) -> 7.161883699 | AR22: =VLOOKUP(A22,TIEOSAT!$A$39:$CE$715,46,FALSE) -> 2.387294566 | AS22: =VLOOKUP(A22,TIEOSAT!$A$39:$CE$715,47,FALSE) -> 5.24767114 | AT22: =VLOOKUP(A22,TIEOSAT!$A$39:$CE$715,48,FALSE) -> 2 | AU22: =VLOOKUP(A22,TIEOSAT!$A$39:$CE$715,49,FALSE) -> 0 | AV22: =VLOOKUP(A22,TIEOSAT!$A$39:$CE$715,50,FALSE) -> 1 | AW22: =VLOOKUP(A22,TIEOSAT!$A$39:$CE$715,51,FALSE) -> 1 | AX22: =VLOOKUP(A22,TIEOSAT!$A$39:$CE$715,52,FALSE) -> 1 | AY22: =VLOOKUP(A22,TIEOSAT!$A$39:$CE$715,53,FALSE) -> 0.3266666667 | AZ22: =VLOOKUP(A22,TIEOSAT!$A$39:$CE$715,54,FALSE) -> 0.025 | BA22: =VLOOKUP(A22,TIEOSAT!$A$39:$CE$715,55,FALSE) -> 0 | BB22: =VLOOKUP(A22,TIEOSAT!$A$39:$CE$715,56,FALSE) -> 0 | BC22: =VLOOKUP(A22,TIEOSAT!$A$39:$CE$715,57,FALSE) -> 0 | BD22: =VLOOKUP(A22,TIEOSAT!$A$39:$CE$715,58,FALSE) -> 0.3333333333 | BE22: =VLOOKUP(A22,TIEOSAT!$A$39:$CE$715,59,FALSE) -> 0 | BF22: =VLOOKUP(A22,TIEOSAT!$A$39:$CE$715,60,FALSE) -> 1.07881215 | BG22: =VLOOKUP(A22,TIEOSAT!$A$39:$CE$715,60,FALSE) -> 1.07881215 | BH22: =VLOOKUP(A22,TIEOSAT!$A$39:$CE$715,61,FALSE) -> 12.01148329 | BI22: =VLOOKUP(A22,TIEOSAT!$A$39:$CE$715,62,FALSE) -> 4.003827763 | BJ22: =VLOOKUP(A22,TIEOSAT!$A$39:$CE$715,63,FALSE) -> 865.7817433 | BK22: =VLOOKUP(A22,TIEOSAT!$A$39:$CE$715,64,FALSE) -> 0.07353335683 | BL22: =VLOOKUP(A22,TIEOSAT!$A$39:$CE$715,65,FALSE) -> 0.5 | BM22: =VLOOKUP(A22,TIEOSAT!$A$39:$CE$715,66,FALSE) -> 0 | BN22: =VLOOKUP(A22,TIEOSAT!$A$39:$CE$715,67,FALSE) -> 0 | BO22: =VLOOKUP(A22,TIEOSAT!$A$39:$CE$715,68,FALSE) -> 0 | BP22: =VLOOKUP(A22,TIEOSAT!$A$39:$CE$715,69,FALSE) -> 0 | BQ22: =VLOOKUP(A22,TIEOSAT!$A$39:$CE$715,70,FALSE) -> 0 | BR22: =VLOOKUP(A22,TIEOSAT!$A$39:$CE$715,71,FALSE) -> 0 | BS22: =VLOOKUP(A22,TIEOSAT!$A$39:$CE$715,72,FALSE) -> 0 | BT22: =VLOOKUP(A22,TIEOSAT!$A$39:$CE$715,73,FALSE) -> 17.2498726 | BU22: =VLOOKUP(A22,TIEOSAT!$A$39:$CE$715,74,FALSE) -> 0.5 | BV22: =VLOOKUP(A22,TIEOSAT!$A$39:$CE$715,75,FALSE) -> 0 | BW22: =VLOOKUP(A22,TIEOSAT!$A$39:$CE$715,76,FALSE) -> 0 | BX22: =VLOOKUP(A22,TIEOSAT!$A$39:$CE$715,77,FALSE) -> 0 | BY22: =VLOOKUP(A22,TIEOSAT!$A$39:$CE$715,78,FALSE) -> 1 | BZ22: =VLOOKUP(A22,TIEOSAT!$A$39:$CE$715,79,FALSE) -> 2 | CA22: =VLOOKUP(A22,TIEOSAT!$A$39:$CE$715,80,FALSE) -> 0.6666666667 | CB22: =VLOOKUP(A22,TIEOSAT!$A$39:$CE$715,81,FALSE) -> 21.17336699 | CC22: =VLOOKUP(A22,TIEOSAT!$A$39:$CE$715,82,FALSE) -> 7.057788996 | CD22: https://www.google.com/maps/@60.8097349582,26.9850964867,3a,75y,90t/data=!3m3!1e1!3m1!2e0
A23: 14771_1 | B23: =VLOOKUP(A23,TIEOSAT!$A$39:$CE$715,8,FALSE) -> 3 | C23: =VLOOKUP(A23,TIEOSAT!$A$39:$CE$715,7,FALSE) -> 4.408519351 | D23: 7 | E23: 9.247209675 | F23: 2 | G23: =VLOOKUP(A23,TIEOSAT!$A$39:$CE$715,4,FALSE) -> 317 | H23: 3.047852684 | I23: Gmaps | J23: =VLOOKUP(A23,TIEOSAT!$A$39:$CE$715,11,FALSE) -> VÄHÄ | K23: =VLOOKUP(A23,TIEOSAT!$A$39:$CE$715,12,FALSE) -> Yhdys | L23: Lavikanlahdentie | M23: =VLOOKUP(A23,TIEOSAT!$A$39:$CE$715,14,FALSE) -> Savitaipale | N23: =VLOOKUP(A23,TIEOSAT!$A$39:$CE$715,15,FALSE) -> Etelä-Karjala | O23: 14771 | P23: 1 | Q23: 998 | R23: 1 | S23: 2670 | T23: 1672 | U23: =VLOOKUP(A23,TIEOSAT!$A$39:$U$715,21,FALSE) -> 2670 | V23: 0.6262172285 | W23: 149 | X23: 5 | Y23: 179 | Z23: sora | AA23: 53 (17 %), 60 (83 %) | AB23: =SUM(AC23:AE23/T23) -> 0.1336048374 | AC23: 0 | AD23: 0 | AE23: 223.3872881 | AF23: 0 | AJ23: =VLOOKUP(A23,TIEOSAT!$A$39:$CE$715,38,FALSE) -> 2.682 | AK23: =VLOOKUP(A23,TIEOSAT!$A$39:$CE$715,39,FALSE) -> 0 | AL23: =VLOOKUP(A23,TIEOSAT!$A$39:$CE$715,40,FALSE) -> 0 | AM23: =VLOOKUP(A23,TIEOSAT!$A$39:$CE$715,41,FALSE) -> 101 | AN23: =VLOOKUP(A23,TIEOSAT!$A$39:$CE$715,42,FALSE) -> 0.6733333333 | AO23: =VLOOKUP(A23,TIEOSAT!$A$39:$CE$715,43,FALSE) -> taksi | AP23: =VLOOKUP(A23,TIEOSAT!$A$39:$CE$715,44,FALSE) -> 1.5 | AQ23: =VLOOKUP(A23,TIEOSAT!$A$39:$CE$715,45,FALSE) -> 3.355333333 | AR23: =VLOOKUP(A23,TIEOSAT!$A$39:$CE$715,46,FALSE) -> 1.118444444 | AS23: =VLOOKUP(A23,TIEOSAT!$A$39:$CE$715,47,FALSE) -> 0.9 | AT23: =VLOOKUP(A23,TIEOSAT!$A$39:$CE$715,48,FALSE) -> 2 | AU23: =VLOOKUP(A23,TIEOSAT!$A$39:$CE$715,49,FALSE) -> 0 | AV23: =VLOOKUP(A23,TIEOSAT!$A$39:$CE$715,50,FALSE) -> 1 | AW23: =VLOOKUP(A23,TIEOSAT!$A$39:$CE$715,51,FALSE) -> 1 | AX23: =VLOOKUP(A23,TIEOSAT!$A$39:$CE$715,52,FALSE) -> 1 | AY23: =VLOOKUP(A23,TIEOSAT!$A$39:$CE$715,53,FALSE) -> 0.5 | AZ23: =VLOOKUP(A23,TIEOSAT!$A$39:$CE$715,54,FALSE) -> 0.5 | BA23: =VLOOKUP(A23,TIEOSAT!$A$39:$CE$715,55,FALSE) -> 0 | BB23: =VLOOKUP(A23,TIEOSAT!$A$39:$CE$715,56,FALSE) -> 0.1166666667 | BC23: =VLOOKUP(A23,TIEOSAT!$A$39:$CE$715,57,FALSE) -> 0 | BD23: =VLOOKUP(A23,TIEOSAT!$A$39:$CE$715,58,FALSE) -> 0 | BE23: =VLOOKUP(A23,TIEOSAT!$A$39:$CE$715,59,FALSE) -> 0 | BF23: =VLOOKUP(A23,TIEOSAT!$A$39:$CE$715,60,FALSE) -> 0.3535580524 | BG23: =VLOOKUP(A23,TIEOSAT!$A$39:$CE$715,60,FALSE) -> 0.3535580524 | BH23: =VLOOKUP(A23,TIEOSAT!$A$39:$CE$715,61,FALSE) -> 7.370224719 | BI23: =VLOOKUP(A23,TIEOSAT!$A$39:$CE$715,62,FALSE) -> 2.456741573 | BJ23: =VLOOKUP(A23,TIEOSAT!$A$39:$CE$715,63,FALSE) -> 2174.46028 | BK23: =VLOOKUP(A23,TIEOSAT!$A$39:$CE$715,64,FALSE) -> 0.8144045993 | BL23: =VLOOKUP(A23,TIEOSAT!$A$39:$CE$715,65,FALSE) -> 1 | BM23: =VLOOKUP(A23,TIEOSAT!$A$39:$CE$715,66,FALSE) -> 0 | BN23: =VLOOKUP(A23,TIEOSAT!$A$39:$CE$715,67,FALSE) -> 0 | BO23: =VLOOKUP(A23,TIEOSAT!$A$39:$CE$715,68,FALSE) -> 0 | BP23: =VLOOKUP(A23,TIEOSAT!$A$39:$CE$715,69,FALSE) -> 0 | BQ23: =VLOOKUP(A23,TIEOSAT!$A$39:$CE$715,70,FALSE) -> 314.7551957 | BR23: =VLOOKUP(A23,TIEOSAT!$A$39:$CE$715,71,FALSE) -> 0.1178858411 | BS23: =VLOOKUP(A23,TIEOSAT!$A$39:$CE$715,72,FALSE) -> 0 | BT23: =VLOOKUP(A23,TIEOSAT!$A$39:$CE$715,73,FALSE) -> 65.50561798 | BU23: =VLOOKUP(A23,TIEOSAT!$A$39:$CE$715,74,FALSE) -> 0.5 | BV23: =VLOOKUP(A23,TIEOSAT!$A$39:$CE$715,75,FALSE) -> 0 | BW23: =VLOOKUP(A23,TIEOSAT!$A$39:$CE$715,76,FALSE) -> 0 | BX23: =VLOOKUP(A23,TIEOSAT!$A$39:$CE$715,77,FALSE) -> 1 | BY23: =VLOOKUP(A23,TIEOSAT!$A$39:$CE$715,78,FALSE) -> 0 | BZ23: =VLOOKUP(A23,TIEOSAT!$A$39:$CE$715,79,FALSE) -> 2.5 | CA23: =VLOOKUP(A23,TIEOSAT!$A$39:$CE$715,80,FALSE) -> 0.8333333333 | CB23: =VLOOKUP(A23,TIEOSAT!$A$39:$CE$715,81,FALSE) -> 13.22555805 | CC23: =VLOOKUP(A23,TIEOSAT!$A$39:$CE$715,82,FALSE) -> 4.408519351 | CD23: https://www.google.com/maps/@61.1933060603,27.7237469537,3a,75y,90t/data=!3m3!1e1!3m1!2e0
A24: 14774_1 | B24: =VLOOKUP(A24,TIEOSAT!$A$39:$CE$715,8,FALSE) -> 3 | C24: =VLOOKUP(A24,TIEOSAT!$A$39:$CE$715,7,FALSE) -> 4.45865776 | D24: 8 | E24: 8.492246777 | F24: 2 | G24: =VLOOKUP(A24,TIEOSAT!$A$39:$CE$715,4,FALSE) -> 316 | H24: 3.103768871 | I24: Gmaps | J24: =VLOOKUP(A24,TIEOSAT!$A$39:$CE$715,11,FALSE) -> VÄHÄ | K24: =VLOOKUP(A24,TIEOSAT!$A$39:$CE$715,12,FALSE) -> Yhdys | L24: Vainikkalantie | M24: =VLOOKUP(A24,TIEOSAT!$A$39:$CE$715,14,FALSE) -> Lemi | N24: =VLOOKUP(A24,TIEOSAT!$A$39:$CE$715,15,FALSE) -> Etelä-Karjala | O24: 14774 | P24: 1 | Q24: 621 | R24: 1 | S24: 7228 | T24: 6607 | U24: =VLOOKUP(A24,TIEOSAT!$A$39:$U$715,21,FALSE) -> 8272 | V24: 0.7987185687 | W24: 111 | X24: 5 | Y24: 133 | Z24: sora | AA24: 60 (100 %) | AB24: =SUM(AC24:AE24/T24) -> 0.1361233884 | AC24: 0 | AD24: 14.9720399 | AE24: 884.3951872 | AF24: 44.92017983 | AJ24: =VLOOKUP(A24,TIEOSAT!$A$39:$CE$715,38,FALSE) -> 1.998 | AK24: =VLOOKUP(A24,TIEOSAT!$A$39:$CE$715,39,FALSE) -> 0 | AL24: =VLOOKUP(A24,TIEOSAT!$A$39:$CE$715,40,FALSE) -> 0 | AM24: =VLOOKUP(A24,TIEOSAT!$A$39:$CE$715,41,FALSE) -> 125 | AN24: =VLOOKUP(A24,TIEOSAT!$A$39:$CE$715,42,FALSE) -> 0.8333333333 | AO24: =VLOOKUP(A24,TIEOSAT!$A$39:$CE$715,43,FALSE) -> taksi | AP24: =VLOOKUP(A24,TIEOSAT!$A$39:$CE$715,44,FALSE) -> 1.5 | AQ24: =VLOOKUP(A24,TIEOSAT!$A$39:$CE$715,45,FALSE) -> 2.831333333 | AR24: =VLOOKUP(A24,TIEOSAT!$A$39:$CE$715,46,FALSE) -> 0.9437777778 | AS24: =VLOOKUP(A24,TIEOSAT!$A$39:$CE$715,47,FALSE) -> 0.9 | AT24: =VLOOKUP(A24,TIEOSAT!$A$39:$CE$715,48,FALSE) -> 2 | AU24: =VLOOKUP(A24,TIEOSAT!$A$39:$CE$715,49,FALSE) -> 0 | AV24: =VLOOKUP(A24,TIEOSAT!$A$39:$CE$715,50,FALSE) -> 1 | AW24: =VLOOKUP(A24,TIEOSAT!$A$39:$CE$715,51,FALSE) -> 0 | AX24: =VLOOKUP(A24,TIEOSAT!$A$39:$CE$715,52,FALSE) -> 1 | AY24: =VLOOKUP(A24,TIEOSAT!$A$39:$CE$715,53,FALSE) -> 0.1583333333 | AZ24: =VLOOKUP(A24,TIEOSAT!$A$39:$CE$715,54,FALSE) -> 0.07 | BA24: =VLOOKUP(A24,TIEOSAT!$A$39:$CE$715,55,FALSE) -> 0 | BB24: =VLOOKUP(A24,TIEOSAT!$A$39:$CE$715,56,FALSE) -> 0.2833333333 | BC24: =VLOOKUP(A24,TIEOSAT!$A$39:$CE$715,57,FALSE) -> 0 | BD24: =VLOOKUP(A24,TIEOSAT!$A$39:$CE$715,58,FALSE) -> 0.6666666667 | BE24: =VLOOKUP(A24,TIEOSAT!$A$39:$CE$715,59,FALSE) -> 1 | BF24: =VLOOKUP(A24,TIEOSAT!$A$39:$CE$715,60,FALSE) -> 0.4663066135 | BG24: =VLOOKUP(A24,TIEOSAT!$A$39:$CE$715,60,FALSE) -> 0.4663066135 | BH24: =VLOOKUP(A24,TIEOSAT!$A$39:$CE$715,61,FALSE) -> 7.544639947 | BI24: =VLOOKUP(A24,TIEOSAT!$A$39:$CE$715,62,FALSE) -> 2.514879982 | BJ24: =VLOOKUP(A24,TIEOSAT!$A$39:$CE$715,63,FALSE) -> 2621.85841 | BK24: =VLOOKUP(A24,TIEOSAT!$A$39:$CE$715,64,FALSE) -> 0.3169558039 | BL24: =VLOOKUP(A24,TIEOSAT!$A$39:$CE$715,65,FALSE) -> 0.5 | BM24: =VLOOKUP(A24,TIEOSAT!$A$39:$CE$715,66,FALSE) -> 0 | BN24: =VLOOKUP(A24,TIEOSAT!$A$39:$CE$715,67,FALSE) -> 0 | BO24: =VLOOKUP(A24,TIEOSAT!$A$39:$CE$715,68,FALSE) -> 0 | BP24: =VLOOKUP(A24,TIEOSAT!$A$39:$CE$715,69,FALSE) -> 0 | BQ24: =VLOOKUP(A24,TIEOSAT!$A$39:$CE$715,70,FALSE) -> 627.8736905 | BR24: =VLOOKUP(A24,TIEOSAT!$A$39:$CE$715,71,FALSE) -> 0.07590349257 | BS24: =VLOOKUP(A24,TIEOSAT!$A$39:$CE$715,72,FALSE) -> 0 | BT24: =VLOOKUP(A24,TIEOSAT!$A$39:$CE$715,73,FALSE) -> 44.83800774 | BU24: =VLOOKUP(A24,TIEOSAT!$A$39:$CE$715,74,FALSE) -> 0.5 | BV24: =VLOOKUP(A24,TIEOSAT!$A$39:$CE$715,75,FALSE) -> 0 | BW24: =VLOOKUP(A24,TIEOSAT!$A$39:$CE$715,76,FALSE) -> 0 | BX24: =VLOOKUP(A24,TIEOSAT!$A$39:$CE$715,77,FALSE) -> 1 | BY24: =VLOOKUP(A24,TIEOSAT!$A$39:$CE$715,78,FALSE) -> 1 | BZ24: =VLOOKUP(A24,TIEOSAT!$A$39:$CE$715,79,FALSE) -> 3 | CA24: =VLOOKUP(A24,TIEOSAT!$A$39:$CE$715,80,FALSE) -> 1 | CB24: =VLOOKUP(A24,TIEOSAT!$A$39:$CE$715,81,FALSE) -> 13.37597328 | CC24: =VLOOKUP(A24,TIEOSAT!$A$39:$CE$715,82,FALSE) -> 4.45865776 | CD24: https://www.google.com/maps/@61.0667573419,27.8091239114,3a,75y,90t/data=!3m3!1e1!3m1!2e0
A25: 14646_2 | B25: =VLOOKUP(A25,TIEOSAT!$A$39:$CE$715,8,FALSE) -> 3 | C25: =VLOOKUP(A25,TIEOSAT!$A$39:$CE$715,7,FALSE) -> 4.897696146 | D25: 9 | E25: 8.094417529 | F25: 1 | G25: =VLOOKUP(A25,TIEOSAT!$A$39:$CE$715,4,FALSE) -> 296 | H25: 2.09702948 | I25: Gmaps | J25: =VLOOKUP(A25,TIEOSAT!$A$39:$CE$715,11,FALSE) -> VÄHÄ | K25: =VLOOKUP(A25,TIEOSAT!$A$39:$CE$715,12,FALSE) -> Yhdys | L25: Kipparilantie | M25: =VLOOKUP(A25,TIEOSAT!$A$39:$CE$715,14,FALSE) -> Kouvola | N25: =VLOOKUP(A25,TIEOSAT!$A$39:$CE$715,15,FALSE) -> Kymenlaakso | O25: 14646 | P25: 2 | Q25: 0 | R25: 2 | S25: 1987 | T25: 1987 | U25: =VLOOKUP(A25,TIEOSAT!$A$39:$U$715,21,FALSE) -> 2527 | V25: 0.786307875 | W25: 269 | X25: 17 | Y25: 369 | Z25: sora | AA25: 50 (100 %) | AB25: =SUM(AC25:AE25/T25) -> 0.4501792852 | AC25: 0 | AD25: 806.7458746 | AE25: 87.76036512 | AF25: 9.98557246 | AJ25: =VLOOKUP(A25,TIEOSAT!$A$39:$CE$715,38,FALSE) -> 4.842 | AK25: =VLOOKUP(A25,TIEOSAT!$A$39:$CE$715,39,FALSE) -> 0 | AL25: =VLOOKUP(A25,TIEOSAT!$A$39:$CE$715,40,FALSE) -> 0 | AM25: =VLOOKUP(A25,TIEOSAT!$A$39:$CE$715,41,FALSE) -> 68 | AN25: =VLOOKUP(A25,TIEOSAT!$A$39:$CE$715,42,FALSE) -> 0.4533333333 | AO25: =VLOOKUP(A25,TIEOSAT!$A$39:$CE$715,43,FALSE) -> bussi | AP25: =VLOOKUP(A25,TIEOSAT!$A$39:$CE$715,44,FALSE) -> 3 | AQ25: =VLOOKUP(A25,TIEOSAT!$A$39:$CE$715,45,FALSE) -> 5.295333333 | AR25: =VLOOKUP(A25,TIEOSAT!$A$39:$CE$715,46,FALSE) -> 1.765111111 | AS25: =VLOOKUP(A25,TIEOSAT!$A$39:$CE$715,47,FALSE) -> 3.06 | AT25: =VLOOKUP(A25,TIEOSAT!$A$39:$CE$715,48,FALSE) -> 2 | AU25: =VLOOKUP(A25,TIEOSAT!$A$39:$CE$715,49,FALSE) -> 0 | AV25: =VLOOKUP(A25,TIEOSAT!$A$39:$CE$715,50,FALSE) -> 1 | AW25: =VLOOKUP(A25,TIEOSAT!$A$39:$CE$715,51,FALSE) -> 0 | AX25: =VLOOKUP(A25,TIEOSAT!$A$39:$CE$715,52,FALSE) -> 0 | AY25: =VLOOKUP(A25,TIEOSAT!$A$39:$CE$715,53,FALSE) -> 0.2916666667 | AZ25: =VLOOKUP(A25,TIEOSAT!$A$39:$CE$715,54,FALSE) -> 0.09 | BA25: =VLOOKUP(A25,TIEOSAT!$A$39:$CE$715,55,FALSE) -> 0 | BB25: =VLOOKUP(A25,TIEOSAT!$A$39:$CE$715,56,FALSE) -> 0 | BC25: =VLOOKUP(A25,TIEOSAT!$A$39:$CE$715,57,FALSE) -> 0 | BD25: =VLOOKUP(A25,TIEOSAT!$A$39:$CE$715,58,FALSE) -> 0 | BE25: =VLOOKUP(A25,TIEOSAT!$A$39:$CE$715,59,FALSE) -> 0 | BF25: =VLOOKUP(A25,TIEOSAT!$A$39:$CE$715,60,FALSE) -> 0.4560884386 | BG25: =VLOOKUP(A25,TIEOSAT!$A$39:$CE$715,60,FALSE) -> 0.4560884386 | BH25: =VLOOKUP(A25,TIEOSAT!$A$39:$CE$715,61,FALSE) -> 6.897755105 | BI25: =VLOOKUP(A25,TIEOSAT!$A$39:$CE$715,62,FALSE) -> 2.299251702 | BJ25: =VLOOKUP(A25,TIEOSAT!$A$39:$CE$715,63,FALSE) -> 0 | BK25: =VLOOKUP(A25,TIEOSAT!$A$39:$CE$715,64,FALSE) -> 0 | BL25: =VLOOKUP(A25,TIEOSAT!$A$39:$CE$715,65,FALSE) -> 0 | BM25: =VLOOKUP(A25,TIEOSAT!$A$39:$CE$715,66,FALSE) -> 0 | BN25: =VLOOKUP(A25,TIEOSAT!$A$39:$CE$715,67,FALSE) -> 0 | BO25: =VLOOKUP(A25,TIEOSAT!$A$39:$CE$715,68,FALSE) -> 0 | BP25: =VLOOKUP(A25,TIEOSAT!$A$39:$CE$715,69,FALSE) -> 0 | BQ25: =VLOOKUP(A25,TIEOSAT!$A$39:$CE$715,70,FALSE) -> 0 | BR25: =VLOOKUP(A25,TIEOSAT!$A$39:$CE$715,71,FALSE) -> 0 | BS25: =VLOOKUP(A25,TIEOSAT!$A$39:$CE$715,72,FALSE) -> 0 | BT25: =VLOOKUP(A25,TIEOSAT!$A$39:$CE$715,73,FALSE) -> 5.817174515 | BU25: =VLOOKUP(A25,TIEOSAT!$A$39:$CE$715,74,FALSE) -> 0.5 | BV25: =VLOOKUP(A25,TIEOSAT!$A$39:$CE$715,75,FALSE) -> 0 | BW25: =VLOOKUP(A25,TIEOSAT!$A$39:$CE$715,76,FALSE) -> 0 | BX25: =VLOOKUP(A25,TIEOSAT!$A$39:$CE$715,77,FALSE) -> 1 | BY25: =VLOOKUP(A25,TIEOSAT!$A$39:$CE$715,78,FALSE) -> 1 | BZ25: =VLOOKUP(A25,TIEOSAT!$A$39:$CE$715,79,FALSE) -> 2.5 | CA25: =VLOOKUP(A25,TIEOSAT!$A$39:$CE$715,80,FALSE) -> 0.8333333333 | CB25: =VLOOKUP(A25,TIEOSAT!$A$39:$CE$715,81,FALSE) -> 14.69308844 | CC25: =VLOOKUP(A25,TIEOSAT!$A$39:$CE$715,82,FALSE) -> 4.897696146 | CD25: https://www.google.com/maps/@60.912467796,26.9459416279,3a,75y,90t/data=!3m3!1e1!3m1!2e0
A26: 14776_1 | B26: =VLOOKUP(A26,TIEOSAT!$A$39:$CE$715,8,FALSE) -> 3 | C26: =VLOOKUP(A26,TIEOSAT!$A$39:$CE$715,7,FALSE) -> 4.953145333 | D26: 10 | E26: 7.840827728 | F26: 1 | G26: =VLOOKUP(A26,TIEOSAT!$A$39:$CE$715,4,FALSE) -> 295 | H26: 2.110478666 | I26: Gmaps | J26: =VLOOKUP(A26,TIEOSAT!$A$39:$CE$715,11,FALSE) -> VÄHÄ | K26: =VLOOKUP(A26,TIEOSAT!$A$39:$CE$715,12,FALSE) -> Yhdys | L26: Kurhilantie | M26: =VLOOKUP(A26,TIEOSAT!$A$39:$CE$715,14,FALSE) -> Taipalsaari | N26: =VLOOKUP(A26,TIEOSAT!$A$39:$CE$715,15,FALSE) -> Etelä-Karjala | O26: 14776 | P26: 1 | Q26: 26 | R26: 1 | S26: 3790 | T26: 3764 | U26: =VLOOKUP(A26,TIEOSAT!$A$39:$U$715,21,FALSE) -> 3790 | V26: 0.9931398417 | W26: 276 | X26: 17 | Y26: 353 | Z26: sora | AA26: 60 (79 %), 70 (21 %) | AB26: =SUM(AC26:AE26/T26) -> 0.3099351974 | AC26: 0 | AD26: 0 | AE26: 1166.596083 | AF26: 14.89862119 | AJ26: =VLOOKUP(A26,TIEOSAT!$A$39:$CE$715,38,FALSE) -> 4.968 | AK26: =VLOOKUP(A26,TIEOSAT!$A$39:$CE$715,39,FALSE) -> 0 | AL26: =VLOOKUP(A26,TIEOSAT!$A$39:$CE$715,40,FALSE) -> 0 | AM26: =VLOOKUP(A26,TIEOSAT!$A$39:$CE$715,41,FALSE) -> 48 | AN26: =VLOOKUP(A26,TIEOSAT!$A$39:$CE$715,42,FALSE) -> 0.32 | AO26: =VLOOKUP(A26,TIEOSAT!$A$39:$CE$715,43,FALSE) -> taksi | AP26: =VLOOKUP(A26,TIEOSAT!$A$39:$CE$715,44,FALSE) -> 1.5 | AQ26: =VLOOKUP(A26,TIEOSAT!$A$39:$CE$715,45,FALSE) -> 5.288 | AR26: =VLOOKUP(A26,TIEOSAT!$A$39:$CE$715,46,FALSE) -> 1.762666667 | AS26: =VLOOKUP(A26,TIEOSAT!$A$39:$CE$715,47,FALSE) -> 3.06 | AT26: =VLOOKUP(A26,TIEOSAT!$A$39:$CE$715,48,FALSE) -> 2 | AU26: =VLOOKUP(A26,TIEOSAT!$A$39:$CE$715,49,FALSE) -> 0 | AV26: =VLOOKUP(A26,TIEOSAT!$A$39:$CE$715,50,FALSE) -> 0 | AW26: =VLOOKUP(A26,TIEOSAT!$A$39:$CE$715,51,FALSE) -> 0 | AX26: =VLOOKUP(A26,TIEOSAT!$A$39:$CE$715,52,FALSE) -> 1 | AY26: =VLOOKUP(A26,TIEOSAT!$A$39:$CE$715,53,FALSE) -> 0.2966666667 | AZ26: =VLOOKUP(A26,TIEOSAT!$A$39:$CE$715,54,FALSE) -> 0.03 | BA26: =VLOOKUP(A26,TIEOSAT!$A$39:$CE$715,55,FALSE) -> 0 | BB26: =VLOOKUP(A26,TIEOSAT!$A$39:$CE$715,56,FALSE) -> 0 | BC26: =VLOOKUP(A26,TIEOSAT!$A$39:$CE$715,57,FALSE) -> 0 | BD26: =VLOOKUP(A26,TIEOSAT!$A$39:$CE$715,58,FALSE) -> 0 | BE26: =VLOOKUP(A26,TIEOSAT!$A$39:$CE$715,59,FALSE) -> 0 | BF26: =VLOOKUP(A26,TIEOSAT!$A$39:$CE$715,60,FALSE) -> 0.6847693327 | BG26: =VLOOKUP(A26,TIEOSAT!$A$39:$CE$715,60,FALSE) -> 0.6847693327 | BH26: =VLOOKUP(A26,TIEOSAT!$A$39:$CE$715,61,FALSE) -> 7.071435999 | BI26: =VLOOKUP(A26,TIEOSAT!$A$39:$CE$715,62,FALSE) -> 2.357145333 | BJ26: =VLOOKUP(A26,TIEOSAT!$A$39:$CE$715,63,FALSE) -> 0 | BK26: =VLOOKUP(A26,TIEOSAT!$A$39:$CE$715,64,FALSE) -> 0 | BL26: =VLOOKUP(A26,TIEOSAT!$A$39:$CE$715,65,FALSE) -> 0 | BM26: =VLOOKUP(A26,TIEOSAT!$A$39:$CE$715,66,FALSE) -> 0 | BN26: =VLOOKUP(A26,TIEOSAT!$A$39:$CE$715,67,FALSE) -> 0 | BO26: =VLOOKUP(A26,TIEOSAT!$A$39:$CE$715,68,FALSE) -> 0 | BP26: =VLOOKUP(A26,TIEOSAT!$A$39:$CE$715,69,FALSE) -> 0 | BQ26: =VLOOKUP(A26,TIEOSAT!$A$39:$CE$715,70,FALSE) -> 0 | BR26: =VLOOKUP(A26,TIEOSAT!$A$39:$CE$715,71,FALSE) -> 0 | BS26: =VLOOKUP(A26,TIEOSAT!$A$39:$CE$715,72,FALSE) -> 0 | BT26: =VLOOKUP(A26,TIEOSAT!$A$39:$CE$715,73,FALSE) -> 11.66226913 | BU26: =VLOOKUP(A26,TIEOSAT!$A$39:$CE$715,74,FALSE) -> 0.5 | BV26: =VLOOKUP(A26,TIEOSAT!$A$39:$CE$715,75,FALSE) -> 0 | BW26: =VLOOKUP(A26,TIEOSAT!$A$39:$CE$715,76,FALSE) -> 0 | BX26: =VLOOKUP(A26,TIEOSAT!$A$39:$CE$715,77,FALSE) -> 1 | BY26: =VLOOKUP(A26,TIEOSAT!$A$39:$CE$715,78,FALSE) -> 1 | BZ26: =VLOOKUP(A26,TIEOSAT!$A$39:$CE$715,79,FALSE) -> 2.5 | CA26: =VLOOKUP(A26,TIEOSAT!$A$39:$CE$715,80,FALSE) -> 0.8333333333 | CB26: =VLOOKUP(A26,TIEOSAT!$A$39:$CE$715,81,FALSE) -> 14.859436 | CC26: =VLOOKUP(A26,TIEOSAT!$A$39:$CE$715,82,FALSE) -> 4.953145333 | CD26: https://www.google.com/maps/@61.2235507076,27.8339717999,3a,75y,90t/data=!3m3!1e1!3m1!2e0
A27: 14699_2 | B27: =VLOOKUP(A27,TIEOSAT!$A$39:$CE$715,8,FALSE) -> 3 | C27: =VLOOKUP(A27,TIEOSAT!$A$39:$CE$715,7,FALSE) -> 3.885881636 | D27: 11 | E27: 7.803384199 | F27: 2 | G27: =VLOOKUP(A27,TIEOSAT!$A$39:$CE$715,4,FALSE) -> 346 | H27: 2.708103858 | I27: Gmaps | J27: =VLOOKUP(A27,TIEOSAT!$A$39:$CE$715,11,FALSE) -> VÄHÄ | K27: =VLOOKUP(A27,TIEOSAT!$A$39:$CE$715,12,FALSE) -> Yhdys | L27: Turkiantie | M27: =VLOOKUP(A27,TIEOSAT!$A$39:$CE$715,14,FALSE) -> Hamina | N27: =VLOOKUP(A27,TIEOSAT!$A$39:$CE$715,15,FALSE) -> Kymenlaakso | O27: 14699 | P27: 2 | Q27: 0 | R27: 2 | S27: 2737 | T27: 2737 | U27: =VLOOKUP(A27,TIEOSAT!$A$39:$U$715,21,FALSE) -> 2766 | V27: 0.9895155459 | W27: 80 | X27: 7 | Y27: 95 | Z27: sora | AA27: 50 (100 %) | AB27: =SUM(AC27:AE27/T27) -> 0.393588241 | AC27: 0 | AD27: 47.8788911 | AE27: 1029.372125 | AF27: 115.7768334 | AJ27: =VLOOKUP(A27,TIEOSAT!$A$39:$CE$715,38,FALSE) -> 1.44 | AK27: =VLOOKUP(A27,TIEOSAT!$A$39:$CE$715,39,FALSE) -> 0 | AL27: =VLOOKUP(A27,TIEOSAT!$A$39:$CE$715,40,FALSE) -> 0 | AM27: =VLOOKUP(A27,TIEOSAT!$A$39:$CE$715,41,FALSE) -> 14 | AN27: =VLOOKUP(A27,TIEOSAT!$A$39:$CE$715,42,FALSE) -> 0.09333333333 | AO27: =VLOOKUP(A27,TIEOSAT!$A$39:$CE$715,43,FALSE) -> - | AP27: =VLOOKUP(A27,TIEOSAT!$A$39:$CE$715,44,FALSE) -> 0 | AQ27: =VLOOKUP(A27,TIEOSAT!$A$39:$CE$715,45,FALSE) -> 1.533333333 | AR27: =VLOOKUP(A27,TIEOSAT!$A$39:$CE$715,46,FALSE) -> 0.5111111111 | AS27: =VLOOKUP(A27,TIEOSAT!$A$39:$CE$715,47,FALSE) -> 1.26 | AT27: =VLOOKUP(A27,TIEOSAT!$A$39:$CE$715,48,FALSE) -> 2 | AU27: =VLOOKUP(A27,TIEOSAT!$A$39:$CE$715,49,FALSE) -> 0 | AV27: =VLOOKUP(A27,TIEOSAT!$A$39:$CE$715,50,FALSE) -> 1 | AW27: =VLOOKUP(A27,TIEOSAT!$A$39:$CE$715,51,FALSE) -> 0 | AX27: =VLOOKUP(A27,TIEOSAT!$A$39:$CE$715,52,FALSE) -> 1 | AY27: =VLOOKUP(A27,TIEOSAT!$A$39:$CE$715,53,FALSE) -> 0.305 | AZ27: =VLOOKUP(A27,TIEOSAT!$A$39:$CE$715,54,FALSE) -> 0.01 | BA27: =VLOOKUP(A27,TIEOSAT!$A$39:$CE$715,55,FALSE) -> 0 | BB27: =VLOOKUP(A27,TIEOSAT!$A$39:$CE$715,56,FALSE) -> 0 | BC27: =VLOOKUP(A27,TIEOSAT!$A$39:$CE$715,57,FALSE) -> 0 | BD27: =VLOOKUP(A27,TIEOSAT!$A$39:$CE$715,58,FALSE) -> 0.3333333333 | BE27: =VLOOKUP(A27,TIEOSAT!$A$39:$CE$715,59,FALSE) -> 0 | BF27: =VLOOKUP(A27,TIEOSAT!$A$39:$CE$715,60,FALSE) -> 0.7159782416 | BG27: =VLOOKUP(A27,TIEOSAT!$A$39:$CE$715,60,FALSE) -> 0.7159782416 | BH27: =VLOOKUP(A27,TIEOSAT!$A$39:$CE$715,61,FALSE) -> 6.624311575 | BI27: =VLOOKUP(A27,TIEOSAT!$A$39:$CE$715,62,FALSE) -> 2.208103858 | BJ27: =VLOOKUP(A27,TIEOSAT!$A$39:$CE$715,63,FALSE) -> 2489.896415 | BK27: =VLOOKUP(A27,TIEOSAT!$A$39:$CE$715,64,FALSE) -> 0.9001794702 | BL27: =VLOOKUP(A27,TIEOSAT!$A$39:$CE$715,65,FALSE) -> 1 | BM27: =VLOOKUP(A27,TIEOSAT!$A$39:$CE$715,66,FALSE) -> 0 | BN27: =VLOOKUP(A27,TIEOSAT!$A$39:$CE$715,67,FALSE) -> 0 | BO27: =VLOOKUP(A27,TIEOSAT!$A$39:$CE$715,68,FALSE) -> 0 | BP27: =VLOOKUP(A27,TIEOSAT!$A$39:$CE$715,69,FALSE) -> 1 | BQ27: =VLOOKUP(A27,TIEOSAT!$A$39:$CE$715,70,FALSE) -> 0 | BR27: =VLOOKUP(A27,TIEOSAT!$A$39:$CE$715,71,FALSE) -> 0 | BS27: =VLOOKUP(A27,TIEOSAT!$A$39:$CE$715,72,FALSE) -> 0 | BT27: =VLOOKUP(A27,TIEOSAT!$A$39:$CE$715,73,FALSE) -> 6.254519161 | BU27: =VLOOKUP(A27,TIEOSAT!$A$39:$CE$715,74,FALSE) -> 0.5 | BV27: =VLOOKUP(A27,TIEOSAT!$A$39:$CE$715,75,FALSE) -> 0 | BW27: =VLOOKUP(A27,TIEOSAT!$A$39:$CE$715,76,FALSE) -> 0 | BX27: =VLOOKUP(A27,TIEOSAT!$A$39:$CE$715,77,FALSE) -> 0 | BY27: =VLOOKUP(A27,TIEOSAT!$A$39:$CE$715,78,FALSE) -> 1 | BZ27: =VLOOKUP(A27,TIEOSAT!$A$39:$CE$715,79,FALSE) -> 3.5 | CA27: =VLOOKUP(A27,TIEOSAT!$A$39:$CE$715,80,FALSE) -> 1.166666667 | CB27: =VLOOKUP(A27,TIEOSAT!$A$39:$CE$715,81,FALSE) -> 11.65764491 | CC27: =VLOOKUP(A27,TIEOSAT!$A$39:$CE$715,82,FALSE) -> 3.885881636 | CD27: https://www.google.com/maps/@60.7594209202,27.2935663583,3a,75y,90t/data=!3m3!1e1!3m1!2e0
A28: 14544_1 | B28: =VLOOKUP(A28,TIEOSAT!$A$39:$CE$715,8,FALSE) -> 3 | C28: =VLOOKUP(A28,TIEOSAT!$A$39:$CE$715,7,FALSE) -> 4.685139329 | D28: 12 | E28: 7.730232244 | F28: 1 | G28: =VLOOKUP(A28,TIEOSAT!$A$39:$CE$715,4,FALSE) -> 305 | H28: 2.272567596 | I28: Gmaps | J28: =VLOOKUP(A28,TIEOSAT!$A$39:$CE$715,11,FALSE) -> VÄHÄ | K28: =VLOOKUP(A28,TIEOSAT!$A$39:$CE$715,12,FALSE) -> Yhdys | L28: Moisiontie | M28: =VLOOKUP(A28,TIEOSAT!$A$39:$CE$715,14,FALSE) -> Kouvola | N28: =VLOOKUP(A28,TIEOSAT!$A$39:$CE$715,15,FALSE) -> Kymenlaakso | O28: 14544 | P28: 1 | Q28: 1216 | R28: 1 | S28: 6617 | T28: 5401 | U28: =VLOOKUP(A28,TIEOSAT!$A$39:$U$715,21,FALSE) -> 8743 | V28: 0.6177513439 | W28: 187.0871828 | X28: 16.9372274 | Y28: 219.3818646 | Z28: sora | AA28: 65 (100 %) | AB28: =SUM(AC28:AE28/T28) -> 0.09254852659 | AC28: 0 | AD28: 215.5670146 | AE28: 284.2875776 | AF28: 10.96199213 | AJ28: =VLOOKUP(A28,TIEOSAT!$A$39:$CE$715,38,FALSE) -> 3.774087155 | AK28: =VLOOKUP(A28,TIEOSAT!$A$39:$CE$715,39,FALSE) -> 0 | AL28: =VLOOKUP(A28,TIEOSAT!$A$39:$CE$715,40,FALSE) -> 0 | AM28: =VLOOKUP(A28,TIEOSAT!$A$39:$CE$715,41,FALSE) -> 130 | AN28: =VLOOKUP(A28,TIEOSAT!$A$39:$CE$715,42,FALSE) -> 0.8666666667 | AO28: =VLOOKUP(A28,TIEOSAT!$A$39:$CE$715,43,FALSE) -> bussi | AP28: =VLOOKUP(A28,TIEOSAT!$A$39:$CE$715,44,FALSE) -> 3 | AQ28: =VLOOKUP(A28,TIEOSAT!$A$39:$CE$715,45,FALSE) -> 4.640753822 | AR28: =VLOOKUP(A28,TIEOSAT!$A$39:$CE$715,46,FALSE) -> 1.546917941 | AS28: =VLOOKUP(A28,TIEOSAT!$A$39:$CE$715,47,FALSE) -> 2.963628045 | AT28: =VLOOKUP(A28,TIEOSAT!$A$39:$CE$715,48,FALSE) -> 2 | AU28: =VLOOKUP(A28,TIEOSAT!$A$39:$CE$715,49,FALSE) -> 0 | AV28: =VLOOKUP(A28,TIEOSAT!$A$39:$CE$715,50,FALSE) -> 0 | AW28: =VLOOKUP(A28,TIEOSAT!$A$39:$CE$715,51,FALSE) -> 0 | AX28: =VLOOKUP(A28,TIEOSAT!$A$39:$CE$715,52,FALSE) -> 1 | AY28: =VLOOKUP(A28,TIEOSAT!$A$39:$CE$715,53,FALSE) -> 0.5 | AZ28: =VLOOKUP(A28,TIEOSAT!$A$39:$CE$715,54,FALSE) -> 0.5 | BA28: =VLOOKUP(A28,TIEOSAT!$A$39:$CE$715,55,FALSE) -> 0 | BB28: =VLOOKUP(A28,TIEOSAT!$A$39:$CE$715,56,FALSE) -> 0.2166666667 | BC28: =VLOOKUP(A28,TIEOSAT!$A$39:$CE$715,57,FALSE) -> 0 | BD28: =VLOOKUP(A28,TIEOSAT!$A$39:$CE$715,58,FALSE) -> 0 | BE28: =VLOOKUP(A28,TIEOSAT!$A$39:$CE$715,59,FALSE) -> 0 | BF28: =VLOOKUP(A28,TIEOSAT!$A$39:$CE$715,60,FALSE) -> 0.2343694533 | BG28: =VLOOKUP(A28,TIEOSAT!$A$39:$CE$715,60,FALSE) -> 0.2343694533 | BH28: =VLOOKUP(A28,TIEOSAT!$A$39:$CE$715,61,FALSE) -> 7.414664165 | BI28: =VLOOKUP(A28,TIEOSAT!$A$39:$CE$715,62,FALSE) -> 2.471554722 | BJ28: =VLOOKUP(A28,TIEOSAT!$A$39:$CE$715,63,FALSE) -> 2957.24409 | BK28: =VLOOKUP(A28,TIEOSAT!$A$39:$CE$715,64,FALSE) -> 0.3382413462 | BL28: =VLOOKUP(A28,TIEOSAT!$A$39:$CE$715,65,FALSE) -> 0.5 | BM28: =VLOOKUP(A28,TIEOSAT!$A$39:$CE$715,66,FALSE) -> 0 | BN28: =VLOOKUP(A28,TIEOSAT!$A$39:$CE$715,67,FALSE) -> 0 | BO28: =VLOOKUP(A28,TIEOSAT!$A$39:$CE$715,68,FALSE) -> 0 | BP28: =VLOOKUP(A28,TIEOSAT!$A$39:$CE$715,69,FALSE) -> 0 | BQ28: =VLOOKUP(A28,TIEOSAT!$A$39:$CE$715,70,FALSE) -> 763.6281259 | BR28: =VLOOKUP(A28,TIEOSAT!$A$39:$CE$715,71,FALSE) -> 0.08734165915 | BS28: =VLOOKUP(A28,TIEOSAT!$A$39:$CE$715,72,FALSE) -> 0 | BT28: =VLOOKUP(A28,TIEOSAT!$A$39:$CE$715,73,FALSE) -> 13.67951504 | BU28: =VLOOKUP(A28,TIEOSAT!$A$39:$CE$715,74,FALSE) -> 0.5 | BV28: =VLOOKUP(A28,TIEOSAT!$A$39:$CE$715,75,FALSE) -> 0 | BW28: =VLOOKUP(A28,TIEOSAT!$A$39:$CE$715,76,FALSE) -> 0 | BX28: =VLOOKUP(A28,TIEOSAT!$A$39:$CE$715,77,FALSE) -> 0 | BY28: =VLOOKUP(A28,TIEOSAT!$A$39:$CE$715,78,FALSE) -> 1 | BZ28: =VLOOKUP(A28,TIEOSAT!$A$39:$CE$715,79,FALSE) -> 2 | CA28: =VLOOKUP(A28,TIEOSAT!$A$39:$CE$715,80,FALSE) -> 0.6666666667 | CB28: =VLOOKUP(A28,TIEOSAT!$A$39:$CE$715,81,FALSE) -> 14.05541799 | CC28: =VLOOKUP(A28,TIEOSAT!$A$39:$CE$715,82,FALSE) -> 4.685139329 | CD28: https://www.google.com/maps/@60.7221943693,26.4766282829,3a,75y,90t/data=!3m3!1e1!3m1!2e0
